Workbook

Sheet Introduction
D10: The Prioritisation Framework is a flexible tool designed to support local authorities in making evidence-based spending decisions across different public health programmes. The burden and complexity of decision making in local authorities is increasing, while the resource available to carry out the exercise is decreasing. The Prioritisation Framework gives public health teams the resources they need to conduct a robust prioritisation exercise. The, proven, pragmatic approach is based on the work led by David Gardiner in Public Health England's North East Centre following a request for support from the North East Directors of Public Health. The process was developed in collaboration with from South Tyneside, Gateshead, Hartlepool and Northumberland Local Authorities and was informed by early phases of the Shifting the Gravity of Spend research programme1. The methods have been further developed through consultation and testing with other local authorities to ensure it is transparent, flexible and easy to use. The process evaluates public health programmes through triangulation of the potential state, the current state and the programme budgets, all the while considering what is feasible. The primary technique used in the framework is multi-criteria decision analysis (MCDA). MCDA has been used effectively to support strategic decision making in a number of different contexts and is recommended for use in central government policy setting, being the subject to supplementary guidance on HM Treasury’s Green book. Additionally, it has been endorsed by the London School of Economics (LSE), the London School of Hygiene & Tropical Medicine (LSHTM) and the World Trade Organisation (WTO), among others. The framework helps users translate the results of MCDA into real-world impact by also setting out the methodology for gaining buy-in for the process, including communications, scoping and project planning. Further reading MCDA can be found at:
D29: Additional resources on the use of MCDA in decision making can be found here:
D30: Green Book supplementary guidance: multi-criteria decision analysis, HM Treasury (2013)
D31: Multiple Criteria Decision Analysis (MCDA) for evaluating new medicines in Health Technology Assessment and beyond, Angelis and Kanavos (2017)
D32: Multi-Criteria Decision Analysis (MCDA) as the basis for the development, implementation and evaluation of interactive patient decision aids, Ponzo-Martin (2015)
D33: Evidence-based approach to prioritize SPS investments, World Trade Organisation (2012)
D35: The Prioritisation Framework was the subject of an independent evaluation, funded and undertaken by a team from the National Institute of Health Research (NIHR) School for Public Health Research Centre for Translational Research in Public Health (Fuse). A copy of the evaluation report can be accessed here:
D36: Prioritisation Framework Evaluation Report
D38: Further instructions on how to use the tool are available on each page. If you have feedback on using the tool then please email it to: healtheconomics@phe.gov.uk, so we can continue to improve.
D42: 1 - The Shifting the Gravity of Spend research programme was funded and undertaken by a team from the National Institute of Health Research (NIHR) School for Public Health Research Centre for Translational Research in Public Health (Fuse), the London School of Hygiene and Tropical Medicine and the University of Sheffield. Further details can be found here:
D43: Shifting the Gravity of Spend project website

Sheet Overview
D10: The Prioritisation tool comprises four distinct steps: 1) INITIATE, 2) PRIORITISE, 3) RECOMMEND, and 4) COMMUNICATE, as shown in the diagram below. All steps will be owned and managed by a Process Owner.
D40: 1) In the INITIATE step, the scope is defined, roles & responsibilities are agreed and a plan is created. The Process Owner will engage with all the team members and key stakeholders to ensure there is alignment and agreement on the scope and plan. 2) In the PRIORITISE step, all team members will work together to identify key criteria that will measure the performance of the programme areas they want to assess, and to calculate scores indicating the potential value and current state of the programme areas, as well as a score indicating the feasibility for a programme area to reach its potential, from its current state. The PRIORITISE step will be completed in three separate stages, ideally through workshops: Workshop 1.: To define the decision criteria and the weighting of those criteria Workshop 2.: To calculate potential scores Workshop 3.: To calculate current and feasibility scores In between the workshops, individual stakeholders will undertake research to collect evidence on the potential and current status of their programme area(s). 3) The RECOMMEND step consists of summarising the outputs from the scoring and ranking exercise from step 2, along with the current budget, in order to make recommendations on whether to increase, decrease or maintain current investments for each programme area. Again, this step should ideally be conducted through a group workshop. Rationale for each recommendation will be recorded. In this stage, it is also possible to do a scenario modelling exercise, where up to five possible (dis)investment models can be compared. 4) The last step of the prioritisation process, COMMUNICATE, highlights the importance of the dissemination of findings, and sharing of the results. Engaging with stakeholders throughout the process will lead to a higher chance of the team's recommendations being considered.

Sheet Glossary
D11: Term | E11: Definition
D12: Executive Lead | E12: The person who initiates the need for a prioritisation process, for example by requiring directorates to submit budgets or to deliver specified levels of savings. In a local authority, this might be elected members, the Chief Executive Officer of the local authority, or the Director of Adult Social Care.
D13: Decision Maker | E13: The person who receives recommendations from the Process Owner and makes final decisions about spending on programme areas. In a local authority, this is likely to be the Director of Public Health.
D14: Process Owner | E14: The person who will lead and manage the prioritisation process, receiving technical information from specialists and presenting recommendations to the Decision Maker lead. In a local authority, this is likely to be a Consultant in Public Health.
D15: Process Specialist | E15: The person tasked with collating and providing key information about current and potential performance of their particular programme. For example, the lead Public Health Principal or Consultant for sexual health might be asked to provide information about investment, evidence base and outcomes relating to local sexual health services.
D16: Lead Analyst | E16: The person tasked with collating and synthesising evidence and data on a range of public health programmes, as requested. This role might be taken by a Public Health Analyst, Public Health Principal, Consultant or Registrar.
D17: Programme Area | E17: A broad area of public health spending: for example tobacco control, alcohol, sexual health services or obesity. These categories should be broad enough to capture large areas of public health spending, but granular enough that the included interventions can meaningfully be discussed as one subject.
D18: Categories | E18: Broad groupings of criteria that the local public health team agree are important in deciding which public health programmes to fund. Examples might include ‘Political Benefits’ or ‘Health Benefits’.
D19: Criteria | E19: Factors the local public health team have agreed are most important in deciding which public health programmes to fund. Examples might include 'return on investment', 'impact on health inequalities', 'evidence of effectiveness', 'burden of disease locally', or 'population/ political acceptability'. Criteria are determined through group consensus at the ‘potential’ stage of the framework, and are weighted according to their importance.
D20: Rationale | E20: In addition to scoring programmes based on criteria, it is important to capture the rationale. This is a brief statement describing why a score has been given, or a decision taken, at each stage. Capturing the rationale improves transparency, but it also forms part of the narrative that can feed into the final decision making.
D21: Hierarchical Tree | E21: A model for determining categories and criteria during the ‘potential’ phase of the analysis. The model is built up by combining criteria into categories and then the categories into a single objective (typically ‘Making the most of the budget’).
D22: MCDA | E22: MCDA stands for ‘Multi-Criteria Decision Analysis’. This is a model to help decision makers prioritise a range of alternatives in an environment where many complex criteria affect the decision. Users determine the criteria which they think are key to the decision, and weight them according to their relative importance to the decision. Options are then scored against the weighted criteria, producing a ranking of alternatives.
D23: Potential state | E23: A hypothetical future state, where the programme is performing in the best way it possibly can, subject to the restrictions outside of the local authority’s control. The purpose of thinking of a potential state is to assess the value that a programme could attain. The potential for future delivery is one of the factors considered in the triangulation process.
D24: Potential Scores | E24: The score obtained by each programme area when it is assessed against the weighted criteria agreed during MCDA analysis. If a programme has a high potential score, it has demonstrated that it can deliver against the factors that the local public health team have agreed are most important to them.
D25: Current state | E25: An assessment of investment and outcomes of the currently delivered programme relative to other similar local authorities. The purpose is not to label current performance as good or poor, but to objectively understand the current situation by benchmarking against relevant comparators. The current score is one factor considered in the triangulation process.
D26: Current Scores | E26: Scores which represent the investment and outcomes of currently funded public health programme areas, and the likelihood that the programme will reach its full potential. Investment and outcome scores are determined by benchmarking the situation in your area against other local authorities. The investment and outcome scores are rated from 1 to 5 in opposite directions, and added together. The lowest score is thus 2 and the highest is 10. A standalone feasibility score from 1 to 5 rates how realistic it is to make changes to the current investment or delivery model of a service.
D27: Investment Scores | E27: A score from 5 to 1 which indicates the level of investment in this programme area, relative to other comparable local authorities. 5 represents very low relative investment, up to 1 which is very high relative investment. SPOT tool can provide local guidance (see 'Resources').
D28: Outcome Scores | E28: A score from 1 to 5 representing the outcomes achieved in this programme area relative to other comparable local authorities. 1 represents much lower outcomes than comparator areas, while 5 represents much higher outcomes that comparator areas. SPOT tool can provide local guidance (see 'Resources').
D29: Feasibility Scores | E29: This is a subjective score from 1 to 5, which rates the feasibility of making changes to investment in/ delivery of current programmes, taking into account ‘real-world’ political and practical considerations. For example, something which would generate lower feasibility scores is the existence of binding contracts spanning a number of years into the future.
D30: Triangulation | E30: The central process of the prioritisation exercise. Here information on the potential state, the current state and the programme budget are brought together, all the while considering feasibility. Looking across these measures helps Decision Makers understand how to generate the best value from their budget.
D31: Direction of travel | E31: The outcome of the prioritisation process. A simple statement of intention to invest further, disinvest or maintain the current level of investment in a programme.
D32: Prioritisation Budget | E32: A budget model achieved using intelligence from the prioritisation process. The budget for each programme area may increase, decrease or remain stable. In the optional scenario modelling step, users can compare a prioritisation budget with an equal proportion budget (see below).
D33: Equal Proportion Budget | E33: A budget model achieved by adding an equal proportion to, or taking an equal proportion from, each programme area (‘salami slicing’). In the optional scenario modelling step, users can compare an equal proportion budget with a prioritisation budget (see above).
D34: Priority Points | E34: Priority points are obtained by multiplying the budget for each topic area by the Potential score. By comparing the total priority points between two budget scenarios, the relative spread of investment across high and low priority topic areas can be assessed.

Sheet Resources
D10: This page presents a list of resources that can be used throughout the prioritisation process to collect evidence and data that will be helpful for the calculation of both potential and current scores.
D17: Resource name | E17: Resource detail | F17: Link
D18: Spend and Outcomes Tool | E18: Spend and Outcomes Tool DESCRIPTION: An overview of spend and outcomes in local authorities and clinical commissioning groups (CCGs), for public health teams and commissioners. • The Spend and Outcome Tool (SPOT) gives organisations in England an overview of spend and outcomes across key areas of business. • The profile supports understanding of the overall relationship between spend and outcomes, by identifying areas of significant variance which are likely to require more in-depth analysis. • SPOT includes a large number of measures of spend and outcomes from several different frameworks. A number of different benchmarks are used to provide a range of peer comparisons. • SPOT has been developed as part of the Public Health England health economics programme. • A video introduction to the use of SPOT is available on the SPOT website. • CCG financial data cannot be compared between years (see FAQ). Public health teams and commissioners can: • download a bespoke factsheet for your local authority or CCG from the UK Government Web Archive • compare against other local authorities or CCGs • look at spend against a selection of outcomes across public health interventions and frameworks, including the Public Health Outcomes Framework • identify programmes with outcomes that are significantly different to similar local authorities or CCGs, that may need more analysis • use the tool alongside return on investment and health economics tools | F18: https://www.gov.uk/government/publications/spend-and-outcome-tool-spot
D19: Health Economics Evidence Resource (HEER) | E19: Health Economics Evidence Resource (HEER) DESCRIPTION: The health economic evidence resource (HEER) tool shows the key cost-effectiveness and return on investment evidence on activities in the public health grant. Each piece of evidence is summarised across over 20 criteria to provide details on how the results were created and to highlight the inputs and assumptions used in the original studies. This allows users to understand the relevance and apply the evidence to their local setting. The HEER brings together recent economic evidence from the literature, which is commonly used and has been quality assured by Public Health England. • The Health Economics Evidence Resource (HEER) provides an initial snapshot collection of economic evidence underpinning public health interventions. • It builds on PHE's Menu of Interventions, including evidence not limited by savings over a specific timeframe or by who benefits from the intervention. • It is not a systematic review of the evidence; this is a summary of evidence from other reviews and has been created internally within PHE. It is an ‘agile’ resource which will be updated and expanded over time. | F19: https://www.gov.uk/government/publications/health-economics-evidence-resource
D20: Fingertips | E20: Fingertips DESCRIPTION: These profiles are a rich source of indicators across a range of health and wellbeing themes that has been designed to support JSNA and commissioning to improve health and wellbeing, and reduce inequalities. With these profiles, you can: • Browse indicators at different geographical levels • Benchmark against the regional or England average • Export data to use locally These profiles have been developed by Public Health England. | F20: https://fingertips.phe.org.uk/
D21: PHE ROI tools | E21: Resources to help local commissioners achieve value for money by estimating the return on investment (ROI) and cost-effectiveness of public health programmes. | F21: https://www.gov.uk/guidance/health-economics-a-guide-for-public-health-teams
D22: PHE SHAPE tool | E22: DESCRIPTION: SHAPE is a web-enabled, evidence-based application which informs and supports the strategic planning of services and physical assets across a whole health economy. The Strategic Health Asset Planning and Evaluation application: • Links national datasets for clinical analysis, public health, primary care and demographic data with estates performance and facilities location; • Enables interactive investigations by Local Area Teams, Providing Trusts, CCGs, GP practices and Local Authorities; • Supports key policy initiatives such as QIPP, JSNA, Pharmaceutical Needs Assessment and Transforming Community Services; • Provides you with a range of flexible capabilities; you drive it in the direction you want it to go. The latest version of SHAPE (Sept 2017): • includes a set of predefined indicators so information of interest to you can be easily identified and also benchmarked; • can easily identify outliers so can see quickly where there are opportunities for improvement for your organisation; • has maps central to the application so that all data can be described visually on a map; • can present on a map, clinical admissions for individual HRGs (Healthcare Resource Groups 4) by LSOA (Lower Super Output Area); • supports NHS sub-region and Clinical Commissioning Group (CCG) boundaries; • includes downloadable reports which summarise your organisation’s performance on a range of indicators from hospital activity to deprivation to estate performance; • provides drive time and distance catchment options; • includes a knowledge exchange so users can find out how best to use the site and get instant help from the helpdesk; • supports Pharmaceutical Needs Assessments: download PNA dashboard details | F22: https://shape.phe.org.uk/
D23: NICE ROI tools | E23: Return on Investment tools and resources relevant to the Local Authority expenditure such as the NICE smoking tool DESCRIPTION: Modelling tools for public health commissioners and decision-makers. Key features • model the effects of single, or multiple, interventions on at-risk population groups • estimate the overall costs against the value of non-health benefits as well as health and wellbeing improvements • mix and match interventions to see which package provides the best outcome • identify cost savings or determine if the additional benefits are worth the extra costs • customise the tools to include data and interventions specific to your local area use the results to help support your business cases. There are currently 6 areas with which different interventions are included: | F23: https://www.nice.org.uk/about/what-we-do/into-practice/return-on-investment-tools
D24: Atlas of variation | E24: DESCRIPTION: The NHS Atlas series is pivotal in the interrogation of routinely available data that relate investment, activity and outcome to the whole population in need and not just those who happen to make contact with a particular service. Only by taking this population perspective can we trigger the search for unwarranted variation and assess the value of the healthcare provided both to populations and to individuals. In many localities across England, the NHS Atlas of Variation in Healthcare series has been used as a stimulus to start a search for unwarranted variation, and as a springboard to releasing resources for re-investment in higher-value healthcare for local patients and populations. Interactive Atlases: An interactive version of the atlases enables organisations to interrogate the data at a local level. The tool allows users to view maps, charts, time series data and associated statistics across all the indicators presented within the atlas. Organisations can use the tool to see where they sit within the national landscape or within their peer groups. | F24: https://www.england.nhs.uk/rightcare/products/atlas/
D25: Public Health Outcome Framework | E25: DESCRIPTION: The Public Health Outcomes Framework Healthy lives, healthy people: Improving outcomes and supporting transparency sets out a vision for public health, desired outcomes and the indicators that will help us understand how well public health is being improved and protected. The framework concentrates on two high-level outcomes to be achieved across the public health system, and groups further indicators into four ‘domains’ that cover the full spectrum of public health. The outcomes reflect a focus not only on how long people live, but on how well they live at all stages of life. This data tool presents data for the indicators in the framework for the most recent period available and accompanying trend data where possible. Inequalities data are provided where these are available. A list of indicators updated, for the most recent and previous releases, can be found in the Public Health Outcomes Framework Collection within www.gov.uk. | F25: http://www.phoutcomes.info/
D26: Health intelligence products such as child profiles, health profiles | E26: This specific report focuses on the question ‘are we living longer, and are the extra years spent in good or bad health?’. It summarises and interprets current trends in health outcomes in England, in particular: • life expectancy • health life expectancy • morbidity • mortality It explores the impact of risk factors on these health outcomes and considers how England compares with other developed countries. It summarises inequalities in outcomes and the impact of the social determinants of health. The 7 chapters can be read alone or as a series: • Life expectancy, healthy life expectancy and years lived in poor health • Major causes of death and how they have changed • Trends in morbidity and risk factors • European comparisons • Health inequalities • Social determinants of health • Emerging health protection issues The report includes trends in measures that are not part of the Public Health Outcomes Framework or PHE’s priorities. | F26: E.g. https://www.gov.uk/government/publications/health-profile-for-england
D27: Local public health factsheets | E27: DESCRIPTION: This set of information provides details on the roles and responsibilities of local authorities in the new public health system, including local authority public health functions, the role of the Director of Public Health and commissioning responsibilities. | F27: https://www.gov.uk/government/publications/public-health-in-local-government
D28: JSNA Packs (specific to each LA) | E28: DESCRIPTION: A Joint Strategic Needs Assessment (JSNA) looks at the current and future health and care needs of local populations to inform and guide the planning and commissioning (buying) of health, well-being and social care services within a local authority area. The JSNA: • Is concerned with wider social factors that have an impact on people’s health and wellbeing, such as housing, poverty and employment. • Looks at the health of the population, with a focus on behaviours which affect health such as smoking, diet and exercise. • Provides a common view of health and care needs for the local community • Identifies health inequalities • Provides evidence of effectiveness for different health and care interventions • Documents current service provision • Identifies gaps in health and care services, documenting unmet needs | F28: E.g. http://www.devonhealthandwellbeing.org.uk/jsna/about/
D29: RightCare Products | E29: RightCare Products | F29: https://www.england.nhs.uk/rightcare/products/
D30: Health England Leading Prioritisation (H.E.L.P.) | E30: Health England Leading Prioritisation (H.E.L.P.) H.E.L.P. provides information on the cost-effectiveness, impact on health inequalities, and reach of interventions to support the prioritisation of investments in preventative health care. It allows commissioners to access evidence on existing preventative health care interventions and to benchmark new interventions against existing care. | F30: http://help.matrixknowledge.com/
D31: Greater Manchester Cost Benefit Analysis | E31: Greater Manchester Cost Benefit Analysis The tool has been designed to simplify and to lower the cost of performing CBA in the context of local programmes to improve public services. Provides a framework for a user-driven CBA – no pre-populated figures or specific interventions (aside from unit costs e.g. cost of crime) | F31: http://neweconomymanchester.com/stories/1855-cost_benefit_analysis_guidance_and_model
D32: Informing investment to reduce health inequalities (III) | E32: Informing investment to reduce health inequalities (III) The Informing Investment to reduce health Inequalities in Scotland project includes numerical models of the potential impact of 11 interventions across the determinants of health (including ‘upstream’, ‘downstream’, individually-focussed and population-wide), on overall population health and health inequalities. Tools relevant to this review are: • III Intervention Tool: Active Travel • III Intervention Tool: Tobacco Taxation • III Intervention Tool: Smoking Cessation • III Intervention Tool: Alcohol Brief Interventions • III Intervention Tool: Counterweight | F32: http://www.scotpho.org.uk/comparative-health/health-inequalities-tools/informing-investment-to-reduce-health-inequalities-iii
D33: Socio-technical allocation of resources (STAR) tool | E33: Socio-technical allocation of resources (STAR) tool STAR is a new approach to priority setting, to help commissioners and those planning services to allocate their health resources to benefit patients in their community. The Star approach combines value for money analysis with stakeholder engagement, where an Excel-based tool is used alongside a facilitated stakeholder workshop. The tool provides a framework for including and comparing user-data through multi criteria decision analysis | F33: http://www.health.org.uk/collection/star-socio-technical-allocation-resources
D34: Public Health Dashboard | E34: A resource to support local decision-making which brings a number of data sources into one accessible place. | F34: https://healthierlives.phe.org.uk/topic/public-health-dashboard

Sheet InitiateGuidance
D11: The first step of the prioritisation process is to ensure a controlled initiation through five activities. It is recommended that sufficient time is spent on these early tasks to ensure the process runs smoothly and that the outcomes are seen as robust. The activities are: 1) Explaining the process – the slide deck in the “Supporting Materials” pack can help you to make the case for prioritisation to the public health team, senior stakeholders and even elected members. Making sure everyone has a shared understanding of the process from the start is critical to maintaining buy-in throughout. 2) Define scope - the scope defines the ‘what’ and ‘why’ of the prioritisation exercise, and is often provided from a senior management team. This may start off with an initial ‘terms-of-reference’ providing basic details, such as: areas that can be part of the prioritisation exercise, budget available and deadlines. The scope should be formally captured and reviewed with the key decision making bodies, before commencing the prioritisation exercise. This is a collaborative exercise which is critical to a successful prioritisation process. Scope setting can be carried out in a few hours in a workshop with decision makers present, or several days or weeks dependent on the level of consultation and number of reviews. 3) Form team - the team is the ‘who’ of the prioritisation exercise, and should list an Executive Lead, a Decision Maker , a Process Owner, and however many required Lead Specialists and Lead Analysts (see glossary for explanations of terms). The Process Owner will be the facilitator of the prioritisation process. He/she will manage the process, run workshops, collect data and evidence in the tool, communicate the findings and engage with stakeholders. To ensure as successful a prioritisation exercise as possible, it is advisable that all team members are engaged with early and are in place before workshops start. 4) Map your stakeholders – the decision making environments in local authorities are complex. Before you begin your prioritisation exercise it is useful to develop an understanding of who are the key people that will implement the final recommendations and who it is important to include in the process itself. Including stakeholders in the process can range from keeping them updated on progress to having them in the workshops, helping shape results. 5) Create plan - the plan is the how of the prioritisation exercise, and communicates to the team and stakeholders the key activities, milestones, dates and status of the process. Dependent on what other tools you prefer to use to track the details of the exercise, the plan can be as detailed or as high-level as suits you. Plans are rarely static, and the plan lets you update start and end dates, %complete and status. Key aspects to get right: • Clearly explaining the process and gaining buy in from senior stakeholders; • Deciding what is in included in the prioritisation exercise; • Think about who should be involved in the process and how • Be clear on who is to conduct each aspect of the exercise • Identifying resource and support to make the process as straightforward as possible. We learned through our interviews and testing with local authorities that everyone has a different approach to initiating a new process, and that this will vary greatly depending on many factors, such as: whether there are new members on the team, how tightly the scope is defined, whether there are significant new factors to consider, how much time is available, etc. The key is to ensure that as a Process Owner you feel in control from the outset, and that the process is set up for success.

Sheet DefineScope
D10: Deciding what is in an out of scope through discussion with senior stakeholders and the public health team is a critical first step in the prioritisation process. To ensure the prioritisation exercise is framed correctly, it is important that you capture: key objectives, required deliverables and desired benefits, and which programme areas are in / out of scope, along with current spend. It is also useful to consider the context of the exercise and capture these in terms of background, constraints, dependencies, risk and assumptions. It will also help manage the process if you have recorded the team structure and roles, and who the key stakeholders are, and how they should be engaged. It is recommended that staff and salaries are not included within the scope of the exercise.
D15: Note that you cannot directly copy and paste text /data from other documents (word doc, pdf, text or excel files). Below are some guidelines.
D17: If copy and pasting from word document / pdf / text file:
E19: • Copy the text from the document
E20: • Double-click on the cell (input field) or select the cell and press F2
E21: • Right-click and Paste or press CTRL + V to paste the copied data
D23: If copy and pasting from excel file:
E25: • Double-click the cell you are copying from (or press F2). Note that if in the source excel file, the text is in multiple rows or multiple cells, you may have to copy and paste each cell or row individually.
E27: • Double-click on the cell (input field) you are copying to (or press F2)
E28: • Right-click and Paste or click on CTRL + V to paste the copied data
D29: When entering text, to enter a new line of data in the same cell press ENTER + ALT
E33: Project title
E35: Geographical area | M35: Executive Lead
M36: Process Owner
E37: Commissioning cycle (yr) | M37: Decision Maker Lead
E38: Start date
E39: Target date
D42: 1. Project definition
D44: - | E44: Background / current state | U44: Add rows
D45: 4
D46: 1
D56: 1
D57: 1
D58: 1
D61: - | E61: Objectives / desired state | U61: Add rows
D62: 4
D63: 2
D73: 2
D74: 2
D77: 2. Project scope
D80: - | E80: Programme areas to be evaluated | H80: *up to 30 programme areas
D81: 4 | E81: List out all programme areas that you wish to include in the prioritisation analysis and write the current investments made in each area. These are the programme areas you will be scoring and ranking in this tool. You can identify relevant priority programme areas by looking at strategic documents from your local Government (e.g. CCG Strategic Plan, JSNA, etc.). Insert all programme areas relevant to the public health commission in your local government. In the comments/notes section, also consider any pre-determined increase or decrease in budget that has already been agreed on for each programme area.
D82: 4 | E82: Priority Programme Area | J82: Current Spend (£) | L82: Comments / notes | V82: # | W82: Index
E83: E.g.1 Smoking/Tobacco | J83: 100000 | V83: =IF(TRIM(E83)<>"",1,0) -> 1 | W83: =IF(V83=0,0,SUM($V83:V$83)) -> 1
E84: E.g.2 Obesity | J84: 200000 | V84: =IF(TRIM(E84)<>"",1,0) -> 1 | W84: =IF(V84=0,0,SUM($V$83:V84)) -> 2
E85: E.g.3 Sexual Health Services | J85: 300000 | V85: 1 | W85: =IF(V85=0,0,SUM($V$83:V85)) -> 3
V86: 0 | W86: =IF(V86=0,0,SUM($V$83:V86)) -> 0
V87: 0 | W87: =IF(V87=0,0,SUM($V$83:V87)) -> 0
V88: 0 | W88: =IF(V88=0,0,SUM($V$83:V88)) -> 0
V89: 0 | W89: =IF(V89=0,0,SUM($V$83:V89)) -> 0
V90: 0 | W90: =IF(V90=0,0,SUM($V$83:V90)) -> 0
V91: 0 | W91: =IF(V91=0,0,SUM($V$83:V91)) -> 0
V92: 0 | W92: =IF(V92=0,0,SUM($V$83:V92)) -> 0
V93: 0 | W93: =IF(V93=0,0,SUM($V$83:V93)) -> 0
V94: 0 | W94: =IF(V94=0,0,SUM($V$83:V94)) -> 0
V95: 0 | W95: =IF(V95=0,0,SUM($V$83:V95)) -> 0
V96: 0 | W96: =IF(V96=0,0,SUM($V$83:V96)) -> 0
V97: 0 | W97: =IF(V97=0,0,SUM($V$83:V97)) -> 0
V98: 0 | W98: =IF(V98=0,0,SUM($V$83:V98)) -> 0
V99: 0 | W99: =IF(V99=0,0,SUM($V$83:V99)) -> 0
V100: 0 | W100: =IF(V100=0,0,SUM($V$83:V100)) -> 0
V101: 0 | W101: =IF(V101=0,0,SUM($V$83:V101)) -> 0
V102: 0 | W102: =IF(V102=0,0,SUM($V$83:V102)) -> 0
V103: 0 | W103: =IF(V103=0,0,SUM($V$83:V103)) -> 0
V104: 0 | W104: =IF(V104=0,0,SUM($V$83:V104)) -> 0
V105: 0 | W105: =IF(V105=0,0,SUM($V$83:V105)) -> 0
V106: 0 | W106: =IF(V106=0,0,SUM($V$83:V106)) -> 0
V107: 0 | W107: =IF(V107=0,0,SUM($V$83:V107)) -> 0
V108: 0 | W108: =IF(V108=0,0,SUM($V$83:V108)) -> 0
V109: 0 | W109: =IF(V109=0,0,SUM($V$83:V109)) -> 0
V110: 0 | W110: =IF(V110=0,0,SUM($V$83:V110)) -> 0
V111: =IF(TRIM(E111)<>"",1,0) -> 0 | W111: =IF(V111=0,0,SUM($V$83:V111)) -> 0
V112: 0 | W112: =IF(V112=0,0,SUM($V$83:V112)) -> 0
D113: 4
D116: - | E116: In scope | U116: Add rows
D117: 5 | E117: Define the extent of the project, and determine a list of specific goals, tasks, costs and deadlines (team and staff itself could be included, but we recommend not to, as this complicates the analysis. The suggestion is that the scope of the analysis is public health commissioning services, grouped by programme area, but the framework is flexible).
D118: 5
D131: 5
D134: - | E134: Out of scope | U134: Add rows
E135: State what will be excluded from the prioritisation analysis.
D146: 6
D149: - | E149: Deliverables | U149: Add rows
D150: 7 | E150: Define the expected outputs of the prioritisation analysis.
D151: 7
D161: 7
D164: - | E164: Success measures | U164: Add rows
D165: 7 | E165: Define the expected outcomes/impact of the prioritisation analysis.
D166: 8
D176: 8
D179: - | E179: Constraints | U179: Add rows
D180: 9 | E180: Consider any restrictions that could limit the scope of the prioritisation analysis.
D181: 9
D191: 9
D194: - | E194: Dependencies | U194: Add rows
D195: 10 | E195: Consider any existent dependencies that would impact the prioritisation analysis.
D196: 10
D206: 10
D209: - | E209: Assumptions | U209: Add rows
D210: 11 | E210: State any assumptions being made before the start of the prioritisation analysis.
D211: 11
D221: 11
D224: - | E224: Risks and Mitigation | U224: Add rows
E225: Identify potential risks that could impact the progression and completion of the prioritisation analysis, as well as the likelihood of these risks, their potential impact, and how the impact could be minimised.
D226: 12 | E226: Risk | K226: Likelihood | M226: Impact | N226: Mitigation plan
D242: 12
D245: - | E245: Roles and Responsibilities | U245: Add rows
D246: 13 | E246: Distribute tasks and responsibilities among stakeholders.
D247: 13 | E247: Name | H247: Role | M247: Responsibilities | O247: Activities and deliverables
E248: E.g. Joan | H248: Executive Lead | M248: Consulted | O248: Sets budget, initiates exercise
E249: E.g. Jerry | H249: Decision Maker Lead | M249: Accountable | O249: Prioritisation Process, Recommendations
E250: E.g. Jill | H250: Process Owner | M250: Responsible | O250: Prioritisation Process, Recommendations
E251: E.g. Jim | H251: Specialist Lead | M251: Responsible | O251: Smoking & Tobacco evidence collation, attend workshops
E252: E.g. Julie | H252: Process Owner | M252: Responsible | O252: Obesity evidence collation, attend workshops
D271: 13
D272: 13
D273: 13
D274: 13
D275: 13
D276: 13
D277: 13
D280: - | E280: Stakeholder Engagement plan | U280: Add rows
D281: 14 | E281: Describe how, and in what timeframe, stakeholder engagement will occur.
D282: 14
D292: 14
D295: - | E295: Communication plan | U295: Add rows
D296: 14 | E296: Describe how, and in what timeframe, the communication of findings will occur.
D297: 15
D308: 15
D311: - | E311: Additional information | U311: Add rows
D312: 14 | E312: Capture any additional information that might be useful for the project.
D313: 16
D323: 16

Sheet CreatePlan
OJ1: x
OJ2: x
OJ3: x
OJ4: x
OJ5: x
OJ6: x
D10: This page is for you to plan the timeline of the prioritisation analysis, from start to finish. It is pre-populated with an example that includes all necessary steps to undertake the prioritisation analysis. You are encouraged to edit the plan according to your needs, goals and starting point. The inserted timeline will be automatically converted to a Gantt Chart.
D17: Today's date | E17: =TODAY() -> 2019-09-25
D18: Week Starts from | E18: Monday
D19: Start date: | E19: 2018-05-05 | I19: *Use the scroll bar to scroll the Gantt chart forward or backward in weeks
D20: Planner start date | E20: =IF(OR(E19=0,E19=""),0,IFERROR((E19-WEEKDAY(E19,2)+1)+(E21*7),"")) -> 2018-04-30
D21: Scrollbar | E21: 0
Z25: =IF(OR(E19=0,E19=""),0,IF(Z28="","",TEXT(DATE(YEAR(Z28),MONTH(Z28),DAY(Z28)),"MMM YY"))) -> Apr 18 | AG25: =IF(AG28="","",IF(MONTH(AG28)<>MONTH(AF28),TEXT(DATE(YEAR(AG28),MONTH(AG28),DAY(AG28)),"MMM YY"),"")) -> May 18 | AN25: =IF(AN28="","",IF(MONTH(AN28)<>MONTH(AM28),TEXT(DATE(YEAR(AN28),MONTH(AN28),DAY(AN28)),"MMM YY"),"")) ->  | AU25: =IF(AU28="","",IF(MONTH(AU28)<>MONTH(AT28),TEXT(DATE(YEAR(AU28),MONTH(AU28),DAY(AU28)),"MMM YY"),"")) ->  | BB25: =IF(BB28="","",IF(MONTH(BB28)<>MONTH(BA28),TEXT(DATE(YEAR(BB28),MONTH(BB28),DAY(BB28)),"MMM YY"),"")) ->  | BI25: =IF(BI28="","",IF(MONTH(BI28)<>MONTH(BH28),TEXT(DATE(YEAR(BI28),MONTH(BI28),DAY(BI28)),"MMM YY"),"")) -> Jun 18 | BP25: =IF(BP28="","",IF(MONTH(BP28)<>MONTH(BO28),TEXT(DATE(YEAR(BP28),MONTH(BP28),DAY(BP28)),"MMM YY"),"")) ->  | BW25: =IF(BW28="","",IF(MONTH(BW28)<>MONTH(BV28),TEXT(DATE(YEAR(BW28),MONTH(BW28),DAY(BW28)),"MMM YY"),"")) ->  | CD25: =IF(CD28="","",IF(MONTH(CD28)<>MONTH(CC28),TEXT(DATE(YEAR(CD28),MONTH(CD28),DAY(CD28)),"MMM YY"),"")) ->  | CK25: =IF(CK28="","",IF(MONTH(CK28)<>MONTH(CJ28),TEXT(DATE(YEAR(CK28),MONTH(CK28),DAY(CK28)),"MMM YY"),"")) -> Jul 18 | CR25: =IF(CR28="","",IF(MONTH(CR28)<>MONTH(CQ28),TEXT(DATE(YEAR(CR28),MONTH(CR28),DAY(CR28)),"MMM YY"),"")) ->  | CY25: =IF(CY28="","",IF(MONTH(CY28)<>MONTH(CX28),TEXT(DATE(YEAR(CY28),MONTH(CY28),DAY(CY28)),"MMM YY"),"")) ->  | DF25: =IF(DF28="","",IF(MONTH(DF28)<>MONTH(DE28),TEXT(DATE(YEAR(DF28),MONTH(DF28),DAY(DF28)),"MMM YY"),"")) ->  | DM25: =IF(DM28="","",IF(MONTH(DM28)<>MONTH(DL28),TEXT(DATE(YEAR(DM28),MONTH(DM28),DAY(DM28)),"MMM YY"),"")) ->  | DT25: =IF(DT28="","",IF(MONTH(DT28)<>MONTH(DS28),TEXT(DATE(YEAR(DT28),MONTH(DT28),DAY(DT28)),"MMM YY"),"")) -> Aug 18 | EA25: =IF(EA28="","",IF(MONTH(EA28)<>MONTH(DZ28),TEXT(DATE(YEAR(EA28),MONTH(EA28),DAY(EA28)),"MMM YY"),"")) ->  | EH25: =IF(EH28="","",IF(MONTH(EH28)<>MONTH(EG28),TEXT(DATE(YEAR(EH28),MONTH(EH28),DAY(EH28)),"MMM YY"),"")) ->  | EO25: =IF(EO28="","",IF(MONTH(EO28)<>MONTH(EN28),TEXT(DATE(YEAR(EO28),MONTH(EO28),DAY(EO28)),"MMM YY"),"")) ->  | EV25: =IF(EV28="","",IF(MONTH(EV28)<>MONTH(EU28),TEXT(DATE(YEAR(EV28),MONTH(EV28),DAY(EV28)),"MMM YY"),"")) -> Sep 18 | FC25: =IF(FC28="","",IF(MONTH(FC28)<>MONTH(FB28),TEXT(DATE(YEAR(FC28),MONTH(FC28),DAY(FC28)),"MMM YY"),"")) ->  | FJ25: =IF(FJ28="","",IF(MONTH(FJ28)<>MONTH(FI28),TEXT(DATE(YEAR(FJ28),MONTH(FJ28),DAY(FJ28)),"MMM YY"),"")) ->  | FQ25: =IF(FQ28="","",IF(MONTH(FQ28)<>MONTH(FP28),TEXT(DATE(YEAR(FQ28),MONTH(FQ28),DAY(FQ28)),"MMM YY"),"")) ->  | FX25: =IF(FX28="","",IF(MONTH(FX28)<>MONTH(FW28),TEXT(DATE(YEAR(FX28),MONTH(FX28),DAY(FX28)),"MMM YY"),"")) -> Oct 18 | GE25: =IF(GE28="","",IF(MONTH(GE28)<>MONTH(GD28),TEXT(DATE(YEAR(GE28),MONTH(GE28),DAY(GE28)),"MMM YY"),"")) ->  | GL25: =IF(GL28="","",IF(MONTH(GL28)<>MONTH(GK28),TEXT(DATE(YEAR(GL28),MONTH(GL28),DAY(GL28)),"MMM YY"),"")) ->  | GS25: =IF(GS28="","",IF(MONTH(GS28)<>MONTH(GR28),TEXT(DATE(YEAR(GS28),MONTH(GS28),DAY(GS28)),"MMM YY"),"")) ->  | GZ25: =IF(GZ28="","",IF(MONTH(GZ28)<>MONTH(GY28),TEXT(DATE(YEAR(GZ28),MONTH(GZ28),DAY(GZ28)),"MMM YY"),"")) ->  | HG25: =IF(HG28="","",IF(MONTH(HG28)<>MONTH(HF28),TEXT(DATE(YEAR(HG28),MONTH(HG28),DAY(HG28)),"MMM YY"),"")) -> Nov 18 | HN25: =IF(HN28="","",IF(MONTH(HN28)<>MONTH(HM28),TEXT(DATE(YEAR(HN28),MONTH(HN28),DAY(HN28)),"MMM YY"),"")) ->  | HU25: =IF(HU28="","",IF(MONTH(HU28)<>MONTH(HT28),TEXT(DATE(YEAR(HU28),MONTH(HU28),DAY(HU28)),"MMM YY"),"")) ->  | IB25: =IF(IB28="","",IF(MONTH(IB28)<>MONTH(IA28),TEXT(DATE(YEAR(IB28),MONTH(IB28),DAY(IB28)),"MMM YY"),"")) ->  | II25: =IF(II28="","",IF(MONTH(II28)<>MONTH(IH28),TEXT(DATE(YEAR(II28),MONTH(II28),DAY(II28)),"MMM YY"),"")) -> Dec 18 | IP25: =IF(IP28="","",IF(MONTH(IP28)<>MONTH(IO28),TEXT(DATE(YEAR(IP28),MONTH(IP28),DAY(IP28)),"MMM YY"),"")) ->  | IW25: =IF(IW28="","",IF(MONTH(IW28)<>MONTH(IV28),TEXT(DATE(YEAR(IW28),MONTH(IW28),DAY(IW28)),"MMM YY"),"")) ->  | JD25: =IF(JD28="","",IF(MONTH(JD28)<>MONTH(JC28),TEXT(DATE(YEAR(JD28),MONTH(JD28),DAY(JD28)),"MMM YY"),"")) ->  | JK25: =IF(JK28="","",IF(MONTH(JK28)<>MONTH(JJ28),TEXT(DATE(YEAR(JK28),MONTH(JK28),DAY(JK28)),"MMM YY"),"")) ->  | JR25: =IF(JR28="","",IF(MONTH(JR28)<>MONTH(JQ28),TEXT(DATE(YEAR(JR28),MONTH(JR28),DAY(JR28)),"MMM YY"),"")) -> Jan 19 | JY25: =IF(JY28="","",IF(MONTH(JY28)<>MONTH(JX28),TEXT(DATE(YEAR(JY28),MONTH(JY28),DAY(JY28)),"MMM YY"),"")) ->  | KF25: =IF(KF28="","",IF(MONTH(KF28)<>MONTH(KE28),TEXT(DATE(YEAR(KF28),MONTH(KF28),DAY(KF28)),"MMM YY"),"")) ->  | KM25: =IF(KM28="","",IF(MONTH(KM28)<>MONTH(KL28),TEXT(DATE(YEAR(KM28),MONTH(KM28),DAY(KM28)),"MMM YY"),"")) ->  | KT25: =IF(KT28="","",IF(MONTH(KT28)<>MONTH(KS28),TEXT(DATE(YEAR(KT28),MONTH(KT28),DAY(KT28)),"MMM YY"),"")) -> Feb 19 | LA25: =IF(LA28="","",IF(MONTH(LA28)<>MONTH(KZ28),TEXT(DATE(YEAR(LA28),MONTH(LA28),DAY(LA28)),"MMM YY"),"")) ->  | LH25: =IF(LH28="","",IF(MONTH(LH28)<>MONTH(LG28),TEXT(DATE(YEAR(LH28),MONTH(LH28),DAY(LH28)),"MMM YY"),"")) ->  | LO25: =IF(LO28="","",IF(MONTH(LO28)<>MONTH(LN28),TEXT(DATE(YEAR(LO28),MONTH(LO28),DAY(LO28)),"MMM YY"),"")) ->  | LV25: =IF(LV28="","",IF(MONTH(LV28)<>MONTH(LU28),TEXT(DATE(YEAR(LV28),MONTH(LV28),DAY(LV28)),"MMM YY"),"")) -> Mar 19 | MC25: =IF(MC28="","",IF(MONTH(MC28)<>MONTH(MB28),TEXT(DATE(YEAR(MC28),MONTH(MC28),DAY(MC28)),"MMM YY"),"")) ->  | MJ25: =IF(MJ28="","",IF(MONTH(MJ28)<>MONTH(MI28),TEXT(DATE(YEAR(MJ28),MONTH(MJ28),DAY(MJ28)),"MMM YY"),"")) ->  | MQ25: =IF(MQ28="","",IF(MONTH(MQ28)<>MONTH(MP28),TEXT(DATE(YEAR(MQ28),MONTH(MQ28),DAY(MQ28)),"MMM YY"),"")) ->  | MX25: =IF(MX28="","",IF(MONTH(MX28)<>MONTH(MW28),TEXT(DATE(YEAR(MX28),MONTH(MX28),DAY(MX28)),"MMM YY"),"")) -> Apr 19 | NE25: =IF(NE28="","",IF(MONTH(NE28)<>MONTH(ND28),TEXT(DATE(YEAR(NE28),MONTH(NE28),DAY(NE28)),"MMM YY"),"")) ->  | NL25: =IF(NL28="","",IF(MONTH(NL28)<>MONTH(NK28),TEXT(DATE(YEAR(NL28),MONTH(NL28),DAY(NL28)),"MMM YY"),"")) ->  | NS25: =IF(NS28="","",IF(MONTH(NS28)<>MONTH(NR28),TEXT(DATE(YEAR(NS28),MONTH(NS28),DAY(NS28)),"MMM YY"),"")) ->  | NZ25: =IF(NZ28="","",IF(MONTH(NZ28)<>MONTH(NY28),TEXT(DATE(YEAR(NZ28),MONTH(NZ28),DAY(NZ28)),"MMM YY"),"")) -> 
Z28: =IF(OR(E19=0,E19=""),0,(Z30-WEEKDAY(Z30,2)+1)) -> 2018-04-30 | AA28: =(AA30-WEEKDAY(AA30,2)+1) -> 2018-04-30 | AB28: 2018-04-30 | AC28: 2018-04-30 | AD28: 2018-04-30 | AE28: 2018-04-30 | AF28: 2018-04-30 | AG28: 2018-05-07 | AH28: 2018-05-07 | AI28: 2018-05-07 | AJ28: 2018-05-07 | AK28: 2018-05-07 | AL28: 2018-05-07 | AM28: 2018-05-07 | AN28: 2018-05-14 | AO28: 2018-05-14 | AP28: 2018-05-14 | AQ28: 2018-05-14 | AR28: 2018-05-14 | AS28: 2018-05-14 | AT28: 2018-05-14 | AU28: 2018-05-21 | AV28: 2018-05-21 | AW28: 2018-05-21 | AX28: 2018-05-21 | AY28: 2018-05-21 | AZ28: 2018-05-21 | BA28: 2018-05-21 | BB28: 2018-05-28 | BC28: 2018-05-28 | BD28: 2018-05-28 | BE28: 2018-05-28 | BF28: 2018-05-28 | BG28: 2018-05-28 | BH28: 2018-05-28 | BI28: 2018-06-04 | BJ28: 2018-06-04 | BK28: 2018-06-04 | BL28: 2018-06-04 | BM28: 2018-06-04 | BN28: 2018-06-04 | BO28: 2018-06-04 | BP28: 2018-06-11 | BQ28: 2018-06-11 | BR28: 2018-06-11 | BS28: 2018-06-11 | BT28: 2018-06-11 | BU28: 2018-06-11 | BV28: 2018-06-11 | BW28: 2018-06-18 | BX28: 2018-06-18 | BY28: 2018-06-18 | BZ28: 2018-06-18 | CA28: 2018-06-18 | CB28: 2018-06-18 | CC28: 2018-06-18 | CD28: 2018-06-25 | CE28: 2018-06-25 | CF28: 2018-06-25 | CG28: 2018-06-25 | CH28: 2018-06-25 | CI28: 2018-06-25 | CJ28: 2018-06-25 | CK28: 2018-07-02 | CL28: 2018-07-02 | CM28: =(CM30-WEEKDAY(CM30,2)+1) -> 2018-07-02 | CN28: 2018-07-02 | CO28: 2018-07-02 | CP28: 2018-07-02 | CQ28: 2018-07-02 | CR28: 2018-07-09 | CS28: 2018-07-09 | CT28: 2018-07-09 | CU28: 2018-07-09 | CV28: 2018-07-09 | CW28: 2018-07-09 | CX28: 2018-07-09 | CY28: 2018-07-16 | CZ28: 2018-07-16 | DA28: 2018-07-16 | DB28: 2018-07-16 | DC28: 2018-07-16 | DD28: 2018-07-16 | DE28: 2018-07-16 | DF28: 2018-07-23 | DG28: 2018-07-23 | DH28: 2018-07-23 | DI28: 2018-07-23 | DJ28: 2018-07-23 | DK28: 2018-07-23 | DL28: 2018-07-23 | DM28: 2018-07-30 | DN28: 2018-07-30 | DO28: 2018-07-30 | DP28: 2018-07-30 | DQ28: 2018-07-30 | DR28: 2018-07-30 | DS28: 2018-07-30 | DT28: 2018-08-06 | DU28: 2018-08-06 | DV28: 2018-08-06 | DW28: 2018-08-06 | DX28: 2018-08-06 | DY28: 2018-08-06 | DZ28: 2018-08-06 | EA28: 2018-08-13 | EB28: 2018-08-13 | EC28: 2018-08-13 | ED28: 2018-08-13 | EE28: 2018-08-13 | EF28: 2018-08-13 | EG28: 2018-08-13 | EH28: 2018-08-20 | EI28: 2018-08-20 | EJ28: 2018-08-20 | EK28: 2018-08-20 | EL28: 2018-08-20 | EM28: 2018-08-20 | EN28: 2018-08-20 | EO28: 2018-08-27 | EP28: 2018-08-27 | EQ28: 2018-08-27 | ER28: 2018-08-27 | ES28: 2018-08-27 | ET28: 2018-08-27 | EU28: 2018-08-27 | EV28: 2018-09-03 | EW28: 2018-09-03 | EX28: 2018-09-03 | EY28: =(EY30-WEEKDAY(EY30,2)+1) -> 2018-09-03 | EZ28: 2018-09-03 | FA28: 2018-09-03 | FB28: 2018-09-03 | FC28: 2018-09-10 | FD28: 2018-09-10 | FE28: 2018-09-10 | FF28: 2018-09-10 | FG28: 2018-09-10 | FH28: 2018-09-10 | FI28: 2018-09-10 | FJ28: 2018-09-17 | FK28: 2018-09-17 | FL28: 2018-09-17 | FM28: 2018-09-17 | FN28: 2018-09-17 | FO28: 2018-09-17 | FP28: 2018-09-17 | FQ28: 2018-09-24 | FR28: 2018-09-24 | FS28: 2018-09-24 | FT28: 2018-09-24 | FU28: 2018-09-24 | FV28: 2018-09-24 | FW28: 2018-09-24 | FX28: 2018-10-01 | FY28: 2018-10-01 | FZ28: 2018-10-01 | GA28: 2018-10-01 | GB28: 2018-10-01 | GC28: 2018-10-01 | GD28: 2018-10-01 | GE28: 2018-10-08 | GF28: 2018-10-08 | GG28: 2018-10-08 | GH28: 2018-10-08 | GI28: 2018-10-08 | GJ28: 2018-10-08 | GK28: 2018-10-08 | GL28: 2018-10-15 | GM28: 2018-10-15 | GN28: 2018-10-15 | GO28: 2018-10-15 | GP28: 2018-10-15 | GQ28: 2018-10-15 | GR28: 2018-10-15 | GS28: 2018-10-22 | GT28: 2018-10-22 | GU28: 2018-10-22 | GV28: 2018-10-22 | GW28: 2018-10-22 | GX28: 2018-10-22 | GY28: 2018-10-22 | GZ28: 2018-10-29 | HA28: 2018-10-29 | HB28: 2018-10-29 | HC28: 2018-10-29 | HD28: 2018-10-29 | HE28: 2018-10-29 | HF28: 2018-10-29 | HG28: 2018-11-05 | HH28: 2018-11-05 | HI28: 2018-11-05 | HJ28: 2018-11-05 | HK28: =(HK30-WEEKDAY(HK30,2)+1) -> 2018-11-05 | HL28: 2018-11-05 | HM28: 2018-11-05 | HN28: 2018-11-12 | HO28: 2018-11-12 | HP28: 2018-11-12 | HQ28: 2018-11-12 | HR28: 2018-11-12 | HS28: 2018-11-12 | HT28: 2018-11-12 | HU28: 2018-11-19 | HV28: 2018-11-19 | HW28: 2018-11-19 | HX28: 2018-11-19 | HY28: 2018-11-19 | HZ28: 2018-11-19 | IA28: 2018-11-19 | IB28: 2018-11-26 | IC28: 2018-11-26 | ID28: 2018-11-26 | IE28: 2018-11-26 | IF28: 2018-11-26 | IG28: 2018-11-26 | IH28: 2018-11-26 | II28: 2018-12-03 | IJ28: 2018-12-03 | IK28: 2018-12-03 | IL28: 2018-12-03 | IM28: 2018-12-03 | IN28: 2018-12-03 | IO28: 2018-12-03 | IP28: 2018-12-10 | IQ28: 2018-12-10 | IR28: 2018-12-10 | IS28: 2018-12-10 | IT28: 2018-12-10 | IU28: 2018-12-10 | IV28: 2018-12-10 | IW28: 2018-12-17 | IX28: 2018-12-17 | IY28: 2018-12-17 | IZ28: 2018-12-17 | JA28: 2018-12-17 | JB28: 2018-12-17 | JC28: 2018-12-17 | JD28: 2018-12-24 | JE28: 2018-12-24 | JF28: 2018-12-24 | JG28: 2018-12-24 | JH28: 2018-12-24 | JI28: 2018-12-24 | JJ28: 2018-12-24 | JK28: 2018-12-31 | JL28: 2018-12-31 | JM28: 2018-12-31 | JN28: 2018-12-31 | JO28: 2018-12-31 | JP28: 2018-12-31 | JQ28: 2018-12-31 | JR28: 2019-01-07 | JS28: 2019-01-07 | JT28: 2019-01-07 | JU28: 2019-01-07 | JV28: 2019-01-07 | JW28: =(JW30-WEEKDAY(JW30,2)+1) -> 2019-01-07 | JX28: 2019-01-07 | JY28: 2019-01-14 | JZ28: 2019-01-14 | KA28: 2019-01-14 | KB28: 2019-01-14 | KC28: 2019-01-14 | KD28: 2019-01-14 | KE28: 2019-01-14 | KF28: 2019-01-21 | KG28: 2019-01-21 | KH28: 2019-01-21 | KI28: 2019-01-21 | KJ28: 2019-01-21 | KK28: 2019-01-21 | KL28: 2019-01-21 | KM28: 2019-01-28 | KN28: 2019-01-28 | KO28: 2019-01-28 | KP28: 2019-01-28 | KQ28: 2019-01-28 | KR28: 2019-01-28 | KS28: 2019-01-28 | KT28: 2019-02-04 | KU28: 2019-02-04 | KV28: 2019-02-04 | KW28: 2019-02-04 | KX28: 2019-02-04 | KY28: 2019-02-04 | KZ28: 2019-02-04 | LA28: 2019-02-11 | LB28: 2019-02-11 | LC28: 2019-02-11 | LD28: 2019-02-11 | LE28: 2019-02-11 | LF28: 2019-02-11 | LG28: 2019-02-11 | LH28: 2019-02-18 | LI28: 2019-02-18 | LJ28: 2019-02-18 | LK28: 2019-02-18 | LL28: 2019-02-18 | LM28: 2019-02-18 | LN28: 2019-02-18 | LO28: 2019-02-25 | LP28: 2019-02-25 | LQ28: 2019-02-25 | LR28: 2019-02-25 | LS28: 2019-02-25 | LT28: 2019-02-25 | LU28: 2019-02-25 | LV28: 2019-03-04 | LW28: 2019-03-04 | LX28: 2019-03-04 | LY28: 2019-03-04 | LZ28: 2019-03-04 | MA28: 2019-03-04 | MB28: 2019-03-04 | MC28: 2019-03-11 | MD28: 2019-03-11 | ME28: 2019-03-11 | MF28: 2019-03-11 | MG28: 2019-03-11 | MH28: 2019-03-11 | MI28: =(MI30-WEEKDAY(MI30,2)+1) -> 2019-03-11 | MJ28: 2019-03-18 | MK28: 2019-03-18 | ML28: 2019-03-18 | MM28: 2019-03-18 | MN28: 2019-03-18 | MO28: 2019-03-18 | MP28: 2019-03-18 | MQ28: 2019-03-25 | MR28: 2019-03-25 | MS28: 2019-03-25 | MT28: 2019-03-25 | MU28: 2019-03-25 | MV28: 2019-03-25 | MW28: 2019-03-25 | MX28: 2019-04-01 | MY28: 2019-04-01 | MZ28: 2019-04-01 | NA28: 2019-04-01 | NB28: 2019-04-01 | NC28: 2019-04-01 | ND28: 2019-04-01 | NE28: 2019-04-08 | NF28: 2019-04-08 | NG28: 2019-04-08 | NH28: 2019-04-08 | NI28: 2019-04-08 | NJ28: 2019-04-08 | NK28: 2019-04-08 | NL28: 2019-04-15 | NM28: 2019-04-15 | NN28: 2019-04-15 | NO28: 2019-04-15 | NP28: 2019-04-15 | NQ28: 2019-04-15 | NR28: 2019-04-15 | NS28: 2019-04-22 | NT28: 2019-04-22 | NU28: 2019-04-22 | NV28: 2019-04-22 | NW28: 2019-04-22 | NX28: 2019-04-22 | NY28: 2019-04-22 | NZ28: 2019-04-29 | OA28: 2019-04-29 | OB28: 2019-04-29 | OC28: 2019-04-29 | OD28: 2019-04-29 | OE28: 2019-04-29 | OF28: 2019-04-29
Z29: =IF(Z31<>"",1,0) -> 1 | AA29: =IF(AA31<>"",1,0) -> 0 | AB29: 0 | AC29: 0 | AD29: 0 | AE29: 0 | AF29: 0 | AG29: 1 | AH29: 0 | AI29: 0 | AJ29: 0 | AK29: 0 | AL29: 0 | AM29: 0 | AN29: 1 | AO29: 0 | AP29: 0 | AQ29: 0 | AR29: 0 | AS29: 0 | AT29: 0 | AU29: 1 | AV29: 0 | AW29: 0 | AX29: 0 | AY29: 0 | AZ29: 0 | BA29: 0 | BB29: 1 | BC29: 0 | BD29: 0 | BE29: 0 | BF29: 0 | BG29: 0 | BH29: 0 | BI29: 1 | BJ29: 0 | BK29: 0 | BL29: 0 | BM29: 0 | BN29: 0 | BO29: 0 | BP29: 1 | BQ29: 0 | BR29: 0 | BS29: 0 | BT29: 0 | BU29: 0 | BV29: 0 | BW29: 1 | BX29: 0 | BY29: 0 | BZ29: 0 | CA29: 0 | CB29: 0 | CC29: 0 | CD29: 1 | CE29: 0 | CF29: 0 | CG29: 0 | CH29: 0 | CI29: 0 | CJ29: 0 | CK29: 1 | CL29: 0 | CM29: =IF(CM31<>"",1,0) -> 0 | CN29: 0 | CO29: 0 | CP29: 0 | CQ29: 0 | CR29: 1 | CS29: 0 | CT29: 0 | CU29: 0 | CV29: 0 | CW29: 0 | CX29: 0 | CY29: 1 | CZ29: 0 | DA29: 0 | DB29: 0 | DC29: 0 | DD29: 0 | DE29: 0 | DF29: 1 | DG29: 0 | DH29: 0 | DI29: 0 | DJ29: 0 | DK29: 0 | DL29: 0 | DM29: 1 | DN29: 0 | DO29: 0 | DP29: 0 | DQ29: 0 | DR29: 0 | DS29: 0 | DT29: 1 | DU29: 0 | DV29: 0 | DW29: 0 | DX29: 0 | DY29: 0 | DZ29: 0 | EA29: 1 | EB29: 0 | EC29: 0 | ED29: 0 | EE29: 0 | EF29: 0 | EG29: 0 | EH29: 1 | EI29: 0 | EJ29: 0 | EK29: 0 | EL29: 0 | EM29: 0 | EN29: 0 | EO29: 1 | EP29: 0 | EQ29: 0 | ER29: 0 | ES29: 0 | ET29: 0 | EU29: 0 | EV29: 1 | EW29: 0 | EX29: 0 | EY29: =IF(EY31<>"",1,0) -> 0 | EZ29: 0 | FA29: 0 | FB29: 0 | FC29: 1 | FD29: 0 | FE29: 0 | FF29: 0 | FG29: 0 | FH29: 0 | FI29: 0 | FJ29: 1 | FK29: 0 | FL29: 0 | FM29: 0 | FN29: 0 | FO29: 0 | FP29: 0 | FQ29: 1 | FR29: 0 | FS29: 0 | FT29: 0 | FU29: 0 | FV29: 0 | FW29: 0 | FX29: 1 | FY29: 0 | FZ29: 0 | GA29: 0 | GB29: 0 | GC29: 0 | GD29: 0 | GE29: 1 | GF29: 0 | GG29: 0 | GH29: 0 | GI29: 0 | GJ29: 0 | GK29: 0 | GL29: 1 | GM29: 0 | GN29: 0 | GO29: 0 | GP29: 0 | GQ29: 0 | GR29: 0 | GS29: 1 | GT29: 0 | GU29: 0 | GV29: 0 | GW29: 0 | GX29: 0 | GY29: 0 | GZ29: 1 | HA29: 0 | HB29: 0 | HC29: 0 | HD29: 0 | HE29: 0 | HF29: 0 | HG29: 1 | HH29: 0 | HI29: 0 | HJ29: 0 | HK29: =IF(HK31<>"",1,0) -> 0 | HL29: 0 | HM29: 0 | HN29: 1 | HO29: 0 | HP29: 0 | HQ29: 0 | HR29: 0 | HS29: 0 | HT29: 0 | HU29: 1 | HV29: 0 | HW29: 0 | HX29: 0 | HY29: 0 | HZ29: 0 | IA29: 0 | IB29: 1 | IC29: 0 | ID29: 0 | IE29: 0 | IF29: 0 | IG29: 0 | IH29: 0 | II29: 1 | IJ29: 0 | IK29: 0 | IL29: 0 | IM29: 0 | IN29: 0 | IO29: 0 | IP29: 1 | IQ29: 0 | IR29: 0 | IS29: 0 | IT29: 0 | IU29: 0 | IV29: 0 | IW29: 1 | IX29: 0 | IY29: 0 | IZ29: 0 | JA29: 0 | JB29: 0 | JC29: 0 | JD29: 1 | JE29: 0 | JF29: 0 | JG29: 0 | JH29: 0 | JI29: 0 | JJ29: 0 | JK29: 1 | JL29: 0 | JM29: 0 | JN29: 0 | JO29: 0 | JP29: 0 | JQ29: 0 | JR29: 1 | JS29: 0 | JT29: 0 | JU29: 0 | JV29: 0 | JW29: =IF(JW31<>"",1,0) -> 0 | JX29: 0 | JY29: 1 | JZ29: 0 | KA29: 0 | KB29: 0 | KC29: 0 | KD29: 0 | KE29: 0 | KF29: 1 | KG29: 0 | KH29: 0 | KI29: 0 | KJ29: 0 | KK29: 0 | KL29: 0 | KM29: 1 | KN29: 0 | KO29: 0 | KP29: 0 | KQ29: 0 | KR29: 0 | KS29: 0 | KT29: 1 | KU29: 0 | KV29: 0 | KW29: 0 | KX29: 0 | KY29: 0 | KZ29: 0 | LA29: 1 | LB29: 0 | LC29: 0 | LD29: 0 | LE29: 0 | LF29: 0 | LG29: 0 | LH29: 1 | LI29: 0 | LJ29: 0 | LK29: 0 | LL29: 0 | LM29: 0 | LN29: 0 | LO29: 1 | LP29: 0 | LQ29: 0 | LR29: 0 | LS29: 0 | LT29: 0 | LU29: 0 | LV29: 1 | LW29: 0 | LX29: 0 | LY29: 0 | LZ29: 0 | MA29: 0 | MB29: 0 | MC29: 1 | MD29: 0 | ME29: 0 | MF29: 0 | MG29: 0 | MH29: 0 | MI29: =IF(MI31<>"",1,0) -> 0 | MJ29: 1 | MK29: 0 | ML29: 0 | MM29: 0 | MN29: 0 | MO29: 0 | MP29: 0 | MQ29: 1 | MR29: 0 | MS29: 0 | MT29: 0 | MU29: 0 | MV29: 0 | MW29: 0 | MX29: 1 | MY29: 0 | MZ29: 0 | NA29: 0 | NB29: 0 | NC29: 0 | ND29: 0 | NE29: 1 | NF29: 0 | NG29: 0 | NH29: 0 | NI29: 0 | NJ29: 0 | NK29: 0 | NL29: 1 | NM29: 0 | NN29: 0 | NO29: 0 | NP29: 0 | NQ29: 0 | NR29: 0 | NS29: 1 | NT29: 0 | NU29: 0 | NV29: 0 | NW29: 0 | NX29: 0 | NY29: 0 | NZ29: 1 | OA29: 0 | OB29: 0 | OC29: 0 | OD29: 0 | OE29: 0 | OF29: 0
Z30: =E20 -> 2018-04-30 | AA30: =Z30+1 -> 2018-05-01 | AB30: =AA30+1 -> 2018-05-02 | AC30: 2018-05-03 | AD30: 2018-05-04 | AE30: 2018-05-05 | AF30: 2018-05-06 | AG30: 2018-05-07 | AH30: 2018-05-08 | AI30: 2018-05-09 | AJ30: 2018-05-10 | AK30: 2018-05-11 | AL30: 2018-05-12 | AM30: 2018-05-13 | AN30: 2018-05-14 | AO30: 2018-05-15 | AP30: 2018-05-16 | AQ30: 2018-05-17 | AR30: 2018-05-18 | AS30: 2018-05-19 | AT30: 2018-05-20 | AU30: 2018-05-21 | AV30: 2018-05-22 | AW30: 2018-05-23 | AX30: 2018-05-24 | AY30: 2018-05-25 | AZ30: 2018-05-26 | BA30: 2018-05-27 | BB30: 2018-05-28 | BC30: 2018-05-29 | BD30: 2018-05-30 | BE30: 2018-05-31 | BF30: 2018-06-01 | BG30: 2018-06-02 | BH30: 2018-06-03 | BI30: 2018-06-04 | BJ30: 2018-06-05 | BK30: 2018-06-06 | BL30: 2018-06-07 | BM30: 2018-06-08 | BN30: 2018-06-09 | BO30: 2018-06-10 | BP30: 2018-06-11 | BQ30: 2018-06-12 | BR30: 2018-06-13 | BS30: 2018-06-14 | BT30: 2018-06-15 | BU30: 2018-06-16 | BV30: 2018-06-17 | BW30: 2018-06-18 | BX30: 2018-06-19 | BY30: 2018-06-20 | BZ30: 2018-06-21 | CA30: 2018-06-22 | CB30: 2018-06-23 | CC30: 2018-06-24 | CD30: 2018-06-25 | CE30: 2018-06-26 | CF30: 2018-06-27 | CG30: 2018-06-28 | CH30: 2018-06-29 | CI30: 2018-06-30 | CJ30: 2018-07-01 | CK30: 2018-07-02 | CL30: 2018-07-03 | CM30: 2018-07-04 | CN30: =CM30+1 -> 2018-07-05 | CO30: 2018-07-06 | CP30: 2018-07-07 | CQ30: 2018-07-08 | CR30: 2018-07-09 | CS30: 2018-07-10 | CT30: 2018-07-11 | CU30: 2018-07-12 | CV30: 2018-07-13 | CW30: 2018-07-14 | CX30: 2018-07-15 | CY30: 2018-07-16 | CZ30: 2018-07-17 | DA30: 2018-07-18 | DB30: 2018-07-19 | DC30: 2018-07-20 | DD30: 2018-07-21 | DE30: 2018-07-22 | DF30: 2018-07-23 | DG30: 2018-07-24 | DH30: 2018-07-25 | DI30: 2018-07-26 | DJ30: 2018-07-27 | DK30: 2018-07-28 | DL30: 2018-07-29 | DM30: 2018-07-30 | DN30: 2018-07-31 | DO30: 2018-08-01 | DP30: 2018-08-02 | DQ30: 2018-08-03 | DR30: 2018-08-04 | DS30: 2018-08-05 | DT30: 2018-08-06 | DU30: 2018-08-07 | DV30: 2018-08-08 | DW30: 2018-08-09 | DX30: 2018-08-10 | DY30: 2018-08-11 | DZ30: 2018-08-12 | EA30: 2018-08-13 | EB30: 2018-08-14 | EC30: 2018-08-15 | ED30: 2018-08-16 | EE30: 2018-08-17 | EF30: 2018-08-18 | EG30: 2018-08-19 | EH30: 2018-08-20 | EI30: 2018-08-21 | EJ30: 2018-08-22 | EK30: 2018-08-23 | EL30: 2018-08-24 | EM30: 2018-08-25 | EN30: 2018-08-26 | EO30: 2018-08-27 | EP30: 2018-08-28 | EQ30: 2018-08-29 | ER30: 2018-08-30 | ES30: 2018-08-31 | ET30: 2018-09-01 | EU30: 2018-09-02 | EV30: 2018-09-03 | EW30: 2018-09-04 | EX30: 2018-09-05 | EY30: 2018-09-06 | EZ30: =EY30+1 -> 2018-09-07 | FA30: 2018-09-08 | FB30: 2018-09-09 | FC30: 2018-09-10 | FD30: 2018-09-11 | FE30: 2018-09-12 | FF30: 2018-09-13 | FG30: 2018-09-14 | FH30: 2018-09-15 | FI30: 2018-09-16 | FJ30: 2018-09-17 | FK30: 2018-09-18 | FL30: 2018-09-19 | FM30: 2018-09-20 | FN30: 2018-09-21 | FO30: 2018-09-22 | FP30: 2018-09-23 | FQ30: 2018-09-24 | FR30: 2018-09-25 | FS30: 2018-09-26 | FT30: 2018-09-27 | FU30: 2018-09-28 | FV30: 2018-09-29 | FW30: 2018-09-30 | FX30: 2018-10-01 | FY30: 2018-10-02 | FZ30: 2018-10-03 | GA30: 2018-10-04 | GB30: 2018-10-05 | GC30: 2018-10-06 | GD30: 2018-10-07 | GE30: 2018-10-08 | GF30: 2018-10-09 | GG30: 2018-10-10 | GH30: 2018-10-11 | GI30: 2018-10-12 | GJ30: 2018-10-13 | GK30: 2018-10-14 | GL30: 2018-10-15 | GM30: 2018-10-16 | GN30: 2018-10-17 | GO30: 2018-10-18 | GP30: 2018-10-19 | GQ30: 2018-10-20 | GR30: 2018-10-21 | GS30: 2018-10-22 | GT30: 2018-10-23 | GU30: 2018-10-24 | GV30: 2018-10-25 | GW30: 2018-10-26 | GX30: 2018-10-27 | GY30: 2018-10-28 | GZ30: 2018-10-29 | HA30: 2018-10-30 | HB30: 2018-10-31 | HC30: 2018-11-01 | HD30: 2018-11-02 | HE30: 2018-11-03 | HF30: 2018-11-04 | HG30: 2018-11-05 | HH30: 2018-11-06 | HI30: 2018-11-07 | HJ30: 2018-11-08 | HK30: 2018-11-09 | HL30: =HK30+1 -> 2018-11-10 | HM30: 2018-11-11 | HN30: 2018-11-12 | HO30: 2018-11-13 | HP30: 2018-11-14 | HQ30: 2018-11-15 | HR30: 2018-11-16 | HS30: 2018-11-17 | HT30: 2018-11-18 | HU30: 2018-11-19 | HV30: 2018-11-20 | HW30: 2018-11-21 | HX30: 2018-11-22 | HY30: 2018-11-23 | HZ30: 2018-11-24 | IA30: 2018-11-25 | IB30: 2018-11-26 | IC30: 2018-11-27 | ID30: 2018-11-28 | IE30: 2018-11-29 | IF30: 2018-11-30 | IG30: 2018-12-01 | IH30: 2018-12-02 | II30: 2018-12-03 | IJ30: 2018-12-04 | IK30: 2018-12-05 | IL30: 2018-12-06 | IM30: 2018-12-07 | IN30: 2018-12-08 | IO30: 2018-12-09 | IP30: 2018-12-10 | IQ30: 2018-12-11 | IR30: 2018-12-12 | IS30: 2018-12-13 | IT30: 2018-12-14 | IU30: 2018-12-15 | IV30: 2018-12-16 | IW30: 2018-12-17 | IX30: 2018-12-18 | IY30: 2018-12-19 | IZ30: 2018-12-20 | JA30: 2018-12-21 | JB30: 2018-12-22 | JC30: 2018-12-23 | JD30: 2018-12-24 | JE30: 2018-12-25 | JF30: 2018-12-26 | JG30: 2018-12-27 | JH30: 2018-12-28 | JI30: 2018-12-29 | JJ30: 2018-12-30 | JK30: 2018-12-31 | JL30: 2019-01-01 | JM30: 2019-01-02 | JN30: 2019-01-03 | JO30: 2019-01-04 | JP30: 2019-01-05 | JQ30: 2019-01-06 | JR30: 2019-01-07 | JS30: 2019-01-08 | JT30: 2019-01-09 | JU30: 2019-01-10 | JV30: 2019-01-11 | JW30: 2019-01-12 | JX30: =JW30+1 -> 2019-01-13 | JY30: 2019-01-14 | JZ30: 2019-01-15 | KA30: 2019-01-16 | KB30: 2019-01-17 | KC30: 2019-01-18 | KD30: 2019-01-19 | KE30: 2019-01-20 | KF30: 2019-01-21 | KG30: 2019-01-22 | KH30: 2019-01-23 | KI30: 2019-01-24 | KJ30: 2019-01-25 | KK30: 2019-01-26 | KL30: 2019-01-27 | KM30: 2019-01-28 | KN30: 2019-01-29 | KO30: 2019-01-30 | KP30: 2019-01-31 | KQ30: 2019-02-01 | KR30: 2019-02-02 | KS30: 2019-02-03 | KT30: 2019-02-04 | KU30: 2019-02-05 | KV30: 2019-02-06 | KW30: 2019-02-07 | KX30: 2019-02-08 | KY30: 2019-02-09 | KZ30: 2019-02-10 | LA30: 2019-02-11 | LB30: 2019-02-12 | LC30: 2019-02-13 | LD30: 2019-02-14 | LE30: 2019-02-15 | LF30: 2019-02-16 | LG30: 2019-02-17 | LH30: 2019-02-18 | LI30: 2019-02-19 | LJ30: 2019-02-20 | LK30: 2019-02-21 | LL30: 2019-02-22 | LM30: 2019-02-23 | LN30: 2019-02-24 | LO30: 2019-02-25 | LP30: 2019-02-26 | LQ30: 2019-02-27 | LR30: 2019-02-28 | LS30: 2019-03-01 | LT30: 2019-03-02 | LU30: 2019-03-03 | LV30: 2019-03-04 | LW30: 2019-03-05 | LX30: 2019-03-06 | LY30: 2019-03-07 | LZ30: 2019-03-08 | MA30: 2019-03-09 | MB30: 2019-03-10 | MC30: 2019-03-11 | MD30: 2019-03-12 | ME30: 2019-03-13 | MF30: 2019-03-14 | MG30: 2019-03-15 | MH30: 2019-03-16 | MI30: 2019-03-17 | MJ30: =MI30+1 -> 2019-03-18 | MK30: 2019-03-19 | ML30: 2019-03-20 | MM30: 2019-03-21 | MN30: 2019-03-22 | MO30: 2019-03-23 | MP30: 2019-03-24 | MQ30: 2019-03-25 | MR30: 2019-03-26 | MS30: 2019-03-27 | MT30: 2019-03-28 | MU30: 2019-03-29 | MV30: 2019-03-30 | MW30: 2019-03-31 | MX30: 2019-04-01 | MY30: 2019-04-02 | MZ30: 2019-04-03 | NA30: 2019-04-04 | NB30: 2019-04-05 | NC30: 2019-04-06 | ND30: 2019-04-07 | NE30: 2019-04-08 | NF30: 2019-04-09 | NG30: 2019-04-10 | NH30: 2019-04-11 | NI30: 2019-04-12 | NJ30: 2019-04-13 | NK30: 2019-04-14 | NL30: 2019-04-15 | NM30: 2019-04-16 | NN30: 2019-04-17 | NO30: 2019-04-18 | NP30: 2019-04-19 | NQ30: 2019-04-20 | NR30: 2019-04-21 | NS30: 2019-04-22 | NT30: 2019-04-23 | NU30: 2019-04-24 | NV30: 2019-04-25 | NW30: 2019-04-26 | NX30: 2019-04-27 | NY30: 2019-04-28 | NZ30: 2019-04-29 | OA30: 2019-04-30 | OB30: 2019-05-01 | OC30: 2019-05-02 | OD30: 2019-05-03 | OE30: 2019-05-04 | OF30: 2019-05-05
D31: Task group | E31: Tasks name | G31: Assigned to | H31: Start date (DD/MM/YYYY) | I31: End date (DD/MM/YYYY) | J31: Actual end date (DD/MM/YYYY) | K31: Work days | L31: % Complete | M31: Status | N31: Duration | O31: Assigned | P31: Act. Assigned | Q31: Complete | R31: Act. Complete | S31: Remaining | T31: Act. Remaining | U31: Actual end date (DD/MM/YYYY) | Z31: =IF(OR(E19=0,E19=""),0,(Z30-WEEKDAY(Z30,2)+1)) -> 2018-04-30 | AG31: =(AG30-WEEKDAY(AG30,2)+1) -> 2018-05-07 | AN31: =(AN30-WEEKDAY(AN30,2)+1) -> 2018-05-14 | AU31: =(AU30-WEEKDAY(AU30,2)+1) -> 2018-05-21 | BB31: =(BB30-WEEKDAY(BB30,2)+1) -> 2018-05-28 | BI31: =(BI30-WEEKDAY(BI30,2)+1) -> 2018-06-04 | BP31: =(BP30-WEEKDAY(BP30,2)+1) -> 2018-06-11 | BW31: =(BW30-WEEKDAY(BW30,2)+1) -> 2018-06-18 | CD31: =(CD30-WEEKDAY(CD30,2)+1) -> 2018-06-25 | CK31: =(CK30-WEEKDAY(CK30,2)+1) -> 2018-07-02 | CR31: =(CR30-WEEKDAY(CR30,2)+1) -> 2018-07-09 | CY31: =(CY30-WEEKDAY(CY30,2)+1) -> 2018-07-16 | DF31: =(DF30-WEEKDAY(DF30,2)+1) -> 2018-07-23 | DM31: =(DM30-WEEKDAY(DM30,2)+1) -> 2018-07-30 | DT31: =(DT30-WEEKDAY(DT30,2)+1) -> 2018-08-06 | EA31: =(EA30-WEEKDAY(EA30,2)+1) -> 2018-08-13 | EH31: =(EH30-WEEKDAY(EH30,2)+1) -> 2018-08-20 | EO31: =(EO30-WEEKDAY(EO30,2)+1) -> 2018-08-27 | EV31: =(EV30-WEEKDAY(EV30,2)+1) -> 2018-09-03 | FC31: =(FC30-WEEKDAY(FC30,2)+1) -> 2018-09-10 | FJ31: =(FJ30-WEEKDAY(FJ30,2)+1) -> 2018-09-17 | FQ31: =(FQ30-WEEKDAY(FQ30,2)+1) -> 2018-09-24 | FX31: =(FX30-WEEKDAY(FX30,2)+1) -> 2018-10-01 | GE31: =(GE30-WEEKDAY(GE30,2)+1) -> 2018-10-08 | GL31: =(GL30-WEEKDAY(GL30,2)+1) -> 2018-10-15 | GS31: =(GS30-WEEKDAY(GS30,2)+1) -> 2018-10-22 | GZ31: =(GZ30-WEEKDAY(GZ30,2)+1) -> 2018-10-29 | HG31: =(HG30-WEEKDAY(HG30,2)+1) -> 2018-11-05 | HN31: =(HN30-WEEKDAY(HN30,2)+1) -> 2018-11-12 | HU31: =(HU30-WEEKDAY(HU30,2)+1) -> 2018-11-19 | IB31: =(IB30-WEEKDAY(IB30,2)+1) -> 2018-11-26 | II31: =(II30-WEEKDAY(II30,2)+1) -> 2018-12-03 | IP31: =(IP30-WEEKDAY(IP30,2)+1) -> 2018-12-10 | IW31: =(IW30-WEEKDAY(IW30,2)+1) -> 2018-12-17 | JD31: =(JD30-WEEKDAY(JD30,2)+1) -> 2018-12-24 | JK31: =(JK30-WEEKDAY(JK30,2)+1) -> 2018-12-31 | JR31: =(JR30-WEEKDAY(JR30,2)+1) -> 2019-01-07 | JY31: =(JY30-WEEKDAY(JY30,2)+1) -> 2019-01-14 | KF31: =(KF30-WEEKDAY(KF30,2)+1) -> 2019-01-21 | KM31: =(KM30-WEEKDAY(KM30,2)+1) -> 2019-01-28 | KT31: =(KT30-WEEKDAY(KT30,2)+1) -> 2019-02-04 | LA31: =(LA30-WEEKDAY(LA30,2)+1) -> 2019-02-11 | LH31: =(LH30-WEEKDAY(LH30,2)+1) -> 2019-02-18 | LO31: =(LO30-WEEKDAY(LO30,2)+1) -> 2019-02-25 | LV31: =(LV30-WEEKDAY(LV30,2)+1) -> 2019-03-04 | MC31: =(MC30-WEEKDAY(MC30,2)+1) -> 2019-03-11 | MJ31: =(MJ30-WEEKDAY(MJ30,2)+1) -> 2019-03-18 | MQ31: =(MQ30-WEEKDAY(MQ30,2)+1) -> 2019-03-25 | MX31: =(MX30-WEEKDAY(MX30,2)+1) -> 2019-04-01 | NE31: =(NE30-WEEKDAY(NE30,2)+1) -> 2019-04-08 | NL31: =(NL30-WEEKDAY(NL30,2)+1) -> 2019-04-15 | NS31: =(NS30-WEEKDAY(NS30,2)+1) -> 2019-04-22 | NZ31: =(NZ30-WEEKDAY(NZ30,2)+1) -> 2019-04-29
D32: INITIATE stage | E32: Define Scope | G32: Process Owner | H32: 2018-05-05 | I32: 2018-05-09 | J32: 2018-05-10 | K32: =IF(E32="","",IF(OR(I32=0,H32=0),0,NETWORKDAYS(H32,I32))) -> 3 | L32: 1 | N32: =IF(J32<>"",J32-H32+1,I32-H32+1) -> 6 | O32: =I32-H32+1 -> 5 | P32: =U32-H32+1 -> 6 | Q32: =ROUNDDOWN(O32*L32,0) -> 5 | R32: =ROUNDDOWN(L32*P32,0) -> 6 | S32: =O32-Q32 -> 0 | T32: =P32-R32 -> 0 | U32: =IF(J32="",I32,J32) -> 2018-05-10
E33: Form Team | G33: Process Owner | H33: 2018-05-05 | I33: 2018-05-16 | J33: 2018-05-13 | K33: =IF(E33="","",IF(OR(I33=0,H33=0),0,NETWORKDAYS(H33,I33))) -> 8 | L33: 0.75 | N33: 9 | O33: =I33-H33+1 -> 12 | P33: =U33-H33+1 -> 9 | Q33: =ROUNDDOWN(O33*L33,0) -> 9 | R33: =ROUNDDOWN(L33*P33,0) -> 6 | S33: =O33-Q33 -> 3 | T33: 3 | U33: =IF(J33="",I33,J33) -> 2018-05-13
E34: Create Plan & schedule workshops | G34: Process Owner | H34: 2018-05-05 | I34: 2018-05-16 | K34: 8 | L34: 0.25 | N34: 12 | O34: 12 | P34: =U34-H34+1 -> 12 | Q34: 3 | R34: 3 | S34: 9 | T34: 9 | U34: =IF(J34="",I34,J34) -> 2018-05-16
E35: Engage with Stakeholders | G35: Process Owner | H35: 2018-05-05 | I35: 2018-05-16 | K35: 8 | N35: 12 | O35: 12 | P35: 12 | Q35: 0 | R35: 0 | S35: 12 | T35: 12 | U35: 2018-05-16
D36: PRIORITISE (potential) | E36: Define Criteria for Potential score | G36: Workshop 1 | H36: 2018-05-19 | I36: 2018-05-19 | K36: 0 | N36: 1 | O36: 1 | P36: 1 | Q36: 0 | R36: 0 | S36: 1 | T36: 1 | U36: 2018-05-19
E37: Gather evidence for Potential score | G37: Specialist Teams | H37: 2018-05-20 | I37: 2018-05-20 | K37: =IF(E37="","",IF(OR(I37=0,H37=0),0,NETWORKDAYS(H37,I37))) -> 0 | N37: 1 | O37: 1 | P37: 1 | Q37: 0 | R37: 0 | S37: 1 | T37: 1 | U37: 2018-05-20
E38: Analyse evidence for Potential score | G38: Specialist Leads | H38: 2018-05-20 | I38: 2018-06-27 | K38: 28 | N38: 39 | O38: 39 | P38: 39 | Q38: 0 | R38: 0 | S38: 39 | T38: 39 | U38: 2018-06-27
E39: Assign scores & weights & commentary for Potential score | G39: Workshop 2 | H39: 2018-06-28 | I39: 2018-06-28 | K39: 1 | N39: =IF(J39<>"",J39-H39+1,I39-H39+1) -> 1 | O39: 1 | P39: 1 | Q39: =ROUNDDOWN(O39*L39,0) -> 0 | R39: =ROUNDDOWN(L39*P39,0) -> 0 | S39: =O39-Q39 -> 1 | T39: =P39-R39 -> 1 | U39: 2018-06-28
D40: PRIORITISE (current) | E40: Define approach to Current score | G40: Process Owner | H40: 2018-05-19 | I40: 2018-05-19 | K40: 0 | N40: 1 | O40: 1 | P40: 1 | Q40: 0 | R40: 0 | S40: 1 | T40: 1 | U40: 2018-05-19
E41: Gather evidence for Current score | G41: Specialist Teams | H41: 2018-05-20 | I41: 2018-06-20 | K41: 23 | N41: 32 | O41: 32 | P41: 32 | Q41: 0 | R41: 0 | S41: 32 | T41: 32 | U41: 2018-06-20
E42: Analyse evidence for Current score | G42: Specialist Leads | H42: 2018-05-20 | I42: 2018-06-27 | K42: 28 | N42: 39 | O42: 39 | P42: 39 | Q42: 0 | R42: 0 | S42: 39 | T42: 39 | U42: 2018-06-27
E43: Assign score & add commentary for Current score | G43: Workshop 3 | H43: 2018-06-29 | I43: 2018-06-29 | K43: 1 | N43: 1 | O43: 1 | P43: 1 | Q43: 0 | R43: 0 | S43: 1 | T43: 1 | U43: 2018-06-29
D44: RECOMMEND stage | E44: Triangulate findings & Provide rationale | G44: Workshop 4 | H44: 2018-06-30 | I44: 2018-06-30 | K44: 0 | N44: 1 | O44: 1 | P44: 1 | Q44: 0 | R44: 0 | S44: 1 | T44: 1 | U44: 2018-06-30
E45: Model scenarios & update rationale | G45: Process Owner | H45: 2018-07-02 | I45: 2018-07-02 | K45: 1 | N45: 1 | O45: 1 | P45: 1 | Q45: 0 | R45: 0 | S45: 1 | T45: 1 | U45: 2018-07-02
E46: Discuss & document process | G46: Process Owner | H46: 2018-07-02 | I46: 2018-07-06 | K46: 5 | N46: 5 | O46: 5 | P46: 5 | Q46: 0 | R46: 0 | S46: 5 | T46: 5 | U46: 2018-07-06
D47: COMMUNICATE stage | E47: Present recommendations | G47: Process Owner | H47: 2018-07-09 | I47: 2018-07-09 | K47: 1 | N47: 1 | O47: 1 | P47: 1 | Q47: 0 | R47: 0 | S47: 1 | T47: 1 | U47: 2018-07-09
E48: Review and update recommendations | G48: Process Owner | H48: 2018-07-10 | I48: 2018-07-13 | K48: 4 | N48: 4 | O48: 4 | P48: 4 | Q48: 0 | R48: 0 | S48: 4 | T48: 4 | U48: 2018-07-13
N49: 1 | O49: 1 | P49: 1 | Q49: 0 | R49: 0 | S49: 1 | T49: 1 | U49: 00:00:00
K50: =IF(E50="","",IF(OR(I50=0,H50=0),0,NETWORKDAYS(H50,I50))) ->  | N50: =IF(J50<>"",J50-H50+1,I50-H50+1) -> 1 | O50: 1 | P50: 1 | Q50: 0 | R50: 0 | S50: 1 | T50: 1 | U50: 00:00:00
N51: 1 | O51: 1 | P51: 1 | Q51: 0 | R51: 0 | S51: 1 | T51: 1 | U51: 00:00:00
N52: 1 | O52: 1 | P52: 1 | Q52: 0 | R52: 0 | S52: 1 | T52: 1 | U52: 00:00:00
N53: 1 | O53: 1 | P53: 1 | Q53: 0 | R53: 0 | S53: 1 | T53: 1 | U53: 00:00:00
N54: 1 | O54: 1 | P54: 1 | Q54: 0 | R54: 0 | S54: 1 | T54: 1 | U54: 00:00:00
N55: 1 | O55: 1 | P55: 1 | Q55: 0 | R55: 0 | S55: 1 | T55: 1 | U55: 00:00:00
N56: 1 | O56: 1 | P56: 1 | Q56: 0 | R56: 0 | S56: 1 | T56: 1 | U56: 00:00:00
N57: 1 | O57: 1 | P57: 1 | Q57: 0 | R57: 0 | S57: 1 | T57: 1 | U57: 00:00:00
N58: 1 | O58: 1 | P58: 1 | Q58: 0 | R58: 0 | S58: 1 | T58: 1 | U58: 00:00:00
N59: =IF(J59<>"",J59-H59+1,I59-H59+1) -> 1 | O59: 1 | P59: 1 | Q59: =ROUNDDOWN(O59*L59,0) -> 0 | R59: =ROUNDDOWN(L59*P59,0) -> 0 | S59: =O59-Q59 -> 1 | T59: =P59-R59 -> 1 | U59: 00:00:00
N60: 1 | O60: 1 | P60: 1 | Q60: 0 | R60: 0 | S60: 1 | T60: 1 | U60: 00:00:00
K61: =IF(E61="","",IF(OR(I61=0,H61=0),0,NETWORKDAYS(H61,I61))) ->  | N61: 1 | O61: =I61-H61+1 -> 1 | P61: =U61-H61+1 -> 1 | Q61: 0 | R61: 0 | S61: 1 | T61: 1 | U61: =IF(J61="",I61,J61) -> 00:00:00
N62: 1 | O62: 1 | P62: 1 | Q62: 0 | R62: 0 | S62: 1 | T62: 1 | U62: 00:00:00
N63: 1 | O63: 1 | P63: 1 | Q63: 0 | R63: 0 | S63: 1 | T63: 1 | U63: 00:00:00
N64: 1 | O64: 1 | P64: 1 | Q64: 0 | R64: 0 | S64: 1 | T64: 1 | U64: 00:00:00
N65: 1 | O65: 1 | P65: 1 | Q65: 0 | R65: 0 | S65: 1 | T65: 1 | U65: 00:00:00
N66: 1 | O66: 1 | P66: 1 | Q66: 0 | R66: 0 | S66: 1 | T66: 1 | U66: 00:00:00
N67: 1 | O67: 1 | P67: 1 | Q67: 0 | R67: 0 | S67: 1 | T67: 1 | U67: 00:00:00

Sheet PrioritiseGuidance
D10: In the Prioritise step of the prioritisation process, there are two parts: the calculation of potential scores and the calculation of current scores. • Potential scores relate to a hypothetical future state, where the programme is performing in the best way it possibly can, subject to the restrictions outside of the local area’s control. You will assess each topic against your defined criteria, such as 'Population impacted' and 'impact on health inequalities'. • Current scores relate to what is actually happening. They are an assessment of investment and outcomes of the currently delivered programme relative to other similar local authorities. Here you will also consider the feasibility of achieving the potential state. Potential and Current scores are obtained through two different approaches, as shown in Table 1. The results from the two exercises are then linked and compared in the Recommend step of the prioritisation process.
D25: Table 1: Potential and Current Scores
E27: Potential scores | K27: Current scores
D28: Approach | E28: Scoring programme areas against weighted criteria, based on Multi-Criteria Decision Analysis (MCDA). | K28: Scoring current situation per programme area, in terms of investment and outcomes, by benchmarking to other local authorities. At this stage a feasibility score is generated based on local understanding.
D29: What do scores represent? | E29: Potential outcome that each programme area could have for different criteria, if they performed at their best. | K29: Current status of each programme area, in terms of outcomes and investments relative to other local authorities. Also considers the feasibility that each programme area has to reach their potential.
D30: Evidence source ? | E30: HEER, Fingertips, local analysis | K30: SPOT, insight from local leads
D33: Prioritise is the core and most challenging step of the process. It is recommended to divide the process into three workshops, as shown in Figure 1. You can however condense the process down depending on your time constraints. Following the three workshops, and the calculation of all scores, it is advisable to meet for a fourth workshop, where recommendations will be made.
D37: Figure 1: Recommended “Prioritise” Process
D50: Workshop 1 :
D51: • The Process Owner, as the facilitator of the workshops, will introduce all stakeholders to the prioritisation process. • Stakeholders will identify and describe criteria, against which the performance of each programme area will be assessed. • Stakeholders will agree weightings for each of the criteria. • Outcome of this workshop: An agreed list of criteria. Key aspects to get right (see workshop plans for more): • Go into the workshop with a longlist of potential criteria – you can use the list from the “Define Criteria” sheet as a starting point; • Ensuring a clear, shared understanding of the criteria chosen. For this it is recommended that a definition for each criteria is agreed by the group; • Clearly set out what will happen in Workshop 2 and the evidence gathering against the criteria required beforehand.
D59: Evidence gathering:
D60: • Specialists from each programme area will separately collect evidence related to the potential performance that programme could achieve for the identified criteria • Outcome of this stage in the process: A summary of evidence for each programme, which can be used to assess that programme against each of the criteria. Key aspects to get right: • Evidence should be synthesised down to five or six lines on each criteria; • Where possible, metrics from Fingertips or HEER should be used – e.g. population affected, return on investment; • For descriptive criteria (such as acceptability or connection with other services), the evidence should give two or three examples of how the programme demonstrates the criterion; • The Process Owner should act as a central point ensuring that the evidence collected is of high quality and comparable in nature.
D68: Workshop 2:
D69: • Based on the evidence collected and discussion in the workshop, each programme is scored from 1 to 5 on each criterion. • Weighted scores are calculated. • Outcome of this workshop: An overall weighted score for each of the programme areas (based on the scores per criteria) and an overall ranking of programme areas. Key aspects to get right: • Ensuring those attending have looked at the evidence or there is sufficient time to read the evidence in the workshop; • Being clear on what the scoring range (1 to 5) on each criterion means; • Splitting the participants in to two groups to allow for verification, debate and consensus; • Some individuals find the process challenging and daunting. It is important that no one feels rushed, and that people are allowed to voice concern • Strong facilitation can be needed to keep participants focused on the task in hand.
D79: Evidence gathering:
D80: • Specialists from each programme area will separately collect evidence related to the current state of each programme area in terms of current investments and outcomes relative to other local authorities. • Outcome of this stage in the process: A summary of evidence on what is currently happening in the local area for each programme. Key aspects to get right: • Use the SPOT tool wherever possible; • Think widely about feasibility – the commissioning cycle is important but workforce and other factors can have an impact on whether change is possible.
D88: Workshop 3:
D89: • Based on the evidence collected and on experts’ opinions, Current scores are calculated. • The current relative investments and outcomes of each programme area are rated from 1 to 5, and the two scores are added together to get an overall result. • The Feasibility for programme areas to reach their potential performance, from their current one, is also scored, from 1 to 5. • Outcome of this workshop: An overall score for the current state of each of the programme areas, based on investment and outcomes; and a feasibility score assessing how achievable the potential state is from the current state. Key aspects to get right: • Ensuring those attending have looked at the evidence or there is sufficient time to read the evidence in the workshop; • Splitting the participants in to two groups to allow for verification, debate and consensus. • Where programmes are broad and map to a several outcomes emphasise those with the closest causal link to relevant commissioned activity.

Sheet PotentialGuidance
D10: The potential scores relate to a hypothetical future state, where the programme is performing in the best way it possibly can, subject to the restrictions outside of the local area’s control. You will calculate potential scores with a four-stage process that includes: 1. Criteria selection and relative weighting of criteria (First workshop) 2. Evidence gathering (Desk research) 3. Scoring of programme areas against selected criteria (Second workshop) 4. Calculation of weighted scores for each programme area (Second workshop). This is done automatically by the tool. The calculation of potential scores is based on the Multi-Criteria Decision Analysis (MCDA) methodology (adapted from 'Multi-criteria analysis: a manual' by the Department for Communities and Local Government,
D20: https://www.gov.uk/government/publications/green-book-supplementary-guidance-multi-criteria-decision-analysis)
D21: which is a systematic approach that allows you to compare different options across several different criteria, and rank them from the most to the least preferred. It is a practical approach that makes implicit decision-making explicit, by combining available evidence with expert judgement. The aim of this process is to support complex decision-making procedures through the development of coherent preferences.
D26: Steps:
D28: 1. When setting up the prioritisation process, you (the Process Owner) will have to establish the following elements of the analysis:
D30: a. Establish decision context and identify one high level objective (e.g. how to best manage your budget across various and competing programme areas). b. Identify all programme areas that you want to compare (e.g. Sexual Health Services, Physical Activity, Obesity etc.). This will be captured in the 'Define Scope' section.
D36: 2. In the first workshop, you will take the team through the following steps:
D38: c. Identify operational criteria (e.g. Effectiveness, Impact on Health Inequalities, Acceptability etc.). d. Assign weights for each criterion to reflect their relative importance to the main objective.
D45: 3. Following the first workshop, stakeholders will separately undertake desk research.
D47: e. Collect evidence to support scoring decisions against the chosen criteria (e.g. what does the literature tell us on how sexual health services can impact health inequalities?).
D54: 4. In the second workshop, you will take the team through the following steps:
D56: f. Assess the performance level of programme areas by scoring them against all criteria. g. Combine weights and scores for each programme area to derive an overall value (calculated automatically by the tool). h. Examine results and agree on them before decisions are taken. i. Sensitivity analysis, by changing weights or scores, could help to resolve disagreements between stakeholders.

Sheet PotentialEvidence
U7: Count | V7: =IFERROR(COUNTA(V9:V38),"") -> 2 | W7: ViewType | X7: =IF(Selected_health_Area_Potential<>"","Template","Main") -> Main
U8: Index | V8: Health Areas selected | W8: Counter | X8: DisplayOrder | Y8: Template Created ?
U9: 1 | V9: E.g.1 Smoking/Tobacco | W9: =IF(V9="",0,1) -> 1 | X9: =IF(W9=0,"",SUM($W$9:W9)) -> 1 | Y9: =IFERROR(MATCH(V9,PotentialEvidence_Save!$6:$6,0),"") -> 24
D10: After defining the criteria, Process Specialists should gather evidence and summarise it into the evidence template provided for their programme area. Short, separate evidence summaries, consisting of a few lines, should be collected for each criterion, within each programme. Refer to Resources, for examples of resources from which to collect evidence. These should be supplemented from other resources you are aware of, as well as local knowledge. | U10: 2 | V10: E.g.2 Obesity | W10: =IF(V10="",0,1) -> 1 | X10: =IF(W10=0,"",SUM($W$9:W10)) -> 2 | Y10: =IFERROR(MATCH(V10,PotentialEvidence_Save!$6:$6,0),"") -> 3
U11: =U10+1 -> 3 | W11: 0 | X11: =IF(W11=0,"",SUM($W$9:W11)) ->  | Y11: =IFERROR(MATCH(V11,PotentialEvidence_Save!$6:$6,0),"") -> 
U12: =U11+1 -> 4 | W12: 0 | X12: =IF(W12=0,"",SUM($W$9:W12)) ->  | Y12: =IFERROR(MATCH(V12,PotentialEvidence_Save!$6:$6,0),"") -> 
D13: A blank evidence template has been provided for your convenience: (Double click on the icon to the right to access) | U13: =U12+1 -> 5 | W13: 0 | X13: =IF(W13=0,"",SUM($W$9:W13)) ->  | Y13: =IFERROR(MATCH(V13,PotentialEvidence_Save!$6:$6,0),"") -> 
D14: Note: Evidence for potential scores should represent what could potentially be achieved in each programme area, for each criterion. | U14: 6 | W14: 0 | X14: =IF(W14=0,"",SUM($W$9:W14)) ->  | Y14: =IFERROR(MATCH(V14,PotentialEvidence_Save!$6:$6,0),"") -> 
U15: 7 | W15: 0 | X15: =IF(W15=0,"",SUM($W$9:W15)) ->  | Y15: =IFERROR(MATCH(V15,PotentialEvidence_Save!$6:$6,0),"") -> 
D16: Example: | U16: 8 | W16: 0 | X16: =IF(W16=0,"",SUM($W$9:W16)) ->  | Y16: =IFERROR(MATCH(V16,PotentialEvidence_Save!$6:$6,0),"") -> 
D17: If one of your programme areas is Obesity, and the criteria against which you are assessing the obesity area are 'burden of disease', 'health inequalities' and 'cost savings', then the evidence required for this programme area may include: | U17: 9 | W17: 0 | X17: =IF(W17=0,"",SUM($W$9:W17)) ->  | Y17: =IFERROR(MATCH(V17,PotentialEvidence_Save!$6:$6,0),"") -> 
U18: 10 | W18: 0 | X18: =IF(W18=0,"",SUM($W$9:W18)) ->  | Y18: =IFERROR(MATCH(V18,PotentialEvidence_Save!$6:$6,0),"") -> 
D19: • Information on the burden of illness related to obesity in your local area (e.g. no. of obese individuals), and the potential of obesity programmes to reduce this. | U19: 11 | W19: 0 | X19: =IF(W19=0,"",SUM($W$9:W19)) ->  | Y19: =IFERROR(MATCH(V19,PotentialEvidence_Save!$6:$6,0),"") -> 
U20: 12 | W20: 0 | X20: =IF(W20=0,"",SUM($W$9:W20)) ->  | Y20: =IFERROR(MATCH(V20,PotentialEvidence_Save!$6:$6,0),"") -> 
D21: • Information on health inequalities related to obesity (e.g. proportion of obese individuals in more deprived areas), and the potential impact of obesity programmes on reducing health inequalities. | U21: 13 | W21: 0 | X21: =IF(W21=0,"",SUM($W$9:W21)) ->  | Y21: =IFERROR(MATCH(V21,PotentialEvidence_Save!$6:$6,0),"") -> 
U22: 14 | W22: 0 | X22: =IF(W22=0,"",SUM($W$9:W22)) ->  | Y22: =IFERROR(MATCH(V22,PotentialEvidence_Save!$6:$6,0),"") -> 
D23: • Information on the cost-effectiveness of interventions aiming to help people lose weight. | U23: 15 | W23: 0 | X23: =IF(W23=0,"",SUM($W$9:W23)) ->  | Y23: =IFERROR(MATCH(V23,PotentialEvidence_Save!$6:$6,0),"") -> 
U24: =U23+1 -> 16 | W24: 0 | X24: =IF(W24=0,"",SUM($W$9:W24)) ->  | Y24: =IFERROR(MATCH(V24,PotentialEvidence_Save!$6:$6,0),"") -> 
U25: 17 | W25: 0 | X25: =IF(W25=0,"",SUM($W$9:W25)) ->  | Y25: =IFERROR(MATCH(V25,PotentialEvidence_Save!$6:$6,0),"") -> 
U26: 18 | W26: 0 | X26: =IF(W26=0,"",SUM($W$9:W26)) ->  | Y26: =IFERROR(MATCH(V26,PotentialEvidence_Save!$6:$6,0),"") -> 
U27: 19 | W27: 0 | X27: =IF(W27=0,"",SUM($W$9:W27)) ->  | Y27: =IFERROR(MATCH(V27,PotentialEvidence_Save!$6:$6,0),"") -> 
D28: Evidence Templates | U28: 20 | W28: 0 | X28: =IF(W28=0,"",SUM($W$9:W28)) ->  | Y28: =IFERROR(MATCH(V28,PotentialEvidence_Save!$6:$6,0),"") -> 
U29: 21 | W29: 0 | X29: =IF(W29=0,"",SUM($W$9:W29)) ->  | Y29: =IFERROR(MATCH(V29,PotentialEvidence_Save!$6:$6,0),"") -> 
D30: 1) Click on 'Create template(s)' to create evidence templates for the health / topic areas. | U30: 22 | W30: 0 | X30: =IF(W30=0,"",SUM($W$9:W30)) ->  | Y30: =IFERROR(MATCH(V30,PotentialEvidence_Save!$6:$6,0),"") -> 
D31: Note: | U31: 23 | W31: 0 | X31: =IF(W31=0,"",SUM($W$9:W31)) ->  | Y31: =IFERROR(MATCH(V31,PotentialEvidence_Save!$6:$6,0),"") -> 
D32: *Allows you to create evidence templates only for the programme areas added in the 'Define scope' template. Also, the 'Create template(s)' only displays the programme areas for which the template is not created. | U32: 24 | W32: 0 | X32: =IF(W32=0,"",SUM($W$9:W32)) ->  | Y32: =IFERROR(MATCH(V32,PotentialEvidence_Save!$6:$6,0),"") -> 
U33: 25 | W33: 0 | X33: =IF(W33=0,"",SUM($W$9:W33)) ->  | Y33: =IFERROR(MATCH(V33,PotentialEvidence_Save!$6:$6,0),"") -> 
D34: *Allows you to create up to 30 evidence templates. | U34: 26 | W34: 0 | X34: =IF(W34=0,"",SUM($W$9:W34)) ->  | Y34: =IFERROR(MATCH(V34,PotentialEvidence_Save!$6:$6,0),"") -> 
U35: 27 | W35: 0 | X35: =IF(W35=0,"",SUM($W$9:W35)) ->  | Y35: =IFERROR(MATCH(V35,PotentialEvidence_Save!$6:$6,0),"") -> 
U36: 28 | W36: 0 | X36: =IF(W36=0,"",SUM($W$9:W36)) ->  | Y36: =IFERROR(MATCH(V36,PotentialEvidence_Save!$6:$6,0),"") -> 
D37: 2) Click on the programme area to view the respective evidence template. | U37: 29 | W37: 0 | X37: =IF(W37=0,"",SUM($W$9:W37)) ->  | Y37: =IFERROR(MATCH(V37,PotentialEvidence_Save!$6:$6,0),"") -> 
U38: 30 | W38: 0 | X38: =IF(W38=0,"",SUM($W$9:W38)) ->  | Y38: =IFERROR(MATCH(V38,PotentialEvidence_Save!$6:$6,0),"") -> 

Sheet PotentialEvidenceTemplate
AD7: Count | AE7: =IFERROR(COUNTA(AE9:AE28),"") -> 11
AC8: Index | AD8: Index_Column | AE8: Health Areas | AF8: Counter | AG8: DisplayOrder | AH8: Template Created ?
AA9: Selected health Area: | AC9: 1 | AD9: =IFERROR(MATCH(AC9,PotentialEvidence_Save!$4:$4,0),"") -> 3 | AE9: =IFERROR(IF(INDEX(PotentialEvi_Save_HA_Row,MATCH(AC9,PotentialEvi_Save_HI_Row,0))="","",INDEX(PotentialEvi_Save_HA_Row,MATCH(AC9,PotentialEvi_Save_HI_Row,0))),"") -> E.g.2 Obesity | AF9: =IF(AE9="",0,1) -> 1 | AG9: =IF(AF9=0,"",SUM($Z$9:AF9)) -> 5 | AH9: =IFERROR(MATCH(AE9,PotentialEvidence_Save!$6:$6,0),"") -> 3
D10: Summarise in one page the key evidence collected. This will be used to support scoring and weighting decisions. Note: To leave the “Evidence Template” page, click on “Save Template”, and then click on “Close”. | AC10: =AC9+1 -> 2 | AD10: =IFERROR(MATCH(AC10,PotentialEvidence_Save!$4:$4,0),"") -> 24 | AE10: E.g.1 Smoking/Tobacco | AF10: =IF(AE10="",0,1) -> 1 | AG10: =IF(AF10=0,"",SUM($Z$9:AF10)) -> 32 | AH10: =IFERROR(MATCH(AE10,PotentialEvidence_Save!$6:$6,0),"") -> 24
AA11: Template exists? | AC11: =AC10+1 -> 3 | AD11: =IFERROR(MATCH(AC11,PotentialEvidence_Save!$4:$4,0),"") -> 45 | AF11: 0 | AG11: =IF(AF11=0,"",SUM($Z$9:AF11)) ->  | AH11: =IFERROR(MATCH(AE11,PotentialEvidence_Save!$6:$6,0),"") -> 
AA12: =IFERROR(MATCH(Selected_health_Area_Potential,PotentialEvidence_Save!6:6,0),0) -> 0 | AC12: 4 | AD12: =IFERROR(MATCH(AC12,PotentialEvidence_Save!$4:$4,0),"") -> 66 | AF12: 0 | AG12: =IF(AF12=0,"",SUM($Z$9:AF12)) ->  | AH12: =IFERROR(MATCH(AE12,PotentialEvidence_Save!$6:$6,0),"") -> 
AA13: Changes in sht? | AC13: 5 | AD13: =IFERROR(MATCH(AC13,PotentialEvidence_Save!$4:$4,0),"") -> 87 | AF13: 0 | AG13: =IF(AF13=0,"",SUM($Z$9:AF13)) ->  | AH13: =IFERROR(MATCH(AE13,PotentialEvidence_Save!$6:$6,0),"") -> 
D14: Evidence Template | AA14: 1 | AC14: 6 | AD14: =IFERROR(MATCH(AC14,PotentialEvidence_Save!$4:$4,0),"") -> 108 | AF14: 0 | AG14: =IF(AF14=0,"",SUM($Z$9:AF14)) ->  | AH14: =IFERROR(MATCH(AE14,PotentialEvidence_Save!$6:$6,0),"") -> 
AA15: Nav_To: | AC15: 7 | AD15: =IFERROR(MATCH(AC15,PotentialEvidence_Save!$4:$4,0),"") -> 129 | AF15: 0 | AG15: =IF(AF15=0,"",SUM($Z$9:AF15)) ->  | AH15: =IFERROR(MATCH(AE15,PotentialEvidence_Save!$6:$6,0),"") -> 
E16: Evidence summary | AA16: PotentialEvidence | AC16: 8 | AD16: =IFERROR(MATCH(AC16,PotentialEvidence_Save!$4:$4,0),"") -> 150 | AF16: 0 | AG16: =IF(AF16=0,"",SUM($Z$9:AF16)) ->  | AH16: =IFERROR(MATCH(AE16,PotentialEvidence_Save!$6:$6,0),"") -> 
AC17: 9 | AD17: =IFERROR(MATCH(AC17,PotentialEvidence_Save!$4:$4,0),"") -> 171 | AF17: 0 | AG17: =IF(AF17=0,"",SUM($Z$9:AF17)) ->  | AH17: =IFERROR(MATCH(AE17,PotentialEvidence_Save!$6:$6,0),"") -> 
AC18: 10 | AD18: =IFERROR(MATCH(AC18,PotentialEvidence_Save!$4:$4,0),"") -> 192 | AF18: 0 | AG18: =IF(AF18=0,"",SUM($Z$9:AF18)) ->  | AH18: =IFERROR(MATCH(AE18,PotentialEvidence_Save!$6:$6,0),"") -> 
E19: Background information and evidence | AC19: 11 | AD19: =IFERROR(MATCH(AC19,PotentialEvidence_Save!$4:$4,0),"") -> 213 | AF19: 0 | AG19: =IF(AF19=0,"",SUM($Z$9:AF19)) ->  | AH19: =IFERROR(MATCH(AE19,PotentialEvidence_Save!$6:$6,0),"") -> 
U226: End
C227: End

Sheet PotentialScores
D10: Define criteria
D11: The selection of operational criteria is the first step of the Prioritise step. The selected criteria will become the chosen indicators for programme areas’ performance. The final criteria (we advise no more than 8), should represent the key and most differentiating factors, as these will be the ones that programme areas are scored against. All programme areas will be given a score between 1 and 5 (with 1 being the poorest performance and 5 the best) for each criterion they are assessed against. Examples on how to score the chosen criteria are shown in the “2A. POTENTIAL - Assign Scores” section of the tool. How to Identify Criteria? Criteria will be identified in the first workshop with the use of hierarchical trees, with two levels: 1. The first branch level will include all the aspects that derive from the overall objective, i.e. how to make the most out of the available budget. 2. The second branch level will include specific criteria for each category. We suggest that areas start with a longlist of criteria (second branch) and organise them into categories (first branch).
D49: Chosen criteria will then need to be checked for: 1. Completeness: all major criteria needed to score performance of topic areas are included 2. Non-Redundancy: no unnecessary criteria included 3. Operationality: all criteria can be judged against all topic areas 4. Independence: while there may be some limited overlap between criteria (e.g. effectiveness and cost effectiveness) this should be minimised. There should also be no overlap with spend, outcomes and feasibility – these are assessed in the next stage. 5. Size: number of final criteria should be limited to no more than the 8 most important and differentiating criteria
D58: Example of Criteria long list: Below is a long list of possible criteria, but Process Owners are encouraged to think of further criteria, relevant to their specific context and goals.
D67: • Effectiveness: the impact of the intervention on behavioural or health outcomes per recipient. • Cost-effectiveness: extent to which a programme has achieved (is expected to achieve) its results at a lower cost compared with alternatives; • Impact on health inequalities: to which extent a programme reduces health inequalities; • Local need: the number of individuals in the community who could potentially be impacted by the programme; • Mandation: is the service partially or wholly mandated; • Prevention: to what extent is the programme area focused on prevention; • Acceptability: whether there were political, cultural or moral objections to the interventions; • Connectedness: effect on other parts of the health system such as the NHS – but could also include wider impacts such as crime; • Building community strengths: the extent to which the programme build assets in communities that will support them to maintain their own health and wellbeing; • Innovation: whether the programme area pioneers new approaches; • Local growth: the extent to which the programme contributes to developing the local economy. Note that in this framework we are not assessing individual interventions or programmes, but rather a topic area that could contain multiple programmes.
D102: Assign scores
D103: After collecting the evidence for each programme area, you will get together in the second workshop and rate each topic area from 1 (poorest) to 5 (best), against all criteria. Higher scores will indicate that the potential performance of the programme area is high against the specific criteria. How to score potential performance? This can be done relatively (as below) where the worst programme against a criterion is scored 1 and the best programme 5 – or specific values can be assigned to each of the scores.
D115: Example: Scoring the programme area “Sexual Health Services” with a “2”, for the criteria Impact on Health Inequalities, means that you believe that, based on the collected evidence, the potential for reducing health inequalities if sexual health services are performing at their best is poor. There is a table below for capturing weights and a field for recording the rationale behind the scores. Scores are then combined (incorporating the weighting decided previously), to calculate the overall potential scores for each programme area.
D124: Assign weights
E125: After defining the criteria, you should now assign weights to each criterion. There is a table below for capturing weights and a field for recording the rationale behind the weights. Weights represent the relative importance of each criterion compared to all others. There are a number of ways to assign weights. If you have separated your criteria into categories, you may find it easier to assign weights in two steps: 1. Assign weights to each Category (first branch), so that their sum adds up to 100. 2. Based on the weights given to Categories (first branch), assign weights to individual Criteria (second branch). The sum of weights assigned to all the criterion under under a Category should be equal to the weight assigned to its Category. How to assign weights? 1. Assign weights for each category, allocating 100 points in total. This is not essential, but is to help make it easier to weight the individual criteria. Example below:
E154: 2. Assign weights for each criterion. Each criterion can be assigned a weight between 1 and the weight assigned to its category (e.g. if 'Health Benefits' is assigned 40, then 'Effectiveness' can be weighted anything between 1 and 40). However, the sum of weights assigned to all the criterion under a Category should be equal to the weight assigned to its Category. Note that the total criteria weights should add up to 100.
D182: Weighted scores
D183: Scores are combined with the weights assigned to the criteria, to calculate the overall potential scores for each programme area. These scores, along with the collected rationale, represent the overall outcome of the Potential stage.
E189: Potential scoring: Weighted scores
H193: Legend: | R193: *Programme areas are added in the Define scope section.The table will adjust accordingly. | AW193: TOTAL SCORE | AX193: =IF(AX$197="","",SUMIFS(AX197:AX219,$G197:$G219,"C")) -> 54 | AY193: 26 | AZ193: 48
H194: Input cells | I194: HealthAreas_Count: | J194: =IFERROR(MAX(DefineScope!$W$82:$W$113),"") -> 3 | AW194: RANK | AX194: =IFERROR(IF(AX$197="","",RANK(AX193,$AX$193:$CA$193)),"") -> 1 | AY194: =IFERROR(IF(AY$197="","",RANK(AY193,$AX$193:$CA$193)),"") -> 3 | AZ194: 2
I195: PrintType: | J195: WeightedScores | R195: 1 | S195: =R195+1 -> 2 | T195: =S195+1 -> 3 | U195: 4 | V195: 5 | W195: 6 | X195: 7 | Y195: 8 | Z195: 9 | AA195: 10 | AB195: 11 | AC195: 12 | AD195: 13 | AE195: 14 | AF195: 15 | AG195: 16 | AH195: 17 | AI195: 18 | AJ195: 19 | AK195: 20 | AL195: 21 | AM195: 22 | AN195: 23 | AO195: 24 | AP195: 25 | AQ195: 26 | AR195: 27 | AS195: 28 | AT195: 29 | AU195: 30 | AX195: 1 | AY195: =AX195+1 -> 2 | AZ195: 3 | BA195: 4 | BB195: 5 | BC195: 6 | BD195: 7 | BE195: 8 | BF195: 9 | BG195: 10 | BH195: 11 | BI195: 12 | BJ195: 13 | BK195: 14 | BL195: 15 | BM195: 16 | BN195: 17 | BO195: 18 | BP195: 19 | BQ195: 20 | BR195: 21 | BS195: 22 | BT195: 23 | BU195: 24 | BV195: 25 | BW195: 26 | BX195: 27 | BY195: 28 | BZ195: 29 | CA195: 30
R196: Assign scores (between 1 to 5) | AX196: Weighted scores
G197: H | H197: Double-click to add or remove a category or criteria rows | I197: Category | J197: Criteria | L197: Category weight | N197: Criteria weight | R197: =IFERROR(INDEX(Tool_Selections!$I$8:$I$38,MATCH(R$195,Tool_Selections!$H$8:$H$38,0)),"") -> E.g.1 Smoking/Tobacco | S197: =IFERROR(INDEX(Tool_Selections!$I$8:$I$38,MATCH(S$195,Tool_Selections!$H$8:$H$38,0)),"") -> E.g.2 Obesity | T197: =IFERROR(INDEX(Tool_Selections!$I$8:$I$38,MATCH(T$195,Tool_Selections!$H$8:$H$38,0)),"") -> E.g.3 Sexual Health Services | U197: =IFERROR(INDEX(Tool_Selections!$I$8:$I$38,MATCH(U$195,Tool_Selections!$H$8:$H$38,0)),"") ->  | V197: =IFERROR(INDEX(Tool_Selections!$I$8:$I$38,MATCH(V$195,Tool_Selections!$H$8:$H$38,0)),"") ->  | W197: =IFERROR(INDEX(Tool_Selections!$I$8:$I$38,MATCH(W$195,Tool_Selections!$H$8:$H$38,0)),"") ->  | X197: =IFERROR(INDEX(Tool_Selections!$I$8:$I$38,MATCH(X$195,Tool_Selections!$H$8:$H$38,0)),"") ->  | Y197: =IFERROR(INDEX(Tool_Selections!$I$8:$I$38,MATCH(Y$195,Tool_Selections!$H$8:$H$38,0)),"") ->  | Z197: =IFERROR(INDEX(Tool_Selections!$I$8:$I$38,MATCH(Z$195,Tool_Selections!$H$8:$H$38,0)),"") ->  | AA197: =IFERROR(INDEX(Tool_Selections!$I$8:$I$38,MATCH(AA$195,Tool_Selections!$H$8:$H$38,0)),"") ->  | AB197: =IFERROR(INDEX(Tool_Selections!$I$8:$I$38,MATCH(AB$195,Tool_Selections!$H$8:$H$38,0)),"") ->  | AC197: =IFERROR(INDEX(Tool_Selections!$I$8:$I$38,MATCH(AC$195,Tool_Selections!$H$8:$H$38,0)),"") ->  | AD197: =IFERROR(INDEX(Tool_Selections!$I$8:$I$38,MATCH(AD$195,Tool_Selections!$H$8:$H$38,0)),"") ->  | AE197: =IFERROR(INDEX(Tool_Selections!$I$8:$I$38,MATCH(AE$195,Tool_Selections!$H$8:$H$38,0)),"") ->  | AF197: =IFERROR(INDEX(Tool_Selections!$I$8:$I$38,MATCH(AF$195,Tool_Selections!$H$8:$H$38,0)),"") ->  | AG197: =IFERROR(INDEX(Tool_Selections!$I$8:$I$38,MATCH(AG$195,Tool_Selections!$H$8:$H$38,0)),"") ->  | AH197: =IFERROR(INDEX(Tool_Selections!$I$8:$I$38,MATCH(AH$195,Tool_Selections!$H$8:$H$38,0)),"") ->  | AI197: =IFERROR(INDEX(Tool_Selections!$I$8:$I$38,MATCH(AI$195,Tool_Selections!$H$8:$H$38,0)),"") ->  | AJ197: =IFERROR(INDEX(Tool_Selections!$I$8:$I$38,MATCH(AJ$195,Tool_Selections!$H$8:$H$38,0)),"") ->  | AK197: =IFERROR(INDEX(Tool_Selections!$I$8:$I$38,MATCH(AK$195,Tool_Selections!$H$8:$H$38,0)),"") ->  | AL197: =IFERROR(INDEX(Tool_Selections!$I$8:$I$38,MATCH(AL$195,Tool_Selections!$H$8:$H$38,0)),"") ->  | AM197: =IFERROR(INDEX(Tool_Selections!$I$8:$I$38,MATCH(AM$195,Tool_Selections!$H$8:$H$38,0)),"") ->  | AN197: =IFERROR(INDEX(Tool_Selections!$I$8:$I$38,MATCH(AN$195,Tool_Selections!$H$8:$H$38,0)),"") ->  | AO197: =IFERROR(INDEX(Tool_Selections!$I$8:$I$38,MATCH(AO$195,Tool_Selections!$H$8:$H$38,0)),"") ->  | AP197: =IFERROR(INDEX(Tool_Selections!$I$8:$I$38,MATCH(AP$195,Tool_Selections!$H$8:$H$38,0)),"") ->  | AQ197: =IFERROR(INDEX(Tool_Selections!$I$8:$I$38,MATCH(AQ$195,Tool_Selections!$H$8:$H$38,0)),"") ->  | AR197: =IFERROR(INDEX(Tool_Selections!$I$8:$I$38,MATCH(AR$195,Tool_Selections!$H$8:$H$38,0)),"") ->  | AS197: =IFERROR(INDEX(Tool_Selections!$I$8:$I$38,MATCH(AS$195,Tool_Selections!$H$8:$H$38,0)),"") ->  | AT197: =IFERROR(INDEX(Tool_Selections!$I$8:$I$38,MATCH(AT$195,Tool_Selections!$H$8:$H$38,0)),"") ->  | AU197: =IFERROR(INDEX(Tool_Selections!$I$8:$I$38,MATCH(AU$195,Tool_Selections!$H$8:$H$38,0)),"") ->  | AX197: =IFERROR(INDEX(Tool_Selections!$I$8:$I$38,MATCH(AX$195,Tool_Selections!$H$8:$H$38,0)),"") -> E.g.1 Smoking/Tobacco | AY197: =IFERROR(INDEX(Tool_Selections!$I$8:$I$38,MATCH(AY$195,Tool_Selections!$H$8:$H$38,0)),"") -> E.g.2 Obesity | AZ197: =IFERROR(INDEX(Tool_Selections!$I$8:$I$38,MATCH(AZ$195,Tool_Selections!$H$8:$H$38,0)),"") -> E.g.3 Sexual Health Services | BA197: =IFERROR(INDEX(Tool_Selections!$I$8:$I$38,MATCH(BA$195,Tool_Selections!$H$8:$H$38,0)),"") ->  | BB197: =IFERROR(INDEX(Tool_Selections!$I$8:$I$38,MATCH(BB$195,Tool_Selections!$H$8:$H$38,0)),"") ->  | BC197: =IFERROR(INDEX(Tool_Selections!$I$8:$I$38,MATCH(BC$195,Tool_Selections!$H$8:$H$38,0)),"") ->  | BD197: =IFERROR(INDEX(Tool_Selections!$I$8:$I$38,MATCH(BD$195,Tool_Selections!$H$8:$H$38,0)),"") ->  | BE197: =IFERROR(INDEX(Tool_Selections!$I$8:$I$38,MATCH(BE$195,Tool_Selections!$H$8:$H$38,0)),"") ->  | BF197: =IFERROR(INDEX(Tool_Selections!$I$8:$I$38,MATCH(BF$195,Tool_Selections!$H$8:$H$38,0)),"") ->  | BG197: =IFERROR(INDEX(Tool_Selections!$I$8:$I$38,MATCH(BG$195,Tool_Selections!$H$8:$H$38,0)),"") ->  | BH197: =IFERROR(INDEX(Tool_Selections!$I$8:$I$38,MATCH(BH$195,Tool_Selections!$H$8:$H$38,0)),"") ->  | BI197: =IFERROR(INDEX(Tool_Selections!$I$8:$I$38,MATCH(BI$195,Tool_Selections!$H$8:$H$38,0)),"") ->  | BJ197: =IFERROR(INDEX(Tool_Selections!$I$8:$I$38,MATCH(BJ$195,Tool_Selections!$H$8:$H$38,0)),"") ->  | BK197: =IFERROR(INDEX(Tool_Selections!$I$8:$I$38,MATCH(BK$195,Tool_Selections!$H$8:$H$38,0)),"") ->  | BL197: =IFERROR(INDEX(Tool_Selections!$I$8:$I$38,MATCH(BL$195,Tool_Selections!$H$8:$H$38,0)),"") ->  | BM197: =IFERROR(INDEX(Tool_Selections!$I$8:$I$38,MATCH(BM$195,Tool_Selections!$H$8:$H$38,0)),"") ->  | BN197: =IFERROR(INDEX(Tool_Selections!$I$8:$I$38,MATCH(BN$195,Tool_Selections!$H$8:$H$38,0)),"") ->  | BO197: =IFERROR(INDEX(Tool_Selections!$I$8:$I$38,MATCH(BO$195,Tool_Selections!$H$8:$H$38,0)),"") ->  | BP197: =IFERROR(INDEX(Tool_Selections!$I$8:$I$38,MATCH(BP$195,Tool_Selections!$H$8:$H$38,0)),"") ->  | BQ197: =IFERROR(INDEX(Tool_Selections!$I$8:$I$38,MATCH(BQ$195,Tool_Selections!$H$8:$H$38,0)),"") ->  | BR197: =IFERROR(INDEX(Tool_Selections!$I$8:$I$38,MATCH(BR$195,Tool_Selections!$H$8:$H$38,0)),"") ->  | BS197: =IFERROR(INDEX(Tool_Selections!$I$8:$I$38,MATCH(BS$195,Tool_Selections!$H$8:$H$38,0)),"") ->  | BT197: =IFERROR(INDEX(Tool_Selections!$I$8:$I$38,MATCH(BT$195,Tool_Selections!$H$8:$H$38,0)),"") ->  | BU197: =IFERROR(INDEX(Tool_Selections!$I$8:$I$38,MATCH(BU$195,Tool_Selections!$H$8:$H$38,0)),"") ->  | BV197: =IFERROR(INDEX(Tool_Selections!$I$8:$I$38,MATCH(BV$195,Tool_Selections!$H$8:$H$38,0)),"") ->  | BW197: =IFERROR(INDEX(Tool_Selections!$I$8:$I$38,MATCH(BW$195,Tool_Selections!$H$8:$H$38,0)),"") ->  | BX197: =IFERROR(INDEX(Tool_Selections!$I$8:$I$38,MATCH(BX$195,Tool_Selections!$H$8:$H$38,0)),"") ->  | BY197: =IFERROR(INDEX(Tool_Selections!$I$8:$I$38,MATCH(BY$195,Tool_Selections!$H$8:$H$38,0)),"") ->  | BZ197: =IFERROR(INDEX(Tool_Selections!$I$8:$I$38,MATCH(BZ$195,Tool_Selections!$H$8:$H$38,0)),"") ->  | CA197: =IFERROR(INDEX(Tool_Selections!$I$8:$I$38,MATCH(CA$195,Tool_Selections!$H$8:$H$38,0)),"") -> 
G199: Sh | H199: Add / Remove | I199: e.g. Health Benefits | L199: 40 | N199: =IF(L199="","","Sum of Criteria weights should be equal to Category weight") -> Sum of Criteria weights should be equal to Category weight
A200: Blank Sections | G200: C | H200: Delete | J200: e.g. Effectiveness | N200: 30 | R200: 4 | S200: 1 | T200: 5 | AX200: =IF(OR($N200="",R200=""),"",R200*($N200/5)) -> 24 | AY200: 6 | AZ200: 30 | BH200: =IF(OR($N200="",AB200=""),"",AB200*($N200/5)) ->  | BR200: =IF(OR($N200="",AL200=""),"",AL200*($N200/5)) -> 
A201: Blank Sections | G201: C | H201: Delete | J201: e.g. Prevention | N201: 10 | R201: 5 | S201: 2 | T201: 5 | AX201: 10 | AY201: 4 | AZ201: 10
A202: Blank Sections | G202: C | H202: Delete
G204: Sh | H204: Add / Remove | I204: e.g. Cost | L204: 20 | N204: =IF(L204="","","Sum of Criteria weights should be equal to Category weight") -> Sum of Criteria weights should be equal to Category weight
G205: C | H205: Delete | J205: e.g. Net cost | N205: 20 | R205: 5 | S205: 4 | T205: 2 | AX205: =IF(OR($N205="",R205=""),"",R205*($N205/5)) -> 20 | AY205: 16 | AZ205: 8 | BH205: =IF(OR($N205="",AB205=""),"",AB205*($N205/5)) ->  | BR205: =IF(OR($N205="",AL205=""),"",AL205*($N205/5)) -> 
G206: C | H206: Delete
G207: C | H207: Delete
G209: Sh | H209: Add / Remove | N209: =IF(L209="","","Sum of Criteria weights should be equal to Category weight") -> 
G210: C | H210: Delete | AX210: =IF(OR($N210="",R210=""),"",R210*($N210/5)) ->  | BH210: =IF(OR($N210="",AB210=""),"",AB210*($N210/5)) ->  | BR210: =IF(OR($N210="",AL210=""),"",AL210*($N210/5)) -> 
G211: C | H211: Delete
G212: C | H212: Delete
G214: Sh | H214: Add / Remove | N214: =IF(L214="","","Sum of Criteria weights should be equal to Category weight") -> 
G215: C | H215: Delete | AX215: =IF(OR($N215="",R215=""),"",R215*($N215/5)) ->  | BH215: =IF(OR($N215="",AB215=""),"",AB215*($N215/5)) ->  | BR215: =IF(OR($N215="",AL215=""),"",AL215*($N215/5)) -> 
G216: C | H216: Delete
A217: Blank Sections | G217: C | H217: Delete
G219: Sh | L219: Total Category weight | N219: Total Criteria weight
G220: Total | L220: =SUMIFS(L197:L219,$G197:$G219,"Sh") -> 60 | N220: =SUMIFS(N197:N219,$G197:$G219,"C") -> 60 | AW220: TOTAL SCORE | AX220: =IF(AX$197="","",SUMIFS(AX197:AX219,$G197:$G219,"C")) -> 54 | AY220: 26 | AZ220: 48
G221: End | L221: =IF(L220<>100,"Total should be equal to 100 !","") -> Total should be equal to 100 ! | N221: =IF(N220<>100,"Total should be equal to 100 !","") -> Total should be equal to 100 ! | AW221: RANK | AX221: =IFERROR(IF(AX$197="","",RANK(AX220,$AX$220:$CA$220)),"") -> 1 | AY221: 3 | AZ221: 2
A224: End
A263: Blank Sections | G263: Sh | H263: Add / Remove | N263: =IF(L263="","","Sum of weights should be equal to Category weight: "&L263) -> 
A264: Blank Sections | G264: C | H264: Delete | AX264: =IF(OR($N264="",R264=""),"",R264*($N264/5)) ->  | BH264: =IF(OR($N264="",AB264=""),"",AB264*($N264/5)) ->  | BR264: =IF(OR($N264="",AL264=""),"",AL264*($N264/5)) -> 
A265: Blank Sections | G265: C | H265: Delete
A266: Blank Sections | G266: C | H266: Delete
H274: Rationale: Define criteria
H275: Record in the box below the rationale behind the criteria selection.
H371: Rationale: Assign scores
H372: Record in the box below the rationale behind the scores.
H468: Rationale: Assign weights
H469: Record in the box below the rationale behind the weights.

Sheet CurrentGuidance
D10: As opposed to the potential scores, the current scoring focuses on what’s actually happening now in your local area. You will assess each programme area’s expenditure, outcomes, compared to other comparable local authorities, and the feasibility of achieving the potential state. First, you should gather evidence on the current situation, by programme area, in your local authority. Then, you should score each topic area on the relative level of current investment, outcomes observed, and also the feasibility of moving from the current state to the potential state. Note that there will not always be sufficient evidence to allow scoring decisions for your current investments and outcomes. In these cases, local knowledge from workshop attendees will be important for making the scoring decisions. Discussion should be reported in the Rationale box, at the bottom of the Assign scores page, as well as any gaps in the evidence base. Before commencing the Current scoring, there should be alignment on the approach to the exercise, e.g. what resources to use, how long to collect evidence for, how to treat topic areas with insufficient evidence, what the constraints, dependencies and assumptions are. These can all be captured in the Define scope section.

Sheet CurrentEvidence
U7: Count | V7: =IFERROR(COUNTA(V9:V38),"") -> 2 | W7: ViewType | X7: =IF(Selected_health_Area_Current<>"","Template","Main") -> Main
U8: Index | V8: Health Areas selected | W8: Counter | X8: DisplayOrder | Y8: Template Created ?
U9: 1 | V9: E.g.1 Smoking/Tobacco | W9: =IF(V9="",0,1) -> 1 | X9: =IF(W9=0,"",SUM($W$9:W9)) -> 1 | Y9: =IFERROR(MATCH(V9,#REF!,0),"") -> 
D10: Process Specialists should collect evidence and summarise it into the evidence template specific to their programme area. Short, separate evidence summaries, consisting of a few lines, should be collected for each criterion, within each programme. Refer to Resources, for examples of resources from which to collect evidence. | U10: 2 | V10: E.g.2 Obesity | W10: =IF(V10="",0,1) -> 1 | X10: =IF(W10=0,"",SUM($W$9:W10)) -> 2 | Y10: =IFERROR(MATCH(V10,#REF!,0),"") -> 
U11: =U10+1 -> 3 | W11: 0 | X11: =IF(W11=0,"",SUM($W$9:W11)) ->  | Y11: =IFERROR(MATCH(V11,#REF!,0),"") -> 
U12: =U11+1 -> 4 | W12: 0 | X12: =IF(W12=0,"",SUM($W$9:W12)) ->  | Y12: =IFERROR(MATCH(V12,#REF!,0),"") -> 
D13: A blank evidence template has been provided for your convenience: (Double click on the icon to the right to access) | U13: =U12+1 -> 5 | W13: 0 | X13: =IF(W13=0,"",SUM($W$9:W13)) ->  | Y13: =IFERROR(MATCH(V13,#REF!,0),"") -> 
D14: Note: Evidence for current scores should represent what is actually being achieved. Key aspects to get right: • Use the SPOT tool wherever possible; think widely about feasibility – the commissioning cycle is important but workforce and other factors can have an impact on whether change is possible. • Think widely about feasibility – the commissioning cycle is important but workforce and other factors can have an impact on whether change is possible. • Within the evidence template it is important to capture additional background information that may be relevant to understand the context of the current state (i.e. why things are the way they are). This information will play an important role is forming a narrative on spend directions. | U14: 6 | W14: 0 | X14: =IF(W14=0,"",SUM($W$9:W14)) ->  | Y14: =IFERROR(MATCH(V14,#REF!,0),"") -> 
U15: 7 | W15: 0 | X15: =IF(W15=0,"",SUM($W$9:W15)) ->  | Y15: =IFERROR(MATCH(V15,#REF!,0),"") -> 
D16: Example: | U16: 8 | W16: 0 | X16: =IF(W16=0,"",SUM($W$9:W16)) ->  | Y16: =IFERROR(MATCH(V16,#REF!,0),"") -> 
D17: If one of your programme areas is “Obesity”, you will have to specifically look for evidence on the current investments and outcomes of the area: | U17: 9 | W17: 0 | X17: =IF(W17=0,"",SUM($W$9:W17)) ->  | Y17: =IFERROR(MATCH(V17,#REF!,0),"") -> 
U18: 10 | W18: 0 | X18: =IF(W18=0,"",SUM($W$9:W18)) ->  | Y18: =IFERROR(MATCH(V18,#REF!,0),"") -> 
D19: • How much is currently spent in the area in your public health commission relative to other comparable local authorities? | U19: 11 | W19: 0 | X19: =IF(W19=0,"",SUM($W$9:W19)) ->  | Y19: =IFERROR(MATCH(V19,#REF!,0),"") -> 
U20: 12 | W20: 0 | X20: =IF(W20=0,"",SUM($W$9:W20)) ->  | Y20: =IFERROR(MATCH(V20,#REF!,0),"") -> 
D21: • Which outcomes you getting from the currently implemented programmes relative to other comparable local authorities? | U21: 13 | W21: 0 | X21: =IF(W21=0,"",SUM($W$9:W21)) ->  | Y21: =IFERROR(MATCH(V21,#REF!,0),"") -> 
U22: 14 | W22: 0 | X22: =IF(W22=0,"",SUM($W$9:W22)) ->  | Y22: =IFERROR(MATCH(V22,#REF!,0),"") -> 
U23: 15 | W23: 0 | X23: =IF(W23=0,"",SUM($W$9:W23)) ->  | Y23: =IFERROR(MATCH(V23,#REF!,0),"") -> 
U24: 16 | W24: 0 | X24: =IF(W24=0,"",SUM($W$9:W24)) ->  | Y24: =IFERROR(MATCH(V24,#REF!,0),"") -> 
U25: 17 | W25: 0 | X25: =IF(W25=0,"",SUM($W$9:W25)) ->  | Y25: =IFERROR(MATCH(V25,#REF!,0),"") -> 
D26: Evidence templates | U26: 18 | W26: 0 | X26: =IF(W26=0,"",SUM($W$9:W26)) ->  | Y26: =IFERROR(MATCH(V26,#REF!,0),"") -> 
U27: 19 | W27: 0 | X27: =IF(W27=0,"",SUM($W$9:W27)) ->  | Y27: =IFERROR(MATCH(V27,#REF!,0),"") -> 
D28: 1) Click on 'Create template(s)' to create evidence templates for the programme areas. | U28: 20 | W28: 0 | X28: =IF(W28=0,"",SUM($W$9:W28)) ->  | Y28: =IFERROR(MATCH(V28,#REF!,0),"") -> 
D29: Note: | U29: 21 | W29: 0 | X29: =IF(W29=0,"",SUM($W$9:W29)) ->  | Y29: =IFERROR(MATCH(V29,#REF!,0),"") -> 
D30: *Allows you to create evidence templates only for the programme areas added in the 'Define scope' template. Also, the 'Create template(s)' only displays the programme areas for which the template is not created. | U30: 22 | W30: 0 | X30: =IF(W30=0,"",SUM($W$9:W30)) ->  | Y30: =IFERROR(MATCH(V30,#REF!,0),"") -> 
U31: 23 | W31: 0 | X31: =IF(W31=0,"",SUM($W$9:W31)) ->  | Y31: =IFERROR(MATCH(V31,#REF!,0),"") -> 
D32: *Allows you to create up to 30 evidence templates. | U32: 24 | W32: 0 | X32: =IF(W32=0,"",SUM($W$9:W32)) ->  | Y32: =IFERROR(MATCH(V32,#REF!,0),"") -> 
U33: 25 | W33: 0 | X33: =IF(W33=0,"",SUM($W$9:W33)) ->  | Y33: =IFERROR(MATCH(V33,#REF!,0),"") -> 
U34: 26 | W34: 0 | X34: =IF(W34=0,"",SUM($W$9:W34)) ->  | Y34: =IFERROR(MATCH(V34,#REF!,0),"") -> 
D35: 2) Click on the programme area to view the respective evidence template. | U35: 27 | W35: 0 | X35: =IF(W35=0,"",SUM($W$9:W35)) ->  | Y35: =IFERROR(MATCH(V35,#REF!,0),"") -> 
U36: 28 | W36: 0 | X36: =IF(W36=0,"",SUM($W$9:W36)) ->  | Y36: =IFERROR(MATCH(V36,#REF!,0),"") -> 
U37: 29 | W37: 0 | X37: =IF(W37=0,"",SUM($W$9:W37)) ->  | Y37: =IFERROR(MATCH(V37,#REF!,0),"") -> 
U38: 30 | W38: 0 | X38: =IF(W38=0,"",SUM($W$9:W38)) ->  | Y38: =IFERROR(MATCH(V38,#REF!,0),"") -> 

Sheet CurrentEvidenceTemplate
AD7: Count | AE7: =IFERROR(COUNTA(AE9:AE38),"") -> 30
AC8: Index | AD8: Index_Column | AE8: Health Areas | AF8: Counter | AG8: DisplayOrder | AH8: Template Created ?
AA9: Selected health Area: | AC9: 1 | AD9: =IFERROR(MATCH(AC9,PotentialEvidence_Save!$4:$4,0),"") -> 3 | AE9: =IFERROR(IF(INDEX(CurrentEvi_Save_HA_Row,MATCH(AC9,CurrentEvi_Save_HI_Row,0))="","",INDEX(CurrentEvi_Save_HA_Row,MATCH(AC9,CurrentEvi_Save_HI_Row,0))),"") -> E.g.2 Obesity | AF9: =IF(AE9="",0,1) -> 1 | AG9: =IF(AF9=0,"",SUM($Z$9:AF9)) -> 5 | AH9: =IFERROR(MATCH(AE9,#REF!,0),"") -> 
D10: Record a one-page synthesis of the evidence collected. This will be used to make and support decisions on the assignment of scores and weights to topic areas. Note: To leave the “Evidence Template” page, click on “Save Template”, and then click on “Close”. | AC10: =AC9+1 -> 2 | AD10: =IFERROR(MATCH(AC10,PotentialEvidence_Save!$4:$4,0),"") -> 24 | AF10: =IF(AE10="",0,1) -> 0 | AG10: =IF(AF10=0,"",SUM($Z$9:AF10)) ->  | AH10: =IFERROR(MATCH(AE10,#REF!,0),"") -> 
AA11: Template exists? | AC11: =AC10+1 -> 3 | AD11: =IFERROR(MATCH(AC11,PotentialEvidence_Save!$4:$4,0),"") -> 45 | AF11: 0 | AG11: =IF(AF11=0,"",SUM($Z$9:AF11)) ->  | AH11: =IFERROR(MATCH(AE11,#REF!,0),"") -> 
AA12: =IFERROR(MATCH(Selected_health_Area_Current,CurrentEvidence_Save!6:6,0),0) -> 0 | AC12: 4 | AD12: =IFERROR(MATCH(AC12,PotentialEvidence_Save!$4:$4,0),"") -> 66 | AF12: 0 | AG12: =IF(AF12=0,"",SUM($Z$9:AF12)) ->  | AH12: =IFERROR(MATCH(AE12,#REF!,0),"") -> 
AA13: Changes in sht? | AC13: 5 | AD13: =IFERROR(MATCH(AC13,PotentialEvidence_Save!$4:$4,0),"") -> 87 | AF13: 0 | AG13: =IF(AF13=0,"",SUM($Z$9:AF13)) ->  | AH13: =IFERROR(MATCH(AE13,#REF!,0),"") -> 
E14: Evidence template | AA14: 1 | AC14: 6 | AD14: =IFERROR(MATCH(AC14,PotentialEvidence_Save!$4:$4,0),"") -> 108 | AF14: 0 | AG14: =IF(AF14=0,"",SUM($Z$9:AF14)) ->  | AH14: =IFERROR(MATCH(AE14,#REF!,0),"") -> 
AA15: Nav_To: | AC15: 7 | AD15: =IFERROR(MATCH(AC15,PotentialEvidence_Save!$4:$4,0),"") -> 129 | AF15: 0 | AG15: =IF(AF15=0,"",SUM($Z$9:AF15)) ->  | AH15: =IFERROR(MATCH(AE15,#REF!,0),"") -> 
E16: Evidence summary | AA16: CurrentEvidence | AC16: 8 | AD16: =IFERROR(MATCH(AC16,PotentialEvidence_Save!$4:$4,0),"") -> 150 | AF16: 0 | AG16: =IF(AF16=0,"",SUM($Z$9:AF16)) ->  | AH16: =IFERROR(MATCH(AE16,#REF!,0),"") -> 
AC17: 9 | AD17: =IFERROR(MATCH(AC17,PotentialEvidence_Save!$4:$4,0),"") -> 171 | AF17: 0 | AG17: =IF(AF17=0,"",SUM($Z$9:AF17)) ->  | AH17: =IFERROR(MATCH(AE17,#REF!,0),"") -> 
AC18: 10 | AD18: =IFERROR(MATCH(AC18,PotentialEvidence_Save!$4:$4,0),"") -> 192 | AF18: 0 | AG18: =IF(AF18=0,"",SUM($Z$9:AF18)) ->  | AH18: =IFERROR(MATCH(AE18,#REF!,0),"") -> 
E19: Background information and evidence | AC19: 11 | AD19: =IFERROR(MATCH(AC19,PotentialEvidence_Save!$4:$4,0),"") -> 213 | AF19: 0 | AG19: =IF(AF19=0,"",SUM($Z$9:AF19)) ->  | AH19: =IFERROR(MATCH(AE19,#REF!,0),"") -> 
AC20: 12 | AD20: =IFERROR(MATCH(AC20,PotentialEvidence_Save!$4:$4,0),"") -> 234 | AF20: 0 | AG20: =IF(AF20=0,"",SUM($Z$9:AF20)) ->  | AH20: =IFERROR(MATCH(AE20,#REF!,0),"") -> 
AC21: 13 | AD21: =IFERROR(MATCH(AC21,PotentialEvidence_Save!$4:$4,0),"") -> 255 | AF21: 0 | AG21: =IF(AF21=0,"",SUM($Z$9:AF21)) ->  | AH21: =IFERROR(MATCH(AE21,#REF!,0),"") -> 
AC22: 14 | AD22: =IFERROR(MATCH(AC22,PotentialEvidence_Save!$4:$4,0),"") -> 276 | AF22: 0 | AG22: =IF(AF22=0,"",SUM($Z$9:AF22)) ->  | AH22: =IFERROR(MATCH(AE22,#REF!,0),"") -> 
AC23: 15 | AD23: =IFERROR(MATCH(AC23,PotentialEvidence_Save!$4:$4,0),"") -> 297 | AF23: 0 | AG23: =IF(AF23=0,"",SUM($Z$9:AF23)) ->  | AH23: =IFERROR(MATCH(AE23,#REF!,0),"") -> 
AC24: 16 | AD24: =IFERROR(MATCH(AC24,PotentialEvidence_Save!$4:$4,0),"") -> 318 | AF24: 0 | AG24: =IF(AF24=0,"",SUM($Z$9:AF24)) ->  | AH24: =IFERROR(MATCH(AE24,#REF!,0),"") -> 
AC25: 17 | AD25: =IFERROR(MATCH(AC25,PotentialEvidence_Save!$4:$4,0),"") -> 339 | AF25: 0 | AG25: =IF(AF25=0,"",SUM($Z$9:AF25)) ->  | AH25: =IFERROR(MATCH(AE25,#REF!,0),"") -> 
AC26: 18 | AD26: =IFERROR(MATCH(AC26,PotentialEvidence_Save!$4:$4,0),"") -> 360 | AF26: 0 | AG26: =IF(AF26=0,"",SUM($Z$9:AF26)) ->  | AH26: =IFERROR(MATCH(AE26,#REF!,0),"") -> 
AC27: 19 | AD27: =IFERROR(MATCH(AC27,PotentialEvidence_Save!$4:$4,0),"") -> 381 | AF27: 0 | AG27: =IF(AF27=0,"",SUM($Z$9:AF27)) ->  | AH27: =IFERROR(MATCH(AE27,#REF!,0),"") -> 
AC28: 20 | AD28: =IFERROR(MATCH(AC28,PotentialEvidence_Save!$4:$4,0),"") -> 402 | AF28: 0 | AG28: =IF(AF28=0,"",SUM($Z$9:AF28)) ->  | AH28: =IFERROR(MATCH(AE28,#REF!,0),"") -> 
AC29: 21 | AD29: =IFERROR(MATCH(AC29,PotentialEvidence_Save!$4:$4,0),"") -> 423 | AF29: 0 | AG29: =IF(AF29=0,"",SUM($Z$9:AF29)) ->  | AH29: =IFERROR(MATCH(AE29,#REF!,0),"") -> 
AC30: 22 | AD30: =IFERROR(MATCH(AC30,PotentialEvidence_Save!$4:$4,0),"") -> 444 | AF30: 0 | AG30: =IF(AF30=0,"",SUM($Z$9:AF30)) ->  | AH30: =IFERROR(MATCH(AE30,#REF!,0),"") -> 
AC31: 23 | AD31: =IFERROR(MATCH(AC31,PotentialEvidence_Save!$4:$4,0),"") -> 465 | AF31: 0 | AG31: =IF(AF31=0,"",SUM($Z$9:AF31)) ->  | AH31: =IFERROR(MATCH(AE31,#REF!,0),"") -> 
AC32: 24 | AD32: =IFERROR(MATCH(AC32,PotentialEvidence_Save!$4:$4,0),"") -> 486 | AF32: 0 | AG32: =IF(AF32=0,"",SUM($Z$9:AF32)) ->  | AH32: =IFERROR(MATCH(AE32,#REF!,0),"") -> 
AC33: 25 | AD33: =IFERROR(MATCH(AC33,PotentialEvidence_Save!$4:$4,0),"") -> 507 | AF33: 0 | AG33: =IF(AF33=0,"",SUM($Z$9:AF33)) ->  | AH33: =IFERROR(MATCH(AE33,#REF!,0),"") -> 
AC34: 26 | AD34: =IFERROR(MATCH(AC34,PotentialEvidence_Save!$4:$4,0),"") -> 528 | AF34: 0 | AG34: =IF(AF34=0,"",SUM($Z$9:AF34)) ->  | AH34: =IFERROR(MATCH(AE34,#REF!,0),"") -> 
AC35: 27 | AD35: =IFERROR(MATCH(AC35,PotentialEvidence_Save!$4:$4,0),"") -> 549 | AF35: 0 | AG35: =IF(AF35=0,"",SUM($Z$9:AF35)) ->  | AH35: =IFERROR(MATCH(AE35,#REF!,0),"") -> 
AC36: 28 | AD36: =IFERROR(MATCH(AC36,PotentialEvidence_Save!$4:$4,0),"") -> 570 | AF36: 0 | AG36: =IF(AF36=0,"",SUM($Z$9:AF36)) ->  | AH36: =IFERROR(MATCH(AE36,#REF!,0),"") -> 
AC37: 29 | AD37: =IFERROR(MATCH(AC37,PotentialEvidence_Save!$4:$4,0),"") -> 591 | AF37: 0 | AG37: =IF(AF37=0,"",SUM($Z$9:AF37)) ->  | AH37: =IFERROR(MATCH(AE37,#REF!,0),"") -> 
AC38: 30 | AD38: =IFERROR(MATCH(AC38,PotentialEvidence_Save!$4:$4,0),"") -> 612 | AF38: 0 | AG38: =IF(AF38=0,"",SUM($Z$9:AF38)) ->  | AH38: =IFERROR(MATCH(AE38,#REF!,0),"") -> 
U226: End
C227: End

Sheet PotentialEvidence_Save (hidden)
C3: HealthareaIndex: | X3: HealthareaIndex: | AS3: HealthareaIndex: | BN3: HealthareaIndex: | CI3: HealthareaIndex: | DD3: HealthareaIndex: | DY3: HealthareaIndex: | ET3: HealthareaIndex: | FO3: HealthareaIndex: | GJ3: HealthareaIndex: | HE3: HealthareaIndex: | HZ3: HealthareaIndex: | IU3: HealthareaIndex: | JP3: HealthareaIndex: | KK3: HealthareaIndex: | LF3: HealthareaIndex: | MA3: HealthareaIndex: | MV3: HealthareaIndex: | NQ3: HealthareaIndex: | OL3: HealthareaIndex: | PG3: HealthareaIndex: | QB3: HealthareaIndex: | QW3: HealthareaIndex: | RR3: HealthareaIndex: | SM3: HealthareaIndex: | TH3: HealthareaIndex: | UC3: HealthareaIndex: | UX3: HealthareaIndex: | VS3: HealthareaIndex: | WN3: HealthareaIndex:
C4: 1 | X4: 2 | AS4: 3 | BN4: 4 | CI4: 5 | DD4: 6 | DY4: 7 | ET4: 8 | FO4: 9 | GJ4: 10 | HE4: 11 | HZ4: 12 | IU4: 13 | JP4: 14 | KK4: 15 | LF4: 16 | MA4: 17 | MV4: 18 | NQ4: 19 | OL4: 20 | PG4: 21 | QB4: 22 | QW4: 23 | RR4: 24 | SM4: 25 | TH4: 26 | UC4: 27 | UX4: 28 | VS4: 29 | WN4: 30
C5: HealthAeaName: | X5: HealthAeaName: | AS5: HealthAeaName: | BN5: HealthAeaName: | CI5: HealthAeaName: | DD5: HealthAeaName: | DY5: HealthAeaName: | ET5: HealthAeaName: | FO5: HealthAeaName: | GJ5: HealthAeaName: | HE5: HealthAeaName: | HZ5: HealthAeaName: | IU5: HealthAeaName: | JP5: HealthAeaName: | KK5: HealthAeaName: | LF5: HealthAeaName: | MA5: HealthAeaName: | MV5: HealthAeaName: | NQ5: HealthAeaName: | OL5: HealthAeaName: | PG5: HealthAeaName: | QB5: HealthAeaName: | QW5: HealthAeaName: | RR5: HealthAeaName: | SM5: HealthAeaName: | TH5: HealthAeaName: | UC5: HealthAeaName: | UX5: HealthAeaName: | VS5: HealthAeaName: | WN5: HealthAeaName:
C6: E.g.2 Obesity | D6: =C6&"," & "Evidence summary" -> E.g.2 Obesity,Evidence summary | X6: E.g.1 Smoking/Tobacco | Y6: =X6&"," & "Evidence summary" -> E.g.1 Smoking/Tobacco,Evidence summary | AT6: =AS6&"," & "Evidence summary" -> ,Evidence summary | BO6: =BN6&"," & "Evidence summary" -> ,Evidence summary | CJ6: =CI6&"," & "Evidence summary" -> ,Evidence summary | DE6: =DD6&"," & "Evidence summary" -> ,Evidence summary | DZ6: =DY6&"," & "Evidence summary" -> ,Evidence summary | EU6: =ET6&"," & "Evidence summary" -> ,Evidence summary | FP6: =FO6&"," & "Evidence summary" -> ,Evidence summary | GK6: =GJ6&"," & "Evidence summary" -> ,Evidence summary | HF6: =HE6&"," & "Evidence summary" -> ,Evidence summary | IA6: =HZ6&"," & "Evidence summary" -> ,Evidence summary | IV6: =IU6&"," & "Evidence summary" -> ,Evidence summary | JQ6: =JP6&"," & "Evidence summary" -> ,Evidence summary | KL6: =KK6&"," & "Evidence summary" -> ,Evidence summary | LG6: =LF6&"," & "Evidence summary" -> ,Evidence summary | MB6: =MA6&"," & "Evidence summary" -> ,Evidence summary | MW6: =MV6&"," & "Evidence summary" -> ,Evidence summary | NR6: =NQ6&"," & "Evidence summary" -> ,Evidence summary | OM6: =OL6&"," & "Evidence summary" -> ,Evidence summary | PH6: =PG6&"," & "Evidence summary" -> ,Evidence summary | QC6: =QB6&"," & "Evidence summary" -> ,Evidence summary | QX6: =QW6&"," & "Evidence summary" -> ,Evidence summary | RS6: =RR6&"," & "Evidence summary" -> ,Evidence summary | SN6: =SM6&"," & "Evidence summary" -> ,Evidence summary | TI6: =TH6&"," & "Evidence summary" -> ,Evidence summary | UD6: =UC6&"," & "Evidence summary" -> ,Evidence summary | UY6: =UX6&"," & "Evidence summary" -> ,Evidence summary | VT6: =VS6&"," & "Evidence summary" -> ,Evidence summary | WO6: =WN6&"," & "Evidence summary" -> ,Evidence summary
B7: Start | W7: Start | AR7: Start | BM7: Start | CH7: Start | DC7: Start | DX7: Start | ES7: Start | FN7: Start | GI7: Start | HD7: Start | HY7: Start | IT7: Start | JO7: Start | KJ7: Start | LE7: Start | LZ7: Start | MU7: Start | NP7: Start | OK7: Start | PF7: Start | QA7: Start | QV7: Start | RQ7: Start | SL7: Start | TG7: Start | UB7: Start | UW7: Start | VR7: Start | WM7: Start
D8: Evidence summary | Y8: Evidence summary | AT8: Evidence summary | BO8: Evidence summary | CJ8: Evidence summary | DE8: Evidence summary | DZ8: Evidence summary | EU8: Evidence summary | FP8: Evidence summary | GK8: Evidence summary | HF8: Evidence summary | IA8: Evidence summary | IV8: Evidence summary | JQ8: Evidence summary | KL8: Evidence summary | LG8: Evidence summary | MB8: Evidence summary | MW8: Evidence summary | NR8: Evidence summary | OM8: Evidence summary | PH8: Evidence summary | QC8: Evidence summary | QX8: Evidence summary | RS8: Evidence summary | SN8: Evidence summary | TI8: Evidence summary | UD8: Evidence summary | UY8: Evidence summary | VT8: Evidence summary | WO8: Evidence summary
D11: Background information and evidence | Y11: Background information and evidence | AT11: Background information and evidence | BO11: Background information and evidence | CJ11: Background information and evidence | DE11: Background information and evidence | DZ11: Background information and evidence | EU11: Background information and evidence | FP11: Background information and evidence | GK11: Background information and evidence | HF11: Background information and evidence | IA11: Background information and evidence | IV11: Background information and evidence | JQ11: Background information and evidence | KL11: Background information and evidence | LG11: Background information and evidence | MB11: Background information and evidence | MW11: Background information and evidence | NR11: Background information and evidence | OM11: Background information and evidence | PH11: Background information and evidence | QC11: Background information and evidence | QX11: Background information and evidence | RS11: Background information and evidence | SN11: Background information and evidence | TI11: Background information and evidence | UD11: Background information and evidence | UY11: Background information and evidence | VT11: Background information and evidence | WO11: Background information and evidence
T218: End | AO218: End | BJ218: End | CE218: End | CZ218: End | DU218: End | EP218: End | FK218: End | GF218: End | HA218: End | HV218: End | IQ218: End | JL218: End | KG218: End | LB218: End | LW218: End | MR218: End | NM218: End | OH218: End | PC218: End | PX218: End | QS218: End | RN218: End | SI218: End | TD218: End | TY218: End | UT218: End | VO218: End | WJ218: End | XE218: End
B219: End | W219: End | AR219: End | BM219: End | CH219: End | DC219: End | DX219: End | ES219: End | FN219: End | GI219: End | HD219: End | HY219: End | IT219: End | JO219: End | KJ219: End | LE219: End | LZ219: End | MU219: End | NP219: End | OK219: End | PF219: End | QA219: End | QV219: End | RQ219: End | SL219: End | TG219: End | UB219: End | UW219: End | VR219: End | WM219: End

Sheet CurrentEvidence_Save (hidden)
C3: HealthareaIndex: | X3: HealthareaIndex: | AS3: HealthareaIndex: | BN3: HealthareaIndex: | CI3: HealthareaIndex: | DD3: HealthareaIndex: | DY3: HealthareaIndex: | ET3: HealthareaIndex: | FO3: HealthareaIndex: | GJ3: HealthareaIndex: | HE3: HealthareaIndex: | HZ3: HealthareaIndex: | IU3: HealthareaIndex: | JP3: HealthareaIndex: | KK3: HealthareaIndex: | LF3: HealthareaIndex: | MA3: HealthareaIndex: | MV3: HealthareaIndex: | NQ3: HealthareaIndex: | OL3: HealthareaIndex: | PG3: HealthareaIndex: | QB3: HealthareaIndex: | QW3: HealthareaIndex: | RR3: HealthareaIndex: | SM3: HealthareaIndex: | TH3: HealthareaIndex: | UC3: HealthareaIndex: | UX3: HealthareaIndex: | VS3: HealthareaIndex: | WN3: HealthareaIndex:
C4: 1 | X4: 2 | AS4: 3 | BN4: 4 | CI4: 5 | DD4: 6 | DY4: 7 | ET4: 8 | FO4: 9 | GJ4: 10 | HE4: 11 | HZ4: 12 | IU4: 13 | JP4: 14 | KK4: 15 | LF4: 16 | MA4: 17 | MV4: 18 | NQ4: 19 | OL4: 20 | PG4: 21 | QB4: 22 | QW4: 23 | RR4: 24 | SM4: 25 | TH4: 26 | UC4: 27 | UX4: 28 | VS4: 29 | WN4: 30
C5: HealthAeaName: | X5: HealthAeaName: | AS5: HealthAeaName: | BN5: HealthAeaName: | CI5: HealthAeaName: | DD5: HealthAeaName: | DY5: HealthAeaName: | ET5: HealthAeaName: | FO5: HealthAeaName: | GJ5: HealthAeaName: | HE5: HealthAeaName: | HZ5: HealthAeaName: | IU5: HealthAeaName: | JP5: HealthAeaName: | KK5: HealthAeaName: | LF5: HealthAeaName: | MA5: HealthAeaName: | MV5: HealthAeaName: | NQ5: HealthAeaName: | OL5: HealthAeaName: | PG5: HealthAeaName: | QB5: HealthAeaName: | QW5: HealthAeaName: | RR5: HealthAeaName: | SM5: HealthAeaName: | TH5: HealthAeaName: | UC5: HealthAeaName: | UX5: HealthAeaName: | VS5: HealthAeaName: | WN5: HealthAeaName:
C6: E.g.2 Obesity | D6: =C6&",Evidence summary" -> E.g.2 Obesity,Evidence summary | Y6: =X6&",Evidence summary" -> ,Evidence summary | AT6: =AS6&",Evidence summary" -> ,Evidence summary | BO6: =BN6&",Evidence summary" -> ,Evidence summary | CJ6: =CI6&",Evidence summary" -> ,Evidence summary | DE6: =DD6&",Evidence summary" -> ,Evidence summary | DZ6: =DY6&",Evidence summary" -> ,Evidence summary | EU6: =ET6&",Evidence summary" -> ,Evidence summary | FP6: =FO6&",Evidence summary" -> ,Evidence summary | GK6: =GJ6&",Evidence summary" -> ,Evidence summary | HF6: =HE6&",Evidence summary" -> ,Evidence summary | IA6: =HZ6&",Evidence summary" -> ,Evidence summary | IV6: =IU6&",Evidence summary" -> ,Evidence summary | JQ6: =JP6&",Evidence summary" -> ,Evidence summary | KL6: =KK6&",Evidence summary" -> ,Evidence summary | LG6: =LF6&",Evidence summary" -> ,Evidence summary | MB6: =MA6&",Evidence summary" -> ,Evidence summary | MW6: =MV6&",Evidence summary" -> ,Evidence summary | NR6: =NQ6&",Evidence summary" -> ,Evidence summary | OM6: =OL6&",Evidence summary" -> ,Evidence summary | PH6: =PG6&",Evidence summary" -> ,Evidence summary | QC6: =QB6&",Evidence summary" -> ,Evidence summary | QX6: =QW6&",Evidence summary" -> ,Evidence summary | RS6: =RR6&",Evidence summary" -> ,Evidence summary | SN6: =SM6&",Evidence summary" -> ,Evidence summary | TI6: =TH6&",Evidence summary" -> ,Evidence summary | UD6: =UC6&",Evidence summary" -> ,Evidence summary | UY6: =UX6&",Evidence summary" -> ,Evidence summary | VT6: =VS6&",Evidence summary" -> ,Evidence summary | WO6: =WN6&",Evidence summary" -> ,Evidence summary
B7: Start | W7: Start | AR7: Start | BM7: Start | CH7: Start | DC7: Start | DX7: Start | ES7: Start | FN7: Start | GI7: Start | HD7: Start | HY7: Start | IT7: Start | JO7: Start | KJ7: Start | LE7: Start | LZ7: Start | MU7: Start | NP7: Start | OK7: Start | PF7: Start | QA7: Start | QV7: Start | RQ7: Start | SL7: Start | TG7: Start | UB7: Start | UW7: Start | VR7: Start | WM7: Start
D8: Evidence summary | Y8: Evidence summary | AT8: Evidence summary | BO8: Evidence summary | CJ8: Evidence summary | DE8: Evidence summary | DZ8: Evidence summary | EU8: Evidence summary | FP8: Evidence summary | GK8: Evidence summary | HF8: Evidence summary | IA8: Evidence summary | IV8: Evidence summary | JQ8: Evidence summary | KL8: Evidence summary | LG8: Evidence summary | MB8: Evidence summary | MW8: Evidence summary | NR8: Evidence summary | OM8: Evidence summary | PH8: Evidence summary | QC8: Evidence summary | QX8: Evidence summary | RS8: Evidence summary | SN8: Evidence summary | TI8: Evidence summary | UD8: Evidence summary | UY8: Evidence summary | VT8: Evidence summary | WO8: Evidence summary
D11: Background information and evidence | Y11: Background information and evidence | AT11: Background information and evidence | BO11: Background information and evidence | CJ11: Background information and evidence | DE11: Background information and evidence | DZ11: Background information and evidence | EU11: Background information and evidence | FP11: Background information and evidence | GK11: Background information and evidence | HF11: Background information and evidence | IA11: Background information and evidence | IV11: Background information and evidence | JQ11: Background information and evidence | KL11: Background information and evidence | LG11: Background information and evidence | MB11: Background information and evidence | MW11: Background information and evidence | NR11: Background information and evidence | OM11: Background information and evidence | PH11: Background information and evidence | QC11: Background information and evidence | QX11: Background information and evidence | RS11: Background information and evidence | SN11: Background information and evidence | TI11: Background information and evidence | UD11: Background information and evidence | UY11: Background information and evidence | VT11: Background information and evidence | WO11: Background information and evidence
T218: End | AO218: End | BJ218: End | CE218: End | CZ218: End | DU218: End | EP218: End | FK218: End | GF218: End | HA218: End | HV218: End | IQ218: End | JL218: End | KG218: End | LB218: End | LW218: End | MR218: End | NM218: End | OH218: End | PC218: End | PX218: End | QS218: End | RN218: End | SI218: End | TD218: End | TY218: End | UT218: End | VO218: End | WJ218: End | XE218: End
B219: End | W219: End | AR219: End | BM219: End | CH219: End | DC219: End | DX219: End | ES219: End | FN219: End | GI219: End | HD219: End | HY219: End | IT219: End | JO219: End | KJ219: End | LE219: End | LZ219: End | MU219: End | NP219: End | OK219: End | PF219: End | QA219: End | QV219: End | RQ219: End | SL219: End | TG219: End | UB219: End | UW219: End | VR219: End | WM219: End

Sheet CurrentScores
G10: After collecting the evidence for each health area, stakeholders will get back together in the third workshop to finish the Prioritise step, and assign current scores to the programme areas. The following analysis provides an understanding of what is currently being achieved in each assessed area. There is a table below for capturing scores and a field for recording the rationale behind the scores. How to score current performance? Each topic area is assessed against 3 measures: a. Current investments – amount of money which is currently spent on each programme relative to other comparable local authorities. b. Current outcomes – outcomes resulting from each programme relative to other comparable local authorities. c. Feasibility – the feasibility of reaching the potential of the programme. Step 1: Score current status from 1 to 5 a. For the investments, 1 represents very high relative investment, and 5 very relative low investment. b. For the outcomes, 1 represents very poor relative outcomes, and 5 very good relative outcomes. c. These two scores are then combined, so a score of 2 is the lowest possible current score, while 10 is the highest. Step 2: Score the feasibility of reaching the potential of the programme area (scoring 1-5). The feasibility score is stand alone, because while investment and outcome scores assess current status, feasibility measures the potential of achieving a future state. This is a subjective judgement, but areas to consider include: • Current context (e.g. demographic or epidemiological factors that enable/inhibit better outcomes in this topic area) • The extent to which investment would have to shift from currently funded programmes to new programmes • The extent to which increased funding in current programmes would help achieve the potential state
G30: Scoring methodology:
H31: Investment | J31: Very High | K31: High | L31: Similar | M31: Low | N31: Very Low
H32: Outcome | J32: Very Poor | K32: Poor | L32: Similar | M32: Good | N32: Very Good
H33: Feasibility | J33: Very Low | K33: Low | L33: Similar | M33: High | N33: Very High
H34: Current scores | J34: 1 | K34: 2 | L34: 3 | M34: 4 | N34: 5
G38: Current scoring
H40: Legend:
H41: Input cells | J41: *Programme areas are added in the Define Scope section.The table will adjust accordingly.
H42: HealthAreas_Count:
H43: =IFERROR(MAX(DefineScope!$W$82:$W$113),"") -> 3 | J43: 1 | K43: =J43+1 -> 2 | L43: =K43+1 -> 3 | M43: 4 | N43: 5 | O43: 6 | P43: 7 | Q43: 8 | R43: 9 | S43: 10 | T43: 11 | U43: 12 | V43: 13 | W43: 14 | X43: 15 | Y43: 16 | Z43: 17 | AA43: 18 | AB43: 19 | AC43: 20 | AD43: 21 | AE43: 22 | AF43: 23 | AG43: 24 | AH43: 25 | AI43: 26 | AJ43: 27 | AK43: 28 | AL43: 29 | AM43: 30
J44: Assign scores (between 1 to 5)
H45: Current scores | J45: =IFERROR(INDEX(Tool_Selections!$I$8:$I$38,MATCH(J$43,Tool_Selections!$H$8:$H$38,0)),"") -> E.g.1 Smoking/Tobacco | K45: =IFERROR(INDEX(Tool_Selections!$I$8:$I$38,MATCH(K$43,Tool_Selections!$H$8:$H$38,0)),"") -> E.g.2 Obesity | L45: =IFERROR(INDEX(Tool_Selections!$I$8:$I$38,MATCH(L$43,Tool_Selections!$H$8:$H$38,0)),"") -> E.g.3 Sexual Health Services | M45: =IFERROR(INDEX(Tool_Selections!$I$8:$I$38,MATCH(M$43,Tool_Selections!$H$8:$H$38,0)),"") ->  | N45: =IFERROR(INDEX(Tool_Selections!$I$8:$I$38,MATCH(N$43,Tool_Selections!$H$8:$H$38,0)),"") ->  | O45: =IFERROR(INDEX(Tool_Selections!$I$8:$I$38,MATCH(O$43,Tool_Selections!$H$8:$H$38,0)),"") ->  | P45: =IFERROR(INDEX(Tool_Selections!$I$8:$I$38,MATCH(P$43,Tool_Selections!$H$8:$H$38,0)),"") ->  | Q45: =IFERROR(INDEX(Tool_Selections!$I$8:$I$38,MATCH(Q$43,Tool_Selections!$H$8:$H$38,0)),"") ->  | R45: =IFERROR(INDEX(Tool_Selections!$I$8:$I$38,MATCH(R$43,Tool_Selections!$H$8:$H$38,0)),"") ->  | S45: =IFERROR(INDEX(Tool_Selections!$I$8:$I$38,MATCH(S$43,Tool_Selections!$H$8:$H$38,0)),"") ->  | T45: =IFERROR(INDEX(Tool_Selections!$I$8:$I$38,MATCH(T$43,Tool_Selections!$H$8:$H$38,0)),"") ->  | U45: =IFERROR(INDEX(Tool_Selections!$I$8:$I$38,MATCH(U$43,Tool_Selections!$H$8:$H$38,0)),"") ->  | V45: =IFERROR(INDEX(Tool_Selections!$I$8:$I$38,MATCH(V$43,Tool_Selections!$H$8:$H$38,0)),"") ->  | W45: =IFERROR(INDEX(Tool_Selections!$I$8:$I$38,MATCH(W$43,Tool_Selections!$H$8:$H$38,0)),"") ->  | X45: =IFERROR(INDEX(Tool_Selections!$I$8:$I$38,MATCH(X$43,Tool_Selections!$H$8:$H$38,0)),"") ->  | Y45: =IFERROR(INDEX(Tool_Selections!$I$8:$I$38,MATCH(Y$43,Tool_Selections!$H$8:$H$38,0)),"") ->  | Z45: =IFERROR(INDEX(Tool_Selections!$I$8:$I$38,MATCH(Z$43,Tool_Selections!$H$8:$H$38,0)),"") ->  | AA45: =IFERROR(INDEX(Tool_Selections!$I$8:$I$38,MATCH(AA$43,Tool_Selections!$H$8:$H$38,0)),"") ->  | AB45: =IFERROR(INDEX(Tool_Selections!$I$8:$I$38,MATCH(AB$43,Tool_Selections!$H$8:$H$38,0)),"") ->  | AC45: =IFERROR(INDEX(Tool_Selections!$I$8:$I$38,MATCH(AC$43,Tool_Selections!$H$8:$H$38,0)),"") ->  | AD45: =IFERROR(INDEX(Tool_Selections!$I$8:$I$38,MATCH(AD$43,Tool_Selections!$H$8:$H$38,0)),"") ->  | AE45: =IFERROR(INDEX(Tool_Selections!$I$8:$I$38,MATCH(AE$43,Tool_Selections!$H$8:$H$38,0)),"") ->  | AF45: =IFERROR(INDEX(Tool_Selections!$I$8:$I$38,MATCH(AF$43,Tool_Selections!$H$8:$H$38,0)),"") ->  | AG45: =IFERROR(INDEX(Tool_Selections!$I$8:$I$38,MATCH(AG$43,Tool_Selections!$H$8:$H$38,0)),"") ->  | AH45: =IFERROR(INDEX(Tool_Selections!$I$8:$I$38,MATCH(AH$43,Tool_Selections!$H$8:$H$38,0)),"") ->  | AI45: =IFERROR(INDEX(Tool_Selections!$I$8:$I$38,MATCH(AI$43,Tool_Selections!$H$8:$H$38,0)),"") ->  | AJ45: =IFERROR(INDEX(Tool_Selections!$I$8:$I$38,MATCH(AJ$43,Tool_Selections!$H$8:$H$38,0)),"") ->  | AK45: =IFERROR(INDEX(Tool_Selections!$I$8:$I$38,MATCH(AK$43,Tool_Selections!$H$8:$H$38,0)),"") ->  | AL45: =IFERROR(INDEX(Tool_Selections!$I$8:$I$38,MATCH(AL$43,Tool_Selections!$H$8:$H$38,0)),"") ->  | AM45: =IFERROR(INDEX(Tool_Selections!$I$8:$I$38,MATCH(AM$43,Tool_Selections!$H$8:$H$38,0)),"") ->  | AP45: =IFERROR(INDEX(Tool_Selections!$I$8:$I$38,MATCH(AP$43,Tool_Selections!$H$8:$H$38,0)),"") ->  | AQ45: =IFERROR(INDEX(Tool_Selections!$I$8:$I$38,MATCH(AQ$43,Tool_Selections!$H$8:$H$38,0)),"") ->  | AR45: =IFERROR(INDEX(Tool_Selections!$I$8:$I$38,MATCH(AR$43,Tool_Selections!$H$8:$H$38,0)),"") ->  | AS45: =IFERROR(INDEX(Tool_Selections!$I$8:$I$38,MATCH(AS$43,Tool_Selections!$H$8:$H$38,0)),"") ->  | AT45: =IFERROR(INDEX(Tool_Selections!$I$8:$I$38,MATCH(AT$43,Tool_Selections!$H$8:$H$38,0)),"") ->  | AU45: =IFERROR(INDEX(Tool_Selections!$I$8:$I$38,MATCH(AU$43,Tool_Selections!$H$8:$H$38,0)),"") ->  | AV45: =IFERROR(INDEX(Tool_Selections!$I$8:$I$38,MATCH(AV$43,Tool_Selections!$H$8:$H$38,0)),"") ->  | AW45: =IFERROR(INDEX(Tool_Selections!$I$8:$I$38,MATCH(AW$43,Tool_Selections!$H$8:$H$38,0)),"") ->  | AX45: =IFERROR(INDEX(Tool_Selections!$I$8:$I$38,MATCH(AX$43,Tool_Selections!$H$8:$H$38,0)),"") ->  | AY45: =IFERROR(INDEX(Tool_Selections!$I$8:$I$38,MATCH(AY$43,Tool_Selections!$H$8:$H$38,0)),"") ->  | AZ45: =IFERROR(INDEX(Tool_Selections!$I$8:$I$38,MATCH(AZ$43,Tool_Selections!$H$8:$H$38,0)),"") -> 
H47: Investment score
H48: Outcomes score
H49: Total | J49: =SUM(J47:J48) -> 0 | K49: =SUM(K47:K48) -> 0 | L49: =SUM(L47:L48) -> 0 | M49: =SUM(M47:M48) -> 0 | N49: =SUM(N47:N48) -> 0 | O49: =SUM(O47:O48) -> 0 | P49: 0 | Q49: 0 | R49: 0 | S49: =SUM(S47:S48) -> 0 | T49: 0 | U49: 0 | V49: 0 | W49: 0 | X49: 0 | Y49: 0 | Z49: 0 | AA49: 0 | AB49: 0 | AC49: 0 | AD49: 0 | AE49: 0 | AF49: 0 | AG49: 0 | AH49: 0 | AI49: 0 | AJ49: 0 | AK49: 0 | AL49: 0 | AM49: =SUM(AM47:AM48) -> 0
H50: Rank | J50: =RANK(J49,$J$49:$AM$49) -> 1 | K50: 1 | L50: 1 | M50: 1 | N50: 1 | O50: 1 | P50: 1 | Q50: 1 | R50: 1 | S50: 1 | T50: 1 | U50: 1 | V50: 1 | W50: 1 | X50: 1 | Y50: 1 | Z50: 1 | AA50: 1 | AB50: 1 | AC50: 1 | AD50: 1 | AE50: 1 | AF50: 1 | AG50: 1 | AH50: 1 | AI50: 1 | AJ50: 1 | AK50: 1 | AL50: 1 | AM50: 1
H53: Feasibility score
H60: Rationale
H61: Record in the box below the rationale behind the scores.

Sheet RecommendGuidance
D10: The Recommend stage of the process links the results of the prioritisation analysis to the budget recommendations. At this stage, you are able to triangulate the findings from the analysis, by considering: 1) Potential scores (and the context around them) 2) Current scores and feasibility scores (and the context around them) 3) The current budget broken down across programmes This triangulation allows you to recommend increasing, decreasing or maintaining the same levels of investments for each programme area (direction of travel). Note that the aim of this stage is not to recommend specific programme budgets. It is important to consider the context in which you make prioritisation decisions and incorporate other factors that could impact the investment/disinvestment decision (e.g. strategic pressures, delivery issues, existing political priorities, etc.) in your decision making. There are three elements to the Recommend stage. 1) Provide rationale - allows you to view a summary of the prioritisation stage, make direction of travel recommendations and capture the rationale for doing so. 2) Model scenarios and Compare scenarios - an optional stage that allows you to compare various budget recommendations. 3) Discuss process - an optional stage to critique the prioritisation process, the outcomes and recommendations, and suggest improvements.

Sheet ProvideRationale
D10: Based on the scores calculated in the analysis undertaken in the Prioritise step (and discussions if you’ve had a fourth workshop to consider the results), recommend the direction of travel for investment in each programme area (increase, decrease, no change). Make recommendations in the yellow field under Recommendations (select Increase, Decrease or No change from the dropdown), and capture the rationale in the fields below the summary table organised by topic area.
E16: Legend:
E17: Input cells
E18: HealthAreas_Count: | H18: Hide | K18: Hide | L18: Hide | P18: Hide
E19: =IFERROR(MAX(DefineScope!$W$82:$W$113),"") -> 3
F20: POTENTIAL | K20: CURRENT | M20: CURRENT | S20: CURRENT SPEND | T20: RECOMMENDATIONS
D21: Index | E21: Programme area | F21: Potential score | G21: Rank | H21: Evi Exists | I21: Evidence summary (Double-click on the cells to view the full evidence summary) | K21: Investment score | L21: Outcomes score | M21: Current score | N21: Rank | O21: Feasibility Score | P21: Evi exists | Q21: Evidence summary (Double-click on the cells to view the full evidence summary) | S21: £ | T21: Spend recommendation (Select the recommendation from the dropdown) | U21: Spend direction
D22: 1 | E22: =IFERROR(INDEX(Tool_Selections!$I$8:$I$38,MATCH($D22,Tool_Selections!$H$8:$H$38,0)),"") -> E.g.1 Smoking/Tobacco | F22: =IF(E22="","",IFERROR(INDEX(PotentialScores!$AX$220:$CA$220,MATCH(E22,PotentialScores!$AX$197:$CA$197,0)),"")) -> 54 | G22: =IF(E22="","",IF(F22="","",RANK(F22,$F$22:$F$51))) -> 1 | H22: =IFERROR(MATCH(E22,PotentialEvi_Save_HA_Row,0),"") -> 24 | I22: =IFERROR(IF(E22="","",INDEX(PotentialEvi_Save_ES_Row,MATCH(E22&","&"Evidence summary",PotentialEvi_Save_HA_Row,0))),"") -> 0 | J22: Ø | K22: =IF($E22="","",IFERROR(INDEX(CurrentScores_tbl_InvestmentScores,MATCH($E22,CurrentScores_tbl_HealthAreas,0)),0)) -> 0 | L22: =IF($E22="","",IFERROR(INDEX(CurrentScores_tbl_OutcomesScores,MATCH($E22,CurrentScores_tbl_HealthAreas,0)),0)) -> 0 | M22: =IF(AND(K22="",L22=""),"",SUM(K22:L22)) -> 0 | N22: =IF(E22="","",IF(M22="","",RANK(M22,$M$22:$M$51))) -> 1 | O22: =IF($E22="","",IFERROR(INDEX(CurrentScores_tbl_FeasibilityScores,MATCH($E22,CurrentScores_tbl_HealthAreas,0)),0)) -> 0 | P22: =IFERROR(MATCH(E22,CurrentEvi_Save_HA_Row,0),"") ->  | Q22: =IFERROR(IF(E22="","",INDEX(CurrentEvi_Save_ES_Row,MATCH(E22&","&"Evidence summary",CurrentEvi_Save_HA_Row,0))),"") ->  | R22: Ø | S22: =IFERROR(INDEX(DefineScope!$J$83:$J$112,MATCH(D22,DefineScope!$W$83:$W$112,0)),"") -> 100000 | T22: Increase | U22: =IF(T22="Increase",3,IF(T22="Decrease",1,IF(T22="No change",2,""))) -> 3
D23: =D22+1 -> 2 | E23: =IFERROR(INDEX(Tool_Selections!$I$8:$I$38,MATCH($D23,Tool_Selections!$H$8:$H$38,0)),"") -> E.g.2 Obesity | F23: =IF(E23="","",IFERROR(INDEX(PotentialScores!$AX$220:$CA$220,MATCH(E23,PotentialScores!$AX$197:$CA$197,0)),"")) -> 26 | G23: =IF(E23="","",IF(F23="","",RANK(F23,$F$22:$F$51))) -> 3 | H23: 3 | I23: 0 | J23: Ø | K23: 0 | L23: 0 | M23: =IF(AND(K23="",L23=""),"",SUM(K23:L23)) -> 0 | N23: =IF(E23="","",IF(M23="","",RANK(M23,$M$22:$M$51))) -> 1 | O23: =IF($E23="","",IFERROR(INDEX(CurrentScores_tbl_FeasibilityScores,MATCH($E23,CurrentScores_tbl_HealthAreas,0)),0)) -> 0 | P23: 3 | Q23: 0 | R23: Ø | S23: =IFERROR(INDEX(DefineScope!$J$83:$J$112,MATCH(D23,DefineScope!$W$83:$W$112,0)),"") -> 200000 | T23: Decrease | U23: =IF(T23="Increase",3,IF(T23="Decrease",1,IF(T23="No change",2,""))) -> 1
D24: =D23+1 -> 3 | E24: =IFERROR(INDEX(Tool_Selections!$I$8:$I$38,MATCH($D24,Tool_Selections!$H$8:$H$38,0)),"") -> E.g.3 Sexual Health Services | F24: =IF(E24="","",IFERROR(INDEX(PotentialScores!$AX$220:$CA$220,MATCH(E24,PotentialScores!$AX$197:$CA$197,0)),"")) -> 48 | G24: 2 | J24: Ø | K24: 0 | L24: 0 | M24: =IF(AND(K24="",L24=""),"",SUM(K24:L24)) -> 0 | N24: =IF(E24="","",IF(M24="","",RANK(M24,$M$22:$M$51))) -> 1 | O24: 0 | R24: Ø | S24: =IFERROR(INDEX(DefineScope!$J$83:$J$112,MATCH(D24,DefineScope!$W$83:$W$112,0)),"") -> 300000 | T24: No change | U24: 2
D25: 4 | E25: =IFERROR(INDEX(Tool_Selections!$I$8:$I$38,MATCH($D25,Tool_Selections!$H$8:$H$38,0)),"") ->  | F25: =IF(E25="","",IFERROR(INDEX(PotentialScores!$AX$220:$CA$220,MATCH(E25,PotentialScores!$AX$197:$CA$197,0)),"")) ->  | J25: Ø | R25: Ø | S25: =IFERROR(INDEX(DefineScope!$J$83:$J$112,MATCH(D25,DefineScope!$W$83:$W$112,0)),"") -> 
D26: 5 | E26: =IFERROR(INDEX(Tool_Selections!$I$8:$I$38,MATCH($D26,Tool_Selections!$H$8:$H$38,0)),"") ->  | F26: =IF(E26="","",IFERROR(INDEX(PotentialScores!$AX$220:$CA$220,MATCH(E26,PotentialScores!$AX$197:$CA$197,0)),"")) ->  | J26: Ø | R26: Ø | S26: =IFERROR(INDEX(DefineScope!$J$83:$J$112,MATCH(D26,DefineScope!$W$83:$W$112,0)),"") -> 
D27: 6 | E27: =IFERROR(INDEX(Tool_Selections!$I$8:$I$38,MATCH($D27,Tool_Selections!$H$8:$H$38,0)),"") ->  | F27: =IF(E27="","",IFERROR(INDEX(PotentialScores!$AX$220:$CA$220,MATCH(E27,PotentialScores!$AX$197:$CA$197,0)),"")) ->  | J27: Ø | R27: Ø | S27: =IFERROR(INDEX(DefineScope!$J$83:$J$112,MATCH(D27,DefineScope!$W$83:$W$112,0)),"") -> 
D28: 7 | E28: =IFERROR(INDEX(Tool_Selections!$I$8:$I$38,MATCH($D28,Tool_Selections!$H$8:$H$38,0)),"") ->  | F28: =IF(E28="","",IFERROR(INDEX(PotentialScores!$AX$220:$CA$220,MATCH(E28,PotentialScores!$AX$197:$CA$197,0)),"")) ->  | J28: Ø | R28: Ø | S28: =IFERROR(INDEX(DefineScope!$J$83:$J$112,MATCH(D28,DefineScope!$W$83:$W$112,0)),"") -> 
D29: 8 | E29: =IFERROR(INDEX(Tool_Selections!$I$8:$I$38,MATCH($D29,Tool_Selections!$H$8:$H$38,0)),"") ->  | F29: =IF(E29="","",IFERROR(INDEX(PotentialScores!$AX$220:$CA$220,MATCH(E29,PotentialScores!$AX$197:$CA$197,0)),"")) ->  | J29: Ø | R29: Ø | S29: =IFERROR(INDEX(DefineScope!$J$83:$J$112,MATCH(D29,DefineScope!$W$83:$W$112,0)),"") -> 
D30: 9 | E30: =IFERROR(INDEX(Tool_Selections!$I$8:$I$38,MATCH($D30,Tool_Selections!$H$8:$H$38,0)),"") ->  | F30: =IF(E30="","",IFERROR(INDEX(PotentialScores!$AX$220:$CA$220,MATCH(E30,PotentialScores!$AX$197:$CA$197,0)),"")) ->  | J30: Ø | R30: Ø | S30: =IFERROR(INDEX(DefineScope!$J$83:$J$112,MATCH(D30,DefineScope!$W$83:$W$112,0)),"") -> 
D31: 10 | E31: =IFERROR(INDEX(Tool_Selections!$I$8:$I$38,MATCH($D31,Tool_Selections!$H$8:$H$38,0)),"") ->  | F31: =IF(E31="","",IFERROR(INDEX(PotentialScores!$AX$220:$CA$220,MATCH(E31,PotentialScores!$AX$197:$CA$197,0)),"")) ->  | J31: Ø | R31: Ø | S31: =IFERROR(INDEX(DefineScope!$J$83:$J$112,MATCH(D31,DefineScope!$W$83:$W$112,0)),"") -> 
D32: =D31+1 -> 11 | E32: =IFERROR(INDEX(Tool_Selections!$I$8:$I$38,MATCH($D32,Tool_Selections!$H$8:$H$38,0)),"") ->  | F32: =IF(E32="","",IFERROR(INDEX(PotentialScores!$AX$220:$CA$220,MATCH(E32,PotentialScores!$AX$197:$CA$197,0)),"")) ->  | J32: Ø | R32: Ø | S32: =IFERROR(INDEX(DefineScope!$J$83:$J$112,MATCH(D32,DefineScope!$W$83:$W$112,0)),"") -> 
D33: =D32+1 -> 12 | E33: =IFERROR(INDEX(Tool_Selections!$I$8:$I$38,MATCH($D33,Tool_Selections!$H$8:$H$38,0)),"") ->  | F33: =IF(E33="","",IFERROR(INDEX(PotentialScores!$AX$220:$CA$220,MATCH(E33,PotentialScores!$AX$197:$CA$197,0)),"")) ->  | J33: Ø | R33: Ø | S33: =IFERROR(INDEX(DefineScope!$J$83:$J$112,MATCH(D33,DefineScope!$W$83:$W$112,0)),"") -> 
D34: =D33+1 -> 13 | E34: =IFERROR(INDEX(Tool_Selections!$I$8:$I$38,MATCH($D34,Tool_Selections!$H$8:$H$38,0)),"") ->  | F34: =IF(E34="","",IFERROR(INDEX(PotentialScores!$AX$220:$CA$220,MATCH(E34,PotentialScores!$AX$197:$CA$197,0)),"")) ->  | J34: Ø | R34: Ø | S34: =IFERROR(INDEX(DefineScope!$J$83:$J$112,MATCH(D34,DefineScope!$W$83:$W$112,0)),"") -> 
D35: =D34+1 -> 14 | E35: =IFERROR(INDEX(Tool_Selections!$I$8:$I$38,MATCH($D35,Tool_Selections!$H$8:$H$38,0)),"") ->  | F35: =IF(E35="","",IFERROR(INDEX(PotentialScores!$AX$220:$CA$220,MATCH(E35,PotentialScores!$AX$197:$CA$197,0)),"")) ->  | J35: Ø | R35: Ø | S35: =IFERROR(INDEX(DefineScope!$J$83:$J$112,MATCH(D35,DefineScope!$W$83:$W$112,0)),"") -> 
D36: =D35+1 -> 15 | E36: =IFERROR(INDEX(Tool_Selections!$I$8:$I$38,MATCH($D36,Tool_Selections!$H$8:$H$38,0)),"") ->  | F36: =IF(E36="","",IFERROR(INDEX(PotentialScores!$AX$220:$CA$220,MATCH(E36,PotentialScores!$AX$197:$CA$197,0)),"")) ->  | J36: Ø | R36: Ø | S36: =IFERROR(INDEX(DefineScope!$J$83:$J$112,MATCH(D36,DefineScope!$W$83:$W$112,0)),"") -> 
D37: =D36+1 -> 16 | E37: =IFERROR(INDEX(Tool_Selections!$I$8:$I$38,MATCH($D37,Tool_Selections!$H$8:$H$38,0)),"") ->  | F37: =IF(E37="","",IFERROR(INDEX(PotentialScores!$AX$220:$CA$220,MATCH(E37,PotentialScores!$AX$197:$CA$197,0)),"")) ->  | J37: Ø | R37: Ø | S37: =IFERROR(INDEX(DefineScope!$J$83:$J$112,MATCH(D37,DefineScope!$W$83:$W$112,0)),"") -> 
D38: 17 | E38: =IFERROR(INDEX(Tool_Selections!$I$8:$I$38,MATCH($D38,Tool_Selections!$H$8:$H$38,0)),"") ->  | F38: =IF(E38="","",IFERROR(INDEX(PotentialScores!$AX$220:$CA$220,MATCH(E38,PotentialScores!$AX$197:$CA$197,0)),"")) ->  | J38: Ø | R38: Ø | S38: =IFERROR(INDEX(DefineScope!$J$83:$J$112,MATCH(D38,DefineScope!$W$83:$W$112,0)),"") -> 
A39: x | D39: 18 | E39: =IFERROR(INDEX(Tool_Selections!$I$8:$I$38,MATCH($D39,Tool_Selections!$H$8:$H$38,0)),"") ->  | F39: =IF(E39="","",IFERROR(INDEX(PotentialScores!$AX$220:$CA$220,MATCH(E39,PotentialScores!$AX$197:$CA$197,0)),"")) ->  | J39: Ø | R39: Ø | S39: =IFERROR(INDEX(DefineScope!$J$83:$J$112,MATCH(D39,DefineScope!$W$83:$W$112,0)),"") -> 
D40: 19 | E40: =IFERROR(INDEX(Tool_Selections!$I$8:$I$38,MATCH($D40,Tool_Selections!$H$8:$H$38,0)),"") ->  | F40: =IF(E40="","",IFERROR(INDEX(PotentialScores!$AX$220:$CA$220,MATCH(E40,PotentialScores!$AX$197:$CA$197,0)),"")) ->  | J40: Ø | R40: Ø | S40: =IFERROR(INDEX(DefineScope!$J$83:$J$112,MATCH(D40,DefineScope!$W$83:$W$112,0)),"") -> 
D41: 20 | E41: =IFERROR(INDEX(Tool_Selections!$I$8:$I$38,MATCH($D41,Tool_Selections!$H$8:$H$38,0)),"") ->  | F41: =IF(E41="","",IFERROR(INDEX(PotentialScores!$AX$220:$CA$220,MATCH(E41,PotentialScores!$AX$197:$CA$197,0)),"")) ->  | J41: Ø | R41: Ø | S41: =IFERROR(INDEX(DefineScope!$J$83:$J$112,MATCH(D41,DefineScope!$W$83:$W$112,0)),"") -> 
D42: 21 | E42: =IFERROR(INDEX(Tool_Selections!$I$8:$I$38,MATCH($D42,Tool_Selections!$H$8:$H$38,0)),"") ->  | F42: =IF(E42="","",IFERROR(INDEX(PotentialScores!$AX$220:$CA$220,MATCH(E42,PotentialScores!$AX$197:$CA$197,0)),"")) ->  | J42: Ø | R42: Ø | S42: =IFERROR(INDEX(DefineScope!$J$83:$J$112,MATCH(D42,DefineScope!$W$83:$W$112,0)),"") -> 
D43: 22 | E43: =IFERROR(INDEX(Tool_Selections!$I$8:$I$38,MATCH($D43,Tool_Selections!$H$8:$H$38,0)),"") ->  | F43: =IF(E43="","",IFERROR(INDEX(PotentialScores!$AX$220:$CA$220,MATCH(E43,PotentialScores!$AX$197:$CA$197,0)),"")) ->  | J43: Ø | R43: Ø | S43: =IFERROR(INDEX(DefineScope!$J$83:$J$112,MATCH(D43,DefineScope!$W$83:$W$112,0)),"") -> 
D44: 23 | E44: =IFERROR(INDEX(Tool_Selections!$I$8:$I$38,MATCH($D44,Tool_Selections!$H$8:$H$38,0)),"") ->  | F44: =IF(E44="","",IFERROR(INDEX(PotentialScores!$AX$220:$CA$220,MATCH(E44,PotentialScores!$AX$197:$CA$197,0)),"")) ->  | J44: Ø | R44: Ø | S44: =IFERROR(INDEX(DefineScope!$J$83:$J$112,MATCH(D44,DefineScope!$W$83:$W$112,0)),"") -> 
D45: 24 | E45: =IFERROR(INDEX(Tool_Selections!$I$8:$I$38,MATCH($D45,Tool_Selections!$H$8:$H$38,0)),"") ->  | F45: =IF(E45="","",IFERROR(INDEX(PotentialScores!$AX$220:$CA$220,MATCH(E45,PotentialScores!$AX$197:$CA$197,0)),"")) ->  | J45: Ø | R45: Ø | S45: =IFERROR(INDEX(DefineScope!$J$83:$J$112,MATCH(D45,DefineScope!$W$83:$W$112,0)),"") -> 
D46: 25 | E46: =IFERROR(INDEX(Tool_Selections!$I$8:$I$38,MATCH($D46,Tool_Selections!$H$8:$H$38,0)),"") ->  | F46: =IF(E46="","",IFERROR(INDEX(PotentialScores!$AX$220:$CA$220,MATCH(E46,PotentialScores!$AX$197:$CA$197,0)),"")) ->  | J46: Ø | R46: Ø | S46: =IFERROR(INDEX(DefineScope!$J$83:$J$112,MATCH(D46,DefineScope!$W$83:$W$112,0)),"") -> 
D47: 26 | E47: =IFERROR(INDEX(Tool_Selections!$I$8:$I$38,MATCH($D47,Tool_Selections!$H$8:$H$38,0)),"") ->  | F47: =IF(E47="","",IFERROR(INDEX(PotentialScores!$AX$220:$CA$220,MATCH(E47,PotentialScores!$AX$197:$CA$197,0)),"")) ->  | J47: Ø | R47: Ø | S47: =IFERROR(INDEX(DefineScope!$J$83:$J$112,MATCH(D47,DefineScope!$W$83:$W$112,0)),"") -> 
D48: 27 | E48: =IFERROR(INDEX(Tool_Selections!$I$8:$I$38,MATCH($D48,Tool_Selections!$H$8:$H$38,0)),"") ->  | F48: =IF(E48="","",IFERROR(INDEX(PotentialScores!$AX$220:$CA$220,MATCH(E48,PotentialScores!$AX$197:$CA$197,0)),"")) ->  | J48: Ø | R48: Ø | S48: =IFERROR(INDEX(DefineScope!$J$83:$J$112,MATCH(D48,DefineScope!$W$83:$W$112,0)),"") -> 
D49: 28 | E49: =IFERROR(INDEX(Tool_Selections!$I$8:$I$38,MATCH($D49,Tool_Selections!$H$8:$H$38,0)),"") ->  | F49: =IF(E49="","",IFERROR(INDEX(PotentialScores!$AX$220:$CA$220,MATCH(E49,PotentialScores!$AX$197:$CA$197,0)),"")) ->  | J49: Ø | R49: Ø | S49: =IFERROR(INDEX(DefineScope!$J$83:$J$112,MATCH(D49,DefineScope!$W$83:$W$112,0)),"") -> 
D50: 29 | E50: =IFERROR(INDEX(Tool_Selections!$I$8:$I$38,MATCH($D50,Tool_Selections!$H$8:$H$38,0)),"") ->  | F50: =IF(E50="","",IFERROR(INDEX(PotentialScores!$AX$220:$CA$220,MATCH(E50,PotentialScores!$AX$197:$CA$197,0)),"")) ->  | J50: Ø | R50: Ø | S50: =IFERROR(INDEX(DefineScope!$J$83:$J$112,MATCH(D50,DefineScope!$W$83:$W$112,0)),"") -> 
D51: 30 | E51: =IFERROR(INDEX(Tool_Selections!$I$8:$I$38,MATCH($D51,Tool_Selections!$H$8:$H$38,0)),"") ->  | F51: =IF(E51="","",IFERROR(INDEX(PotentialScores!$AX$220:$CA$220,MATCH(E51,PotentialScores!$AX$197:$CA$197,0)),"")) ->  | J51: Ø | R51: Ø | S51: =IFERROR(INDEX(DefineScope!$J$83:$J$112,MATCH(D51,DefineScope!$W$83:$W$112,0)),"") -> 
E55: Rationale
E56: Record in the boxes below the rationale for your recommendations in spending for each programme area.
C58: =IFERROR(INDEX(DefineScope!$E$83:$E$112,MATCH(D58,DefineScope!$W$83:$W$112,0)),"") -> E.g.1 Smoking/Tobacco | D58: 1 | E58: =IFERROR(INDEX(DefineScope!$E$83:$E$112,MATCH(D58,DefineScope!$W$83:$W$112,0)),"") -> E.g.1 Smoking/Tobacco
C59: =IFERROR(INDEX(DefineScope!$E$83:$E$112,MATCH(D59,DefineScope!$W$83:$W$112,0)),"") -> E.g.1 Smoking/Tobacco | D59: =D58 -> 1
C60: =IFERROR(INDEX(DefineScope!$E$83:$E$112,MATCH(D60,DefineScope!$W$83:$W$112,0)),"") -> E.g.1 Smoking/Tobacco | D60: =D59 -> 1 | E60: Spend recommendation: | F60: =INDEX($U$22:$U$51,MATCH(E58,$E$22:$E$51,0)) -> 3
C61: =IFERROR(INDEX(DefineScope!$E$83:$E$112,MATCH(D61,DefineScope!$W$83:$W$112,0)),"") -> E.g.1 Smoking/Tobacco | D61: =D60 -> 1 | E61: Rationale:
C62: =IF(E58="","",E58 & ",Rationale") -> E.g.1 Smoking/Tobacco,Rationale | D62: =D61 -> 1
C63: =IFERROR(INDEX(DefineScope!$E$83:$E$112,MATCH(D63,DefineScope!$W$83:$W$112,0)),"") -> E.g.1 Smoking/Tobacco | D63: =D62 -> 1
C64: =IFERROR(INDEX(DefineScope!$E$83:$E$112,MATCH(D64,DefineScope!$W$83:$W$112,0)),"") -> E.g.2 Obesity | D64: =D58+1 -> 2 | E64: =IFERROR(INDEX(DefineScope!$E$83:$E$112,MATCH(D64,DefineScope!$W$83:$W$112,0)),"") -> E.g.2 Obesity
C65: =IFERROR(INDEX(DefineScope!$E$83:$E$112,MATCH(D65,DefineScope!$W$83:$W$112,0)),"") -> E.g.2 Obesity | D65: =D64 -> 2
C66: =IFERROR(INDEX(DefineScope!$E$83:$E$112,MATCH(D66,DefineScope!$W$83:$W$112,0)),"") -> E.g.2 Obesity | D66: =D65 -> 2 | E66: Spend recommendation: | F66: =INDEX($U$22:$U$51,MATCH(E64,$E$22:$E$51,0)) -> 1
C67: =IFERROR(INDEX(DefineScope!$E$83:$E$112,MATCH(D67,DefineScope!$W$83:$W$112,0)),"") -> E.g.2 Obesity | D67: =D66 -> 2 | E67: Rationale:
C68: =IF(E64="","",E64 & ",Rationale") -> E.g.2 Obesity,Rationale | D68: =D67 -> 2
C69: =IFERROR(INDEX(DefineScope!$E$83:$E$112,MATCH(D69,DefineScope!$W$83:$W$112,0)),"") -> E.g.2 Obesity | D69: =D68 -> 2
C70: =IFERROR(INDEX(DefineScope!$E$83:$E$112,MATCH(D70,DefineScope!$W$83:$W$112,0)),"") -> E.g.3 Sexual Health Services | D70: =D64+1 -> 3 | E70: =IFERROR(INDEX(DefineScope!$E$83:$E$112,MATCH(D70,DefineScope!$W$83:$W$112,0)),"") -> E.g.3 Sexual Health Services
C71: =IFERROR(INDEX(DefineScope!$E$83:$E$112,MATCH(D71,DefineScope!$W$83:$W$112,0)),"") -> E.g.3 Sexual Health Services | D71: =D70 -> 3
C72: =IFERROR(INDEX(DefineScope!$E$83:$E$112,MATCH(D72,DefineScope!$W$83:$W$112,0)),"") -> E.g.3 Sexual Health Services | D72: =D71 -> 3 | E72: Spend recommendation: | F72: =INDEX($U$22:$U$51,MATCH(E70,$E$22:$E$51,0)) -> 2
C73: =IFERROR(INDEX(DefineScope!$E$83:$E$112,MATCH(D73,DefineScope!$W$83:$W$112,0)),"") -> E.g.3 Sexual Health Services | D73: =D72 -> 3 | E73: Rationale:
C74: =IF(E70="","",E70 & ",Rationale") -> E.g.3 Sexual Health Services,Rationale | D74: =D73 -> 3
C75: =IFERROR(INDEX(DefineScope!$E$83:$E$112,MATCH(D75,DefineScope!$W$83:$W$112,0)),"") -> E.g.3 Sexual Health Services | D75: =D74 -> 3
C76: =IFERROR(INDEX(DefineScope!$E$83:$E$112,MATCH(D76,DefineScope!$W$83:$W$112,0)),"") ->  | D76: =D70+1 -> 4 | E76: =IFERROR(INDEX(DefineScope!$E$83:$E$112,MATCH(D76,DefineScope!$W$83:$W$112,0)),"") -> 
C77: =IFERROR(INDEX(DefineScope!$E$83:$E$112,MATCH(D77,DefineScope!$W$83:$W$112,0)),"") ->  | D77: =D76 -> 4
C78: =IFERROR(INDEX(DefineScope!$E$83:$E$112,MATCH(D78,DefineScope!$W$83:$W$112,0)),"") ->  | D78: =D77 -> 4 | E78: Spend recommendation: | F78: =INDEX($U$22:$U$51,MATCH(E76,$E$22:$E$51,0)) -> 
C79: =IFERROR(INDEX(DefineScope!$E$83:$E$112,MATCH(D79,DefineScope!$W$83:$W$112,0)),"") ->  | D79: =D78 -> 4 | E79: Rationale:
C80: =IF(E76="","",E76 & ",Rationale") ->  | D80: =D79 -> 4
C81: =IFERROR(INDEX(DefineScope!$E$83:$E$112,MATCH(D81,DefineScope!$W$83:$W$112,0)),"") ->  | D81: =D80 -> 4
C82: =IFERROR(INDEX(DefineScope!$E$83:$E$112,MATCH(D82,DefineScope!$W$83:$W$112,0)),"") ->  | D82: =D76+1 -> 5 | E82: =IFERROR(INDEX(DefineScope!$E$83:$E$112,MATCH(D82,DefineScope!$W$83:$W$112,0)),"") -> 
C83: =IFERROR(INDEX(DefineScope!$E$83:$E$112,MATCH(D83,DefineScope!$W$83:$W$112,0)),"") ->  | D83: =D82 -> 5
C84: =IFERROR(INDEX(DefineScope!$E$83:$E$112,MATCH(D84,DefineScope!$W$83:$W$112,0)),"") ->  | D84: =D83 -> 5 | E84: Spend recommendation: | F84: =INDEX($U$22:$U$51,MATCH(E82,$E$22:$E$51,0)) -> 
C85: =IFERROR(INDEX(DefineScope!$E$83:$E$112,MATCH(D85,DefineScope!$W$83:$W$112,0)),"") ->  | D85: =D84 -> 5 | E85: Rationale:
C86: =IF(E82="","",E82 & ",Rationale") ->  | D86: =D85 -> 5
C87: =IFERROR(INDEX(DefineScope!$E$83:$E$112,MATCH(D87,DefineScope!$W$83:$W$112,0)),"") ->  | D87: =D86 -> 5
C88: =IFERROR(INDEX(DefineScope!$E$83:$E$112,MATCH(D88,DefineScope!$W$83:$W$112,0)),"") ->  | D88: =D82+1 -> 6 | E88: =IFERROR(INDEX(DefineScope!$E$83:$E$112,MATCH(D88,DefineScope!$W$83:$W$112,0)),"") -> 
C89: =IFERROR(INDEX(DefineScope!$E$83:$E$112,MATCH(D89,DefineScope!$W$83:$W$112,0)),"") ->  | D89: =D88 -> 6
C90: =IFERROR(INDEX(DefineScope!$E$83:$E$112,MATCH(D90,DefineScope!$W$83:$W$112,0)),"") ->  | D90: =D89 -> 6 | E90: Spend recommendation: | F90: =INDEX($U$22:$U$51,MATCH(E88,$E$22:$E$51,0)) -> 
C91: =IFERROR(INDEX(DefineScope!$E$83:$E$112,MATCH(D91,DefineScope!$W$83:$W$112,0)),"") ->  | D91: =D90 -> 6 | E91: Rationale:
C92: =IF(E88="","",E88 & ",Rationale") ->  | D92: =D91 -> 6
C93: =IFERROR(INDEX(DefineScope!$E$83:$E$112,MATCH(D93,DefineScope!$W$83:$W$112,0)),"") ->  | D93: =D92 -> 6
C94: =IFERROR(INDEX(DefineScope!$E$83:$E$112,MATCH(D94,DefineScope!$W$83:$W$112,0)),"") ->  | D94: =D88+1 -> 7 | E94: =IFERROR(INDEX(DefineScope!$E$83:$E$112,MATCH(D94,DefineScope!$W$83:$W$112,0)),"") -> 
C95: =IFERROR(INDEX(DefineScope!$E$83:$E$112,MATCH(D95,DefineScope!$W$83:$W$112,0)),"") ->  | D95: =D94 -> 7
C96: =IFERROR(INDEX(DefineScope!$E$83:$E$112,MATCH(D96,DefineScope!$W$83:$W$112,0)),"") ->  | D96: =D95 -> 7 | E96: Spend recommendation: | F96: =INDEX($U$22:$U$51,MATCH(E94,$E$22:$E$51,0)) -> 
C97: =IFERROR(INDEX(DefineScope!$E$83:$E$112,MATCH(D97,DefineScope!$W$83:$W$112,0)),"") ->  | D97: =D96 -> 7 | E97: Rationale:
C98: =IF(E94="","",E94 & ",Rationale") ->  | D98: =D97 -> 7
C99: =IFERROR(INDEX(DefineScope!$E$83:$E$112,MATCH(D99,DefineScope!$W$83:$W$112,0)),"") ->  | D99: =D98 -> 7
C100: =IFERROR(INDEX(DefineScope!$E$83:$E$112,MATCH(D100,DefineScope!$W$83:$W$112,0)),"") ->  | D100: =D94+1 -> 8 | E100: =IFERROR(INDEX(DefineScope!$E$83:$E$112,MATCH(D100,DefineScope!$W$83:$W$112,0)),"") -> 
C101: =IFERROR(INDEX(DefineScope!$E$83:$E$112,MATCH(D101,DefineScope!$W$83:$W$112,0)),"") ->  | D101: =D100 -> 8
C102: =IFERROR(INDEX(DefineScope!$E$83:$E$112,MATCH(D102,DefineScope!$W$83:$W$112,0)),"") ->  | D102: =D101 -> 8 | E102: Spend recommendation: | F102: =INDEX($U$22:$U$51,MATCH(E100,$E$22:$E$51,0)) -> 
C103: =IFERROR(INDEX(DefineScope!$E$83:$E$112,MATCH(D103,DefineScope!$W$83:$W$112,0)),"") ->  | D103: =D102 -> 8 | E103: Rationale:
C104: =IF(E100="","",E100 & ",Rationale") ->  | D104: =D103 -> 8
C105: =IFERROR(INDEX(DefineScope!$E$83:$E$112,MATCH(D105,DefineScope!$W$83:$W$112,0)),"") ->  | D105: =D104 -> 8
C106: =IFERROR(INDEX(DefineScope!$E$83:$E$112,MATCH(D106,DefineScope!$W$83:$W$112,0)),"") ->  | D106: =D100+1 -> 9 | E106: =IFERROR(INDEX(DefineScope!$E$83:$E$112,MATCH(D106,DefineScope!$W$83:$W$112,0)),"") -> 
C107: =IFERROR(INDEX(DefineScope!$E$83:$E$112,MATCH(D107,DefineScope!$W$83:$W$112,0)),"") ->  | D107: =D106 -> 9
C108: =IFERROR(INDEX(DefineScope!$E$83:$E$112,MATCH(D108,DefineScope!$W$83:$W$112,0)),"") ->  | D108: =D107 -> 9 | E108: Spend recommendation: | F108: =INDEX($U$22:$U$51,MATCH(E106,$E$22:$E$51,0)) -> 
C109: =IFERROR(INDEX(DefineScope!$E$83:$E$112,MATCH(D109,DefineScope!$W$83:$W$112,0)),"") ->  | D109: =D108 -> 9 | E109: Rationale:
C110: =IF(E106="","",E106 & ",Rationale") ->  | D110: =D109 -> 9
C111: =IFERROR(INDEX(DefineScope!$E$83:$E$112,MATCH(D111,DefineScope!$W$83:$W$112,0)),"") ->  | D111: =D110 -> 9
C112: =IFERROR(INDEX(DefineScope!$E$83:$E$112,MATCH(D112,DefineScope!$W$83:$W$112,0)),"") ->  | D112: =D106+1 -> 10 | E112: =IFERROR(INDEX(DefineScope!$E$83:$E$112,MATCH(D112,DefineScope!$W$83:$W$112,0)),"") -> 
C113: =IFERROR(INDEX(DefineScope!$E$83:$E$112,MATCH(D113,DefineScope!$W$83:$W$112,0)),"") ->  | D113: =D112 -> 10
C114: =IFERROR(INDEX(DefineScope!$E$83:$E$112,MATCH(D114,DefineScope!$W$83:$W$112,0)),"") ->  | D114: =D113 -> 10 | E114: Spend recommendation: | F114: =INDEX($U$22:$U$51,MATCH(E112,$E$22:$E$51,0)) -> 
C115: =IFERROR(INDEX(DefineScope!$E$83:$E$112,MATCH(D115,DefineScope!$W$83:$W$112,0)),"") ->  | D115: =D114 -> 10 | E115: Rationale:
C116: =IF(E112="","",E112 & ",Rationale") ->  | D116: =D114 -> 10
C117: =IFERROR(INDEX(DefineScope!$E$83:$E$112,MATCH(D117,DefineScope!$W$83:$W$112,0)),"") ->  | D117: =D116 -> 10
C118: =IFERROR(INDEX(DefineScope!$E$83:$E$112,MATCH(D118,DefineScope!$W$83:$W$112,0)),"") ->  | D118: =D112+1 -> 11 | E118: =IFERROR(INDEX(DefineScope!$E$83:$E$112,MATCH(D118,DefineScope!$W$83:$W$112,0)),"") -> 
C119: =IFERROR(INDEX(DefineScope!$E$83:$E$112,MATCH(D119,DefineScope!$W$83:$W$112,0)),"") ->  | D119: =D118 -> 11
C120: =IFERROR(INDEX(DefineScope!$E$83:$E$112,MATCH(D120,DefineScope!$W$83:$W$112,0)),"") ->  | D120: =D119 -> 11 | E120: Spend recommendation: | F120: =INDEX($U$22:$U$51,MATCH(E118,$E$22:$E$51,0)) -> 
C121: =IFERROR(INDEX(DefineScope!$E$83:$E$112,MATCH(D121,DefineScope!$W$83:$W$112,0)),"") ->  | D121: =D120 -> 11 | E121: Rationale:
C122: =IF(E118="","",E118 & ",Rationale") ->  | D122: =D121 -> 11
C123: =IFERROR(INDEX(DefineScope!$E$83:$E$112,MATCH(D123,DefineScope!$W$83:$W$112,0)),"") ->  | D123: =D122 -> 11
C124: =IFERROR(INDEX(DefineScope!$E$83:$E$112,MATCH(D124,DefineScope!$W$83:$W$112,0)),"") ->  | D124: =D118+1 -> 12 | E124: =IFERROR(INDEX(DefineScope!$E$83:$E$112,MATCH(D124,DefineScope!$W$83:$W$112,0)),"") -> 
C125: =IFERROR(INDEX(DefineScope!$E$83:$E$112,MATCH(D125,DefineScope!$W$83:$W$112,0)),"") ->  | D125: =D124 -> 12
C126: =IFERROR(INDEX(DefineScope!$E$83:$E$112,MATCH(D126,DefineScope!$W$83:$W$112,0)),"") ->  | D126: =D125 -> 12 | E126: Spend recommendation: | F126: =INDEX($U$22:$U$51,MATCH(E124,$E$22:$E$51,0)) -> 
C127: =IFERROR(INDEX(DefineScope!$E$83:$E$112,MATCH(D127,DefineScope!$W$83:$W$112,0)),"") ->  | D127: =D126 -> 12 | E127: Rationale:
C128: =IF(E124="","",E124 & ",Rationale") ->  | D128: =D127 -> 12
C129: =IFERROR(INDEX(DefineScope!$E$83:$E$112,MATCH(D129,DefineScope!$W$83:$W$112,0)),"") ->  | D129: =D128 -> 12
C130: =IFERROR(INDEX(DefineScope!$E$83:$E$112,MATCH(D130,DefineScope!$W$83:$W$112,0)),"") ->  | D130: =D124+1 -> 13 | E130: =IFERROR(INDEX(DefineScope!$E$83:$E$112,MATCH(D130,DefineScope!$W$83:$W$112,0)),"") -> 
C131: =IFERROR(INDEX(DefineScope!$E$83:$E$112,MATCH(D131,DefineScope!$W$83:$W$112,0)),"") ->  | D131: =D130 -> 13
C132: =IFERROR(INDEX(DefineScope!$E$83:$E$112,MATCH(D132,DefineScope!$W$83:$W$112,0)),"") ->  | D132: =D131 -> 13 | E132: Spend recommendation: | F132: =INDEX($U$22:$U$51,MATCH(E130,$E$22:$E$51,0)) -> 
C133: =IFERROR(INDEX(DefineScope!$E$83:$E$112,MATCH(D133,DefineScope!$W$83:$W$112,0)),"") ->  | D133: =D132 -> 13 | E133: Rationale:
C134: =IF(E130="","",E130 & ",Rationale") ->  | D134: =D133 -> 13
C135: =IFERROR(INDEX(DefineScope!$E$83:$E$112,MATCH(D135,DefineScope!$W$83:$W$112,0)),"") ->  | D135: =D134 -> 13
C136: =IFERROR(INDEX(DefineScope!$E$83:$E$112,MATCH(D136,DefineScope!$W$83:$W$112,0)),"") ->  | D136: =D130+1 -> 14 | E136: =IFERROR(INDEX(DefineScope!$E$83:$E$112,MATCH(D136,DefineScope!$W$83:$W$112,0)),"") -> 
C137: =IFERROR(INDEX(DefineScope!$E$83:$E$112,MATCH(D137,DefineScope!$W$83:$W$112,0)),"") ->  | D137: =D136 -> 14
C138: =IFERROR(INDEX(DefineScope!$E$83:$E$112,MATCH(D138,DefineScope!$W$83:$W$112,0)),"") ->  | D138: =D137 -> 14 | E138: Spend recommendation: | F138: =INDEX($U$22:$U$51,MATCH(E136,$E$22:$E$51,0)) -> 
C139: =IFERROR(INDEX(DefineScope!$E$83:$E$112,MATCH(D139,DefineScope!$W$83:$W$112,0)),"") ->  | D139: =D138 -> 14 | E139: Rationale:
C140: =IF(E136="","",E136 & ",Rationale") ->  | D140: =D139 -> 14
C141: =IFERROR(INDEX(DefineScope!$E$83:$E$112,MATCH(D141,DefineScope!$W$83:$W$112,0)),"") ->  | D141: =D140 -> 14
C142: =IFERROR(INDEX(DefineScope!$E$83:$E$112,MATCH(D142,DefineScope!$W$83:$W$112,0)),"") ->  | D142: =D136+1 -> 15 | E142: =IFERROR(INDEX(DefineScope!$E$83:$E$112,MATCH(D142,DefineScope!$W$83:$W$112,0)),"") -> 
C143: =IFERROR(INDEX(DefineScope!$E$83:$E$112,MATCH(D143,DefineScope!$W$83:$W$112,0)),"") ->  | D143: =D142 -> 15
C144: =IFERROR(INDEX(DefineScope!$E$83:$E$112,MATCH(D144,DefineScope!$W$83:$W$112,0)),"") ->  | D144: =D143 -> 15 | E144: Spend recommendation: | F144: =INDEX($U$22:$U$51,MATCH(E142,$E$22:$E$51,0)) -> 
C145: =IFERROR(INDEX(DefineScope!$E$83:$E$112,MATCH(D145,DefineScope!$W$83:$W$112,0)),"") ->  | D145: =D144 -> 15 | E145: Rationale:
C146: =IF(E142="","",E142 & ",Rationale") ->  | D146: =D145 -> 15
C147: =IFERROR(INDEX(DefineScope!$E$83:$E$112,MATCH(D147,DefineScope!$W$83:$W$112,0)),"") ->  | D147: =D146 -> 15
C148: =IFERROR(INDEX(DefineScope!$E$83:$E$112,MATCH(D148,DefineScope!$W$83:$W$112,0)),"") ->  | D148: =D142+1 -> 16 | E148: =IFERROR(INDEX(DefineScope!$E$83:$E$112,MATCH(D148,DefineScope!$W$83:$W$112,0)),"") -> 
C149: =IFERROR(INDEX(DefineScope!$E$83:$E$112,MATCH(D149,DefineScope!$W$83:$W$112,0)),"") ->  | D149: =D148 -> 16
C150: =IFERROR(INDEX(DefineScope!$E$83:$E$112,MATCH(D150,DefineScope!$W$83:$W$112,0)),"") ->  | D150: =D149 -> 16 | E150: Spend recommendation: | F150: =INDEX($U$22:$U$51,MATCH(E148,$E$22:$E$51,0)) -> 
C151: =IFERROR(INDEX(DefineScope!$E$83:$E$112,MATCH(D151,DefineScope!$W$83:$W$112,0)),"") ->  | D151: =D150 -> 16 | E151: Rationale:
C152: =IF(E148="","",E148 & ",Rationale") ->  | D152: =D151 -> 16
C153: =IFERROR(INDEX(DefineScope!$E$83:$E$112,MATCH(D153,DefineScope!$W$83:$W$112,0)),"") ->  | D153: =D152 -> 16
C154: =IFERROR(INDEX(DefineScope!$E$83:$E$112,MATCH(D154,DefineScope!$W$83:$W$112,0)),"") ->  | D154: =D148+1 -> 17 | E154: =IFERROR(INDEX(DefineScope!$E$83:$E$112,MATCH(D154,DefineScope!$W$83:$W$112,0)),"") -> 
C155: =IFERROR(INDEX(DefineScope!$E$83:$E$112,MATCH(D155,DefineScope!$W$83:$W$112,0)),"") ->  | D155: =D154 -> 17
C156: =IFERROR(INDEX(DefineScope!$E$83:$E$112,MATCH(D156,DefineScope!$W$83:$W$112,0)),"") ->  | D156: =D155 -> 17 | E156: Spend recommendation: | F156: =INDEX($U$22:$U$51,MATCH(E154,$E$22:$E$51,0)) -> 
C157: =IFERROR(INDEX(DefineScope!$E$83:$E$112,MATCH(D157,DefineScope!$W$83:$W$112,0)),"") ->  | D157: =D156 -> 17 | E157: Rationale:
C158: =IF(E154="","",E154 & ",Rationale") ->  | D158: =D157 -> 17
C159: =IFERROR(INDEX(DefineScope!$E$83:$E$112,MATCH(D159,DefineScope!$W$83:$W$112,0)),"") ->  | D159: =D158 -> 17
C160: =IFERROR(INDEX(DefineScope!$E$83:$E$112,MATCH(D160,DefineScope!$W$83:$W$112,0)),"") ->  | D160: =D154+1 -> 18 | E160: =IFERROR(INDEX(DefineScope!$E$83:$E$112,MATCH(D160,DefineScope!$W$83:$W$112,0)),"") -> 
C161: =IFERROR(INDEX(DefineScope!$E$83:$E$112,MATCH(D161,DefineScope!$W$83:$W$112,0)),"") ->  | D161: =D160 -> 18
C162: =IFERROR(INDEX(DefineScope!$E$83:$E$112,MATCH(D162,DefineScope!$W$83:$W$112,0)),"") ->  | D162: =D161 -> 18 | E162: Spend recommendation: | F162: =INDEX($U$22:$U$51,MATCH(E160,$E$22:$E$51,0)) -> 
C163: =IFERROR(INDEX(DefineScope!$E$83:$E$112,MATCH(D163,DefineScope!$W$83:$W$112,0)),"") ->  | D163: =D162 -> 18 | E163: Rationale:
C164: =IF(E160="","",E160 & ",Rationale") ->  | D164: =D163 -> 18
C165: =IFERROR(INDEX(DefineScope!$E$83:$E$112,MATCH(D165,DefineScope!$W$83:$W$112,0)),"") ->  | D165: =D164 -> 18
C166: =IFERROR(INDEX(DefineScope!$E$83:$E$112,MATCH(D166,DefineScope!$W$83:$W$112,0)),"") ->  | D166: =D160+1 -> 19 | E166: =IFERROR(INDEX(DefineScope!$E$83:$E$112,MATCH(D166,DefineScope!$W$83:$W$112,0)),"") -> 
C167: =IFERROR(INDEX(DefineScope!$E$83:$E$112,MATCH(D167,DefineScope!$W$83:$W$112,0)),"") ->  | D167: =D166 -> 19
C168: =IFERROR(INDEX(DefineScope!$E$83:$E$112,MATCH(D168,DefineScope!$W$83:$W$112,0)),"") ->  | D168: =D167 -> 19 | E168: Spend recommendation: | F168: =INDEX($U$22:$U$51,MATCH(E166,$E$22:$E$51,0)) -> 
C169: =IFERROR(INDEX(DefineScope!$E$83:$E$112,MATCH(D169,DefineScope!$W$83:$W$112,0)),"") ->  | D169: =D168 -> 19 | E169: Rationale:
C170: =IF(E166="","",E166 & ",Rationale") ->  | D170: =D169 -> 19
C171: =IFERROR(INDEX(DefineScope!$E$83:$E$112,MATCH(D171,DefineScope!$W$83:$W$112,0)),"") ->  | D171: =D170 -> 19
C172: =IFERROR(INDEX(DefineScope!$E$83:$E$112,MATCH(D172,DefineScope!$W$83:$W$112,0)),"") ->  | D172: =D166+1 -> 20 | E172: =IFERROR(INDEX(DefineScope!$E$83:$E$112,MATCH(D172,DefineScope!$W$83:$W$112,0)),"") -> 
C173: =IFERROR(INDEX(DefineScope!$E$83:$E$112,MATCH(D173,DefineScope!$W$83:$W$112,0)),"") ->  | D173: =D172 -> 20
C174: =IFERROR(INDEX(DefineScope!$E$83:$E$112,MATCH(D174,DefineScope!$W$83:$W$112,0)),"") ->  | D174: =D173 -> 20 | E174: Spend recommendation: | F174: =INDEX($U$22:$U$51,MATCH(E172,$E$22:$E$51,0)) -> 
C175: =IFERROR(INDEX(DefineScope!$E$83:$E$112,MATCH(D175,DefineScope!$W$83:$W$112,0)),"") ->  | D175: =D174 -> 20 | E175: Rationale:
C176: =IF(E172="","",E172 & ",Rationale") ->  | D176: =D175 -> 20
C177: =IFERROR(INDEX(DefineScope!$E$83:$E$112,MATCH(D177,DefineScope!$W$83:$W$112,0)),"") ->  | D177: =D176 -> 20
C178: =IFERROR(INDEX(DefineScope!$E$83:$E$112,MATCH(D178,DefineScope!$W$83:$W$112,0)),"") ->  | D178: =D172+1 -> 21 | E178: =IFERROR(INDEX(DefineScope!$E$83:$E$112,MATCH(D178,DefineScope!$W$83:$W$112,0)),"") -> 
C179: =IFERROR(INDEX(DefineScope!$E$83:$E$112,MATCH(D179,DefineScope!$W$83:$W$112,0)),"") ->  | D179: =D178 -> 21
C180: =IFERROR(INDEX(DefineScope!$E$83:$E$112,MATCH(D180,DefineScope!$W$83:$W$112,0)),"") ->  | D180: =D179 -> 21 | E180: Spend recommendation: | F180: =INDEX($U$22:$U$51,MATCH(E178,$E$22:$E$51,0)) -> 
C181: =IFERROR(INDEX(DefineScope!$E$83:$E$112,MATCH(D181,DefineScope!$W$83:$W$112,0)),"") ->  | D181: =D180 -> 21 | E181: Rationale:
C182: =IF(E178="","",E178 & ",Rationale") ->  | D182: =D181 -> 21
C183: =IFERROR(INDEX(DefineScope!$E$83:$E$112,MATCH(D183,DefineScope!$W$83:$W$112,0)),"") ->  | D183: =D182 -> 21
C184: =IFERROR(INDEX(DefineScope!$E$83:$E$112,MATCH(D184,DefineScope!$W$83:$W$112,0)),"") ->  | D184: =D178+1 -> 22 | E184: =IFERROR(INDEX(DefineScope!$E$83:$E$112,MATCH(D184,DefineScope!$W$83:$W$112,0)),"") -> 
C185: =IFERROR(INDEX(DefineScope!$E$83:$E$112,MATCH(D185,DefineScope!$W$83:$W$112,0)),"") ->  | D185: =D184 -> 22
C186: =IFERROR(INDEX(DefineScope!$E$83:$E$112,MATCH(D186,DefineScope!$W$83:$W$112,0)),"") ->  | D186: =D185 -> 22 | E186: Spend recommendation: | F186: =INDEX($U$22:$U$51,MATCH(E184,$E$22:$E$51,0)) -> 
C187: =IFERROR(INDEX(DefineScope!$E$83:$E$112,MATCH(D187,DefineScope!$W$83:$W$112,0)),"") ->  | D187: =D186 -> 22 | E187: Rationale:
C188: =IF(E184="","",E184 & ",Rationale") ->  | D188: =D187 -> 22
C189: =IFERROR(INDEX(DefineScope!$E$83:$E$112,MATCH(D189,DefineScope!$W$83:$W$112,0)),"") ->  | D189: =D188 -> 22
C190: =IFERROR(INDEX(DefineScope!$E$83:$E$112,MATCH(D190,DefineScope!$W$83:$W$112,0)),"") ->  | D190: =D184+1 -> 23 | E190: =IFERROR(INDEX(DefineScope!$E$83:$E$112,MATCH(D190,DefineScope!$W$83:$W$112,0)),"") -> 
C191: =IFERROR(INDEX(DefineScope!$E$83:$E$112,MATCH(D191,DefineScope!$W$83:$W$112,0)),"") ->  | D191: =D190 -> 23
C192: =IFERROR(INDEX(DefineScope!$E$83:$E$112,MATCH(D192,DefineScope!$W$83:$W$112,0)),"") ->  | D192: =D191 -> 23 | E192: Spend recommendation: | F192: =INDEX($U$22:$U$51,MATCH(E190,$E$22:$E$51,0)) -> 
C193: =IFERROR(INDEX(DefineScope!$E$83:$E$112,MATCH(D193,DefineScope!$W$83:$W$112,0)),"") ->  | D193: =D192 -> 23 | E193: Rationale:
C194: =IF(E190="","",E190 & ",Rationale") ->  | D194: =D193 -> 23
C195: =IFERROR(INDEX(DefineScope!$E$83:$E$112,MATCH(D195,DefineScope!$W$83:$W$112,0)),"") ->  | D195: =D194 -> 23
C196: =IFERROR(INDEX(DefineScope!$E$83:$E$112,MATCH(D196,DefineScope!$W$83:$W$112,0)),"") ->  | D196: =D190+1 -> 24 | E196: =IFERROR(INDEX(DefineScope!$E$83:$E$112,MATCH(D196,DefineScope!$W$83:$W$112,0)),"") -> 
C197: =IFERROR(INDEX(DefineScope!$E$83:$E$112,MATCH(D197,DefineScope!$W$83:$W$112,0)),"") ->  | D197: =D196 -> 24
C198: =IFERROR(INDEX(DefineScope!$E$83:$E$112,MATCH(D198,DefineScope!$W$83:$W$112,0)),"") ->  | D198: =D197 -> 24 | E198: Spend recommendation: | F198: =INDEX($U$22:$U$51,MATCH(E196,$E$22:$E$51,0)) -> 
C199: =IFERROR(INDEX(DefineScope!$E$83:$E$112,MATCH(D199,DefineScope!$W$83:$W$112,0)),"") ->  | D199: =D198 -> 24 | E199: Rationale:
C200: =IF(E196="","",E196 & ",Rationale") ->  | D200: =D199 -> 24
C201: =IFERROR(INDEX(DefineScope!$E$83:$E$112,MATCH(D201,DefineScope!$W$83:$W$112,0)),"") ->  | D201: =D200 -> 24
C202: =IFERROR(INDEX(DefineScope!$E$83:$E$112,MATCH(D202,DefineScope!$W$83:$W$112,0)),"") ->  | D202: =D196+1 -> 25 | E202: =IFERROR(INDEX(DefineScope!$E$83:$E$112,MATCH(D202,DefineScope!$W$83:$W$112,0)),"") -> 
C203: =IFERROR(INDEX(DefineScope!$E$83:$E$112,MATCH(D203,DefineScope!$W$83:$W$112,0)),"") ->  | D203: =D202 -> 25
C204: =IFERROR(INDEX(DefineScope!$E$83:$E$112,MATCH(D204,DefineScope!$W$83:$W$112,0)),"") ->  | D204: =D203 -> 25 | E204: Spend recommendation: | F204: =INDEX($U$22:$U$51,MATCH(E202,$E$22:$E$51,0)) -> 
C205: =IFERROR(INDEX(DefineScope!$E$83:$E$112,MATCH(D205,DefineScope!$W$83:$W$112,0)),"") ->  | D205: =D204 -> 25 | E205: Rationale:
C206: =IF(E202="","",E202 & ",Rationale") ->  | D206: =D205 -> 25
C207: =IFERROR(INDEX(DefineScope!$E$83:$E$112,MATCH(D207,DefineScope!$W$83:$W$112,0)),"") ->  | D207: =D206 -> 25
C208: =IFERROR(INDEX(DefineScope!$E$83:$E$112,MATCH(D208,DefineScope!$W$83:$W$112,0)),"") ->  | D208: =D202+1 -> 26 | E208: =IFERROR(INDEX(DefineScope!$E$83:$E$112,MATCH(D208,DefineScope!$W$83:$W$112,0)),"") -> 
C209: =IFERROR(INDEX(DefineScope!$E$83:$E$112,MATCH(D209,DefineScope!$W$83:$W$112,0)),"") ->  | D209: =D208 -> 26
C210: =IFERROR(INDEX(DefineScope!$E$83:$E$112,MATCH(D210,DefineScope!$W$83:$W$112,0)),"") ->  | D210: =D209 -> 26 | E210: Spend recommendation: | F210: =INDEX($U$22:$U$51,MATCH(E208,$E$22:$E$51,0)) -> 
C211: =IFERROR(INDEX(DefineScope!$E$83:$E$112,MATCH(D211,DefineScope!$W$83:$W$112,0)),"") ->  | D211: =D210 -> 26 | E211: Rationale:
C212: =IF(E208="","",E208 & ",Rationale") ->  | D212: =D211 -> 26
C213: =IFERROR(INDEX(DefineScope!$E$83:$E$112,MATCH(D213,DefineScope!$W$83:$W$112,0)),"") ->  | D213: =D212 -> 26
C214: =IFERROR(INDEX(DefineScope!$E$83:$E$112,MATCH(D214,DefineScope!$W$83:$W$112,0)),"") ->  | D214: =D208+1 -> 27 | E214: =IFERROR(INDEX(DefineScope!$E$83:$E$112,MATCH(D214,DefineScope!$W$83:$W$112,0)),"") -> 
C215: =IFERROR(INDEX(DefineScope!$E$83:$E$112,MATCH(D215,DefineScope!$W$83:$W$112,0)),"") ->  | D215: =D214 -> 27
C216: =IFERROR(INDEX(DefineScope!$E$83:$E$112,MATCH(D216,DefineScope!$W$83:$W$112,0)),"") ->  | D216: =D215 -> 27 | E216: Spend recommendation: | F216: =INDEX($U$22:$U$51,MATCH(E214,$E$22:$E$51,0)) -> 
C217: =IFERROR(INDEX(DefineScope!$E$83:$E$112,MATCH(D217,DefineScope!$W$83:$W$112,0)),"") ->  | D217: =D216 -> 27 | E217: Rationale:
C218: =IF(E214="","",E214 & ",Rationale") ->  | D218: =D217 -> 27
... 19 more rows

Sheet EvidenceTemplate_Recovery (hidden)
C2: Recovery Template_PotentialEvidence | Z2: Recovery Template_PotentialEvidence_Blank | AW2: Recovery Template_CurrentEvidence | BS2: Recovery Template_CurrentEvidence_Blank
C3: HealthareaIndex: | Z3: HealthareaIndex: | AW3: HealthareaIndex: | BS3: HealthareaIndex:
C5: HealthAeaName: | Z5: HealthAeaName: | AW5: HealthAeaName: | BS5: HealthAeaName:
C6: E.g.1 Smoking/Tobacco
Y7: Start | AV7: Start | BR7: Start
D8: Evidence summary | AA8: Evidence summary | AX8: Evidence summary | BT8: Evidence summary
D9: Test
D11: Background information and evidence | AA11: Background information and evidence | AX11: Background information and evidence | BT11: Background information and evidence
T218: End | AQ218: End | BN218: End | CJ218: End
B219: End | Y219: End | AV219: End | BR219: End

Sheet ModelScenarios
D10: The Scenario Modelling is an optional step of the prioritisation analysis. The aim is to demonstrate how a budget based on the potential scores of different topic areas is more efficient than proportional (dis)investment across all programme areas. | W10: lbl_Overview
W11: lbl_ProjectScope
W12: lbl_ProjectPlan
W13: lbl_ProjectChecklist
D14: How to do a scenario modelling exercise: Note: Users must enter values for the heading in bold. STEP 1: This stage of the scenario modelling creates a new budget for each of the programme areas. You specify whether the budget for a given programme area should increase, decrease or be kept the same. Then, a new budget is created by weighting the total amount that could change (specified by you) by the potential score, out of 100, for that programme area. For example, you may say the budget for sexual health services should increase, and the proportion of the budget that could be adjusted is 20%. If the potential score, out of 100, is 75, the new budget is created by adding 20% x 75% (i.e. 15%) to the original budget. If a decrease is recommended, the new budget is created by subtracting 20% x (1-75%) (i.e. 5%) from the original budget.
D27: The table is laid out as follows: 1. Potential score – potential score normalised to 100 2. Current score – potential score normalised to 100 3. Feasibility score – feasibility scores normalised to 100 4. Original budget – represents the original budget for each programme area 5. Spend recommendation - insert the recommendation for each programme area in terms of whether to increase, decrease or keep the same budget 6. Proportion of budget to adjust using prioritisation score - choose a fixed percentage of the original budget for programme areas where an increase is recommended and where a decrease is recommended. Play around with the scenario of their budget allocation, by changing the increase/decrease percentage values. Increase/decrease percentage values inserted should lead to a total prioritisation budget equal (or lower) to the new budget available to local authorities. Note: This percentage is not representing an overall increase/decrease of the original budget, as it will have to be adjusted using the prioritisation score. It instead represents a maximum increase if the prioritisation score was 100/maximum decrease if the prioritisation score was 0. 7. Pre-agreed amount to increase/decrease - insert any amount that was already agreed to be invested/disinvested. If a figure is entered here, it overrides the other calculations. 8. Prioritisation Budget - represents the new budget obtained through the prioritisation process. Calculated using the Potential scores and the direction of travel (increase and decrease). 9. Difference between Prioritisation and Original Budgets - positive values represent more spending, and negative values represent savings. An overall negative would show that using the prioritisation process money would be saved 10. Equal Proportion Budget – represents the same total value as the prioritisation budget, but spread proportionately across all topic areas. This is the “salami-slicing” approach, and it is included for comparison.
D62: Save scenarios:
D63: • You can save the scenarios by clicking on the button 'Save as scenario'. You can save up to 5 scenarios.
D64: • Saved scenarios can be compared in the next section.
D67: Scenario modelling
D69: • Input budget data and preferences to view 'Revised Budget' based on Potential score and agreed budget increases/decreases • Note that the Prioritisation budget is calculated using Potential scores only and the direction of travel (increase/decrease selections). Current and Feasibility scores are for reference only.
E70: Legend:
E71: Input cells
E74: Programme area | F74: Potential score (out of 100) | G74: Current score (out of 100) | H74: Feasibility score (out of 100) | I74: Original budget | J74: Spend recommendation | O74: Proportion of budget to adjust using prioritisation score | P74: If initial amount already agreed to increase/ decrease budget then enter here (use +/-) | Q74: Prioritisation budget (Calculation: (((Original Bdgt + Pre-agreed) x (% Increase/Decrease)) x Prioritisation Score%) + (Original Bdgt + Pre-agreed)) | R74: Difference between Prioritisation and Original budgets | S74: Equal proportion budget (programme areas reduced in equal proportions so that total matches Prioritisation Budget)
K75: Increase | L75: 25 | M75: %
K76: No Change | L76: 0 | M76: %
K77: Decrease | L77: 10 | M77: %
J78: (Note: 'No Change' must be less than 'Decrease')
I79: £ | O79: % | P79: £ | Q79: £ | R79: £ | S79: £
C80: 1 | E80: =IFERROR(INDEX(DefineScope!$E$83:$E$112,MATCH(C80,DefineScope!$W$83:$W$112,0)),"") -> E.g.1 Smoking/Tobacco | F80: =IF(E80="","",IFERROR(INDEX(ProvideRationale!$F$22:$F$51,MATCH(E80,ProvideRationale!$E$22:$E$51,0))*100/Total_possible_score_Potential,"")) -> 90 | G80: =IF(E80="","",IFERROR(INDEX(ProvideRationale!$M$22:$M$51,MATCH(E80,ProvideRationale!$E$22:$E$51,0))*100/10,"")) -> 0 | H80: =IF(E80="","",IFERROR(INDEX(ProvideRationale!$O$22:$O$51,MATCH(E80,ProvideRationale!$E$22:$E$51,0))*100/5,"")) -> 0 | I80: =IFERROR(INDEX(DefineScope!$J$83:$J$112,MATCH(C80,DefineScope!$W$83:$W$112,0)),"") -> 100000 | J80: Decrease | O80: =IF(J80="","",VLOOKUP(J80,$K$75:$M$77,2,FALSE)/100) -> 0.1 | P80: 10000 | Q80: =IFERROR(IF(J80="","", IF(P80<>"",I80+P80,(IFERROR(IF(J80="Increase",(((I80)*O80)*(F80/100))+(I80), IF(J80="No Change",(((I80)*(O80)*(F80/100))+((I80)*(100%-O80))), IF(J80="Decrease",(((I80)*O80)*(F80/100))+((I80)*(100%-O80))))),"")))),"") -> 110000 | R80: =IFERROR(Q80-I80,"") -> 10000 | S80: =IFERROR(I80--(($R$110/($I$110/100))*(I80/100)),"") -> 102833.3333
C81: =C80+1 -> 2 | E81: =IFERROR(INDEX(DefineScope!$E$83:$E$112,MATCH(C81,DefineScope!$W$83:$W$112,0)),"") -> E.g.2 Obesity | F81: =IF(E81="","",IFERROR(INDEX(ProvideRationale!$F$22:$F$51,MATCH(E81,ProvideRationale!$E$22:$E$51,0))*100/Total_possible_score_Potential,"")) -> 43.33333333 | G81: =IF(E81="","",IFERROR(INDEX(ProvideRationale!$M$22:$M$51,MATCH(E81,ProvideRationale!$E$22:$E$51,0))*100/10,"")) -> 0 | H81: =IF(E81="","",IFERROR(INDEX(ProvideRationale!$O$22:$O$51,MATCH(E81,ProvideRationale!$E$22:$E$51,0))*100/5,"")) -> 0 | I81: =IFERROR(INDEX(DefineScope!$J$83:$J$112,MATCH(C81,DefineScope!$W$83:$W$112,0)),"") -> 200000 | J81: Increase | O81: =IF(J81="","",VLOOKUP(J81,$K$75:$M$77,2,FALSE)/100) -> 0.25 | P81: 2000 | Q81: =IFERROR(IF(J81="","", IF(P81<>"",I81+P81,(IFERROR(IF(J81="Increase",(((I81)*O81)*(F81/100))+(I81), IF(J81="No Change",(((I81)*(O81)*(F81/100))+((I81)*(100%-O81))), IF(J81="Decrease",(((I81)*O81)*(F81/100))+((I81)*(100%-O81))))),"")))),"") -> 202000 | R81: =IFERROR(Q81-I81,"") -> 2000 | S81: =IFERROR(I81--(($R$110/($I$110/100))*(I81/100)),"") -> 205666.6667
C82: =C81+1 -> 3 | E82: =IFERROR(INDEX(DefineScope!$E$83:$E$112,MATCH(C82,DefineScope!$W$83:$W$112,0)),"") -> E.g.3 Sexual Health Services | F82: =IF(E82="","",IFERROR(INDEX(ProvideRationale!$F$22:$F$51,MATCH(E82,ProvideRationale!$E$22:$E$51,0))*100/Total_possible_score_Potential,"")) -> 80 | G82: =IF(E82="","",IFERROR(INDEX(ProvideRationale!$M$22:$M$51,MATCH(E82,ProvideRationale!$E$22:$E$51,0))*100/10,"")) -> 0 | H82: =IF(E82="","",IFERROR(INDEX(ProvideRationale!$O$22:$O$51,MATCH(E82,ProvideRationale!$E$22:$E$51,0))*100/5,"")) -> 0 | I82: =IFERROR(INDEX(DefineScope!$J$83:$J$112,MATCH(C82,DefineScope!$W$83:$W$112,0)),"") -> 300000 | J82: Increase | O82: 0.25 | P82: 5000 | Q82: 305000 | R82: 5000 | S82: 308500
C83: 4 | E83: =IFERROR(INDEX(DefineScope!$E$83:$E$112,MATCH(C83,DefineScope!$W$83:$W$112,0)),"") ->  | G83: =IF(E83="","",IFERROR(INDEX(ProvideRationale!$M$22:$M$51,MATCH(E83,ProvideRationale!$E$22:$E$51,0))*100/10,"")) ->  | H83: =IF(E83="","",IFERROR(INDEX(ProvideRationale!$O$22:$O$51,MATCH(E83,ProvideRationale!$E$22:$E$51,0))*100/5,"")) ->  | I83: =IFERROR(INDEX(DefineScope!$J$83:$J$112,MATCH(C83,DefineScope!$W$83:$W$112,0)),"") -> 
C84: 5 | E84: =IFERROR(INDEX(DefineScope!$E$83:$E$112,MATCH(C84,DefineScope!$W$83:$W$112,0)),"") ->  | F84: =IF(E84="","",IFERROR(INDEX(ProvideRationale!$F$22:$F$51,MATCH(E84,ProvideRationale!$E$22:$E$51,0))*100/Total_possible_score_Potential,"")) ->  | G84: =IF(E84="","",IFERROR(INDEX(ProvideRationale!$M$22:$M$51,MATCH(E84,ProvideRationale!$E$22:$E$51,0))*100/10,"")) ->  | H84: =IF(E84="","",IFERROR(INDEX(ProvideRationale!$O$22:$O$51,MATCH(E84,ProvideRationale!$E$22:$E$51,0))*100/5,"")) ->  | I84: =IFERROR(INDEX(DefineScope!$J$83:$J$112,MATCH(C84,DefineScope!$W$83:$W$112,0)),"") -> 
C85: 6 | E85: =IFERROR(INDEX(DefineScope!$E$83:$E$112,MATCH(C85,DefineScope!$W$83:$W$112,0)),"") ->  | F85: =IF(E85="","",IFERROR(INDEX(ProvideRationale!$F$22:$F$51,MATCH(E85,ProvideRationale!$E$22:$E$51,0))*100/Total_possible_score_Potential,"")) ->  | G85: =IF(E85="","",IFERROR(INDEX(ProvideRationale!$M$22:$M$51,MATCH(E85,ProvideRationale!$E$22:$E$51,0))*100/10,"")) ->  | H85: =IF(E85="","",IFERROR(INDEX(ProvideRationale!$O$22:$O$51,MATCH(E85,ProvideRationale!$E$22:$E$51,0))*100/5,"")) ->  | I85: =IFERROR(INDEX(DefineScope!$J$83:$J$112,MATCH(C85,DefineScope!$W$83:$W$112,0)),"") -> 
C86: 7 | E86: =IFERROR(INDEX(DefineScope!$E$83:$E$112,MATCH(C86,DefineScope!$W$83:$W$112,0)),"") ->  | F86: =IF(E86="","",IFERROR(INDEX(ProvideRationale!$F$22:$F$51,MATCH(E86,ProvideRationale!$E$22:$E$51,0))*100/Total_possible_score_Potential,"")) ->  | G86: =IF(E86="","",IFERROR(INDEX(ProvideRationale!$M$22:$M$51,MATCH(E86,ProvideRationale!$E$22:$E$51,0))*100/10,"")) ->  | H86: =IF(E86="","",IFERROR(INDEX(ProvideRationale!$O$22:$O$51,MATCH(E86,ProvideRationale!$E$22:$E$51,0))*100/5,"")) ->  | I86: =IFERROR(INDEX(DefineScope!$J$83:$J$112,MATCH(C86,DefineScope!$W$83:$W$112,0)),"") -> 
C87: 8 | E87: =IFERROR(INDEX(DefineScope!$E$83:$E$112,MATCH(C87,DefineScope!$W$83:$W$112,0)),"") ->  | F87: =IF(E87="","",IFERROR(INDEX(ProvideRationale!$F$22:$F$51,MATCH(E87,ProvideRationale!$E$22:$E$51,0))*100/Total_possible_score_Potential,"")) ->  | G87: =IF(E87="","",IFERROR(INDEX(ProvideRationale!$M$22:$M$51,MATCH(E87,ProvideRationale!$E$22:$E$51,0))*100/10,"")) ->  | H87: =IF(E87="","",IFERROR(INDEX(ProvideRationale!$O$22:$O$51,MATCH(E87,ProvideRationale!$E$22:$E$51,0))*100/5,"")) ->  | I87: =IFERROR(INDEX(DefineScope!$J$83:$J$112,MATCH(C87,DefineScope!$W$83:$W$112,0)),"") -> 
C88: 9 | E88: =IFERROR(INDEX(DefineScope!$E$83:$E$112,MATCH(C88,DefineScope!$W$83:$W$112,0)),"") ->  | F88: =IF(E88="","",IFERROR(INDEX(ProvideRationale!$F$22:$F$51,MATCH(E88,ProvideRationale!$E$22:$E$51,0))*100/Total_possible_score_Potential,"")) ->  | G88: =IF(E88="","",IFERROR(INDEX(ProvideRationale!$M$22:$M$51,MATCH(E88,ProvideRationale!$E$22:$E$51,0))*100/10,"")) ->  | H88: =IF(E88="","",IFERROR(INDEX(ProvideRationale!$O$22:$O$51,MATCH(E88,ProvideRationale!$E$22:$E$51,0))*100/5,"")) ->  | I88: =IFERROR(INDEX(DefineScope!$J$83:$J$112,MATCH(C88,DefineScope!$W$83:$W$112,0)),"") -> 
C89: 10 | E89: =IFERROR(INDEX(DefineScope!$E$83:$E$112,MATCH(C89,DefineScope!$W$83:$W$112,0)),"") ->  | F89: =IF(E89="","",IFERROR(INDEX(ProvideRationale!$F$22:$F$51,MATCH(E89,ProvideRationale!$E$22:$E$51,0))*100/Total_possible_score_Potential,"")) ->  | G89: =IF(E89="","",IFERROR(INDEX(ProvideRationale!$M$22:$M$51,MATCH(E89,ProvideRationale!$E$22:$E$51,0))*100/10,"")) ->  | H89: =IF(E89="","",IFERROR(INDEX(ProvideRationale!$O$22:$O$51,MATCH(E89,ProvideRationale!$E$22:$E$51,0))*100/5,"")) ->  | I89: =IFERROR(INDEX(DefineScope!$J$83:$J$112,MATCH(C89,DefineScope!$W$83:$W$112,0)),"") -> 
C90: 11 | E90: =IFERROR(INDEX(DefineScope!$E$83:$E$112,MATCH(C90,DefineScope!$W$83:$W$112,0)),"") ->  | F90: =IF(E90="","",IFERROR(INDEX(ProvideRationale!$F$22:$F$51,MATCH(E90,ProvideRationale!$E$22:$E$51,0))*100/Total_possible_score_Potential,"")) ->  | G90: =IF(E90="","",IFERROR(INDEX(ProvideRationale!$M$22:$M$51,MATCH(E90,ProvideRationale!$E$22:$E$51,0))*100/10,"")) ->  | H90: =IF(E90="","",IFERROR(INDEX(ProvideRationale!$O$22:$O$51,MATCH(E90,ProvideRationale!$E$22:$E$51,0))*100/5,"")) ->  | I90: =IFERROR(INDEX(DefineScope!$J$83:$J$112,MATCH(C90,DefineScope!$W$83:$W$112,0)),"") -> 
C91: 12 | E91: =IFERROR(INDEX(DefineScope!$E$83:$E$112,MATCH(C91,DefineScope!$W$83:$W$112,0)),"") ->  | F91: =IF(E91="","",IFERROR(INDEX(ProvideRationale!$F$22:$F$51,MATCH(E91,ProvideRationale!$E$22:$E$51,0))*100/Total_possible_score_Potential,"")) ->  | G91: =IF(E91="","",IFERROR(INDEX(ProvideRationale!$M$22:$M$51,MATCH(E91,ProvideRationale!$E$22:$E$51,0))*100/10,"")) ->  | H91: =IF(E91="","",IFERROR(INDEX(ProvideRationale!$O$22:$O$51,MATCH(E91,ProvideRationale!$E$22:$E$51,0))*100/5,"")) ->  | I91: =IFERROR(INDEX(DefineScope!$J$83:$J$112,MATCH(C91,DefineScope!$W$83:$W$112,0)),"") -> 
C92: 13 | E92: =IFERROR(INDEX(DefineScope!$E$83:$E$112,MATCH(C92,DefineScope!$W$83:$W$112,0)),"") ->  | F92: =IF(E92="","",IFERROR(INDEX(ProvideRationale!$F$22:$F$51,MATCH(E92,ProvideRationale!$E$22:$E$51,0))*100/Total_possible_score_Potential,"")) ->  | G92: =IF(E92="","",IFERROR(INDEX(ProvideRationale!$M$22:$M$51,MATCH(E92,ProvideRationale!$E$22:$E$51,0))*100/10,"")) ->  | H92: =IF(E92="","",IFERROR(INDEX(ProvideRationale!$O$22:$O$51,MATCH(E92,ProvideRationale!$E$22:$E$51,0))*100/5,"")) ->  | I92: =IFERROR(INDEX(DefineScope!$J$83:$J$112,MATCH(C92,DefineScope!$W$83:$W$112,0)),"") -> 
C93: 14 | E93: =IFERROR(INDEX(DefineScope!$E$83:$E$112,MATCH(C93,DefineScope!$W$83:$W$112,0)),"") ->  | F93: =IF(E93="","",IFERROR(INDEX(ProvideRationale!$F$22:$F$51,MATCH(E93,ProvideRationale!$E$22:$E$51,0))*100/Total_possible_score_Potential,"")) ->  | G93: =IF(E93="","",IFERROR(INDEX(ProvideRationale!$M$22:$M$51,MATCH(E93,ProvideRationale!$E$22:$E$51,0))*100/10,"")) ->  | H93: =IF(E93="","",IFERROR(INDEX(ProvideRationale!$O$22:$O$51,MATCH(E93,ProvideRationale!$E$22:$E$51,0))*100/5,"")) ->  | I93: =IFERROR(INDEX(DefineScope!$J$83:$J$112,MATCH(C93,DefineScope!$W$83:$W$112,0)),"") -> 
C94: 15 | E94: =IFERROR(INDEX(DefineScope!$E$83:$E$112,MATCH(C94,DefineScope!$W$83:$W$112,0)),"") ->  | F94: =IF(E94="","",IFERROR(INDEX(ProvideRationale!$F$22:$F$51,MATCH(E94,ProvideRationale!$E$22:$E$51,0))*100/Total_possible_score_Potential,"")) ->  | G94: =IF(E94="","",IFERROR(INDEX(ProvideRationale!$M$22:$M$51,MATCH(E94,ProvideRationale!$E$22:$E$51,0))*100/10,"")) ->  | H94: =IF(E94="","",IFERROR(INDEX(ProvideRationale!$O$22:$O$51,MATCH(E94,ProvideRationale!$E$22:$E$51,0))*100/5,"")) ->  | I94: =IFERROR(INDEX(DefineScope!$J$83:$J$112,MATCH(C94,DefineScope!$W$83:$W$112,0)),"") -> 
C95: 16 | E95: =IFERROR(INDEX(DefineScope!$E$83:$E$112,MATCH(C95,DefineScope!$W$83:$W$112,0)),"") ->  | F95: =IF(E95="","",IFERROR(INDEX(ProvideRationale!$F$22:$F$51,MATCH(E95,ProvideRationale!$E$22:$E$51,0))*100/Total_possible_score_Potential,"")) ->  | G95: =IF(E95="","",IFERROR(INDEX(ProvideRationale!$M$22:$M$51,MATCH(E95,ProvideRationale!$E$22:$E$51,0))*100/10,"")) ->  | H95: =IF(E95="","",IFERROR(INDEX(ProvideRationale!$O$22:$O$51,MATCH(E95,ProvideRationale!$E$22:$E$51,0))*100/5,"")) ->  | I95: =IFERROR(INDEX(DefineScope!$J$83:$J$112,MATCH(C95,DefineScope!$W$83:$W$112,0)),"") -> 
C96: 17 | E96: =IFERROR(INDEX(DefineScope!$E$83:$E$112,MATCH(C96,DefineScope!$W$83:$W$112,0)),"") ->  | F96: =IF(E96="","",IFERROR(INDEX(ProvideRationale!$F$22:$F$51,MATCH(E96,ProvideRationale!$E$22:$E$51,0))*100/Total_possible_score_Potential,"")) ->  | G96: =IF(E96="","",IFERROR(INDEX(ProvideRationale!$M$22:$M$51,MATCH(E96,ProvideRationale!$E$22:$E$51,0))*100/10,"")) ->  | H96: =IF(E96="","",IFERROR(INDEX(ProvideRationale!$O$22:$O$51,MATCH(E96,ProvideRationale!$E$22:$E$51,0))*100/5,"")) ->  | I96: =IFERROR(INDEX(DefineScope!$J$83:$J$112,MATCH(C96,DefineScope!$W$83:$W$112,0)),"") -> 
C97: 18 | E97: =IFERROR(INDEX(DefineScope!$E$83:$E$112,MATCH(C97,DefineScope!$W$83:$W$112,0)),"") ->  | F97: =IF(E97="","",IFERROR(INDEX(ProvideRationale!$F$22:$F$51,MATCH(E97,ProvideRationale!$E$22:$E$51,0))*100/Total_possible_score_Potential,"")) ->  | G97: =IF(E97="","",IFERROR(INDEX(ProvideRationale!$M$22:$M$51,MATCH(E97,ProvideRationale!$E$22:$E$51,0))*100/10,"")) ->  | H97: =IF(E97="","",IFERROR(INDEX(ProvideRationale!$O$22:$O$51,MATCH(E97,ProvideRationale!$E$22:$E$51,0))*100/5,"")) ->  | I97: =IFERROR(INDEX(DefineScope!$J$83:$J$112,MATCH(C97,DefineScope!$W$83:$W$112,0)),"") -> 
C98: 19 | E98: =IFERROR(INDEX(DefineScope!$E$83:$E$112,MATCH(C98,DefineScope!$W$83:$W$112,0)),"") ->  | F98: =IF(E98="","",IFERROR(INDEX(ProvideRationale!$F$22:$F$51,MATCH(E98,ProvideRationale!$E$22:$E$51,0))*100/Total_possible_score_Potential,"")) ->  | G98: =IF(E98="","",IFERROR(INDEX(ProvideRationale!$M$22:$M$51,MATCH(E98,ProvideRationale!$E$22:$E$51,0))*100/10,"")) ->  | H98: =IF(E98="","",IFERROR(INDEX(ProvideRationale!$O$22:$O$51,MATCH(E98,ProvideRationale!$E$22:$E$51,0))*100/5,"")) ->  | I98: =IFERROR(INDEX(DefineScope!$J$83:$J$112,MATCH(C98,DefineScope!$W$83:$W$112,0)),"") -> 
C99: 20 | E99: =IFERROR(INDEX(DefineScope!$E$83:$E$112,MATCH(C99,DefineScope!$W$83:$W$112,0)),"") ->  | F99: =IF(E99="","",IFERROR(INDEX(ProvideRationale!$F$22:$F$51,MATCH(E99,ProvideRationale!$E$22:$E$51,0))*100/Total_possible_score_Potential,"")) ->  | G99: =IF(E99="","",IFERROR(INDEX(ProvideRationale!$M$22:$M$51,MATCH(E99,ProvideRationale!$E$22:$E$51,0))*100/10,"")) ->  | H99: =IF(E99="","",IFERROR(INDEX(ProvideRationale!$O$22:$O$51,MATCH(E99,ProvideRationale!$E$22:$E$51,0))*100/5,"")) ->  | I99: =IFERROR(INDEX(DefineScope!$J$83:$J$112,MATCH(C99,DefineScope!$W$83:$W$112,0)),"") -> 
C100: 21 | E100: =IFERROR(INDEX(DefineScope!$E$83:$E$112,MATCH(C100,DefineScope!$W$83:$W$112,0)),"") ->  | F100: =IF(E100="","",IFERROR(INDEX(ProvideRationale!$F$22:$F$51,MATCH(E100,ProvideRationale!$E$22:$E$51,0))*100/Total_possible_score_Potential,"")) ->  | G100: =IF(E100="","",IFERROR(INDEX(ProvideRationale!$M$22:$M$51,MATCH(E100,ProvideRationale!$E$22:$E$51,0))*100/10,"")) ->  | H100: =IF(E100="","",IFERROR(INDEX(ProvideRationale!$O$22:$O$51,MATCH(E100,ProvideRationale!$E$22:$E$51,0))*100/5,"")) ->  | I100: =IFERROR(INDEX(DefineScope!$J$83:$J$112,MATCH(C100,DefineScope!$W$83:$W$112,0)),"") -> 
C101: 22 | E101: =IFERROR(INDEX(DefineScope!$E$83:$E$112,MATCH(C101,DefineScope!$W$83:$W$112,0)),"") ->  | F101: =IF(E101="","",IFERROR(INDEX(ProvideRationale!$F$22:$F$51,MATCH(E101,ProvideRationale!$E$22:$E$51,0))*100/Total_possible_score_Potential,"")) ->  | G101: =IF(E101="","",IFERROR(INDEX(ProvideRationale!$M$22:$M$51,MATCH(E101,ProvideRationale!$E$22:$E$51,0))*100/10,"")) ->  | H101: =IF(E101="","",IFERROR(INDEX(ProvideRationale!$O$22:$O$51,MATCH(E101,ProvideRationale!$E$22:$E$51,0))*100/5,"")) ->  | I101: =IFERROR(INDEX(DefineScope!$J$83:$J$112,MATCH(C101,DefineScope!$W$83:$W$112,0)),"") -> 
C102: 23 | E102: =IFERROR(INDEX(DefineScope!$E$83:$E$112,MATCH(C102,DefineScope!$W$83:$W$112,0)),"") ->  | F102: =IF(E102="","",IFERROR(INDEX(ProvideRationale!$F$22:$F$51,MATCH(E102,ProvideRationale!$E$22:$E$51,0))*100/Total_possible_score_Potential,"")) ->  | G102: =IF(E102="","",IFERROR(INDEX(ProvideRationale!$M$22:$M$51,MATCH(E102,ProvideRationale!$E$22:$E$51,0))*100/10,"")) ->  | H102: =IF(E102="","",IFERROR(INDEX(ProvideRationale!$O$22:$O$51,MATCH(E102,ProvideRationale!$E$22:$E$51,0))*100/5,"")) ->  | I102: =IFERROR(INDEX(DefineScope!$J$83:$J$112,MATCH(C102,DefineScope!$W$83:$W$112,0)),"") -> 
C103: 24 | E103: =IFERROR(INDEX(DefineScope!$E$83:$E$112,MATCH(C103,DefineScope!$W$83:$W$112,0)),"") ->  | F103: =IF(E103="","",IFERROR(INDEX(ProvideRationale!$F$22:$F$51,MATCH(E103,ProvideRationale!$E$22:$E$51,0))*100/Total_possible_score_Potential,"")) ->  | G103: =IF(E103="","",IFERROR(INDEX(ProvideRationale!$M$22:$M$51,MATCH(E103,ProvideRationale!$E$22:$E$51,0))*100/10,"")) ->  | H103: =IF(E103="","",IFERROR(INDEX(ProvideRationale!$O$22:$O$51,MATCH(E103,ProvideRationale!$E$22:$E$51,0))*100/5,"")) ->  | I103: =IFERROR(INDEX(DefineScope!$J$83:$J$112,MATCH(C103,DefineScope!$W$83:$W$112,0)),"") -> 
C104: 25 | E104: =IFERROR(INDEX(DefineScope!$E$83:$E$112,MATCH(C104,DefineScope!$W$83:$W$112,0)),"") ->  | F104: =IF(E104="","",IFERROR(INDEX(ProvideRationale!$F$22:$F$51,MATCH(E104,ProvideRationale!$E$22:$E$51,0))*100/Total_possible_score_Potential,"")) ->  | G104: =IF(E104="","",IFERROR(INDEX(ProvideRationale!$M$22:$M$51,MATCH(E104,ProvideRationale!$E$22:$E$51,0))*100/10,"")) ->  | H104: =IF(E104="","",IFERROR(INDEX(ProvideRationale!$O$22:$O$51,MATCH(E104,ProvideRationale!$E$22:$E$51,0))*100/5,"")) ->  | I104: =IFERROR(INDEX(DefineScope!$J$83:$J$112,MATCH(C104,DefineScope!$W$83:$W$112,0)),"") -> 
C105: 26 | E105: =IFERROR(INDEX(DefineScope!$E$83:$E$112,MATCH(C105,DefineScope!$W$83:$W$112,0)),"") ->  | F105: =IF(E105="","",IFERROR(INDEX(ProvideRationale!$F$22:$F$51,MATCH(E105,ProvideRationale!$E$22:$E$51,0))*100/Total_possible_score_Potential,"")) ->  | G105: =IF(E105="","",IFERROR(INDEX(ProvideRationale!$M$22:$M$51,MATCH(E105,ProvideRationale!$E$22:$E$51,0))*100/10,"")) ->  | H105: =IF(E105="","",IFERROR(INDEX(ProvideRationale!$O$22:$O$51,MATCH(E105,ProvideRationale!$E$22:$E$51,0))*100/5,"")) ->  | I105: =IFERROR(INDEX(DefineScope!$J$83:$J$112,MATCH(C105,DefineScope!$W$83:$W$112,0)),"") -> 
C106: 27 | E106: =IFERROR(INDEX(DefineScope!$E$83:$E$112,MATCH(C106,DefineScope!$W$83:$W$112,0)),"") ->  | F106: =IF(E106="","",IFERROR(INDEX(ProvideRationale!$F$22:$F$51,MATCH(E106,ProvideRationale!$E$22:$E$51,0))*100/Total_possible_score_Potential,"")) ->  | G106: =IF(E106="","",IFERROR(INDEX(ProvideRationale!$M$22:$M$51,MATCH(E106,ProvideRationale!$E$22:$E$51,0))*100/10,"")) ->  | H106: =IF(E106="","",IFERROR(INDEX(ProvideRationale!$O$22:$O$51,MATCH(E106,ProvideRationale!$E$22:$E$51,0))*100/5,"")) ->  | I106: =IFERROR(INDEX(DefineScope!$J$83:$J$112,MATCH(C106,DefineScope!$W$83:$W$112,0)),"") -> 
C107: 28 | E107: =IFERROR(INDEX(DefineScope!$E$83:$E$112,MATCH(C107,DefineScope!$W$83:$W$112,0)),"") ->  | F107: =IF(E107="","",IFERROR(INDEX(ProvideRationale!$F$22:$F$51,MATCH(E107,ProvideRationale!$E$22:$E$51,0))*100/Total_possible_score_Potential,"")) ->  | G107: =IF(E107="","",IFERROR(INDEX(ProvideRationale!$M$22:$M$51,MATCH(E107,ProvideRationale!$E$22:$E$51,0))*100/10,"")) ->  | H107: =IF(E107="","",IFERROR(INDEX(ProvideRationale!$O$22:$O$51,MATCH(E107,ProvideRationale!$E$22:$E$51,0))*100/5,"")) ->  | I107: =IFERROR(INDEX(DefineScope!$J$83:$J$112,MATCH(C107,DefineScope!$W$83:$W$112,0)),"") -> 
C108: 29 | E108: =IFERROR(INDEX(DefineScope!$E$83:$E$112,MATCH(C108,DefineScope!$W$83:$W$112,0)),"") ->  | F108: =IF(E108="","",IFERROR(INDEX(ProvideRationale!$F$22:$F$51,MATCH(E108,ProvideRationale!$E$22:$E$51,0))*100/Total_possible_score_Potential,"")) ->  | G108: =IF(E108="","",IFERROR(INDEX(ProvideRationale!$M$22:$M$51,MATCH(E108,ProvideRationale!$E$22:$E$51,0))*100/10,"")) ->  | H108: =IF(E108="","",IFERROR(INDEX(ProvideRationale!$O$22:$O$51,MATCH(E108,ProvideRationale!$E$22:$E$51,0))*100/5,"")) ->  | I108: =IFERROR(INDEX(DefineScope!$J$83:$J$112,MATCH(C108,DefineScope!$W$83:$W$112,0)),"") -> 
C109: 30 | E109: =IFERROR(INDEX(DefineScope!$E$83:$E$112,MATCH(C109,DefineScope!$W$83:$W$112,0)),"") ->  | F109: =IF(E109="","",IFERROR(INDEX(ProvideRationale!$F$22:$F$51,MATCH(E109,ProvideRationale!$E$22:$E$51,0))*100/Total_possible_score_Potential,"")) ->  | G109: =IF(E109="","",IFERROR(INDEX(ProvideRationale!$M$22:$M$51,MATCH(E109,ProvideRationale!$E$22:$E$51,0))*100/10,"")) ->  | H109: =IF(E109="","",IFERROR(INDEX(ProvideRationale!$O$22:$O$51,MATCH(E109,ProvideRationale!$E$22:$E$51,0))*100/5,"")) ->  | I109: =IFERROR(INDEX(DefineScope!$J$83:$J$112,MATCH(C109,DefineScope!$W$83:$W$112,0)),"") -> 
E110: All Programme Areas | F110: n/a | G110: n/a | H110: n/a | I110: =SUM(I80:I109) -> 600000 | J110: n/a | O110: n/a | P110: =SUM(P80:P109) -> 17000 | Q110: =SUM(Q80:Q109) -> 617000 | R110: =Q110-I110 -> 17000 | S110: =SUM(S80:S109) -> 617000
E113: What's the benefit?
E114: The second step of the scenario modelling looks at the benefits of the prioritisation budget, compared to the equal proportion budget, in terms of Priority points. Priority points are obtained by multiplying the budget for each health area by their Potential score. By comparing the total priority points between the two budget scenarios, the relative spread of investment across high and low priority programme areas can be assessed. The difference in priority points between the two budget scenarios is then converted into a monetary value. This does not represent cash savings, but rather the extra value of the prioritisation budget, in terms of the priority points achieved for the same money. The value of 1 priority point is calculated by dividing the total amount spent in the prioritisation budget by the total priority points. For example, if the the total prioritisation budget is £200, and the total priority points for the prioritisation budget is 300 priority points, then 1 priority point is worth £200/300 = 67p. This value would then be multiplied by the difference in priority points between the two budgets to give the Added value of the prioritisation budget. Added value = [(Total Prioritisation Budget / Prioritisation Budget Priority Points)] * (Prioritisation Budget Priority Points - Equal Proportion Budget Priority Points)
F126: Priority Points
E127: Programme area | F127: Original budget | G127: Prioritisation Budget | H127: Equal Proportion Budget | I127: Difference between Prioritisation Budget and Equal Proportion Budget | J127: Added value - difference converted to monetary value (based on priority points per £)
J131: £
E132: =E80 -> E.g.1 Smoking/Tobacco | F132: =IF(E132="","",IFERROR(F80*I80,"")) -> 9000000 | G132: =IFERROR(IF(E132="","",F80*Q80),"") -> 9900000 | H132: =IFERROR(IF(E132="","",F80*S80),"") -> 9255000 | I132: =IF(E132="","",IFERROR(G132-H132,"")) -> 645000 | J132: n/a
E133: E.g.2 Obesity | F133: 8666666.667 | G133: 8753333.333 | H133: 8912222.222 | I133: -158888.8889
E134: E.g.3 Sexual Health Services | F134: 24000000 | G134: 24400000 | H134: 24680000 | I134: -280000
C139: 1
C140: =C139+1 -> 2
C141: =C140+1 -> 3
C142: 4
C143: 5
C144: 6
C145: 7
C146: 8
C147: 9
C148: 10
C149: 11
C150: 12
E162: All Programme Areas | F162: =SUM(F132:F161) -> 41666666.67 | G162: =SUM(G132:G161) -> 43053333.33 | H162: =SUM(H132:H161) -> 42847222.22 | I162: =SUM(I132:I161) -> 206111.1111 | J162: =IFERROR(I162/(G162/Q110),0) -> 2953.791163

Sheet CompareScenarios
E10: Compare your saved scenarios.
J13: 1 | K13: 1 | L13: 1 | M13: 1 | N13: 1 | O13: 2 | P13: 3 | Q13: 4 | R13: 5 | AE13: ScenarioCount | AF13: =5-COUNTIF($AF$18:$AF$22,"") -> 0 | AG13: Blank ScenarioID: | AH13: =INDEX(AE18:AE22,MATCH("",AF18:AF22,0)) -> 1
I14: Increase % | J14: =INDEX($AN$17:$AN$22,MATCH(K$13,$AL$17:$AL$22,0)) ->  | O14: =INDEX($AN$17:$AN$22,MATCH(O$13,$AL$17:$AL$22,0)) ->  | P14: =INDEX($AN$17:$AN$22,MATCH(P$13,$AL$17:$AL$22,0)) ->  | Q14: =INDEX($AN$17:$AN$22,MATCH(Q$13,$AL$17:$AL$22,0)) ->  | R14: =INDEX($AN$17:$AN$22,MATCH(R$13,$AL$17:$AL$22,0)) -> 
I15: Decrease % | J15: =INDEX($AO$17:$AO$22,MATCH(K$13,$AL$17:$AL$22,0)) ->  | O15: =INDEX($AO$17:$AO$22,MATCH(O$13,$AL$17:$AL$22,0)) ->  | P15: =INDEX($AO$17:$AO$22,MATCH(P$13,$AL$17:$AL$22,0)) ->  | Q15: =INDEX($AO$17:$AO$22,MATCH(Q$13,$AL$17:$AL$22,0)) ->  | R15: =INDEX($AO$17:$AO$22,MATCH(R$13,$AL$17:$AL$22,0)) ->  | AE15: Index table | AL15: Display table
I16: Scenario name | J16: =INDEX($AM$17:$AM$22,MATCH(J13,$AL$17:$AL$22,0)) ->  | O16: =INDEX($AM$17:$AM$22,MATCH(O13,$AL$17:$AL$22,0)) ->  | P16: =INDEX($AM$17:$AM$22,MATCH(P13,$AL$17:$AL$22,0)) ->  | Q16: =INDEX($AM$17:$AM$22,MATCH(Q13,$AL$17:$AL$22,0)) ->  | R16: =INDEX($AM$17:$AM$22,MATCH(R13,$AL$17:$AL$22,0)) -> 
E17: Programme area | F17: Potential score (out of 100) | G17: Current score (out of 100) | H17: Feasibility score (out of 100) | I17: Original budget | J17: Prioritisation budget | O17: Prioritisation budget | P17: Prioritisation budget | Q17: Prioritisation budget | R17: Prioritisation budget | AE17: Scenario ID | AF17: Scenario Name | AG17: Increase % | AH17: Decrease % | AI17: Display ? | AJ17: Display Order | AL17: Scenario ID | AM17: Scenario Name | AN17: Increase % | AO17: Decrease %
C18: 1 | E18: =IFERROR(INDEX(DefineScope!$E$83:$E$112,MATCH(C18,DefineScope!$W$83:$W$112,0)),"") -> E.g.1 Smoking/Tobacco | F18: =IF(E18="","",IFERROR(INDEX(ProvideRationale!$F$22:$F$51,MATCH(E18,ProvideRationale!$E$22:$E$51,0))*100/Total_possible_score_Potential,"")) -> 90 | G18: =IF(E18="","",IFERROR(INDEX(ProvideRationale!$M$22:$M$51,MATCH(E18,ProvideRationale!$E$22:$E$51,0))*100/10,"")) -> 0 | H18: =IF(E18="","",IFERROR(INDEX(ProvideRationale!$O$22:$O$51,MATCH(E18,ProvideRationale!$E$22:$E$51,0))*100/5,"")) -> 0 | I18: =IFERROR(INDEX(DefineScope!$J$83:$J$112,MATCH(C18,DefineScope!$W$83:$W$112,0)),"") -> 100000 | J18: =IF(OR($E18="",J$16=""),"",INDEX($AL$30:$AP$60,MATCH($C18,$AG$30:$AG$59,0),MATCH(J$16,$AL$28:$AP$28,0))) ->  | O18: =IF(OR($E18="",O$16=""),"",INDEX($AL$30:$AP$60,MATCH($C18,$AG$30:$AG$59,0),MATCH(O$16,$AL$28:$AP$28,0))) ->  | AE18: 1 | AF18: =IF(Scenario1_Name="","",TRIM(Scenario1_Name)) ->  | AG18: =IF(Scenario1_IncreasePct="","",Scenario1_IncreasePct) ->  | AH18: =IF(Scenario1_DecreasePct="","",Scenario1_DecreasePct) ->  | AI18: =IF(AF18="",0,1) -> 0 | AJ18: =IF(AI18=1,MAX($AJ$17:AJ17)+1,0) -> 0 | AL18: 1 | AM18: =IFERROR(INDEX($AF$18:$AF$22,MATCH(AL18,$AJ$18:$AJ$22,0)),"") ->  | AN18: =IFERROR(INDEX($AG$18:$AG$22,MATCH(AL18,$AJ$18:$AJ$22,0)),"") ->  | AO18: =IFERROR(INDEX($AH$18:$AH$22,MATCH(AL18,$AJ$18:$AJ$22,0)),"") -> 
C19: =C18+1 -> 2 | E19: =IFERROR(INDEX(DefineScope!$E$83:$E$112,MATCH(C19,DefineScope!$W$83:$W$112,0)),"") -> E.g.2 Obesity | F19: =IF(E19="","",IFERROR(INDEX(ProvideRationale!$F$22:$F$51,MATCH(E19,ProvideRationale!$E$22:$E$51,0))*100/Total_possible_score_Potential,"")) -> 43.33333333 | G19: =IF(E19="","",IFERROR(INDEX(ProvideRationale!$M$22:$M$51,MATCH(E19,ProvideRationale!$E$22:$E$51,0))*100/10,"")) -> 0 | H19: =IF(E19="","",IFERROR(INDEX(ProvideRationale!$O$22:$O$51,MATCH(E19,ProvideRationale!$E$22:$E$51,0))*100/5,"")) -> 0 | I19: =IFERROR(INDEX(DefineScope!$J$83:$J$112,MATCH(C19,DefineScope!$W$83:$W$112,0)),"") -> 200000 | AE19: 2 | AF19: =IF(Scenario2_Name="","",TRIM(Scenario2_Name)) ->  | AG19: =IF(Scenario2_IncreasePct="","",Scenario2_IncreasePct) ->  | AH19: =IF(Scenario2_DecreasePct="","",Scenario2_DecreasePct) ->  | AI19: =IF(AF19="",0,1) -> 0 | AJ19: =IF(AI19=1,MAX($AJ$17:AJ18)+1,0) -> 0 | AL19: 2 | AM19: =IFERROR(INDEX($AF$18:$AF$22,MATCH(AL19,$AJ$18:$AJ$22,0)),"") ->  | AN19: =IFERROR(INDEX($AG$18:$AG$22,MATCH(AL19,$AJ$18:$AJ$22,0)),"") ->  | AO19: =IFERROR(INDEX($AH$18:$AH$22,MATCH(AL19,$AJ$18:$AJ$22,0)),"") -> 
C20: =C19+1 -> 3 | E20: =IFERROR(INDEX(DefineScope!$E$83:$E$112,MATCH(C20,DefineScope!$W$83:$W$112,0)),"") -> E.g.3 Sexual Health Services | F20: =IF(E20="","",IFERROR(INDEX(ProvideRationale!$F$22:$F$51,MATCH(E20,ProvideRationale!$E$22:$E$51,0))*100/Total_possible_score_Potential,"")) -> 80 | G20: =IF(E20="","",IFERROR(INDEX(ProvideRationale!$M$22:$M$51,MATCH(E20,ProvideRationale!$E$22:$E$51,0))*100/10,"")) -> 0 | H20: =IF(E20="","",IFERROR(INDEX(ProvideRationale!$O$22:$O$51,MATCH(E20,ProvideRationale!$E$22:$E$51,0))*100/5,"")) -> 0 | I20: =IFERROR(INDEX(DefineScope!$J$83:$J$112,MATCH(C20,DefineScope!$W$83:$W$112,0)),"") -> 300000 | AE20: 3 | AF20: =IF(Scenario3_Name="","",TRIM(Scenario3_Name)) ->  | AG20: =IF(Scenario3_IncreasePct="","",Scenario3_IncreasePct) ->  | AH20: =IF(Scenario3_DecreasePct="","",Scenario3_DecreasePct) ->  | AI20: =IF(AF20="",0,1) -> 0 | AJ20: =IF(AI20=1,MAX($AJ$17:AJ19)+1,0) -> 0 | AL20: 3 | AM20: =IFERROR(INDEX($AF$18:$AF$22,MATCH(AL20,$AJ$18:$AJ$22,0)),"") ->  | AN20: =IFERROR(INDEX($AG$18:$AG$22,MATCH(AL20,$AJ$18:$AJ$22,0)),"") ->  | AO20: =IFERROR(INDEX($AH$18:$AH$22,MATCH(AL20,$AJ$18:$AJ$22,0)),"") -> 
C21: 4 | E21: =IFERROR(INDEX(DefineScope!$E$83:$E$112,MATCH(C21,DefineScope!$W$83:$W$112,0)),"") ->  | F21: =IF(E21="","",IFERROR(INDEX(ProvideRationale!$F$22:$F$51,MATCH(E21,ProvideRationale!$E$22:$E$51,0))*100/Total_possible_score_Potential,"")) ->  | G21: =IF(E21="","",IFERROR(INDEX(ProvideRationale!$M$22:$M$51,MATCH(E21,ProvideRationale!$E$22:$E$51,0))*100/10,"")) ->  | H21: =IF(E21="","",IFERROR(INDEX(ProvideRationale!$O$22:$O$51,MATCH(E21,ProvideRationale!$E$22:$E$51,0))*100/5,"")) ->  | I21: =IFERROR(INDEX(DefineScope!$J$83:$J$112,MATCH(C21,DefineScope!$W$83:$W$112,0)),"") ->  | AE21: 4 | AF21: =IF(Scenario4_Name="","",TRIM(Scenario4_Name)) ->  | AG21: =IF(Scenario4_IncreasePct="","",Scenario4_IncreasePct) ->  | AH21: =IF(Scenario4_DecreasePct="","",Scenario4_DecreasePct) ->  | AI21: =IF(AF21="",0,1) -> 0 | AJ21: =IF(AI21=1,MAX($AJ$17:AJ20)+1,0) -> 0 | AL21: 4 | AM21: =IFERROR(INDEX($AF$18:$AF$22,MATCH(AL21,$AJ$18:$AJ$22,0)),"") ->  | AN21: =IFERROR(INDEX($AG$18:$AG$22,MATCH(AL21,$AJ$18:$AJ$22,0)),"") ->  | AO21: =IFERROR(INDEX($AH$18:$AH$22,MATCH(AL21,$AJ$18:$AJ$22,0)),"") -> 
C22: 5 | E22: =IFERROR(INDEX(DefineScope!$E$83:$E$112,MATCH(C22,DefineScope!$W$83:$W$112,0)),"") ->  | F22: =IF(E22="","",IFERROR(INDEX(ProvideRationale!$F$22:$F$51,MATCH(E22,ProvideRationale!$E$22:$E$51,0))*100/Total_possible_score_Potential,"")) ->  | G22: =IF(E22="","",IFERROR(INDEX(ProvideRationale!$M$22:$M$51,MATCH(E22,ProvideRationale!$E$22:$E$51,0))*100/10,"")) ->  | H22: =IF(E22="","",IFERROR(INDEX(ProvideRationale!$O$22:$O$51,MATCH(E22,ProvideRationale!$E$22:$E$51,0))*100/5,"")) ->  | I22: =IFERROR(INDEX(DefineScope!$J$83:$J$112,MATCH(C22,DefineScope!$W$83:$W$112,0)),"") ->  | AE22: 5 | AF22: =IF(Scenario5_Name="","",TRIM(Scenario5_Name)) ->  | AG22: =IF(Scenario5_IncreasePct="","",Scenario5_IncreasePct) ->  | AH22: =IF(Scenario5_DecreasePct="","",Scenario5_DecreasePct) ->  | AI22: =IF(AF22="",0,1) -> 0 | AJ22: =IF(AI22=1,MAX($AJ$17:AJ21)+1,0) -> 0 | AL22: 5 | AM22: =IFERROR(INDEX($AF$18:$AF$22,MATCH(AL22,$AJ$18:$AJ$22,0)),"") ->  | AN22: =IFERROR(INDEX($AG$18:$AG$22,MATCH(AL22,$AJ$18:$AJ$22,0)),"") ->  | AO22: =IFERROR(INDEX($AH$18:$AH$22,MATCH(AL22,$AJ$18:$AJ$22,0)),"") -> 
C23: 6 | E23: =IFERROR(INDEX(DefineScope!$E$83:$E$112,MATCH(C23,DefineScope!$W$83:$W$112,0)),"") ->  | F23: =IF(E23="","",IFERROR(INDEX(ProvideRationale!$F$22:$F$51,MATCH(E23,ProvideRationale!$E$22:$E$51,0))*100/Total_possible_score_Potential,"")) ->  | G23: =IF(E23="","",IFERROR(INDEX(ProvideRationale!$M$22:$M$51,MATCH(E23,ProvideRationale!$E$22:$E$51,0))*100/10,"")) ->  | H23: =IF(E23="","",IFERROR(INDEX(ProvideRationale!$O$22:$O$51,MATCH(E23,ProvideRationale!$E$22:$E$51,0))*100/5,"")) ->  | I23: =IFERROR(INDEX(DefineScope!$J$83:$J$112,MATCH(C23,DefineScope!$W$83:$W$112,0)),"") -> 
C24: 7 | E24: =IFERROR(INDEX(DefineScope!$E$83:$E$112,MATCH(C24,DefineScope!$W$83:$W$112,0)),"") ->  | F24: =IF(E24="","",IFERROR(INDEX(ProvideRationale!$F$22:$F$51,MATCH(E24,ProvideRationale!$E$22:$E$51,0))*100/Total_possible_score_Potential,"")) ->  | G24: =IF(E24="","",IFERROR(INDEX(ProvideRationale!$M$22:$M$51,MATCH(E24,ProvideRationale!$E$22:$E$51,0))*100/10,"")) ->  | H24: =IF(E24="","",IFERROR(INDEX(ProvideRationale!$O$22:$O$51,MATCH(E24,ProvideRationale!$E$22:$E$51,0))*100/5,"")) ->  | I24: =IFERROR(INDEX(DefineScope!$J$83:$J$112,MATCH(C24,DefineScope!$W$83:$W$112,0)),"") -> 
C25: 8 | E25: =IFERROR(INDEX(DefineScope!$E$83:$E$112,MATCH(C25,DefineScope!$W$83:$W$112,0)),"") ->  | F25: =IF(E25="","",IFERROR(INDEX(ProvideRationale!$F$22:$F$51,MATCH(E25,ProvideRationale!$E$22:$E$51,0))*100/Total_possible_score_Potential,"")) ->  | G25: =IF(E25="","",IFERROR(INDEX(ProvideRationale!$M$22:$M$51,MATCH(E25,ProvideRationale!$E$22:$E$51,0))*100/10,"")) ->  | H25: =IF(E25="","",IFERROR(INDEX(ProvideRationale!$O$22:$O$51,MATCH(E25,ProvideRationale!$E$22:$E$51,0))*100/5,"")) ->  | I25: =IFERROR(INDEX(DefineScope!$J$83:$J$112,MATCH(C25,DefineScope!$W$83:$W$112,0)),"") ->  | AL25: =IFERROR(INDEX($AL$17:$AL$22,MATCH(AL28,$AM$17:$AM$22,0)),"") -> 1 | AM25: =IFERROR(INDEX($AL$17:$AL$22,MATCH(AM28,$AM$17:$AM$22,0)),"") -> 1 | AN25: =IFERROR(INDEX($AL$17:$AL$22,MATCH(AN28,$AM$17:$AM$22,0)),"") -> 1 | AO25: =IFERROR(INDEX($AL$17:$AL$22,MATCH(AO28,$AM$17:$AM$22,0)),"") -> 1 | AP25: =IFERROR(INDEX($AL$17:$AL$22,MATCH(AP28,$AM$17:$AM$22,0)),"") -> 1
C26: 9 | E26: =IFERROR(INDEX(DefineScope!$E$83:$E$112,MATCH(C26,DefineScope!$W$83:$W$112,0)),"") ->  | F26: =IF(E26="","",IFERROR(INDEX(ProvideRationale!$F$22:$F$51,MATCH(E26,ProvideRationale!$E$22:$E$51,0))*100/Total_possible_score_Potential,"")) ->  | G26: =IF(E26="","",IFERROR(INDEX(ProvideRationale!$M$22:$M$51,MATCH(E26,ProvideRationale!$E$22:$E$51,0))*100/10,"")) ->  | H26: =IF(E26="","",IFERROR(INDEX(ProvideRationale!$O$22:$O$51,MATCH(E26,ProvideRationale!$E$22:$E$51,0))*100/5,"")) ->  | I26: =IFERROR(INDEX(DefineScope!$J$83:$J$112,MATCH(C26,DefineScope!$W$83:$W$112,0)),"") -> 
C27: 10 | E27: =IFERROR(INDEX(DefineScope!$E$83:$E$112,MATCH(C27,DefineScope!$W$83:$W$112,0)),"") ->  | F27: =IF(E27="","",IFERROR(INDEX(ProvideRationale!$F$22:$F$51,MATCH(E27,ProvideRationale!$E$22:$E$51,0))*100/Total_possible_score_Potential,"")) ->  | G27: =IF(E27="","",IFERROR(INDEX(ProvideRationale!$M$22:$M$51,MATCH(E27,ProvideRationale!$E$22:$E$51,0))*100/10,"")) ->  | H27: =IF(E27="","",IFERROR(INDEX(ProvideRationale!$O$22:$O$51,MATCH(E27,ProvideRationale!$E$22:$E$51,0))*100/5,"")) ->  | I27: =IFERROR(INDEX(DefineScope!$J$83:$J$112,MATCH(C27,DefineScope!$W$83:$W$112,0)),"") -> 
C28: 11 | E28: =IFERROR(INDEX(DefineScope!$E$83:$E$112,MATCH(C28,DefineScope!$W$83:$W$112,0)),"") ->  | F28: =IF(E28="","",IFERROR(INDEX(ProvideRationale!$F$22:$F$51,MATCH(E28,ProvideRationale!$E$22:$E$51,0))*100/Total_possible_score_Potential,"")) ->  | G28: =IF(E28="","",IFERROR(INDEX(ProvideRationale!$M$22:$M$51,MATCH(E28,ProvideRationale!$E$22:$E$51,0))*100/10,"")) ->  | H28: =IF(E28="","",IFERROR(INDEX(ProvideRationale!$O$22:$O$51,MATCH(E28,ProvideRationale!$E$22:$E$51,0))*100/5,"")) ->  | I28: =IFERROR(INDEX(DefineScope!$J$83:$J$112,MATCH(C28,DefineScope!$W$83:$W$112,0)),"") ->  | AL28: =IF(Scenario1_Name="","",TRIM(Scenario1_Name)) ->  | AM28: =IF(Scenario2_Name="","",TRIM(Scenario2_Name)) ->  | AN28: =IF(Scenario3_Name="","",TRIM(Scenario3_Name)) ->  | AO28: =IF(Scenario4_Name="","",TRIM(Scenario4_Name)) ->  | AP28: =IF(Scenario5_Name="","",TRIM(Scenario5_Name)) -> 
C29: 12 | E29: =IFERROR(INDEX(DefineScope!$E$83:$E$112,MATCH(C29,DefineScope!$W$83:$W$112,0)),"") ->  | F29: =IF(E29="","",IFERROR(INDEX(ProvideRationale!$F$22:$F$51,MATCH(E29,ProvideRationale!$E$22:$E$51,0))*100/Total_possible_score_Potential,"")) ->  | G29: =IF(E29="","",IFERROR(INDEX(ProvideRationale!$M$22:$M$51,MATCH(E29,ProvideRationale!$E$22:$E$51,0))*100/10,"")) ->  | H29: =IF(E29="","",IFERROR(INDEX(ProvideRationale!$O$22:$O$51,MATCH(E29,ProvideRationale!$E$22:$E$51,0))*100/5,"")) ->  | I29: =IFERROR(INDEX(DefineScope!$J$83:$J$112,MATCH(C29,DefineScope!$W$83:$W$112,0)),"") ->  | AI29: Health / topic area | AJ29: Prioritisation Score (out of 100) | AK29: Original Budget | AL29: Prioritisation Budget | AM29: Prioritisation Budget | AN29: Prioritisation Budget | AO29: Prioritisation Budget | AP29: Prioritisation Budget
C30: 13 | E30: =IFERROR(INDEX(DefineScope!$E$83:$E$112,MATCH(C30,DefineScope!$W$83:$W$112,0)),"") ->  | F30: =IF(E30="","",IFERROR(INDEX(ProvideRationale!$F$22:$F$51,MATCH(E30,ProvideRationale!$E$22:$E$51,0))*100/Total_possible_score_Potential,"")) ->  | G30: =IF(E30="","",IFERROR(INDEX(ProvideRationale!$M$22:$M$51,MATCH(E30,ProvideRationale!$E$22:$E$51,0))*100/10,"")) ->  | H30: =IF(E30="","",IFERROR(INDEX(ProvideRationale!$O$22:$O$51,MATCH(E30,ProvideRationale!$E$22:$E$51,0))*100/5,"")) ->  | I30: =IFERROR(INDEX(DefineScope!$J$83:$J$112,MATCH(C30,DefineScope!$W$83:$W$112,0)),"") ->  | AG30: 1 | AI30: =IFERROR(INDEX(DefineScope!$E$83:$E$112,MATCH(AG30,DefineScope!$W$83:$W$112,0)),"") -> E.g.1 Smoking/Tobacco | AJ30: =IF(AI30="","",IFERROR(INDEX(ProvideRationale!$F$22:$F$51,MATCH(E18,ProvideRationale!$E$22:$E$51,0))*100/Total_possible_score_Potential,"")) -> 90 | AK30: =IFERROR(INDEX(DefineScope!$J$83:$J$112,MATCH(AG30,DefineScope!$W$83:$W$112,0)),"") -> 100000 | AL30: =Q64 ->  | AM30: =Q151 ->  | AN30: =Q238 ->  | AO30: =Q325 ->  | AP30: =Q412 -> 
C31: 14 | E31: =IFERROR(INDEX(DefineScope!$E$83:$E$112,MATCH(C31,DefineScope!$W$83:$W$112,0)),"") ->  | F31: =IF(E31="","",IFERROR(INDEX(ProvideRationale!$F$22:$F$51,MATCH(E31,ProvideRationale!$E$22:$E$51,0))*100/Total_possible_score_Potential,"")) ->  | G31: =IF(E31="","",IFERROR(INDEX(ProvideRationale!$M$22:$M$51,MATCH(E31,ProvideRationale!$E$22:$E$51,0))*100/10,"")) ->  | H31: =IF(E31="","",IFERROR(INDEX(ProvideRationale!$O$22:$O$51,MATCH(E31,ProvideRationale!$E$22:$E$51,0))*100/5,"")) ->  | I31: =IFERROR(INDEX(DefineScope!$J$83:$J$112,MATCH(C31,DefineScope!$W$83:$W$112,0)),"") ->  | AG31: =AG30+1 -> 2 | AI31: =IFERROR(INDEX(DefineScope!$E$83:$E$112,MATCH(AG31,DefineScope!$W$83:$W$112,0)),"") -> E.g.2 Obesity | AJ31: =IF(AI31="","",IFERROR(INDEX(ProvideRationale!$F$22:$F$51,MATCH(E19,ProvideRationale!$E$22:$E$51,0))*100/Total_possible_score_Potential,"")) -> 43.33333333 | AK31: =IFERROR(INDEX(DefineScope!$J$83:$J$112,MATCH(AG31,DefineScope!$W$83:$W$112,0)),"") -> 200000
C32: 15 | E32: =IFERROR(INDEX(DefineScope!$E$83:$E$112,MATCH(C32,DefineScope!$W$83:$W$112,0)),"") ->  | F32: =IF(E32="","",IFERROR(INDEX(ProvideRationale!$F$22:$F$51,MATCH(E32,ProvideRationale!$E$22:$E$51,0))*100/Total_possible_score_Potential,"")) ->  | G32: =IF(E32="","",IFERROR(INDEX(ProvideRationale!$M$22:$M$51,MATCH(E32,ProvideRationale!$E$22:$E$51,0))*100/10,"")) ->  | H32: =IF(E32="","",IFERROR(INDEX(ProvideRationale!$O$22:$O$51,MATCH(E32,ProvideRationale!$E$22:$E$51,0))*100/5,"")) ->  | I32: =IFERROR(INDEX(DefineScope!$J$83:$J$112,MATCH(C32,DefineScope!$W$83:$W$112,0)),"") ->  | AG32: =AG31+1 -> 3 | AI32: =IFERROR(INDEX(DefineScope!$E$83:$E$112,MATCH(AG32,DefineScope!$W$83:$W$112,0)),"") -> E.g.3 Sexual Health Services | AJ32: =IF(AI32="","",IFERROR(INDEX(ProvideRationale!$F$22:$F$51,MATCH(E20,ProvideRationale!$E$22:$E$51,0))*100/Total_possible_score_Potential,"")) -> 80 | AK32: =IFERROR(INDEX(DefineScope!$J$83:$J$112,MATCH(AG32,DefineScope!$W$83:$W$112,0)),"") -> 300000
C33: 16 | E33: =IFERROR(INDEX(DefineScope!$E$83:$E$112,MATCH(C33,DefineScope!$W$83:$W$112,0)),"") ->  | F33: =IF(E33="","",IFERROR(INDEX(ProvideRationale!$F$22:$F$51,MATCH(E33,ProvideRationale!$E$22:$E$51,0))*100/Total_possible_score_Potential,"")) ->  | G33: =IF(E33="","",IFERROR(INDEX(ProvideRationale!$M$22:$M$51,MATCH(E33,ProvideRationale!$E$22:$E$51,0))*100/10,"")) ->  | H33: =IF(E33="","",IFERROR(INDEX(ProvideRationale!$O$22:$O$51,MATCH(E33,ProvideRationale!$E$22:$E$51,0))*100/5,"")) ->  | I33: =IFERROR(INDEX(DefineScope!$J$83:$J$112,MATCH(C33,DefineScope!$W$83:$W$112,0)),"") ->  | AG33: 4 | AI33: =IFERROR(INDEX(DefineScope!$E$83:$E$112,MATCH(AG33,DefineScope!$W$83:$W$112,0)),"") ->  | AJ33: =IF(AI33="","",IFERROR(INDEX(ProvideRationale!$F$22:$F$51,MATCH(E21,ProvideRationale!$E$22:$E$51,0))*100/Total_possible_score_Potential,"")) ->  | AK33: =IFERROR(INDEX(DefineScope!$J$83:$J$112,MATCH(AG33,DefineScope!$W$83:$W$112,0)),"") -> 
C34: 17 | E34: =IFERROR(INDEX(DefineScope!$E$83:$E$112,MATCH(C34,DefineScope!$W$83:$W$112,0)),"") ->  | F34: =IF(E34="","",IFERROR(INDEX(ProvideRationale!$F$22:$F$51,MATCH(E34,ProvideRationale!$E$22:$E$51,0))*100/Total_possible_score_Potential,"")) ->  | G34: =IF(E34="","",IFERROR(INDEX(ProvideRationale!$M$22:$M$51,MATCH(E34,ProvideRationale!$E$22:$E$51,0))*100/10,"")) ->  | H34: =IF(E34="","",IFERROR(INDEX(ProvideRationale!$O$22:$O$51,MATCH(E34,ProvideRationale!$E$22:$E$51,0))*100/5,"")) ->  | I34: =IFERROR(INDEX(DefineScope!$J$83:$J$112,MATCH(C34,DefineScope!$W$83:$W$112,0)),"") ->  | AG34: 5 | AI34: =IFERROR(INDEX(DefineScope!$E$83:$E$112,MATCH(AG34,DefineScope!$W$83:$W$112,0)),"") ->  | AJ34: =IF(AI34="","",IFERROR(INDEX(ProvideRationale!$F$22:$F$51,MATCH(E22,ProvideRationale!$E$22:$E$51,0))*100/Total_possible_score_Potential,"")) ->  | AK34: =IFERROR(INDEX(DefineScope!$J$83:$J$112,MATCH(AG34,DefineScope!$W$83:$W$112,0)),"") -> 
C35: 18 | E35: =IFERROR(INDEX(DefineScope!$E$83:$E$112,MATCH(C35,DefineScope!$W$83:$W$112,0)),"") ->  | F35: =IF(E35="","",IFERROR(INDEX(ProvideRationale!$F$22:$F$51,MATCH(E35,ProvideRationale!$E$22:$E$51,0))*100/Total_possible_score_Potential,"")) ->  | G35: =IF(E35="","",IFERROR(INDEX(ProvideRationale!$M$22:$M$51,MATCH(E35,ProvideRationale!$E$22:$E$51,0))*100/10,"")) ->  | H35: =IF(E35="","",IFERROR(INDEX(ProvideRationale!$O$22:$O$51,MATCH(E35,ProvideRationale!$E$22:$E$51,0))*100/5,"")) ->  | I35: =IFERROR(INDEX(DefineScope!$J$83:$J$112,MATCH(C35,DefineScope!$W$83:$W$112,0)),"") ->  | AG35: 6 | AI35: =IFERROR(INDEX(DefineScope!$E$83:$E$112,MATCH(AG35,DefineScope!$W$83:$W$112,0)),"") ->  | AJ35: =IF(AI35="","",IFERROR(INDEX(ProvideRationale!$F$22:$F$51,MATCH(E23,ProvideRationale!$E$22:$E$51,0))*100/Total_possible_score_Potential,"")) ->  | AK35: =IFERROR(INDEX(DefineScope!$J$83:$J$112,MATCH(AG35,DefineScope!$W$83:$W$112,0)),"") -> 
C36: 19 | E36: =IFERROR(INDEX(DefineScope!$E$83:$E$112,MATCH(C36,DefineScope!$W$83:$W$112,0)),"") ->  | F36: =IF(E36="","",IFERROR(INDEX(ProvideRationale!$F$22:$F$51,MATCH(E36,ProvideRationale!$E$22:$E$51,0))*100/Total_possible_score_Potential,"")) ->  | G36: =IF(E36="","",IFERROR(INDEX(ProvideRationale!$M$22:$M$51,MATCH(E36,ProvideRationale!$E$22:$E$51,0))*100/10,"")) ->  | H36: =IF(E36="","",IFERROR(INDEX(ProvideRationale!$O$22:$O$51,MATCH(E36,ProvideRationale!$E$22:$E$51,0))*100/5,"")) ->  | I36: =IFERROR(INDEX(DefineScope!$J$83:$J$112,MATCH(C36,DefineScope!$W$83:$W$112,0)),"") ->  | AG36: 7 | AI36: =IFERROR(INDEX(DefineScope!$E$83:$E$112,MATCH(AG36,DefineScope!$W$83:$W$112,0)),"") ->  | AJ36: =IF(AI36="","",IFERROR(INDEX(ProvideRationale!$F$22:$F$51,MATCH(E24,ProvideRationale!$E$22:$E$51,0))*100/Total_possible_score_Potential,"")) ->  | AK36: =IFERROR(INDEX(DefineScope!$J$83:$J$112,MATCH(AG36,DefineScope!$W$83:$W$112,0)),"") -> 
C37: 20 | E37: =IFERROR(INDEX(DefineScope!$E$83:$E$112,MATCH(C37,DefineScope!$W$83:$W$112,0)),"") ->  | F37: =IF(E37="","",IFERROR(INDEX(ProvideRationale!$F$22:$F$51,MATCH(E37,ProvideRationale!$E$22:$E$51,0))*100/Total_possible_score_Potential,"")) ->  | G37: =IF(E37="","",IFERROR(INDEX(ProvideRationale!$M$22:$M$51,MATCH(E37,ProvideRationale!$E$22:$E$51,0))*100/10,"")) ->  | H37: =IF(E37="","",IFERROR(INDEX(ProvideRationale!$O$22:$O$51,MATCH(E37,ProvideRationale!$E$22:$E$51,0))*100/5,"")) ->  | I37: =IFERROR(INDEX(DefineScope!$J$83:$J$112,MATCH(C37,DefineScope!$W$83:$W$112,0)),"") ->  | AG37: 8 | AI37: =IFERROR(INDEX(DefineScope!$E$83:$E$112,MATCH(AG37,DefineScope!$W$83:$W$112,0)),"") ->  | AJ37: =IF(AI37="","",IFERROR(INDEX(ProvideRationale!$F$22:$F$51,MATCH(E25,ProvideRationale!$E$22:$E$51,0))*100/Total_possible_score_Potential,"")) ->  | AK37: =IFERROR(INDEX(DefineScope!$J$83:$J$112,MATCH(AG37,DefineScope!$W$83:$W$112,0)),"") -> 
C38: 21 | E38: =IFERROR(INDEX(DefineScope!$E$83:$E$112,MATCH(C38,DefineScope!$W$83:$W$112,0)),"") ->  | F38: =IF(E38="","",IFERROR(INDEX(ProvideRationale!$F$22:$F$51,MATCH(E38,ProvideRationale!$E$22:$E$51,0))*100/Total_possible_score_Potential,"")) ->  | G38: =IF(E38="","",IFERROR(INDEX(ProvideRationale!$M$22:$M$51,MATCH(E38,ProvideRationale!$E$22:$E$51,0))*100/10,"")) ->  | H38: =IF(E38="","",IFERROR(INDEX(ProvideRationale!$O$22:$O$51,MATCH(E38,ProvideRationale!$E$22:$E$51,0))*100/5,"")) ->  | I38: =IFERROR(INDEX(DefineScope!$J$83:$J$112,MATCH(C38,DefineScope!$W$83:$W$112,0)),"") ->  | AG38: 9 | AI38: =IFERROR(INDEX(DefineScope!$E$83:$E$112,MATCH(AG38,DefineScope!$W$83:$W$112,0)),"") ->  | AJ38: =IF(AI38="","",IFERROR(INDEX(ProvideRationale!$F$22:$F$51,MATCH(E26,ProvideRationale!$E$22:$E$51,0))*100/Total_possible_score_Potential,"")) ->  | AK38: =IFERROR(INDEX(DefineScope!$J$83:$J$112,MATCH(AG38,DefineScope!$W$83:$W$112,0)),"") -> 
C39: 22 | E39: =IFERROR(INDEX(DefineScope!$E$83:$E$112,MATCH(C39,DefineScope!$W$83:$W$112,0)),"") ->  | F39: =IF(E39="","",IFERROR(INDEX(ProvideRationale!$F$22:$F$51,MATCH(E39,ProvideRationale!$E$22:$E$51,0))*100/Total_possible_score_Potential,"")) ->  | G39: =IF(E39="","",IFERROR(INDEX(ProvideRationale!$M$22:$M$51,MATCH(E39,ProvideRationale!$E$22:$E$51,0))*100/10,"")) ->  | H39: =IF(E39="","",IFERROR(INDEX(ProvideRationale!$O$22:$O$51,MATCH(E39,ProvideRationale!$E$22:$E$51,0))*100/5,"")) ->  | I39: =IFERROR(INDEX(DefineScope!$J$83:$J$112,MATCH(C39,DefineScope!$W$83:$W$112,0)),"") ->  | AG39: 10 | AI39: =IFERROR(INDEX(DefineScope!$E$83:$E$112,MATCH(AG39,DefineScope!$W$83:$W$112,0)),"") ->  | AJ39: =IF(AI39="","",IFERROR(INDEX(ProvideRationale!$F$22:$F$51,MATCH(E27,ProvideRationale!$E$22:$E$51,0))*100/Total_possible_score_Potential,"")) ->  | AK39: =IFERROR(INDEX(DefineScope!$J$83:$J$112,MATCH(AG39,DefineScope!$W$83:$W$112,0)),"") -> 
C40: 23 | E40: =IFERROR(INDEX(DefineScope!$E$83:$E$112,MATCH(C40,DefineScope!$W$83:$W$112,0)),"") ->  | F40: =IF(E40="","",IFERROR(INDEX(ProvideRationale!$F$22:$F$51,MATCH(E40,ProvideRationale!$E$22:$E$51,0))*100/Total_possible_score_Potential,"")) ->  | G40: =IF(E40="","",IFERROR(INDEX(ProvideRationale!$M$22:$M$51,MATCH(E40,ProvideRationale!$E$22:$E$51,0))*100/10,"")) ->  | H40: =IF(E40="","",IFERROR(INDEX(ProvideRationale!$O$22:$O$51,MATCH(E40,ProvideRationale!$E$22:$E$51,0))*100/5,"")) ->  | I40: =IFERROR(INDEX(DefineScope!$J$83:$J$112,MATCH(C40,DefineScope!$W$83:$W$112,0)),"") ->  | AG40: 11 | AI40: =IFERROR(INDEX(DefineScope!$E$83:$E$112,MATCH(AG40,DefineScope!$W$83:$W$112,0)),"") ->  | AJ40: =IF(AI40="","",IFERROR(INDEX(ProvideRationale!$F$22:$F$51,MATCH(E28,ProvideRationale!$E$22:$E$51,0))*100/Total_possible_score_Potential,"")) ->  | AK40: =IFERROR(INDEX(DefineScope!$J$83:$J$112,MATCH(AG40,DefineScope!$W$83:$W$112,0)),"") -> 
C41: 24 | E41: =IFERROR(INDEX(DefineScope!$E$83:$E$112,MATCH(C41,DefineScope!$W$83:$W$112,0)),"") ->  | F41: =IF(E41="","",IFERROR(INDEX(ProvideRationale!$F$22:$F$51,MATCH(E41,ProvideRationale!$E$22:$E$51,0))*100/Total_possible_score_Potential,"")) ->  | G41: =IF(E41="","",IFERROR(INDEX(ProvideRationale!$M$22:$M$51,MATCH(E41,ProvideRationale!$E$22:$E$51,0))*100/10,"")) ->  | H41: =IF(E41="","",IFERROR(INDEX(ProvideRationale!$O$22:$O$51,MATCH(E41,ProvideRationale!$E$22:$E$51,0))*100/5,"")) ->  | I41: =IFERROR(INDEX(DefineScope!$J$83:$J$112,MATCH(C41,DefineScope!$W$83:$W$112,0)),"") ->  | AG41: 12 | AI41: =IFERROR(INDEX(DefineScope!$E$83:$E$112,MATCH(AG41,DefineScope!$W$83:$W$112,0)),"") ->  | AJ41: =IF(AI41="","",IFERROR(INDEX(ProvideRationale!$F$22:$F$51,MATCH(E29,ProvideRationale!$E$22:$E$51,0))*100/Total_possible_score_Potential,"")) ->  | AK41: =IFERROR(INDEX(DefineScope!$J$83:$J$112,MATCH(AG41,DefineScope!$W$83:$W$112,0)),"") -> 
C42: 25 | E42: =IFERROR(INDEX(DefineScope!$E$83:$E$112,MATCH(C42,DefineScope!$W$83:$W$112,0)),"") ->  | F42: =IF(E42="","",IFERROR(INDEX(ProvideRationale!$F$22:$F$51,MATCH(E42,ProvideRationale!$E$22:$E$51,0))*100/Total_possible_score_Potential,"")) ->  | G42: =IF(E42="","",IFERROR(INDEX(ProvideRationale!$M$22:$M$51,MATCH(E42,ProvideRationale!$E$22:$E$51,0))*100/10,"")) ->  | H42: =IF(E42="","",IFERROR(INDEX(ProvideRationale!$O$22:$O$51,MATCH(E42,ProvideRationale!$E$22:$E$51,0))*100/5,"")) ->  | I42: =IFERROR(INDEX(DefineScope!$J$83:$J$112,MATCH(C42,DefineScope!$W$83:$W$112,0)),"") ->  | AG42: 13 | AI42: =IFERROR(INDEX(DefineScope!$E$83:$E$112,MATCH(AG42,DefineScope!$W$83:$W$112,0)),"") ->  | AJ42: =IF(AI42="","",IFERROR(INDEX(ProvideRationale!$F$22:$F$51,MATCH(E30,ProvideRationale!$E$22:$E$51,0))*100/Total_possible_score_Potential,"")) ->  | AK42: =IFERROR(INDEX(DefineScope!$J$83:$J$112,MATCH(AG42,DefineScope!$W$83:$W$112,0)),"") -> 
C43: 26 | E43: =IFERROR(INDEX(DefineScope!$E$83:$E$112,MATCH(C43,DefineScope!$W$83:$W$112,0)),"") ->  | F43: =IF(E43="","",IFERROR(INDEX(ProvideRationale!$F$22:$F$51,MATCH(E43,ProvideRationale!$E$22:$E$51,0))*100/Total_possible_score_Potential,"")) ->  | G43: =IF(E43="","",IFERROR(INDEX(ProvideRationale!$M$22:$M$51,MATCH(E43,ProvideRationale!$E$22:$E$51,0))*100/10,"")) ->  | H43: =IF(E43="","",IFERROR(INDEX(ProvideRationale!$O$22:$O$51,MATCH(E43,ProvideRationale!$E$22:$E$51,0))*100/5,"")) ->  | I43: =IFERROR(INDEX(DefineScope!$J$83:$J$112,MATCH(C43,DefineScope!$W$83:$W$112,0)),"") ->  | AG43: 14 | AI43: =IFERROR(INDEX(DefineScope!$E$83:$E$112,MATCH(AG43,DefineScope!$W$83:$W$112,0)),"") ->  | AJ43: =IF(AI43="","",IFERROR(INDEX(ProvideRationale!$F$22:$F$51,MATCH(E31,ProvideRationale!$E$22:$E$51,0))*100/Total_possible_score_Potential,"")) ->  | AK43: =IFERROR(INDEX(DefineScope!$J$83:$J$112,MATCH(AG43,DefineScope!$W$83:$W$112,0)),"") -> 
C44: 27 | E44: =IFERROR(INDEX(DefineScope!$E$83:$E$112,MATCH(C44,DefineScope!$W$83:$W$112,0)),"") ->  | F44: =IF(E44="","",IFERROR(INDEX(ProvideRationale!$F$22:$F$51,MATCH(E44,ProvideRationale!$E$22:$E$51,0))*100/Total_possible_score_Potential,"")) ->  | G44: =IF(E44="","",IFERROR(INDEX(ProvideRationale!$M$22:$M$51,MATCH(E44,ProvideRationale!$E$22:$E$51,0))*100/10,"")) ->  | H44: =IF(E44="","",IFERROR(INDEX(ProvideRationale!$O$22:$O$51,MATCH(E44,ProvideRationale!$E$22:$E$51,0))*100/5,"")) ->  | I44: =IFERROR(INDEX(DefineScope!$J$83:$J$112,MATCH(C44,DefineScope!$W$83:$W$112,0)),"") ->  | AG44: 15 | AI44: =IFERROR(INDEX(DefineScope!$E$83:$E$112,MATCH(AG44,DefineScope!$W$83:$W$112,0)),"") ->  | AJ44: =IF(AI44="","",IFERROR(INDEX(ProvideRationale!$F$22:$F$51,MATCH(E32,ProvideRationale!$E$22:$E$51,0))*100/Total_possible_score_Potential,"")) ->  | AK44: =IFERROR(INDEX(DefineScope!$J$83:$J$112,MATCH(AG44,DefineScope!$W$83:$W$112,0)),"") -> 
C45: 28 | E45: =IFERROR(INDEX(DefineScope!$E$83:$E$112,MATCH(C45,DefineScope!$W$83:$W$112,0)),"") ->  | F45: =IF(E45="","",IFERROR(INDEX(ProvideRationale!$F$22:$F$51,MATCH(E45,ProvideRationale!$E$22:$E$51,0))*100/Total_possible_score_Potential,"")) ->  | G45: =IF(E45="","",IFERROR(INDEX(ProvideRationale!$M$22:$M$51,MATCH(E45,ProvideRationale!$E$22:$E$51,0))*100/10,"")) ->  | H45: =IF(E45="","",IFERROR(INDEX(ProvideRationale!$O$22:$O$51,MATCH(E45,ProvideRationale!$E$22:$E$51,0))*100/5,"")) ->  | I45: =IFERROR(INDEX(DefineScope!$J$83:$J$112,MATCH(C45,DefineScope!$W$83:$W$112,0)),"") ->  | AG45: 16 | AI45: =IFERROR(INDEX(DefineScope!$E$83:$E$112,MATCH(AG45,DefineScope!$W$83:$W$112,0)),"") ->  | AJ45: =IF(AI45="","",IFERROR(INDEX(ProvideRationale!$F$22:$F$51,MATCH(E33,ProvideRationale!$E$22:$E$51,0))*100/Total_possible_score_Potential,"")) ->  | AK45: =IFERROR(INDEX(DefineScope!$J$83:$J$112,MATCH(AG45,DefineScope!$W$83:$W$112,0)),"") -> 
C46: 29 | E46: =IFERROR(INDEX(DefineScope!$E$83:$E$112,MATCH(C46,DefineScope!$W$83:$W$112,0)),"") ->  | F46: =IF(E46="","",IFERROR(INDEX(ProvideRationale!$F$22:$F$51,MATCH(E46,ProvideRationale!$E$22:$E$51,0))*100/Total_possible_score_Potential,"")) ->  | G46: =IF(E46="","",IFERROR(INDEX(ProvideRationale!$M$22:$M$51,MATCH(E46,ProvideRationale!$E$22:$E$51,0))*100/10,"")) ->  | H46: =IF(E46="","",IFERROR(INDEX(ProvideRationale!$O$22:$O$51,MATCH(E46,ProvideRationale!$E$22:$E$51,0))*100/5,"")) ->  | I46: =IFERROR(INDEX(DefineScope!$J$83:$J$112,MATCH(C46,DefineScope!$W$83:$W$112,0)),"") ->  | AG46: 17 | AI46: =IFERROR(INDEX(DefineScope!$E$83:$E$112,MATCH(AG46,DefineScope!$W$83:$W$112,0)),"") ->  | AJ46: =IF(AI46="","",IFERROR(INDEX(ProvideRationale!$F$22:$F$51,MATCH(E34,ProvideRationale!$E$22:$E$51,0))*100/Total_possible_score_Potential,"")) ->  | AK46: =IFERROR(INDEX(DefineScope!$J$83:$J$112,MATCH(AG46,DefineScope!$W$83:$W$112,0)),"") -> 
C47: 30 | E47: =IFERROR(INDEX(DefineScope!$E$83:$E$112,MATCH(C47,DefineScope!$W$83:$W$112,0)),"") ->  | F47: =IF(E47="","",IFERROR(INDEX(ProvideRationale!$F$22:$F$51,MATCH(E47,ProvideRationale!$E$22:$E$51,0))*100/Total_possible_score_Potential,"")) ->  | G47: =IF(E47="","",IFERROR(INDEX(ProvideRationale!$M$22:$M$51,MATCH(E47,ProvideRationale!$E$22:$E$51,0))*100/10,"")) ->  | H47: =IF(E47="","",IFERROR(INDEX(ProvideRationale!$O$22:$O$51,MATCH(E47,ProvideRationale!$E$22:$E$51,0))*100/5,"")) ->  | I47: =IFERROR(INDEX(DefineScope!$J$83:$J$112,MATCH(C47,DefineScope!$W$83:$W$112,0)),"") ->  | AG47: 18 | AI47: =IFERROR(INDEX(DefineScope!$E$83:$E$112,MATCH(AG47,DefineScope!$W$83:$W$112,0)),"") ->  | AJ47: =IF(AI47="","",IFERROR(INDEX(ProvideRationale!$F$22:$F$51,MATCH(E35,ProvideRationale!$E$22:$E$51,0))*100/Total_possible_score_Potential,"")) ->  | AK47: =IFERROR(INDEX(DefineScope!$J$83:$J$112,MATCH(AG47,DefineScope!$W$83:$W$112,0)),"") -> 
C48: 31 | E48: All Programme Areas | F48: n/a | G48: n/a | H48: n/a | I48: =SUM(I18:I47) -> 600000 | J48: =SUM(J18:N47) -> 0 | O48: =SUM(O18:O47) -> 0 | P48: =SUM(P18:P47) -> 0 | Q48: =SUM(Q18:Q47) -> 0 | R48: =SUM(R18:R47) -> 0 | AG48: 19 | AI48: =IFERROR(INDEX(DefineScope!$E$83:$E$112,MATCH(AG48,DefineScope!$W$83:$W$112,0)),"") ->  | AJ48: =IF(AI48="","",IFERROR(INDEX(ProvideRationale!$F$22:$F$51,MATCH(E36,ProvideRationale!$E$22:$E$51,0))*100/Total_possible_score_Potential,"")) ->  | AK48: =IFERROR(INDEX(DefineScope!$J$83:$J$112,MATCH(AG48,DefineScope!$W$83:$W$112,0)),"") -> 
AG49: 20 | AI49: =IFERROR(INDEX(DefineScope!$E$83:$E$112,MATCH(AG49,DefineScope!$W$83:$W$112,0)),"") ->  | AJ49: =IF(AI49="","",IFERROR(INDEX(ProvideRationale!$F$22:$F$51,MATCH(E37,ProvideRationale!$E$22:$E$51,0))*100/Total_possible_score_Potential,"")) ->  | AK49: =IFERROR(INDEX(DefineScope!$J$83:$J$112,MATCH(AG49,DefineScope!$W$83:$W$112,0)),"") -> 
AG50: 21 | AI50: =IFERROR(INDEX(DefineScope!$E$83:$E$112,MATCH(AG50,DefineScope!$W$83:$W$112,0)),"") ->  | AJ50: =IF(AI50="","",IFERROR(INDEX(ProvideRationale!$F$22:$F$51,MATCH(E38,ProvideRationale!$E$22:$E$51,0))*100/Total_possible_score_Potential,"")) ->  | AK50: =IFERROR(INDEX(DefineScope!$J$83:$J$112,MATCH(AG50,DefineScope!$W$83:$W$112,0)),"") -> 
AG51: 22 | AI51: =IFERROR(INDEX(DefineScope!$E$83:$E$112,MATCH(AG51,DefineScope!$W$83:$W$112,0)),"") ->  | AJ51: =IF(AI51="","",IFERROR(INDEX(ProvideRationale!$F$22:$F$51,MATCH(E39,ProvideRationale!$E$22:$E$51,0))*100/Total_possible_score_Potential,"")) ->  | AK51: =IFERROR(INDEX(DefineScope!$J$83:$J$112,MATCH(AG51,DefineScope!$W$83:$W$112,0)),"") -> 
AG52: 23 | AI52: =IFERROR(INDEX(DefineScope!$E$83:$E$112,MATCH(AG52,DefineScope!$W$83:$W$112,0)),"") ->  | AJ52: =IF(AI52="","",IFERROR(INDEX(ProvideRationale!$F$22:$F$51,MATCH(E40,ProvideRationale!$E$22:$E$51,0))*100/Total_possible_score_Potential,"")) ->  | AK52: =IFERROR(INDEX(DefineScope!$J$83:$J$112,MATCH(AG52,DefineScope!$W$83:$W$112,0)),"") -> 
AG53: 24 | AI53: =IFERROR(INDEX(DefineScope!$E$83:$E$112,MATCH(AG53,DefineScope!$W$83:$W$112,0)),"") ->  | AJ53: =IF(AI53="","",IFERROR(INDEX(ProvideRationale!$F$22:$F$51,MATCH(E41,ProvideRationale!$E$22:$E$51,0))*100/Total_possible_score_Potential,"")) ->  | AK53: =IFERROR(INDEX(DefineScope!$J$83:$J$112,MATCH(AG53,DefineScope!$W$83:$W$112,0)),"") -> 
AG54: 25 | AI54: =IFERROR(INDEX(DefineScope!$E$83:$E$112,MATCH(AG54,DefineScope!$W$83:$W$112,0)),"") ->  | AJ54: =IF(AI54="","",IFERROR(INDEX(ProvideRationale!$F$22:$F$51,MATCH(E42,ProvideRationale!$E$22:$E$51,0))*100/Total_possible_score_Potential,"")) ->  | AK54: =IFERROR(INDEX(DefineScope!$J$83:$J$112,MATCH(AG54,DefineScope!$W$83:$W$112,0)),"") -> 
AG55: 26 | AI55: =IFERROR(INDEX(DefineScope!$E$83:$E$112,MATCH(AG55,DefineScope!$W$83:$W$112,0)),"") ->  | AJ55: =IF(AI55="","",IFERROR(INDEX(ProvideRationale!$F$22:$F$51,MATCH(E43,ProvideRationale!$E$22:$E$51,0))*100/Total_possible_score_Potential,"")) ->  | AK55: =IFERROR(INDEX(DefineScope!$J$83:$J$112,MATCH(AG55,DefineScope!$W$83:$W$112,0)),"") -> 
S56: Delete Scenario | AG56: 27 | AI56: =IFERROR(INDEX(DefineScope!$E$83:$E$112,MATCH(AG56,DefineScope!$W$83:$W$112,0)),"") ->  | AJ56: =IF(AI56="","",IFERROR(INDEX(ProvideRationale!$F$22:$F$51,MATCH(E44,ProvideRationale!$E$22:$E$51,0))*100/Total_possible_score_Potential,"")) ->  | AK56: =IFERROR(INDEX(DefineScope!$J$83:$J$112,MATCH(AG56,DefineScope!$W$83:$W$112,0)),"") -> 
AG57: 28 | AI57: =IFERROR(INDEX(DefineScope!$E$83:$E$112,MATCH(AG57,DefineScope!$W$83:$W$112,0)),"") ->  | AJ57: =IF(AI57="","",IFERROR(INDEX(ProvideRationale!$F$22:$F$51,MATCH(E45,ProvideRationale!$E$22:$E$51,0))*100/Total_possible_score_Potential,"")) ->  | AK57: =IFERROR(INDEX(DefineScope!$J$83:$J$112,MATCH(AG57,DefineScope!$W$83:$W$112,0)),"") -> 
E58: Health / topic area | F58: Potential score (out of 100) | G58: Current score (out of 100) | H58: Feasibility score (out of 100) | I58: Original budget | J58: Spend recommendation | O58: Proportion of budget to adjust using prioritisation score | P58: If initial amount already agreed to increase/ decrease budget then enter here (use +/-) | Q58: Prioritisation budget (Calculation: (((Original Bdgt + Pre-agreed) x (% Increase/Decrease)) x Prioritisation Score%) + (Original Bdgt + Pre-agreed)) | R58: Difference between Prioritisation and Original Budgets | S58: Equal proportion budget (programme areas reduced in equal proportions so that total matches Prioritisation Budget) | AG58: 29 | AI58: =IFERROR(INDEX(DefineScope!$E$83:$E$112,MATCH(AG58,DefineScope!$W$83:$W$112,0)),"") ->  | AJ58: =IF(AI58="","",IFERROR(INDEX(ProvideRationale!$F$22:$F$51,MATCH(E46,ProvideRationale!$E$22:$E$51,0))*100/Total_possible_score_Potential,"")) ->  | AK58: =IFERROR(INDEX(DefineScope!$J$83:$J$112,MATCH(AG58,DefineScope!$W$83:$W$112,0)),"") -> 
K59: Increase | M59: % | AG59: 30 | AI59: =IFERROR(INDEX(DefineScope!$E$83:$E$112,MATCH(AG59,DefineScope!$W$83:$W$112,0)),"") ->  | AJ59: =IF(AI59="","",IFERROR(INDEX(ProvideRationale!$F$22:$F$51,MATCH(E47,ProvideRationale!$E$22:$E$51,0))*100/Total_possible_score_Potential,"")) ->  | AK59: =IFERROR(INDEX(DefineScope!$J$83:$J$112,MATCH(AG59,DefineScope!$W$83:$W$112,0)),"") -> 
K60: No Change | L60: 0 | M60: % | AG60: 31 | AI60: All Programme Areas | AJ60: n/a | AK60: =SUM(AK30:AK59) -> 600000 | AL60: n/a | AM60: n/a | AN60: =SUM(AN30:AN59) -> 0 | AO60: =SUM(AO30:AO59) -> 0 | AP60: =AO60-AK60 -> -600000
K61: Decrease | M61: %
J62: (Note: 'No Change' must be less than 'Decrease')
I63: £ | O63: % | P63: £ | Q63: £ | R63: £ | S63: £
C64: 1 | E64: =IFERROR(INDEX(DefineScope!$E$83:$E$112,MATCH(C64,DefineScope!$W$83:$W$112,0)),"") -> E.g.1 Smoking/Tobacco | F64: =IF(E64="","",IFERROR(INDEX(ProvideRationale!$F$22:$F$51,MATCH(E64,ProvideRationale!$E$22:$E$51,0))*100/Total_possible_score_Potential,"")) -> 90 | G64: =IF(E64="","",IFERROR(INDEX(ProvideRationale!$M$22:$M$51,MATCH(E64,ProvideRationale!$E$22:$E$51,0))*100/10,"")) -> 0 | H64: =IF(E64="","",IFERROR(INDEX(ProvideRationale!$O$22:$O$51,MATCH(E64,ProvideRationale!$E$22:$E$51,0))*100/5,"")) -> 0 | I64: =IFERROR(INDEX(DefineScope!$J$83:$J$112,MATCH(C64,DefineScope!$W$83:$W$112,0)),"") -> 100000 | O64: =IF(J64="","",VLOOKUP(J64,$K$59:$M$61,2,FALSE)/100) ->  | Q64: =IFERROR(IF(J64="","", IF(P64<>"",I64+P64,(IFERROR(IF(J64="Increase",(((I64)*O64)*(F64/100))+(I64), IF(J64="No Change",(((I64)*(O64)*(F64/100))+((I64)*(100%-O64))), IF(J64="Decrease",(((I64)*O64)*(F64/100))+((I64)*(100%-O64))))),"")))),"") ->  | R64: =IFERROR(Q64-I64,"") ->  | S64: =IFERROR(I64--(($R$94/($I$94/100))*(I64/100)),"") -> 0
C65: =C64+1 -> 2 | E65: =IFERROR(INDEX(DefineScope!$E$83:$E$112,MATCH(C65,DefineScope!$W$83:$W$112,0)),"") -> E.g.2 Obesity | F65: =IF(E65="","",IFERROR(INDEX(ProvideRationale!$F$22:$F$51,MATCH(E65,ProvideRationale!$E$22:$E$51,0))*100/Total_possible_score_Potential,"")) -> 43.33333333 | G65: =IF(E65="","",IFERROR(INDEX(ProvideRationale!$M$22:$M$51,MATCH(E65,ProvideRationale!$E$22:$E$51,0))*100/10,"")) -> 0 | H65: =IF(E65="","",IFERROR(INDEX(ProvideRationale!$O$22:$O$51,MATCH(E65,ProvideRationale!$E$22:$E$51,0))*100/5,"")) -> 0 | I65: =IFERROR(INDEX(DefineScope!$J$83:$J$112,MATCH(C65,DefineScope!$W$83:$W$112,0)),"") -> 200000 | Q65: =IFERROR(IF(J65="","", IF(P65<>"",I65+P65,(IFERROR(IF(J65="Increase",(((I65)*O65)*(F65/100))+(I65), IF(J65="No Change",(((I65)*(O65)*(F65/100))+((I65)*(100%-O65))), IF(J65="Decrease",(((I65)*O65)*(F65/100))+((I65)*(100%-O65))))),"")))),"") ->  | R65: =IFERROR(Q65-I65,"") ->  | S65: 0
C66: =C65+1 -> 3 | E66: =IFERROR(INDEX(DefineScope!$E$83:$E$112,MATCH(C66,DefineScope!$W$83:$W$112,0)),"") -> E.g.3 Sexual Health Services | F66: =IF(E66="","",IFERROR(INDEX(ProvideRationale!$F$22:$F$51,MATCH(E66,ProvideRationale!$E$22:$E$51,0))*100/Total_possible_score_Potential,"")) -> 80 | G66: =IF(E66="","",IFERROR(INDEX(ProvideRationale!$M$22:$M$51,MATCH(E66,ProvideRationale!$E$22:$E$51,0))*100/10,"")) -> 0 | H66: =IF(E66="","",IFERROR(INDEX(ProvideRationale!$O$22:$O$51,MATCH(E66,ProvideRationale!$E$22:$E$51,0))*100/5,"")) -> 0 | I66: =IFERROR(INDEX(DefineScope!$J$83:$J$112,MATCH(C66,DefineScope!$W$83:$W$112,0)),"") -> 300000 | S66: 0
C67: 4 | E67: =IFERROR(INDEX(DefineScope!$E$83:$E$112,MATCH(C67,DefineScope!$W$83:$W$112,0)),"") ->  | F67: =IF(E67="","",IFERROR(INDEX(ProvideRationale!$F$22:$F$51,MATCH(E67,ProvideRationale!$E$22:$E$51,0))*100/Total_possible_score_Potential,"")) ->  | G67: =IF(E67="","",IFERROR(INDEX(ProvideRationale!$M$22:$M$51,MATCH(E67,ProvideRationale!$E$22:$E$51,0))*100/10,"")) ->  | H67: =IF(E67="","",IFERROR(INDEX(ProvideRationale!$O$22:$O$51,MATCH(E67,ProvideRationale!$E$22:$E$51,0))*100/5,"")) ->  | I67: =IFERROR(INDEX(DefineScope!$J$83:$J$112,MATCH(C67,DefineScope!$W$83:$W$112,0)),"") -> 
C68: 5 | E68: =IFERROR(INDEX(DefineScope!$E$83:$E$112,MATCH(C68,DefineScope!$W$83:$W$112,0)),"") ->  | F68: =IF(E68="","",IFERROR(INDEX(ProvideRationale!$F$22:$F$51,MATCH(E68,ProvideRationale!$E$22:$E$51,0))*100/Total_possible_score_Potential,"")) ->  | G68: =IF(E68="","",IFERROR(INDEX(ProvideRationale!$M$22:$M$51,MATCH(E68,ProvideRationale!$E$22:$E$51,0))*100/10,"")) ->  | H68: =IF(E68="","",IFERROR(INDEX(ProvideRationale!$O$22:$O$51,MATCH(E68,ProvideRationale!$E$22:$E$51,0))*100/5,"")) ->  | I68: =IFERROR(INDEX(DefineScope!$J$83:$J$112,MATCH(C68,DefineScope!$W$83:$W$112,0)),"") -> 
C69: 6 | E69: =IFERROR(INDEX(DefineScope!$E$83:$E$112,MATCH(C69,DefineScope!$W$83:$W$112,0)),"") ->  | F69: =IF(E69="","",IFERROR(INDEX(ProvideRationale!$F$22:$F$51,MATCH(E69,ProvideRationale!$E$22:$E$51,0))*100/Total_possible_score_Potential,"")) ->  | G69: =IF(E69="","",IFERROR(INDEX(ProvideRationale!$M$22:$M$51,MATCH(E69,ProvideRationale!$E$22:$E$51,0))*100/10,"")) ->  | H69: =IF(E69="","",IFERROR(INDEX(ProvideRationale!$O$22:$O$51,MATCH(E69,ProvideRationale!$E$22:$E$51,0))*100/5,"")) ->  | I69: =IFERROR(INDEX(DefineScope!$J$83:$J$112,MATCH(C69,DefineScope!$W$83:$W$112,0)),"") -> 
C70: 7 | E70: =IFERROR(INDEX(DefineScope!$E$83:$E$112,MATCH(C70,DefineScope!$W$83:$W$112,0)),"") ->  | F70: =IF(E70="","",IFERROR(INDEX(ProvideRationale!$F$22:$F$51,MATCH(E70,ProvideRationale!$E$22:$E$51,0))*100/Total_possible_score_Potential,"")) ->  | G70: =IF(E70="","",IFERROR(INDEX(ProvideRationale!$M$22:$M$51,MATCH(E70,ProvideRationale!$E$22:$E$51,0))*100/10,"")) ->  | H70: =IF(E70="","",IFERROR(INDEX(ProvideRationale!$O$22:$O$51,MATCH(E70,ProvideRationale!$E$22:$E$51,0))*100/5,"")) ->  | I70: =IFERROR(INDEX(DefineScope!$J$83:$J$112,MATCH(C70,DefineScope!$W$83:$W$112,0)),"") -> 
C71: 8 | E71: =IFERROR(INDEX(DefineScope!$E$83:$E$112,MATCH(C71,DefineScope!$W$83:$W$112,0)),"") ->  | F71: =IF(E71="","",IFERROR(INDEX(ProvideRationale!$F$22:$F$51,MATCH(E71,ProvideRationale!$E$22:$E$51,0))*100/Total_possible_score_Potential,"")) ->  | G71: =IF(E71="","",IFERROR(INDEX(ProvideRationale!$M$22:$M$51,MATCH(E71,ProvideRationale!$E$22:$E$51,0))*100/10,"")) ->  | H71: =IF(E71="","",IFERROR(INDEX(ProvideRationale!$O$22:$O$51,MATCH(E71,ProvideRationale!$E$22:$E$51,0))*100/5,"")) ->  | I71: =IFERROR(INDEX(DefineScope!$J$83:$J$112,MATCH(C71,DefineScope!$W$83:$W$112,0)),"") -> 
C72: 9 | E72: =IFERROR(INDEX(DefineScope!$E$83:$E$112,MATCH(C72,DefineScope!$W$83:$W$112,0)),"") ->  | F72: =IF(E72="","",IFERROR(INDEX(ProvideRationale!$F$22:$F$51,MATCH(E72,ProvideRationale!$E$22:$E$51,0))*100/Total_possible_score_Potential,"")) ->  | G72: =IF(E72="","",IFERROR(INDEX(ProvideRationale!$M$22:$M$51,MATCH(E72,ProvideRationale!$E$22:$E$51,0))*100/10,"")) ->  | H72: =IF(E72="","",IFERROR(INDEX(ProvideRationale!$O$22:$O$51,MATCH(E72,ProvideRationale!$E$22:$E$51,0))*100/5,"")) ->  | I72: =IFERROR(INDEX(DefineScope!$J$83:$J$112,MATCH(C72,DefineScope!$W$83:$W$112,0)),"") -> 
C73: 10 | E73: =IFERROR(INDEX(DefineScope!$E$83:$E$112,MATCH(C73,DefineScope!$W$83:$W$112,0)),"") ->  | F73: =IF(E73="","",IFERROR(INDEX(ProvideRationale!$F$22:$F$51,MATCH(E73,ProvideRationale!$E$22:$E$51,0))*100/Total_possible_score_Potential,"")) ->  | G73: =IF(E73="","",IFERROR(INDEX(ProvideRationale!$M$22:$M$51,MATCH(E73,ProvideRationale!$E$22:$E$51,0))*100/10,"")) ->  | H73: =IF(E73="","",IFERROR(INDEX(ProvideRationale!$O$22:$O$51,MATCH(E73,ProvideRationale!$E$22:$E$51,0))*100/5,"")) ->  | I73: =IFERROR(INDEX(DefineScope!$J$83:$J$112,MATCH(C73,DefineScope!$W$83:$W$112,0)),"") -> 
C74: 11 | E74: =IFERROR(INDEX(DefineScope!$E$83:$E$112,MATCH(C74,DefineScope!$W$83:$W$112,0)),"") ->  | F74: =IF(E74="","",IFERROR(INDEX(ProvideRationale!$F$22:$F$51,MATCH(E74,ProvideRationale!$E$22:$E$51,0))*100/Total_possible_score_Potential,"")) ->  | G74: =IF(E74="","",IFERROR(INDEX(ProvideRationale!$M$22:$M$51,MATCH(E74,ProvideRationale!$E$22:$E$51,0))*100/10,"")) ->  | H74: =IF(E74="","",IFERROR(INDEX(ProvideRationale!$O$22:$O$51,MATCH(E74,ProvideRationale!$E$22:$E$51,0))*100/5,"")) ->  | I74: =IFERROR(INDEX(DefineScope!$J$83:$J$112,MATCH(C74,DefineScope!$W$83:$W$112,0)),"") -> 
C75: 12 | E75: =IFERROR(INDEX(DefineScope!$E$83:$E$112,MATCH(C75,DefineScope!$W$83:$W$112,0)),"") ->  | F75: =IF(E75="","",IFERROR(INDEX(ProvideRationale!$F$22:$F$51,MATCH(E75,ProvideRationale!$E$22:$E$51,0))*100/Total_possible_score_Potential,"")) ->  | G75: =IF(E75="","",IFERROR(INDEX(ProvideRationale!$M$22:$M$51,MATCH(E75,ProvideRationale!$E$22:$E$51,0))*100/10,"")) ->  | H75: =IF(E75="","",IFERROR(INDEX(ProvideRationale!$O$22:$O$51,MATCH(E75,ProvideRationale!$E$22:$E$51,0))*100/5,"")) ->  | I75: =IFERROR(INDEX(DefineScope!$J$83:$J$112,MATCH(C75,DefineScope!$W$83:$W$112,0)),"") -> 
C76: 13 | E76: =IFERROR(INDEX(DefineScope!$E$83:$E$112,MATCH(C76,DefineScope!$W$83:$W$112,0)),"") ->  | F76: =IF(E76="","",IFERROR(INDEX(ProvideRationale!$F$22:$F$51,MATCH(E76,ProvideRationale!$E$22:$E$51,0))*100/Total_possible_score_Potential,"")) ->  | G76: =IF(E76="","",IFERROR(INDEX(ProvideRationale!$M$22:$M$51,MATCH(E76,ProvideRationale!$E$22:$E$51,0))*100/10,"")) ->  | H76: =IF(E76="","",IFERROR(INDEX(ProvideRationale!$O$22:$O$51,MATCH(E76,ProvideRationale!$E$22:$E$51,0))*100/5,"")) ->  | I76: =IFERROR(INDEX(DefineScope!$J$83:$J$112,MATCH(C76,DefineScope!$W$83:$W$112,0)),"") -> 
C77: 14 | E77: =IFERROR(INDEX(DefineScope!$E$83:$E$112,MATCH(C77,DefineScope!$W$83:$W$112,0)),"") ->  | F77: =IF(E77="","",IFERROR(INDEX(ProvideRationale!$F$22:$F$51,MATCH(E77,ProvideRationale!$E$22:$E$51,0))*100/Total_possible_score_Potential,"")) ->  | G77: =IF(E77="","",IFERROR(INDEX(ProvideRationale!$M$22:$M$51,MATCH(E77,ProvideRationale!$E$22:$E$51,0))*100/10,"")) ->  | H77: =IF(E77="","",IFERROR(INDEX(ProvideRationale!$O$22:$O$51,MATCH(E77,ProvideRationale!$E$22:$E$51,0))*100/5,"")) ->  | I77: =IFERROR(INDEX(DefineScope!$J$83:$J$112,MATCH(C77,DefineScope!$W$83:$W$112,0)),"") -> 
C78: 15 | E78: =IFERROR(INDEX(DefineScope!$E$83:$E$112,MATCH(C78,DefineScope!$W$83:$W$112,0)),"") ->  | F78: =IF(E78="","",IFERROR(INDEX(ProvideRationale!$F$22:$F$51,MATCH(E78,ProvideRationale!$E$22:$E$51,0))*100/Total_possible_score_Potential,"")) ->  | G78: =IF(E78="","",IFERROR(INDEX(ProvideRationale!$M$22:$M$51,MATCH(E78,ProvideRationale!$E$22:$E$51,0))*100/10,"")) ->  | H78: =IF(E78="","",IFERROR(INDEX(ProvideRationale!$O$22:$O$51,MATCH(E78,ProvideRationale!$E$22:$E$51,0))*100/5,"")) ->  | I78: =IFERROR(INDEX(DefineScope!$J$83:$J$112,MATCH(C78,DefineScope!$W$83:$W$112,0)),"") -> 
C79: 16 | E79: =IFERROR(INDEX(DefineScope!$E$83:$E$112,MATCH(C79,DefineScope!$W$83:$W$112,0)),"") ->  | F79: =IF(E79="","",IFERROR(INDEX(ProvideRationale!$F$22:$F$51,MATCH(E79,ProvideRationale!$E$22:$E$51,0))*100/Total_possible_score_Potential,"")) ->  | G79: =IF(E79="","",IFERROR(INDEX(ProvideRationale!$M$22:$M$51,MATCH(E79,ProvideRationale!$E$22:$E$51,0))*100/10,"")) ->  | H79: =IF(E79="","",IFERROR(INDEX(ProvideRationale!$O$22:$O$51,MATCH(E79,ProvideRationale!$E$22:$E$51,0))*100/5,"")) ->  | I79: =IFERROR(INDEX(DefineScope!$J$83:$J$112,MATCH(C79,DefineScope!$W$83:$W$112,0)),"") -> 
C80: 17 | E80: =IFERROR(INDEX(DefineScope!$E$83:$E$112,MATCH(C80,DefineScope!$W$83:$W$112,0)),"") ->  | F80: =IF(E80="","",IFERROR(INDEX(ProvideRationale!$F$22:$F$51,MATCH(E80,ProvideRationale!$E$22:$E$51,0))*100/Total_possible_score_Potential,"")) ->  | G80: =IF(E80="","",IFERROR(INDEX(ProvideRationale!$M$22:$M$51,MATCH(E80,ProvideRationale!$E$22:$E$51,0))*100/10,"")) ->  | H80: =IF(E80="","",IFERROR(INDEX(ProvideRationale!$O$22:$O$51,MATCH(E80,ProvideRationale!$E$22:$E$51,0))*100/5,"")) ->  | I80: =IFERROR(INDEX(DefineScope!$J$83:$J$112,MATCH(C80,DefineScope!$W$83:$W$112,0)),"") -> 
C81: 18 | E81: =IFERROR(INDEX(DefineScope!$E$83:$E$112,MATCH(C81,DefineScope!$W$83:$W$112,0)),"") ->  | F81: =IF(E81="","",IFERROR(INDEX(ProvideRationale!$F$22:$F$51,MATCH(E81,ProvideRationale!$E$22:$E$51,0))*100/Total_possible_score_Potential,"")) ->  | G81: =IF(E81="","",IFERROR(INDEX(ProvideRationale!$M$22:$M$51,MATCH(E81,ProvideRationale!$E$22:$E$51,0))*100/10,"")) ->  | H81: =IF(E81="","",IFERROR(INDEX(ProvideRationale!$O$22:$O$51,MATCH(E81,ProvideRationale!$E$22:$E$51,0))*100/5,"")) ->  | I81: =IFERROR(INDEX(DefineScope!$J$83:$J$112,MATCH(C81,DefineScope!$W$83:$W$112,0)),"") -> 
C82: 19 | E82: =IFERROR(INDEX(DefineScope!$E$83:$E$112,MATCH(C82,DefineScope!$W$83:$W$112,0)),"") ->  | F82: =IF(E82="","",IFERROR(INDEX(ProvideRationale!$F$22:$F$51,MATCH(E82,ProvideRationale!$E$22:$E$51,0))*100/Total_possible_score_Potential,"")) ->  | G82: =IF(E82="","",IFERROR(INDEX(ProvideRationale!$M$22:$M$51,MATCH(E82,ProvideRationale!$E$22:$E$51,0))*100/10,"")) ->  | H82: =IF(E82="","",IFERROR(INDEX(ProvideRationale!$O$22:$O$51,MATCH(E82,ProvideRationale!$E$22:$E$51,0))*100/5,"")) ->  | I82: =IFERROR(INDEX(DefineScope!$J$83:$J$112,MATCH(C82,DefineScope!$W$83:$W$112,0)),"") -> 
C83: 20 | E83: =IFERROR(INDEX(DefineScope!$E$83:$E$112,MATCH(C83,DefineScope!$W$83:$W$112,0)),"") ->  | F83: =IF(E83="","",IFERROR(INDEX(ProvideRationale!$F$22:$F$51,MATCH(E83,ProvideRationale!$E$22:$E$51,0))*100/Total_possible_score_Potential,"")) ->  | G83: =IF(E83="","",IFERROR(INDEX(ProvideRationale!$M$22:$M$51,MATCH(E83,ProvideRationale!$E$22:$E$51,0))*100/10,"")) ->  | H83: =IF(E83="","",IFERROR(INDEX(ProvideRationale!$O$22:$O$51,MATCH(E83,ProvideRationale!$E$22:$E$51,0))*100/5,"")) ->  | I83: =IFERROR(INDEX(DefineScope!$J$83:$J$112,MATCH(C83,DefineScope!$W$83:$W$112,0)),"") -> 
C84: 21 | E84: =IFERROR(INDEX(DefineScope!$E$83:$E$112,MATCH(C84,DefineScope!$W$83:$W$112,0)),"") ->  | F84: =IF(E84="","",IFERROR(INDEX(ProvideRationale!$F$22:$F$51,MATCH(E84,ProvideRationale!$E$22:$E$51,0))*100/Total_possible_score_Potential,"")) ->  | G84: =IF(E84="","",IFERROR(INDEX(ProvideRationale!$M$22:$M$51,MATCH(E84,ProvideRationale!$E$22:$E$51,0))*100/10,"")) ->  | H84: =IF(E84="","",IFERROR(INDEX(ProvideRationale!$O$22:$O$51,MATCH(E84,ProvideRationale!$E$22:$E$51,0))*100/5,"")) ->  | I84: =IFERROR(INDEX(DefineScope!$J$83:$J$112,MATCH(C84,DefineScope!$W$83:$W$112,0)),"") -> 
C85: 22 | E85: =IFERROR(INDEX(DefineScope!$E$83:$E$112,MATCH(C85,DefineScope!$W$83:$W$112,0)),"") ->  | F85: =IF(E85="","",IFERROR(INDEX(ProvideRationale!$F$22:$F$51,MATCH(E85,ProvideRationale!$E$22:$E$51,0))*100/Total_possible_score_Potential,"")) ->  | G85: =IF(E85="","",IFERROR(INDEX(ProvideRationale!$M$22:$M$51,MATCH(E85,ProvideRationale!$E$22:$E$51,0))*100/10,"")) ->  | H85: =IF(E85="","",IFERROR(INDEX(ProvideRationale!$O$22:$O$51,MATCH(E85,ProvideRationale!$E$22:$E$51,0))*100/5,"")) ->  | I85: =IFERROR(INDEX(DefineScope!$J$83:$J$112,MATCH(C85,DefineScope!$W$83:$W$112,0)),"") -> 
C86: 23 | E86: =IFERROR(INDEX(DefineScope!$E$83:$E$112,MATCH(C86,DefineScope!$W$83:$W$112,0)),"") ->  | F86: =IF(E86="","",IFERROR(INDEX(ProvideRationale!$F$22:$F$51,MATCH(E86,ProvideRationale!$E$22:$E$51,0))*100/Total_possible_score_Potential,"")) ->  | G86: =IF(E86="","",IFERROR(INDEX(ProvideRationale!$M$22:$M$51,MATCH(E86,ProvideRationale!$E$22:$E$51,0))*100/10,"")) ->  | H86: =IF(E86="","",IFERROR(INDEX(ProvideRationale!$O$22:$O$51,MATCH(E86,ProvideRationale!$E$22:$E$51,0))*100/5,"")) ->  | I86: =IFERROR(INDEX(DefineScope!$J$83:$J$112,MATCH(C86,DefineScope!$W$83:$W$112,0)),"") -> 
C87: 24 | E87: =IFERROR(INDEX(DefineScope!$E$83:$E$112,MATCH(C87,DefineScope!$W$83:$W$112,0)),"") ->  | F87: =IF(E87="","",IFERROR(INDEX(ProvideRationale!$F$22:$F$51,MATCH(E87,ProvideRationale!$E$22:$E$51,0))*100/Total_possible_score_Potential,"")) ->  | G87: =IF(E87="","",IFERROR(INDEX(ProvideRationale!$M$22:$M$51,MATCH(E87,ProvideRationale!$E$22:$E$51,0))*100/10,"")) ->  | H87: =IF(E87="","",IFERROR(INDEX(ProvideRationale!$O$22:$O$51,MATCH(E87,ProvideRationale!$E$22:$E$51,0))*100/5,"")) ->  | I87: =IFERROR(INDEX(DefineScope!$J$83:$J$112,MATCH(C87,DefineScope!$W$83:$W$112,0)),"") -> 
C88: 25 | E88: =IFERROR(INDEX(DefineScope!$E$83:$E$112,MATCH(C88,DefineScope!$W$83:$W$112,0)),"") ->  | F88: =IF(E88="","",IFERROR(INDEX(ProvideRationale!$F$22:$F$51,MATCH(E88,ProvideRationale!$E$22:$E$51,0))*100/Total_possible_score_Potential,"")) ->  | G88: =IF(E88="","",IFERROR(INDEX(ProvideRationale!$M$22:$M$51,MATCH(E88,ProvideRationale!$E$22:$E$51,0))*100/10,"")) ->  | H88: =IF(E88="","",IFERROR(INDEX(ProvideRationale!$O$22:$O$51,MATCH(E88,ProvideRationale!$E$22:$E$51,0))*100/5,"")) ->  | I88: =IFERROR(INDEX(DefineScope!$J$83:$J$112,MATCH(C88,DefineScope!$W$83:$W$112,0)),"") -> 
C89: 26 | E89: =IFERROR(INDEX(DefineScope!$E$83:$E$112,MATCH(C89,DefineScope!$W$83:$W$112,0)),"") ->  | F89: =IF(E89="","",IFERROR(INDEX(ProvideRationale!$F$22:$F$51,MATCH(E89,ProvideRationale!$E$22:$E$51,0))*100/Total_possible_score_Potential,"")) ->  | G89: =IF(E89="","",IFERROR(INDEX(ProvideRationale!$M$22:$M$51,MATCH(E89,ProvideRationale!$E$22:$E$51,0))*100/10,"")) ->  | H89: =IF(E89="","",IFERROR(INDEX(ProvideRationale!$O$22:$O$51,MATCH(E89,ProvideRationale!$E$22:$E$51,0))*100/5,"")) ->  | I89: =IFERROR(INDEX(DefineScope!$J$83:$J$112,MATCH(C89,DefineScope!$W$83:$W$112,0)),"") -> 
C90: 27 | E90: =IFERROR(INDEX(DefineScope!$E$83:$E$112,MATCH(C90,DefineScope!$W$83:$W$112,0)),"") ->  | F90: =IF(E90="","",IFERROR(INDEX(ProvideRationale!$F$22:$F$51,MATCH(E90,ProvideRationale!$E$22:$E$51,0))*100/Total_possible_score_Potential,"")) ->  | G90: =IF(E90="","",IFERROR(INDEX(ProvideRationale!$M$22:$M$51,MATCH(E90,ProvideRationale!$E$22:$E$51,0))*100/10,"")) ->  | H90: =IF(E90="","",IFERROR(INDEX(ProvideRationale!$O$22:$O$51,MATCH(E90,ProvideRationale!$E$22:$E$51,0))*100/5,"")) ->  | I90: =IFERROR(INDEX(DefineScope!$J$83:$J$112,MATCH(C90,DefineScope!$W$83:$W$112,0)),"") -> 
C91: 28 | E91: =IFERROR(INDEX(DefineScope!$E$83:$E$112,MATCH(C91,DefineScope!$W$83:$W$112,0)),"") ->  | F91: =IF(E91="","",IFERROR(INDEX(ProvideRationale!$F$22:$F$51,MATCH(E91,ProvideRationale!$E$22:$E$51,0))*100/Total_possible_score_Potential,"")) ->  | G91: =IF(E91="","",IFERROR(INDEX(ProvideRationale!$M$22:$M$51,MATCH(E91,ProvideRationale!$E$22:$E$51,0))*100/10,"")) ->  | H91: =IF(E91="","",IFERROR(INDEX(ProvideRationale!$O$22:$O$51,MATCH(E91,ProvideRationale!$E$22:$E$51,0))*100/5,"")) ->  | I91: =IFERROR(INDEX(DefineScope!$J$83:$J$112,MATCH(C91,DefineScope!$W$83:$W$112,0)),"") -> 
C92: 29 | E92: =IFERROR(INDEX(DefineScope!$E$83:$E$112,MATCH(C92,DefineScope!$W$83:$W$112,0)),"") ->  | F92: =IF(E92="","",IFERROR(INDEX(ProvideRationale!$F$22:$F$51,MATCH(E92,ProvideRationale!$E$22:$E$51,0))*100/Total_possible_score_Potential,"")) ->  | G92: =IF(E92="","",IFERROR(INDEX(ProvideRationale!$M$22:$M$51,MATCH(E92,ProvideRationale!$E$22:$E$51,0))*100/10,"")) ->  | H92: =IF(E92="","",IFERROR(INDEX(ProvideRationale!$O$22:$O$51,MATCH(E92,ProvideRationale!$E$22:$E$51,0))*100/5,"")) ->  | I92: =IFERROR(INDEX(DefineScope!$J$83:$J$112,MATCH(C92,DefineScope!$W$83:$W$112,0)),"") -> 
C93: 30 | E93: =IFERROR(INDEX(DefineScope!$E$83:$E$112,MATCH(C93,DefineScope!$W$83:$W$112,0)),"") ->  | F93: =IF(E93="","",IFERROR(INDEX(ProvideRationale!$F$22:$F$51,MATCH(E93,ProvideRationale!$E$22:$E$51,0))*100/Total_possible_score_Potential,"")) ->  | G93: =IF(E93="","",IFERROR(INDEX(ProvideRationale!$M$22:$M$51,MATCH(E93,ProvideRationale!$E$22:$E$51,0))*100/10,"")) ->  | H93: =IF(E93="","",IFERROR(INDEX(ProvideRationale!$O$22:$O$51,MATCH(E93,ProvideRationale!$E$22:$E$51,0))*100/5,"")) ->  | I93: =IFERROR(INDEX(DefineScope!$J$83:$J$112,MATCH(C93,DefineScope!$W$83:$W$112,0)),"") -> 
E94: All Programme Areas | F94: n/a | G94: n/a | H94: n/a | I94: =SUM(I64:I93) -> 600000 | J94: n/a | O94: n/a | P94: =SUM(P64:P93) -> 0 | Q94: =SUM(Q64:Q93) -> 0 | R94: =Q94-I94 -> -600000 | S94: =SUM(S64:S93) -> 0
E97: What's the benefit?
F99: Priority Points
E100: Health / topic area | F100: Original Budget | G100: Prioritisation Budget | H100: Equal Proportion Budget | I100: Difference between Prioritisation Budget and Equal Proportion Budget | J100: Added Value - difference converted to cash amount (based on priority points per £)
J104: £
E105: =E64 -> E.g.1 Smoking/Tobacco | F105: =IF(E105="","",IFERROR(F64*I64,"")) -> 9000000 | G105: =IFERROR(IF(E105="","",F64*Q64),"") ->  | H105: =IFERROR(IF(E105="","",F64*S64),"") -> 0 | I105: =IF(E105="","",IFERROR(G105-H105,"")) ->  | J105: n/a
E106: =E65 -> E.g.2 Obesity | F106: =IF(E106="","",IFERROR(F65*I65,"")) -> 8666666.667 | H106: =IFERROR(IF(E106="","",F65*S65),"") -> 0
E107: =E66 -> E.g.3 Sexual Health Services | F107: 24000000 | H107: 0
E135: All Programme Areas | F135: =SUM(F105:F134) -> 41666666.67 | G135: =SUM(G105:G134) -> 0 | H135: =SUM(H105:H134) -> 0 | I135: =SUM(I105:I134) -> 0 | J135: =IFERROR(I135/(G135/Q94),0) -> 0
S143: Delete Scenario
E145: Health / topic area | F145: Potential score (out of 100) | G145: Current score (out of 100) | H145: Feasibility score (out of 100) | I145: Original Budget | J145: Spend Recommendation | O145: Proportion of budget to adjust using prioritisation score | P145: If initial amount already agreed to increase/ decrease budget then enter here (use +/-) | Q145: Prioritisation Budget (Calculation: (((Original Bdgt + Pre-agreed) x (% Increase/Decrease)) x Prioritisation Score%) + (Original Bdgt + Pre-agreed)) | R145: Difference between Prioritisation and Original Budgets | S145: Equal Proportion Budget (programme areas reduced in equal proportions so that total matches Prioritisation Budget)
K146: Increase | M146: %
K147: No Change | L147: 0 | M147: %
K148: Decrease | M148: %
J149: (Note: 'No Change' must be less than 'Decrease')
I150: £ | O150: % | P150: £ | Q150: £ | R150: £ | S150: £
C151: 1 | E151: =IFERROR(INDEX(DefineScope!$E$83:$E$112,MATCH(C151,DefineScope!$W$83:$W$112,0)),"") -> E.g.1 Smoking/Tobacco | F151: =IF(E151="","",IFERROR(INDEX(ProvideRationale!$F$22:$F$51,MATCH(E151,ProvideRationale!$E$22:$E$51,0))*100/Total_possible_score_Potential,"")) -> 90 | G151: =IF(E151="","",IFERROR(INDEX(ProvideRationale!$M$22:$M$51,MATCH(E151,ProvideRationale!$E$22:$E$51,0))*100/10,"")) -> 0 | H151: =IF(E151="","",IFERROR(INDEX(ProvideRationale!$O$22:$O$51,MATCH(E151,ProvideRationale!$E$22:$E$51,0))*100/5,"")) -> 0 | I151: =IFERROR(INDEX(DefineScope!$J$83:$J$112,MATCH(C151,DefineScope!$W$83:$W$112,0)),"") -> 100000 | O151: =IF(J151="","",VLOOKUP(J151,$K$146:$M$148,2,FALSE)/100) ->  | Q151: =IFERROR(IF(J151="","", IF(P151<>"",I151+P151,(IFERROR(IF(J151="Increase",(((I151)*O151)*(F151/100))+(I151), IF(J151="No Change",(((I151)*(O151)*(F151/100))+((I151)*(100%-O151))), IF(J151="Decrease",(((I151)*O151)*(F151/100))+((I151)*(100%-O151))))),"")))),"") ->  | R151: =IFERROR(Q151-I151,"") ->  | S151: =IFERROR(I151--(($R$181/($I$181/100))*(I151/100)),"") -> 0
C152: =C151+1 -> 2 | E152: =IFERROR(INDEX(DefineScope!$E$83:$E$112,MATCH(C152,DefineScope!$W$83:$W$112,0)),"") -> E.g.2 Obesity | F152: =IF(E152="","",IFERROR(INDEX(ProvideRationale!$F$22:$F$51,MATCH(E152,ProvideRationale!$E$22:$E$51,0))*100/Total_possible_score_Potential,"")) -> 43.33333333 | G152: =IF(E152="","",IFERROR(INDEX(ProvideRationale!$M$22:$M$51,MATCH(E152,ProvideRationale!$E$22:$E$51,0))*100/10,"")) -> 0 | H152: =IF(E152="","",IFERROR(INDEX(ProvideRationale!$O$22:$O$51,MATCH(E152,ProvideRationale!$E$22:$E$51,0))*100/5,"")) -> 0 | I152: =IFERROR(INDEX(DefineScope!$J$83:$J$112,MATCH(C152,DefineScope!$W$83:$W$112,0)),"") -> 200000 | O152: =IF(J152="","",VLOOKUP(J152,$K$146:$M$148,2,FALSE)/100) ->  | Q152: =IFERROR(IF(J152="","", IF(P152<>"",I152+P152,(IFERROR(IF(J152="Increase",(((I152)*O152)*(F152/100))+(I152), IF(J152="No Change",(((I152)*(O152)*(F152/100))+((I152)*(100%-O152))), IF(J152="Decrease",(((I152)*O152)*(F152/100))+((I152)*(100%-O152))))),"")))),"") ->  | R152: =IFERROR(Q152-I152,"") ->  | S152: =IFERROR(I152--(($R$181/($I$181/100))*(I152/100)),"") -> 0
C153: =C152+1 -> 3 | E153: =IFERROR(INDEX(DefineScope!$E$83:$E$112,MATCH(C153,DefineScope!$W$83:$W$112,0)),"") -> E.g.3 Sexual Health Services | F153: =IF(E153="","",IFERROR(INDEX(ProvideRationale!$F$22:$F$51,MATCH(E153,ProvideRationale!$E$22:$E$51,0))*100/Total_possible_score_Potential,"")) -> 80 | G153: =IF(E153="","",IFERROR(INDEX(ProvideRationale!$M$22:$M$51,MATCH(E153,ProvideRationale!$E$22:$E$51,0))*100/10,"")) -> 0 | H153: =IF(E153="","",IFERROR(INDEX(ProvideRationale!$O$22:$O$51,MATCH(E153,ProvideRationale!$E$22:$E$51,0))*100/5,"")) -> 0 | I153: =IFERROR(INDEX(DefineScope!$J$83:$J$112,MATCH(C153,DefineScope!$W$83:$W$112,0)),"") -> 300000 | S153: 0
C154: 4 | E154: =IFERROR(INDEX(DefineScope!$E$83:$E$112,MATCH(C154,DefineScope!$W$83:$W$112,0)),"") ->  | F154: =IF(E154="","",IFERROR(INDEX(ProvideRationale!$F$22:$F$51,MATCH(E154,ProvideRationale!$E$22:$E$51,0))*100/Total_possible_score_Potential,"")) ->  | G154: =IF(E154="","",IFERROR(INDEX(ProvideRationale!$M$22:$M$51,MATCH(E154,ProvideRationale!$E$22:$E$51,0))*100/10,"")) ->  | H154: =IF(E154="","",IFERROR(INDEX(ProvideRationale!$O$22:$O$51,MATCH(E154,ProvideRationale!$E$22:$E$51,0))*100/5,"")) ->  | I154: =IFERROR(INDEX(DefineScope!$J$83:$J$112,MATCH(C154,DefineScope!$W$83:$W$112,0)),"") -> 
C155: 5 | E155: =IFERROR(INDEX(DefineScope!$E$83:$E$112,MATCH(C155,DefineScope!$W$83:$W$112,0)),"") ->  | F155: =IF(E155="","",IFERROR(INDEX(ProvideRationale!$F$22:$F$51,MATCH(E155,ProvideRationale!$E$22:$E$51,0))*100/Total_possible_score_Potential,"")) ->  | G155: =IF(E155="","",IFERROR(INDEX(ProvideRationale!$M$22:$M$51,MATCH(E155,ProvideRationale!$E$22:$E$51,0))*100/10,"")) ->  | H155: =IF(E155="","",IFERROR(INDEX(ProvideRationale!$O$22:$O$51,MATCH(E155,ProvideRationale!$E$22:$E$51,0))*100/5,"")) ->  | I155: =IFERROR(INDEX(DefineScope!$J$83:$J$112,MATCH(C155,DefineScope!$W$83:$W$112,0)),"") -> 
C156: 6 | E156: =IFERROR(INDEX(DefineScope!$E$83:$E$112,MATCH(C156,DefineScope!$W$83:$W$112,0)),"") ->  | F156: =IF(E156="","",IFERROR(INDEX(ProvideRationale!$F$22:$F$51,MATCH(E156,ProvideRationale!$E$22:$E$51,0))*100/Total_possible_score_Potential,"")) ->  | G156: =IF(E156="","",IFERROR(INDEX(ProvideRationale!$M$22:$M$51,MATCH(E156,ProvideRationale!$E$22:$E$51,0))*100/10,"")) ->  | H156: =IF(E156="","",IFERROR(INDEX(ProvideRationale!$O$22:$O$51,MATCH(E156,ProvideRationale!$E$22:$E$51,0))*100/5,"")) ->  | I156: =IFERROR(INDEX(DefineScope!$J$83:$J$112,MATCH(C156,DefineScope!$W$83:$W$112,0)),"") -> 
C157: 7 | E157: =IFERROR(INDEX(DefineScope!$E$83:$E$112,MATCH(C157,DefineScope!$W$83:$W$112,0)),"") ->  | F157: =IF(E157="","",IFERROR(INDEX(ProvideRationale!$F$22:$F$51,MATCH(E157,ProvideRationale!$E$22:$E$51,0))*100/Total_possible_score_Potential,"")) ->  | G157: =IF(E157="","",IFERROR(INDEX(ProvideRationale!$M$22:$M$51,MATCH(E157,ProvideRationale!$E$22:$E$51,0))*100/10,"")) ->  | H157: =IF(E157="","",IFERROR(INDEX(ProvideRationale!$O$22:$O$51,MATCH(E157,ProvideRationale!$E$22:$E$51,0))*100/5,"")) ->  | I157: =IFERROR(INDEX(DefineScope!$J$83:$J$112,MATCH(C157,DefineScope!$W$83:$W$112,0)),"") -> 
C158: 8 | E158: =IFERROR(INDEX(DefineScope!$E$83:$E$112,MATCH(C158,DefineScope!$W$83:$W$112,0)),"") ->  | F158: =IF(E158="","",IFERROR(INDEX(ProvideRationale!$F$22:$F$51,MATCH(E158,ProvideRationale!$E$22:$E$51,0))*100/Total_possible_score_Potential,"")) ->  | G158: =IF(E158="","",IFERROR(INDEX(ProvideRationale!$M$22:$M$51,MATCH(E158,ProvideRationale!$E$22:$E$51,0))*100/10,"")) ->  | H158: =IF(E158="","",IFERROR(INDEX(ProvideRationale!$O$22:$O$51,MATCH(E158,ProvideRationale!$E$22:$E$51,0))*100/5,"")) ->  | I158: =IFERROR(INDEX(DefineScope!$J$83:$J$112,MATCH(C158,DefineScope!$W$83:$W$112,0)),"") -> 
C159: 9 | E159: =IFERROR(INDEX(DefineScope!$E$83:$E$112,MATCH(C159,DefineScope!$W$83:$W$112,0)),"") ->  | F159: =IF(E159="","",IFERROR(INDEX(ProvideRationale!$F$22:$F$51,MATCH(E159,ProvideRationale!$E$22:$E$51,0))*100/Total_possible_score_Potential,"")) ->  | G159: =IF(E159="","",IFERROR(INDEX(ProvideRationale!$M$22:$M$51,MATCH(E159,ProvideRationale!$E$22:$E$51,0))*100/10,"")) ->  | H159: =IF(E159="","",IFERROR(INDEX(ProvideRationale!$O$22:$O$51,MATCH(E159,ProvideRationale!$E$22:$E$51,0))*100/5,"")) ->  | I159: =IFERROR(INDEX(DefineScope!$J$83:$J$112,MATCH(C159,DefineScope!$W$83:$W$112,0)),"") -> 
C160: 10 | E160: =IFERROR(INDEX(DefineScope!$E$83:$E$112,MATCH(C160,DefineScope!$W$83:$W$112,0)),"") ->  | F160: =IF(E160="","",IFERROR(INDEX(ProvideRationale!$F$22:$F$51,MATCH(E160,ProvideRationale!$E$22:$E$51,0))*100/Total_possible_score_Potential,"")) ->  | G160: =IF(E160="","",IFERROR(INDEX(ProvideRationale!$M$22:$M$51,MATCH(E160,ProvideRationale!$E$22:$E$51,0))*100/10,"")) ->  | H160: =IF(E160="","",IFERROR(INDEX(ProvideRationale!$O$22:$O$51,MATCH(E160,ProvideRationale!$E$22:$E$51,0))*100/5,"")) ->  | I160: =IFERROR(INDEX(DefineScope!$J$83:$J$112,MATCH(C160,DefineScope!$W$83:$W$112,0)),"") -> 
C161: 11 | E161: =IFERROR(INDEX(DefineScope!$E$83:$E$112,MATCH(C161,DefineScope!$W$83:$W$112,0)),"") ->  | F161: =IF(E161="","",IFERROR(INDEX(ProvideRationale!$F$22:$F$51,MATCH(E161,ProvideRationale!$E$22:$E$51,0))*100/Total_possible_score_Potential,"")) ->  | G161: =IF(E161="","",IFERROR(INDEX(ProvideRationale!$M$22:$M$51,MATCH(E161,ProvideRationale!$E$22:$E$51,0))*100/10,"")) ->  | H161: =IF(E161="","",IFERROR(INDEX(ProvideRationale!$O$22:$O$51,MATCH(E161,ProvideRationale!$E$22:$E$51,0))*100/5,"")) ->  | I161: =IFERROR(INDEX(DefineScope!$J$83:$J$112,MATCH(C161,DefineScope!$W$83:$W$112,0)),"") -> 
C162: 12 | E162: =IFERROR(INDEX(DefineScope!$E$83:$E$112,MATCH(C162,DefineScope!$W$83:$W$112,0)),"") ->  | F162: =IF(E162="","",IFERROR(INDEX(ProvideRationale!$F$22:$F$51,MATCH(E162,ProvideRationale!$E$22:$E$51,0))*100/Total_possible_score_Potential,"")) ->  | G162: =IF(E162="","",IFERROR(INDEX(ProvideRationale!$M$22:$M$51,MATCH(E162,ProvideRationale!$E$22:$E$51,0))*100/10,"")) ->  | H162: =IF(E162="","",IFERROR(INDEX(ProvideRationale!$O$22:$O$51,MATCH(E162,ProvideRationale!$E$22:$E$51,0))*100/5,"")) ->  | I162: =IFERROR(INDEX(DefineScope!$J$83:$J$112,MATCH(C162,DefineScope!$W$83:$W$112,0)),"") -> 
C163: 13 | E163: =IFERROR(INDEX(DefineScope!$E$83:$E$112,MATCH(C163,DefineScope!$W$83:$W$112,0)),"") ->  | F163: =IF(E163="","",IFERROR(INDEX(ProvideRationale!$F$22:$F$51,MATCH(E163,ProvideRationale!$E$22:$E$51,0))*100/Total_possible_score_Potential,"")) ->  | G163: =IF(E163="","",IFERROR(INDEX(ProvideRationale!$M$22:$M$51,MATCH(E163,ProvideRationale!$E$22:$E$51,0))*100/10,"")) ->  | H163: =IF(E163="","",IFERROR(INDEX(ProvideRationale!$O$22:$O$51,MATCH(E163,ProvideRationale!$E$22:$E$51,0))*100/5,"")) ->  | I163: =IFERROR(INDEX(DefineScope!$J$83:$J$112,MATCH(C163,DefineScope!$W$83:$W$112,0)),"") -> 
C164: 14 | E164: =IFERROR(INDEX(DefineScope!$E$83:$E$112,MATCH(C164,DefineScope!$W$83:$W$112,0)),"") ->  | F164: =IF(E164="","",IFERROR(INDEX(ProvideRationale!$F$22:$F$51,MATCH(E164,ProvideRationale!$E$22:$E$51,0))*100/Total_possible_score_Potential,"")) ->  | G164: =IF(E164="","",IFERROR(INDEX(ProvideRationale!$M$22:$M$51,MATCH(E164,ProvideRationale!$E$22:$E$51,0))*100/10,"")) ->  | H164: =IF(E164="","",IFERROR(INDEX(ProvideRationale!$O$22:$O$51,MATCH(E164,ProvideRationale!$E$22:$E$51,0))*100/5,"")) ->  | I164: =IFERROR(INDEX(DefineScope!$J$83:$J$112,MATCH(C164,DefineScope!$W$83:$W$112,0)),"") -> 
C165: 15 | E165: =IFERROR(INDEX(DefineScope!$E$83:$E$112,MATCH(C165,DefineScope!$W$83:$W$112,0)),"") ->  | F165: =IF(E165="","",IFERROR(INDEX(ProvideRationale!$F$22:$F$51,MATCH(E165,ProvideRationale!$E$22:$E$51,0))*100/Total_possible_score_Potential,"")) ->  | G165: =IF(E165="","",IFERROR(INDEX(ProvideRationale!$M$22:$M$51,MATCH(E165,ProvideRationale!$E$22:$E$51,0))*100/10,"")) ->  | H165: =IF(E165="","",IFERROR(INDEX(ProvideRationale!$O$22:$O$51,MATCH(E165,ProvideRationale!$E$22:$E$51,0))*100/5,"")) ->  | I165: =IFERROR(INDEX(DefineScope!$J$83:$J$112,MATCH(C165,DefineScope!$W$83:$W$112,0)),"") -> 
C166: 16 | E166: =IFERROR(INDEX(DefineScope!$E$83:$E$112,MATCH(C166,DefineScope!$W$83:$W$112,0)),"") ->  | F166: =IF(E166="","",IFERROR(INDEX(ProvideRationale!$F$22:$F$51,MATCH(E166,ProvideRationale!$E$22:$E$51,0))*100/Total_possible_score_Potential,"")) ->  | G166: =IF(E166="","",IFERROR(INDEX(ProvideRationale!$M$22:$M$51,MATCH(E166,ProvideRationale!$E$22:$E$51,0))*100/10,"")) ->  | H166: =IF(E166="","",IFERROR(INDEX(ProvideRationale!$O$22:$O$51,MATCH(E166,ProvideRationale!$E$22:$E$51,0))*100/5,"")) ->  | I166: =IFERROR(INDEX(DefineScope!$J$83:$J$112,MATCH(C166,DefineScope!$W$83:$W$112,0)),"") -> 
C167: 17 | E167: =IFERROR(INDEX(DefineScope!$E$83:$E$112,MATCH(C167,DefineScope!$W$83:$W$112,0)),"") ->  | F167: =IF(E167="","",IFERROR(INDEX(ProvideRationale!$F$22:$F$51,MATCH(E167,ProvideRationale!$E$22:$E$51,0))*100/Total_possible_score_Potential,"")) ->  | G167: =IF(E167="","",IFERROR(INDEX(ProvideRationale!$M$22:$M$51,MATCH(E167,ProvideRationale!$E$22:$E$51,0))*100/10,"")) ->  | H167: =IF(E167="","",IFERROR(INDEX(ProvideRationale!$O$22:$O$51,MATCH(E167,ProvideRationale!$E$22:$E$51,0))*100/5,"")) ->  | I167: =IFERROR(INDEX(DefineScope!$J$83:$J$112,MATCH(C167,DefineScope!$W$83:$W$112,0)),"") -> 
C168: 18 | E168: =IFERROR(INDEX(DefineScope!$E$83:$E$112,MATCH(C168,DefineScope!$W$83:$W$112,0)),"") ->  | F168: =IF(E168="","",IFERROR(INDEX(ProvideRationale!$F$22:$F$51,MATCH(E168,ProvideRationale!$E$22:$E$51,0))*100/Total_possible_score_Potential,"")) ->  | G168: =IF(E168="","",IFERROR(INDEX(ProvideRationale!$M$22:$M$51,MATCH(E168,ProvideRationale!$E$22:$E$51,0))*100/10,"")) ->  | H168: =IF(E168="","",IFERROR(INDEX(ProvideRationale!$O$22:$O$51,MATCH(E168,ProvideRationale!$E$22:$E$51,0))*100/5,"")) ->  | I168: =IFERROR(INDEX(DefineScope!$J$83:$J$112,MATCH(C168,DefineScope!$W$83:$W$112,0)),"") -> 
C169: 19 | E169: =IFERROR(INDEX(DefineScope!$E$83:$E$112,MATCH(C169,DefineScope!$W$83:$W$112,0)),"") ->  | F169: =IF(E169="","",IFERROR(INDEX(ProvideRationale!$F$22:$F$51,MATCH(E169,ProvideRationale!$E$22:$E$51,0))*100/Total_possible_score_Potential,"")) ->  | G169: =IF(E169="","",IFERROR(INDEX(ProvideRationale!$M$22:$M$51,MATCH(E169,ProvideRationale!$E$22:$E$51,0))*100/10,"")) ->  | H169: =IF(E169="","",IFERROR(INDEX(ProvideRationale!$O$22:$O$51,MATCH(E169,ProvideRationale!$E$22:$E$51,0))*100/5,"")) ->  | I169: =IFERROR(INDEX(DefineScope!$J$83:$J$112,MATCH(C169,DefineScope!$W$83:$W$112,0)),"") -> 
C170: 20 | E170: =IFERROR(INDEX(DefineScope!$E$83:$E$112,MATCH(C170,DefineScope!$W$83:$W$112,0)),"") ->  | F170: =IF(E170="","",IFERROR(INDEX(ProvideRationale!$F$22:$F$51,MATCH(E170,ProvideRationale!$E$22:$E$51,0))*100/Total_possible_score_Potential,"")) ->  | G170: =IF(E170="","",IFERROR(INDEX(ProvideRationale!$M$22:$M$51,MATCH(E170,ProvideRationale!$E$22:$E$51,0))*100/10,"")) ->  | H170: =IF(E170="","",IFERROR(INDEX(ProvideRationale!$O$22:$O$51,MATCH(E170,ProvideRationale!$E$22:$E$51,0))*100/5,"")) ->  | I170: =IFERROR(INDEX(DefineScope!$J$83:$J$112,MATCH(C170,DefineScope!$W$83:$W$112,0)),"") -> 
C171: 21 | E171: =IFERROR(INDEX(DefineScope!$E$83:$E$112,MATCH(C171,DefineScope!$W$83:$W$112,0)),"") ->  | F171: =IF(E171="","",IFERROR(INDEX(ProvideRationale!$F$22:$F$51,MATCH(E171,ProvideRationale!$E$22:$E$51,0))*100/Total_possible_score_Potential,"")) ->  | G171: =IF(E171="","",IFERROR(INDEX(ProvideRationale!$M$22:$M$51,MATCH(E171,ProvideRationale!$E$22:$E$51,0))*100/10,"")) ->  | H171: =IF(E171="","",IFERROR(INDEX(ProvideRationale!$O$22:$O$51,MATCH(E171,ProvideRationale!$E$22:$E$51,0))*100/5,"")) ->  | I171: =IFERROR(INDEX(DefineScope!$J$83:$J$112,MATCH(C171,DefineScope!$W$83:$W$112,0)),"") -> 
C172: 22 | E172: =IFERROR(INDEX(DefineScope!$E$83:$E$112,MATCH(C172,DefineScope!$W$83:$W$112,0)),"") ->  | F172: =IF(E172="","",IFERROR(INDEX(ProvideRationale!$F$22:$F$51,MATCH(E172,ProvideRationale!$E$22:$E$51,0))*100/Total_possible_score_Potential,"")) ->  | G172: =IF(E172="","",IFERROR(INDEX(ProvideRationale!$M$22:$M$51,MATCH(E172,ProvideRationale!$E$22:$E$51,0))*100/10,"")) ->  | H172: =IF(E172="","",IFERROR(INDEX(ProvideRationale!$O$22:$O$51,MATCH(E172,ProvideRationale!$E$22:$E$51,0))*100/5,"")) ->  | I172: =IFERROR(INDEX(DefineScope!$J$83:$J$112,MATCH(C172,DefineScope!$W$83:$W$112,0)),"") -> 
C173: 23 | E173: =IFERROR(INDEX(DefineScope!$E$83:$E$112,MATCH(C173,DefineScope!$W$83:$W$112,0)),"") ->  | F173: =IF(E173="","",IFERROR(INDEX(ProvideRationale!$F$22:$F$51,MATCH(E173,ProvideRationale!$E$22:$E$51,0))*100/Total_possible_score_Potential,"")) ->  | G173: =IF(E173="","",IFERROR(INDEX(ProvideRationale!$M$22:$M$51,MATCH(E173,ProvideRationale!$E$22:$E$51,0))*100/10,"")) ->  | H173: =IF(E173="","",IFERROR(INDEX(ProvideRationale!$O$22:$O$51,MATCH(E173,ProvideRationale!$E$22:$E$51,0))*100/5,"")) ->  | I173: =IFERROR(INDEX(DefineScope!$J$83:$J$112,MATCH(C173,DefineScope!$W$83:$W$112,0)),"") -> 
C174: 24 | E174: =IFERROR(INDEX(DefineScope!$E$83:$E$112,MATCH(C174,DefineScope!$W$83:$W$112,0)),"") ->  | F174: =IF(E174="","",IFERROR(INDEX(ProvideRationale!$F$22:$F$51,MATCH(E174,ProvideRationale!$E$22:$E$51,0))*100/Total_possible_score_Potential,"")) ->  | G174: =IF(E174="","",IFERROR(INDEX(ProvideRationale!$M$22:$M$51,MATCH(E174,ProvideRationale!$E$22:$E$51,0))*100/10,"")) ->  | H174: =IF(E174="","",IFERROR(INDEX(ProvideRationale!$O$22:$O$51,MATCH(E174,ProvideRationale!$E$22:$E$51,0))*100/5,"")) ->  | I174: =IFERROR(INDEX(DefineScope!$J$83:$J$112,MATCH(C174,DefineScope!$W$83:$W$112,0)),"") -> 
C175: 25 | E175: =IFERROR(INDEX(DefineScope!$E$83:$E$112,MATCH(C175,DefineScope!$W$83:$W$112,0)),"") ->  | F175: =IF(E175="","",IFERROR(INDEX(ProvideRationale!$F$22:$F$51,MATCH(E175,ProvideRationale!$E$22:$E$51,0))*100/Total_possible_score_Potential,"")) ->  | G175: =IF(E175="","",IFERROR(INDEX(ProvideRationale!$M$22:$M$51,MATCH(E175,ProvideRationale!$E$22:$E$51,0))*100/10,"")) ->  | H175: =IF(E175="","",IFERROR(INDEX(ProvideRationale!$O$22:$O$51,MATCH(E175,ProvideRationale!$E$22:$E$51,0))*100/5,"")) ->  | I175: =IFERROR(INDEX(DefineScope!$J$83:$J$112,MATCH(C175,DefineScope!$W$83:$W$112,0)),"") -> 
C176: 26 | E176: =IFERROR(INDEX(DefineScope!$E$83:$E$112,MATCH(C176,DefineScope!$W$83:$W$112,0)),"") ->  | F176: =IF(E176="","",IFERROR(INDEX(ProvideRationale!$F$22:$F$51,MATCH(E176,ProvideRationale!$E$22:$E$51,0))*100/Total_possible_score_Potential,"")) ->  | G176: =IF(E176="","",IFERROR(INDEX(ProvideRationale!$M$22:$M$51,MATCH(E176,ProvideRationale!$E$22:$E$51,0))*100/10,"")) ->  | H176: =IF(E176="","",IFERROR(INDEX(ProvideRationale!$O$22:$O$51,MATCH(E176,ProvideRationale!$E$22:$E$51,0))*100/5,"")) ->  | I176: =IFERROR(INDEX(DefineScope!$J$83:$J$112,MATCH(C176,DefineScope!$W$83:$W$112,0)),"") -> 
C177: 27 | E177: =IFERROR(INDEX(DefineScope!$E$83:$E$112,MATCH(C177,DefineScope!$W$83:$W$112,0)),"") ->  | F177: =IF(E177="","",IFERROR(INDEX(ProvideRationale!$F$22:$F$51,MATCH(E177,ProvideRationale!$E$22:$E$51,0))*100/Total_possible_score_Potential,"")) ->  | G177: =IF(E177="","",IFERROR(INDEX(ProvideRationale!$M$22:$M$51,MATCH(E177,ProvideRationale!$E$22:$E$51,0))*100/10,"")) ->  | H177: =IF(E177="","",IFERROR(INDEX(ProvideRationale!$O$22:$O$51,MATCH(E177,ProvideRationale!$E$22:$E$51,0))*100/5,"")) ->  | I177: =IFERROR(INDEX(DefineScope!$J$83:$J$112,MATCH(C177,DefineScope!$W$83:$W$112,0)),"") -> 
C178: 28 | E178: =IFERROR(INDEX(DefineScope!$E$83:$E$112,MATCH(C178,DefineScope!$W$83:$W$112,0)),"") ->  | F178: =IF(E178="","",IFERROR(INDEX(ProvideRationale!$F$22:$F$51,MATCH(E178,ProvideRationale!$E$22:$E$51,0))*100/Total_possible_score_Potential,"")) ->  | G178: =IF(E178="","",IFERROR(INDEX(ProvideRationale!$M$22:$M$51,MATCH(E178,ProvideRationale!$E$22:$E$51,0))*100/10,"")) ->  | H178: =IF(E178="","",IFERROR(INDEX(ProvideRationale!$O$22:$O$51,MATCH(E178,ProvideRationale!$E$22:$E$51,0))*100/5,"")) ->  | I178: =IFERROR(INDEX(DefineScope!$J$83:$J$112,MATCH(C178,DefineScope!$W$83:$W$112,0)),"") -> 
C179: 29 | E179: =IFERROR(INDEX(DefineScope!$E$83:$E$112,MATCH(C179,DefineScope!$W$83:$W$112,0)),"") ->  | F179: =IF(E179="","",IFERROR(INDEX(ProvideRationale!$F$22:$F$51,MATCH(E179,ProvideRationale!$E$22:$E$51,0))*100/Total_possible_score_Potential,"")) ->  | G179: =IF(E179="","",IFERROR(INDEX(ProvideRationale!$M$22:$M$51,MATCH(E179,ProvideRationale!$E$22:$E$51,0))*100/10,"")) ->  | H179: =IF(E179="","",IFERROR(INDEX(ProvideRationale!$O$22:$O$51,MATCH(E179,ProvideRationale!$E$22:$E$51,0))*100/5,"")) ->  | I179: =IFERROR(INDEX(DefineScope!$J$83:$J$112,MATCH(C179,DefineScope!$W$83:$W$112,0)),"") -> 
C180: 30 | E180: =IFERROR(INDEX(DefineScope!$E$83:$E$112,MATCH(C180,DefineScope!$W$83:$W$112,0)),"") ->  | F180: =IF(E180="","",IFERROR(INDEX(ProvideRationale!$F$22:$F$51,MATCH(E180,ProvideRationale!$E$22:$E$51,0))*100/Total_possible_score_Potential,"")) ->  | G180: =IF(E180="","",IFERROR(INDEX(ProvideRationale!$M$22:$M$51,MATCH(E180,ProvideRationale!$E$22:$E$51,0))*100/10,"")) ->  | H180: =IF(E180="","",IFERROR(INDEX(ProvideRationale!$O$22:$O$51,MATCH(E180,ProvideRationale!$E$22:$E$51,0))*100/5,"")) ->  | I180: =IFERROR(INDEX(DefineScope!$J$83:$J$112,MATCH(C180,DefineScope!$W$83:$W$112,0)),"") -> 
E181: All Programme Areas | F181: n/a | G181: n/a | H181: n/a | I181: =SUM(I151:I180) -> 600000 | J181: n/a | O181: n/a | P181: =SUM(P151:P180) -> 0 | Q181: =SUM(Q151:Q180) -> 0 | R181: =Q181-I181 -> -600000 | S181: =SUM(S151:S180) -> 0
E184: What's the benefit?
F186: Priority Points
E187: Health / topic area | F187: Original Budget | G187: Prioritisation Budget | H187: Equal Proportion Budget | I187: Difference between Prioritisation Budget and Equal Proportion Budget | J187: Added Value - difference converted to cash amount (based on priority points per £)
J191: £
E192: =E151 -> E.g.1 Smoking/Tobacco | F192: =IF(E192="","",IFERROR(F151*I151,"")) -> 9000000 | G192: =IFERROR(IF(E192="","",F151*Q151),"") ->  | H192: =IFERROR(IF(E192="","",F151*S151),"") -> 0 | I192: =IF(E192="","",IFERROR(G192-H192,"")) ->  | J192: n/a
E193: =E152 -> E.g.2 Obesity | F193: 8666666.667 | H193: 0
E194: E.g.3 Sexual Health Services | F194: 24000000 | H194: 0
E222: All Programme Areas | F222: =SUM(F192:F221) -> 41666666.67 | G222: =SUM(G192:G221) -> 0 | H222: =SUM(H192:H221) -> 0 | I222: =SUM(I192:I221) -> 0 | J222: =IFERROR(I222/(G222/Q181),0) -> 0
S230: Delete Scenario
E232: Health / topic area | F232: Potential score (out of 100) | G232: Current score (out of 100) | H232: Feasibility score (out of 100) | I232: Original Budget | J232: Spend Recommendation | O232: Proportion of budget to adjust using prioritisation score | P232: If initial amount already agreed to increase/ decrease budget then enter here (use +/-) | Q232: Prioritisation Budget (Calculation: (((Original Bdgt + Pre-agreed) x (% Increase/Decrease)) x Prioritisation Score%) + (Original Bdgt + Pre-agreed)) | R232: Difference between Prioritisation and Original Budgets | S232: Equal Proportion Budget (programme areas reduced in equal proportions so that total matches Prioritisation Budget)
K233: Increase | M233: %
K234: No Change | L234: 0 | M234: %
K235: Decrease | M235: %
J236: (Note: 'No Change' must be less than 'Decrease')
I237: £ | O237: % | P237: £ | Q237: £ | R237: £ | S237: £
C238: 1 | E238: =IFERROR(INDEX(DefineScope!$E$83:$E$112,MATCH(C238,DefineScope!$W$83:$W$112,0)),"") -> E.g.1 Smoking/Tobacco | F238: =IF(E238="","",IFERROR(INDEX(ProvideRationale!$F$22:$F$51,MATCH(E238,ProvideRationale!$E$22:$E$51,0))*100/Total_possible_score_Potential,"")) -> 90 | G238: =IF(E238="","",IFERROR(INDEX(ProvideRationale!$M$22:$M$51,MATCH(E238,ProvideRationale!$E$22:$E$51,0))*100/10,"")) -> 0 | H238: =IF(E238="","",IFERROR(INDEX(ProvideRationale!$O$22:$O$51,MATCH(E238,ProvideRationale!$E$22:$E$51,0))*100/5,"")) -> 0 | I238: =IFERROR(INDEX(DefineScope!$J$83:$J$112,MATCH(C238,DefineScope!$W$83:$W$112,0)),"") -> 100000 | O238: =IF(J238="","",VLOOKUP(J238,$K$233:$M$235,2,FALSE)/100) ->  | Q238: =IFERROR(IF(J238="","", IF(P238<>"",I238+P238,(IFERROR(IF(J238="Increase",(((I238)*O238)*(F238/100))+(I238), IF(J238="No Change",(((I238)*(O238)*(F238/100))+((I238)*(100%-O238))), IF(J238="Decrease",(((I238)*O238)*(F238/100))+((I238)*(100%-O238))))),"")))),"") ->  | R238: =IFERROR(Q238-I238,"") ->  | S238: =IFERROR(I238--(($R$268/($I$268/100))*(I238/100)),"") -> 0
C239: =C238+1 -> 2 | E239: =IFERROR(INDEX(DefineScope!$E$83:$E$112,MATCH(C239,DefineScope!$W$83:$W$112,0)),"") -> E.g.2 Obesity | F239: =IF(E239="","",IFERROR(INDEX(ProvideRationale!$F$22:$F$51,MATCH(E239,ProvideRationale!$E$22:$E$51,0))*100/Total_possible_score_Potential,"")) -> 43.33333333 | G239: =IF(E239="","",IFERROR(INDEX(ProvideRationale!$M$22:$M$51,MATCH(E239,ProvideRationale!$E$22:$E$51,0))*100/10,"")) -> 0 | H239: =IF(E239="","",IFERROR(INDEX(ProvideRationale!$O$22:$O$51,MATCH(E239,ProvideRationale!$E$22:$E$51,0))*100/5,"")) -> 0 | I239: =IFERROR(INDEX(DefineScope!$J$83:$J$112,MATCH(C239,DefineScope!$W$83:$W$112,0)),"") -> 200000 | O239: =IF(J239="","",VLOOKUP(J239,$K$233:$M$235,2,FALSE)/100) ->  | Q239: =IFERROR(IF(J239="","", IF(P239<>"",I239+P239,(IFERROR(IF(J239="Increase",(((I239)*O239)*(F239/100))+(I239), IF(J239="No Change",(((I239)*(O239)*(F239/100))+((I239)*(100%-O239))), IF(J239="Decrease",(((I239)*O239)*(F239/100))+((I239)*(100%-O239))))),"")))),"") ->  | R239: =IFERROR(Q239-I239,"") ->  | S239: =IFERROR(I239--(($R$268/($I$268/100))*(I239/100)),"") -> 0
C240: =C239+1 -> 3 | E240: =IFERROR(INDEX(DefineScope!$E$83:$E$112,MATCH(C240,DefineScope!$W$83:$W$112,0)),"") -> E.g.3 Sexual Health Services | F240: =IF(E240="","",IFERROR(INDEX(ProvideRationale!$F$22:$F$51,MATCH(E240,ProvideRationale!$E$22:$E$51,0))*100/Total_possible_score_Potential,"")) -> 80 | G240: =IF(E240="","",IFERROR(INDEX(ProvideRationale!$M$22:$M$51,MATCH(E240,ProvideRationale!$E$22:$E$51,0))*100/10,"")) -> 0 | H240: =IF(E240="","",IFERROR(INDEX(ProvideRationale!$O$22:$O$51,MATCH(E240,ProvideRationale!$E$22:$E$51,0))*100/5,"")) -> 0 | I240: =IFERROR(INDEX(DefineScope!$J$83:$J$112,MATCH(C240,DefineScope!$W$83:$W$112,0)),"") -> 300000 | S240: 0
C241: 4 | E241: =IFERROR(INDEX(DefineScope!$E$83:$E$112,MATCH(C241,DefineScope!$W$83:$W$112,0)),"") ->  | F241: =IF(E241="","",IFERROR(INDEX(ProvideRationale!$F$22:$F$51,MATCH(E241,ProvideRationale!$E$22:$E$51,0))*100/Total_possible_score_Potential,"")) ->  | G241: =IF(E241="","",IFERROR(INDEX(ProvideRationale!$M$22:$M$51,MATCH(E241,ProvideRationale!$E$22:$E$51,0))*100/10,"")) ->  | H241: =IF(E241="","",IFERROR(INDEX(ProvideRationale!$O$22:$O$51,MATCH(E241,ProvideRationale!$E$22:$E$51,0))*100/5,"")) ->  | I241: =IFERROR(INDEX(DefineScope!$J$83:$J$112,MATCH(C241,DefineScope!$W$83:$W$112,0)),"") -> 
C242: 5 | E242: =IFERROR(INDEX(DefineScope!$E$83:$E$112,MATCH(C242,DefineScope!$W$83:$W$112,0)),"") ->  | F242: =IF(E242="","",IFERROR(INDEX(ProvideRationale!$F$22:$F$51,MATCH(E242,ProvideRationale!$E$22:$E$51,0))*100/Total_possible_score_Potential,"")) ->  | G242: =IF(E242="","",IFERROR(INDEX(ProvideRationale!$M$22:$M$51,MATCH(E242,ProvideRationale!$E$22:$E$51,0))*100/10,"")) ->  | H242: =IF(E242="","",IFERROR(INDEX(ProvideRationale!$O$22:$O$51,MATCH(E242,ProvideRationale!$E$22:$E$51,0))*100/5,"")) ->  | I242: =IFERROR(INDEX(DefineScope!$J$83:$J$112,MATCH(C242,DefineScope!$W$83:$W$112,0)),"") -> 
C243: 6 | E243: =IFERROR(INDEX(DefineScope!$E$83:$E$112,MATCH(C243,DefineScope!$W$83:$W$112,0)),"") ->  | F243: =IF(E243="","",IFERROR(INDEX(ProvideRationale!$F$22:$F$51,MATCH(E243,ProvideRationale!$E$22:$E$51,0))*100/Total_possible_score_Potential,"")) ->  | G243: =IF(E243="","",IFERROR(INDEX(ProvideRationale!$M$22:$M$51,MATCH(E243,ProvideRationale!$E$22:$E$51,0))*100/10,"")) ->  | H243: =IF(E243="","",IFERROR(INDEX(ProvideRationale!$O$22:$O$51,MATCH(E243,ProvideRationale!$E$22:$E$51,0))*100/5,"")) ->  | I243: =IFERROR(INDEX(DefineScope!$J$83:$J$112,MATCH(C243,DefineScope!$W$83:$W$112,0)),"") -> 
C244: 7 | E244: =IFERROR(INDEX(DefineScope!$E$83:$E$112,MATCH(C244,DefineScope!$W$83:$W$112,0)),"") ->  | F244: =IF(E244="","",IFERROR(INDEX(ProvideRationale!$F$22:$F$51,MATCH(E244,ProvideRationale!$E$22:$E$51,0))*100/Total_possible_score_Potential,"")) ->  | G244: =IF(E244="","",IFERROR(INDEX(ProvideRationale!$M$22:$M$51,MATCH(E244,ProvideRationale!$E$22:$E$51,0))*100/10,"")) ->  | H244: =IF(E244="","",IFERROR(INDEX(ProvideRationale!$O$22:$O$51,MATCH(E244,ProvideRationale!$E$22:$E$51,0))*100/5,"")) ->  | I244: =IFERROR(INDEX(DefineScope!$J$83:$J$112,MATCH(C244,DefineScope!$W$83:$W$112,0)),"") -> 
C245: 8 | E245: =IFERROR(INDEX(DefineScope!$E$83:$E$112,MATCH(C245,DefineScope!$W$83:$W$112,0)),"") ->  | F245: =IF(E245="","",IFERROR(INDEX(ProvideRationale!$F$22:$F$51,MATCH(E245,ProvideRationale!$E$22:$E$51,0))*100/Total_possible_score_Potential,"")) ->  | G245: =IF(E245="","",IFERROR(INDEX(ProvideRationale!$M$22:$M$51,MATCH(E245,ProvideRationale!$E$22:$E$51,0))*100/10,"")) ->  | H245: =IF(E245="","",IFERROR(INDEX(ProvideRationale!$O$22:$O$51,MATCH(E245,ProvideRationale!$E$22:$E$51,0))*100/5,"")) ->  | I245: =IFERROR(INDEX(DefineScope!$J$83:$J$112,MATCH(C245,DefineScope!$W$83:$W$112,0)),"") -> 
C246: 9 | E246: =IFERROR(INDEX(DefineScope!$E$83:$E$112,MATCH(C246,DefineScope!$W$83:$W$112,0)),"") ->  | F246: =IF(E246="","",IFERROR(INDEX(ProvideRationale!$F$22:$F$51,MATCH(E246,ProvideRationale!$E$22:$E$51,0))*100/Total_possible_score_Potential,"")) ->  | G246: =IF(E246="","",IFERROR(INDEX(ProvideRationale!$M$22:$M$51,MATCH(E246,ProvideRationale!$E$22:$E$51,0))*100/10,"")) ->  | H246: =IF(E246="","",IFERROR(INDEX(ProvideRationale!$O$22:$O$51,MATCH(E246,ProvideRationale!$E$22:$E$51,0))*100/5,"")) ->  | I246: =IFERROR(INDEX(DefineScope!$J$83:$J$112,MATCH(C246,DefineScope!$W$83:$W$112,0)),"") -> 
C247: 10 | E247: =IFERROR(INDEX(DefineScope!$E$83:$E$112,MATCH(C247,DefineScope!$W$83:$W$112,0)),"") ->  | F247: =IF(E247="","",IFERROR(INDEX(ProvideRationale!$F$22:$F$51,MATCH(E247,ProvideRationale!$E$22:$E$51,0))*100/Total_possible_score_Potential,"")) ->  | G247: =IF(E247="","",IFERROR(INDEX(ProvideRationale!$M$22:$M$51,MATCH(E247,ProvideRationale!$E$22:$E$51,0))*100/10,"")) ->  | H247: =IF(E247="","",IFERROR(INDEX(ProvideRationale!$O$22:$O$51,MATCH(E247,ProvideRationale!$E$22:$E$51,0))*100/5,"")) ->  | I247: =IFERROR(INDEX(DefineScope!$J$83:$J$112,MATCH(C247,DefineScope!$W$83:$W$112,0)),"") -> 
C248: 11 | E248: =IFERROR(INDEX(DefineScope!$E$83:$E$112,MATCH(C248,DefineScope!$W$83:$W$112,0)),"") ->  | F248: =IF(E248="","",IFERROR(INDEX(ProvideRationale!$F$22:$F$51,MATCH(E248,ProvideRationale!$E$22:$E$51,0))*100/Total_possible_score_Potential,"")) ->  | G248: =IF(E248="","",IFERROR(INDEX(ProvideRationale!$M$22:$M$51,MATCH(E248,ProvideRationale!$E$22:$E$51,0))*100/10,"")) ->  | H248: =IF(E248="","",IFERROR(INDEX(ProvideRationale!$O$22:$O$51,MATCH(E248,ProvideRationale!$E$22:$E$51,0))*100/5,"")) ->  | I248: =IFERROR(INDEX(DefineScope!$J$83:$J$112,MATCH(C248,DefineScope!$W$83:$W$112,0)),"") -> 
C249: 12 | E249: =IFERROR(INDEX(DefineScope!$E$83:$E$112,MATCH(C249,DefineScope!$W$83:$W$112,0)),"") ->  | F249: =IF(E249="","",IFERROR(INDEX(ProvideRationale!$F$22:$F$51,MATCH(E249,ProvideRationale!$E$22:$E$51,0))*100/Total_possible_score_Potential,"")) ->  | G249: =IF(E249="","",IFERROR(INDEX(ProvideRationale!$M$22:$M$51,MATCH(E249,ProvideRationale!$E$22:$E$51,0))*100/10,"")) ->  | H249: =IF(E249="","",IFERROR(INDEX(ProvideRationale!$O$22:$O$51,MATCH(E249,ProvideRationale!$E$22:$E$51,0))*100/5,"")) ->  | I249: =IFERROR(INDEX(DefineScope!$J$83:$J$112,MATCH(C249,DefineScope!$W$83:$W$112,0)),"") -> 
C250: 13 | E250: =IFERROR(INDEX(DefineScope!$E$83:$E$112,MATCH(C250,DefineScope!$W$83:$W$112,0)),"") ->  | F250: =IF(E250="","",IFERROR(INDEX(ProvideRationale!$F$22:$F$51,MATCH(E250,ProvideRationale!$E$22:$E$51,0))*100/Total_possible_score_Potential,"")) ->  | G250: =IF(E250="","",IFERROR(INDEX(ProvideRationale!$M$22:$M$51,MATCH(E250,ProvideRationale!$E$22:$E$51,0))*100/10,"")) ->  | H250: =IF(E250="","",IFERROR(INDEX(ProvideRationale!$O$22:$O$51,MATCH(E250,ProvideRationale!$E$22:$E$51,0))*100/5,"")) ->  | I250: =IFERROR(INDEX(DefineScope!$J$83:$J$112,MATCH(C250,DefineScope!$W$83:$W$112,0)),"") -> 
C251: 14 | E251: =IFERROR(INDEX(DefineScope!$E$83:$E$112,MATCH(C251,DefineScope!$W$83:$W$112,0)),"") ->  | F251: =IF(E251="","",IFERROR(INDEX(ProvideRationale!$F$22:$F$51,MATCH(E251,ProvideRationale!$E$22:$E$51,0))*100/Total_possible_score_Potential,"")) ->  | G251: =IF(E251="","",IFERROR(INDEX(ProvideRationale!$M$22:$M$51,MATCH(E251,ProvideRationale!$E$22:$E$51,0))*100/10,"")) ->  | H251: =IF(E251="","",IFERROR(INDEX(ProvideRationale!$O$22:$O$51,MATCH(E251,ProvideRationale!$E$22:$E$51,0))*100/5,"")) ->  | I251: =IFERROR(INDEX(DefineScope!$J$83:$J$112,MATCH(C251,DefineScope!$W$83:$W$112,0)),"") -> 
C252: 15 | E252: =IFERROR(INDEX(DefineScope!$E$83:$E$112,MATCH(C252,DefineScope!$W$83:$W$112,0)),"") ->  | F252: =IF(E252="","",IFERROR(INDEX(ProvideRationale!$F$22:$F$51,MATCH(E252,ProvideRationale!$E$22:$E$51,0))*100/Total_possible_score_Potential,"")) ->  | G252: =IF(E252="","",IFERROR(INDEX(ProvideRationale!$M$22:$M$51,MATCH(E252,ProvideRationale!$E$22:$E$51,0))*100/10,"")) ->  | H252: =IF(E252="","",IFERROR(INDEX(ProvideRationale!$O$22:$O$51,MATCH(E252,ProvideRationale!$E$22:$E$51,0))*100/5,"")) ->  | I252: =IFERROR(INDEX(DefineScope!$J$83:$J$112,MATCH(C252,DefineScope!$W$83:$W$112,0)),"") -> 
C253: 16 | E253: =IFERROR(INDEX(DefineScope!$E$83:$E$112,MATCH(C253,DefineScope!$W$83:$W$112,0)),"") ->  | F253: =IF(E253="","",IFERROR(INDEX(ProvideRationale!$F$22:$F$51,MATCH(E253,ProvideRationale!$E$22:$E$51,0))*100/Total_possible_score_Potential,"")) ->  | G253: =IF(E253="","",IFERROR(INDEX(ProvideRationale!$M$22:$M$51,MATCH(E253,ProvideRationale!$E$22:$E$51,0))*100/10,"")) ->  | H253: =IF(E253="","",IFERROR(INDEX(ProvideRationale!$O$22:$O$51,MATCH(E253,ProvideRationale!$E$22:$E$51,0))*100/5,"")) ->  | I253: =IFERROR(INDEX(DefineScope!$J$83:$J$112,MATCH(C253,DefineScope!$W$83:$W$112,0)),"") -> 
C254: 17 | E254: =IFERROR(INDEX(DefineScope!$E$83:$E$112,MATCH(C254,DefineScope!$W$83:$W$112,0)),"") ->  | F254: =IF(E254="","",IFERROR(INDEX(ProvideRationale!$F$22:$F$51,MATCH(E254,ProvideRationale!$E$22:$E$51,0))*100/Total_possible_score_Potential,"")) ->  | G254: =IF(E254="","",IFERROR(INDEX(ProvideRationale!$M$22:$M$51,MATCH(E254,ProvideRationale!$E$22:$E$51,0))*100/10,"")) ->  | H254: =IF(E254="","",IFERROR(INDEX(ProvideRationale!$O$22:$O$51,MATCH(E254,ProvideRationale!$E$22:$E$51,0))*100/5,"")) ->  | I254: =IFERROR(INDEX(DefineScope!$J$83:$J$112,MATCH(C254,DefineScope!$W$83:$W$112,0)),"") -> 
C255: 18 | E255: =IFERROR(INDEX(DefineScope!$E$83:$E$112,MATCH(C255,DefineScope!$W$83:$W$112,0)),"") ->  | F255: =IF(E255="","",IFERROR(INDEX(ProvideRationale!$F$22:$F$51,MATCH(E255,ProvideRationale!$E$22:$E$51,0))*100/Total_possible_score_Potential,"")) ->  | G255: =IF(E255="","",IFERROR(INDEX(ProvideRationale!$M$22:$M$51,MATCH(E255,ProvideRationale!$E$22:$E$51,0))*100/10,"")) ->  | H255: =IF(E255="","",IFERROR(INDEX(ProvideRationale!$O$22:$O$51,MATCH(E255,ProvideRationale!$E$22:$E$51,0))*100/5,"")) ->  | I255: =IFERROR(INDEX(DefineScope!$J$83:$J$112,MATCH(C255,DefineScope!$W$83:$W$112,0)),"") -> 
C256: 19 | E256: =IFERROR(INDEX(DefineScope!$E$83:$E$112,MATCH(C256,DefineScope!$W$83:$W$112,0)),"") ->  | F256: =IF(E256="","",IFERROR(INDEX(ProvideRationale!$F$22:$F$51,MATCH(E256,ProvideRationale!$E$22:$E$51,0))*100/Total_possible_score_Potential,"")) ->  | G256: =IF(E256="","",IFERROR(INDEX(ProvideRationale!$M$22:$M$51,MATCH(E256,ProvideRationale!$E$22:$E$51,0))*100/10,"")) ->  | H256: =IF(E256="","",IFERROR(INDEX(ProvideRationale!$O$22:$O$51,MATCH(E256,ProvideRationale!$E$22:$E$51,0))*100/5,"")) ->  | I256: =IFERROR(INDEX(DefineScope!$J$83:$J$112,MATCH(C256,DefineScope!$W$83:$W$112,0)),"") -> 
C257: 20 | E257: =IFERROR(INDEX(DefineScope!$E$83:$E$112,MATCH(C257,DefineScope!$W$83:$W$112,0)),"") ->  | F257: =IF(E257="","",IFERROR(INDEX(ProvideRationale!$F$22:$F$51,MATCH(E257,ProvideRationale!$E$22:$E$51,0))*100/Total_possible_score_Potential,"")) ->  | G257: =IF(E257="","",IFERROR(INDEX(ProvideRationale!$M$22:$M$51,MATCH(E257,ProvideRationale!$E$22:$E$51,0))*100/10,"")) ->  | H257: =IF(E257="","",IFERROR(INDEX(ProvideRationale!$O$22:$O$51,MATCH(E257,ProvideRationale!$E$22:$E$51,0))*100/5,"")) ->  | I257: =IFERROR(INDEX(DefineScope!$J$83:$J$112,MATCH(C257,DefineScope!$W$83:$W$112,0)),"") -> 
C258: 21 | E258: =IFERROR(INDEX(DefineScope!$E$83:$E$112,MATCH(C258,DefineScope!$W$83:$W$112,0)),"") ->  | F258: =IF(E258="","",IFERROR(INDEX(ProvideRationale!$F$22:$F$51,MATCH(E258,ProvideRationale!$E$22:$E$51,0))*100/Total_possible_score_Potential,"")) ->  | G258: =IF(E258="","",IFERROR(INDEX(ProvideRationale!$M$22:$M$51,MATCH(E258,ProvideRationale!$E$22:$E$51,0))*100/10,"")) ->  | H258: =IF(E258="","",IFERROR(INDEX(ProvideRationale!$O$22:$O$51,MATCH(E258,ProvideRationale!$E$22:$E$51,0))*100/5,"")) ->  | I258: =IFERROR(INDEX(DefineScope!$J$83:$J$112,MATCH(C258,DefineScope!$W$83:$W$112,0)),"") -> 
C259: 22 | E259: =IFERROR(INDEX(DefineScope!$E$83:$E$112,MATCH(C259,DefineScope!$W$83:$W$112,0)),"") ->  | F259: =IF(E259="","",IFERROR(INDEX(ProvideRationale!$F$22:$F$51,MATCH(E259,ProvideRationale!$E$22:$E$51,0))*100/Total_possible_score_Potential,"")) ->  | G259: =IF(E259="","",IFERROR(INDEX(ProvideRationale!$M$22:$M$51,MATCH(E259,ProvideRationale!$E$22:$E$51,0))*100/10,"")) ->  | H259: =IF(E259="","",IFERROR(INDEX(ProvideRationale!$O$22:$O$51,MATCH(E259,ProvideRationale!$E$22:$E$51,0))*100/5,"")) ->  | I259: =IFERROR(INDEX(DefineScope!$J$83:$J$112,MATCH(C259,DefineScope!$W$83:$W$112,0)),"") -> 
C260: 23 | E260: =IFERROR(INDEX(DefineScope!$E$83:$E$112,MATCH(C260,DefineScope!$W$83:$W$112,0)),"") ->  | F260: =IF(E260="","",IFERROR(INDEX(ProvideRationale!$F$22:$F$51,MATCH(E260,ProvideRationale!$E$22:$E$51,0))*100/Total_possible_score_Potential,"")) ->  | G260: =IF(E260="","",IFERROR(INDEX(ProvideRationale!$M$22:$M$51,MATCH(E260,ProvideRationale!$E$22:$E$51,0))*100/10,"")) ->  | H260: =IF(E260="","",IFERROR(INDEX(ProvideRationale!$O$22:$O$51,MATCH(E260,ProvideRationale!$E$22:$E$51,0))*100/5,"")) ->  | I260: =IFERROR(INDEX(DefineScope!$J$83:$J$112,MATCH(C260,DefineScope!$W$83:$W$112,0)),"") -> 
